Workbook

Sheet CODICI (hidden)
B1: 2016 price list
B2: Climate | D2: INSTRUCTIONS :
B3: valid from January 1st 2016 | D3: If needed change the prices in the grey cells
B5: Code | C5: Description | D5: Price list 2016 | F5: Price (selected currency)
A6: 1 | B6: DP035D22R0 | C6: =VLOOKUP(B6,LINGUA!$B:$H,2,0) -> Stainless steel steam distributor, inlet Ø=22 mm, l = 350 mm | D6: € 74.60 | F6: =IF(SELECTION!$C$46="Eur",CODICI!D6,CODICI!D6*SELECTION!$C$48) -> € 74.60
A7: =+A6+1 -> 2 | B7: DP045D22R0 | C7: =VLOOKUP(B7,LINGUA!$B:$H,2,0) -> Stainless steel steam distributor, inlet Ø=22 mm, l = 450 mm | D7: € 85.10 | F7: =IF(SELECTION!$C$46="Eur",CODICI!D7,CODICI!D7*SELECTION!$C$48) -> € 85.10
A8: =+A7+1 -> 3 | B8: DP060D22R0 | C8: =VLOOKUP(B8,LINGUA!$B:$H,2,0) -> Stainless steel steam distributor, inlet Ø=22 mm, l = 600 mm | D8: € 92.50 | F8: =IF(SELECTION!$C$46="Eur",CODICI!D8,CODICI!D8*SELECTION!$C$48) -> € 92.50
A9: 4 | B9: DP085D22R0 | C9: =VLOOKUP(B9,LINGUA!$B:$H,2,0) -> Stainless steel steam distributor, inlet Ø=22 mm, l = 850 mm | D9: € 114.50 | F9: =IF(SELECTION!$C$46="Eur",CODICI!D9,CODICI!D9*SELECTION!$C$48) -> € 114.50
A10: 5 | B10: DP035D30R0 | C10: =VLOOKUP(B10,LINGUA!$B:$H,2,0) -> Stainless steel steam distributor, inlet Ø=30 mm, l = 350 mm | D10: € 85.10 | F10: =IF(SELECTION!$C$46="Eur",CODICI!D10,CODICI!D10*SELECTION!$C$48) -> € 85.10
A11: 6 | B11: DP045D30R0 | C11: =VLOOKUP(B11,LINGUA!$B:$H,2,0) -> Stainless steel steam distributor, inlet Ø=30 mm, l = 450 mm | D11: € 103.00 | F11: =IF(SELECTION!$C$46="Eur",CODICI!D11,CODICI!D11*SELECTION!$C$48) -> € 103.00
A12: 7 | B12: DP060D30R0 | C12: =VLOOKUP(B12,LINGUA!$B:$H,2,0) -> Stainless steel steam distributor, inlet Ø=30 mm, l = 600 mm | D12: € 114.50 | F12: =IF(SELECTION!$C$46="Eur",CODICI!D12,CODICI!D12*SELECTION!$C$48) -> € 114.50
A13: 8 | B13: DP085D30R0 | C13: =VLOOKUP(B13,LINGUA!$B:$H,2,0) -> Stainless steel steam distributor, inlet Ø=30 mm, l = 850 mm | D13: € 140.80 | F13: =IF(SELECTION!$C$46="Eur",CODICI!D13,CODICI!D13*SELECTION!$C$48) -> € 140.80
A14: 9 | B14: DP105D30R0 | C14: =VLOOKUP(B14,LINGUA!$B:$H,2,0) -> Stainless steel steam distributor, inlet Ø=30 mm, l = 1,050 mm | D14: € 152.30 | F14: =IF(SELECTION!$C$46="Eur",CODICI!D14,CODICI!D14*SELECTION!$C$48) -> € 152.30
A15: 10 | B15: DP125D30R0 | C15: =VLOOKUP(B15,LINGUA!$B:$H,2,0) -> Stainless steel steam distributor, inlet Ø=30 mm, l = 1,250 mm | D15: € 157.60 | F15: =IF(SELECTION!$C$46="Eur",CODICI!D15,CODICI!D15*SELECTION!$C$48) -> € 157.60
A16: 11 | B16: DP165D30R0 | C16: =VLOOKUP(B16,LINGUA!$B:$H,2,0) -> Stainless steel steam distributor, inlet Ø=30 mm, l = 1.650 mm | D16: € 162.80 | F16: =IF(SELECTION!$C$46="Eur",CODICI!D16,CODICI!D16*SELECTION!$C$48) -> € 162.80
A17: 12 | B17: DP085D40R0 | C17: =VLOOKUP(B17,LINGUA!$B:$H,2,0) -> Stainless steel steam distributor, inlet Ø=40 mm, l = 850 mm | D17: € 200.60 | F17: =IF(SELECTION!$C$46="Eur",CODICI!D17,CODICI!D17*SELECTION!$C$48) -> € 200.60
A18: 13 | B18: DP105D40R0 | C18: =VLOOKUP(B18,LINGUA!$B:$H,2,0) -> Stainless steel steam distributor, inlet Ø=40 mm, l = 1,050 mm | D18: € 216.40 | F18: =IF(SELECTION!$C$46="Eur",CODICI!D18,CODICI!D18*SELECTION!$C$48) -> € 216.40
A19: 14 | B19: DP125D40R0 | C19: =VLOOKUP(B19,LINGUA!$B:$H,2,0) -> Stainless steel steam distributor, inlet Ø=40 mm, l = 1,250 mm | D19: € 227.90 | F19: =IF(SELECTION!$C$46="Eur",CODICI!D19,CODICI!D19*SELECTION!$C$48) -> € 227.90
A20: 15 | B20: DP165D40R0 | C20: =VLOOKUP(B20,LINGUA!$B:$H,2,0) -> Stainless steel steam distributor, inlet Ø=40 mm, l = 1,650 mm | D20: € 271.10 | F20: =IF(SELECTION!$C$46="Eur",CODICI!D20,CODICI!D20*SELECTION!$C$48) -> € 271.10
A21: 16 | B21: DP205D40R0 | C21: =VLOOKUP(B21,LINGUA!$B:$H,2,0) -> Stainless steel steam distributor, inlet Ø=40 mm, l = 2,050 mm | D21: € 324.70 | F21: =IF(SELECTION!$C$46="Eur",CODICI!D21,CODICI!D21*SELECTION!$C$48) -> € 324.70
A22: 17 | B22: DP030D22RU | C22: =VLOOKUP(B22,LINGUA!$B:$H,2,0) -> Stainless steel steam distributor, inlet Ø=22 mm, l = 300 mm | D22: € 74.60 | F22: =IF(SELECTION!$C$46="Eur",CODICI!D22,CODICI!D22*SELECTION!$C$48) -> € 74.60
A23: 18 | B23: DP030D30RU | C23: =VLOOKUP(B23,LINGUA!$B:$H,2,0) -> Stainless steel steam distributor, inlet Ø=30 mm, l = 300 mm | D23: € 85.10 | F23: =IF(SELECTION!$C$46="Eur",CODICI!D23,CODICI!D23*SELECTION!$C$48) -> € 85.10
A24: 19 | B24: DP045D30RU | C24: =VLOOKUP(B24,LINGUA!$B:$H,2,0) -> Stainless steel steam distributor, inlet Ø=30 mm, l = 450 mm | D24: € 103.00 | F24: =IF(SELECTION!$C$46="Eur",CODICI!D24,CODICI!D24*SELECTION!$C$48) -> € 103.00
A25: 20 | B25: DP060D30RU | C25: =VLOOKUP(B25,LINGUA!$B:$H,2,0) -> Stainless steel steam distributor, inlet Ø=30 mm, l = 600 mm | D25: € 114.50 | F25: =IF(SELECTION!$C$46="Eur",CODICI!D25,CODICI!D25*SELECTION!$C$48) -> € 114.50
A26: 21 | B26: DP060D40RU | C26: =VLOOKUP(B26,LINGUA!$B:$H,2,0) -> Stainless steel steam distributor, inlet Ø=40 mm, l = 600 mm | D26: € 162.80 | F26: =IF(SELECTION!$C$46="Eur",CODICI!D26,CODICI!D26*SELECTION!$C$48) -> € 162.80
A27: 22 | B27: SDPOEM0012 | C27: =VLOOKUP(B27,LINGUA!$B:$H,2,0) -> SDP OEM: steam injection nozzle up to 3 kg/h | D27: € 32.50 | F27: =IF(SELECTION!$C$46="Eur",CODICI!D27,CODICI!D27*SELECTION!$C$48) -> € 32.50
A28: 23 | B28: SDPOEM0022 | C28: =VLOOKUP(B28,LINGUA!$B:$H,2,0) -> SDP OEM: steam injection nozzle from 3 to 15 kg/h | D28: € 32.50 | F28: =IF(SELECTION!$C$46="Eur",CODICI!D28,CODICI!D28*SELECTION!$C$48) -> € 32.50
A29: 24 | B29: SDPOEM0000 | C29: =VLOOKUP(B29,LINGUA!$B:$H,2,0) -> SDP OEM: customizable steam injection nozzle | D29: € 32.50 | F29: =IF(SELECTION!$C$46="Eur",CODICI!D29,CODICI!D29*SELECTION!$C$48) -> € 32.50
A30: 25 | B30: UEKY000000 | C30: =VLOOKUP(B30,LINGUA!$B:$H,2,0) -> ‘Y’ connector for steam hoses (from 1x Ø=40 mm to 2x Ø=30 mm) | D30: € 131.50 | F30: =IF(SELECTION!$C$46="Eur",CODICI!D30,CODICI!D30*SELECTION!$C$48) -> € 131.50
A31: 26 | B31: UEKY40X400 | C31: =VLOOKUP(B31,LINGUA!$B:$H,2,0) -> ‘Y’ connector for steam hoses (from 1x Ø=40 mm to 2x Ø=40 mm) | D31: € 136.90 | F31: =IF(SELECTION!$C$46="Eur",CODICI!D31,CODICI!D31*SELECTION!$C$48) -> € 136.90
A32: 27 | B32: 1312360AXX | C32: =VLOOKUP(B32,LINGUA!$B:$H,2,0) -> Steam hose with steel spring Ø=22 mm (per metre) | D32: € 30.80 | F32: =IF(SELECTION!$C$46="Eur",CODICI!D32,CODICI!D32*SELECTION!$C$48) -> € 30.80
A33: 28 | B33: 1312365AXX | C33: =VLOOKUP(B33,LINGUA!$B:$H,2,0) -> Steam hose with steel spring Ø=30 mm (per meter) | D33: € 38.20 | F33: =IF(SELECTION!$C$46="Eur",CODICI!D33,CODICI!D33*SELECTION!$C$48) -> € 38.20
A34: 29 | B34: 1312367AXX | C34: =VLOOKUP(B34,LINGUA!$B:$H,2,0) -> Steam hose with steel spring Ø=40 mm (per metre) | D34: € 57.30 | F34: =IF(SELECTION!$C$46="Eur",CODICI!D34,CODICI!D34*SELECTION!$C$48) -> € 57.30
A35: 30 | B35: FWH3415003 | C35: =VLOOKUP(B35,LINGUA!$B:$H,2,0) -> Water fill hose l = 1.5 m with 3/4” fitting | D35: € 16.00 | F35: =IF(SELECTION!$C$46="Eur",CODICI!D35,CODICI!D35*SELECTION!$C$48) -> € 16.00
A36: 31 | B36: FWH3430003 | C36: =VLOOKUP(B36,LINGUA!$B:$H,2,0) -> Water fill hose l = 3 m with 3/4” fitting | D36: € 23.40 | F36: =IF(SELECTION!$C$46="Eur",CODICI!D36,CODICI!D36*SELECTION!$C$48) -> € 23.40
A37: 32 | B37: FWHDCV0003 | C37: =VLOOKUP(B37,LINGUA!$B:$H,2,0) -> Water fill hose with dual-check valve (included from UE065 to UE130) | D37: € 41.40 | F37: =IF(SELECTION!$C$46="Eur",CODICI!D37,CODICI!D37*SELECTION!$C$48) -> € 41.40
A38: 33 | B38: 1312353APG | C38: =VLOOKUP(B38,LINGUA!$B:$H,2,0) -> SFC 006: condensate drain hose Ø=7 mm (per metre) | D38: € 6.40 | F38: =IF(SELECTION!$C$46="Eur",CODICI!D38,CODICI!D38*SELECTION!$C$48) -> € 6.40
A39: 34 | B39: 1312368AXX | C39: =VLOOKUP(B39,LINGUA!$B:$H,2,0) -> condensate drain hose Ø=10 mm (per metre) | D39: € 8.40 | F39: =IF(SELECTION!$C$46="Eur",CODICI!D39,CODICI!D39*SELECTION!$C$48) -> € 8.40
A40: 35 | B40: DPWC112000 | C40: =VLOOKUP(B40,LINGUA!$B:$H,2,0) -> Active wall mounting sensor: Temperature (-10T60 °C) and humidity (10 to 90% rH) | D40: € 99.00 | F40: =IF(SELECTION!$C$46="Eur",CODICI!D40,CODICI!D40*SELECTION!$C$48) -> € 99.00
A41: 36 | B41: DPPC112000 | C41: =VLOOKUP(B41,LINGUA!$B:$H,2,0) -> Active sensor for industrial environments: Temperature (-20T70 °C) and humidity (10 to 90% rH) | D41: € 164.50 | F41: =IF(SELECTION!$C$46="Eur",CODICI!D41,CODICI!D41*SELECTION!$C$48) -> € 164.50
A42: 37 | B42: DPPC212000 | C42: =VLOOKUP(B42,LINGUA!$B:$H,2,0) -> Active sensor for industrial environments: Temperature (-20T70 °C) and humidity (0 to 100% rH) | D42: € 257.00 | F42: =IF(SELECTION!$C$46="Eur",CODICI!D42,CODICI!D42*SELECTION!$C$48) -> € 257.00
A43: 38 | B43: DPDC112000 | C43: =VLOOKUP(B43,LINGUA!$B:$H,2,0) -> Active sensor for ducts: Temperature (-20T70 °C) and humidity (10 to 90% rH) | D43: € 164.50 | F43: =IF(SELECTION!$C$46="Eur",CODICI!D43,CODICI!D43*SELECTION!$C$48) -> € 164.50
A44: 39 | B44: DPDC212000 | C44: =VLOOKUP(B44,LINGUA!$B:$H,2,0) -> Active sensor for ducts: Temperature (-20T70 °C) and humidity (0 to 100% rH) | D44: € 257.00 | F44: =IF(SELECTION!$C$46="Eur",CODICI!D44,CODICI!D44*SELECTION!$C$48) -> € 257.00
A45: 40 | B45: ASET030001 | C45: =VLOOKUP(B45,LINGUA!$B:$H,2,0) -> Temperature probe (-30T90 °C) for universal use | D45: € 75.50 | F45: =IF(SELECTION!$C$46="Eur",CODICI!D45,CODICI!D45*SELECTION!$C$48) -> € 75.50
A46: 41 | B46: UE001YD001 | C46: =VLOOKUP(B46,LINGUA!$B:$H,2,0) -> humiSteam Basic 1,5 kg/h, 230V 1~, ON/OFF or proportional, disposable cylinder | D46: € 903.00 | F46: =IF(SELECTION!$C$46="Eur",CODICI!D46,CODICI!D46*SELECTION!$C$48) -> € 903.00
A47: 42 | B47: UE001YDC01 | C47: =VLOOKUP(B47,LINGUA!$B:$H,2,0) -> humiSteam Basic 1,5 kg/h, 230V 1~, ON/OFF or proportional, cleanable cylinder | D47: € 946.00 | F47: =IF(SELECTION!$C$46="Eur",CODICI!D47,CODICI!D47*SELECTION!$C$48) -> € 946.00
A48: 43 | B48: UE001YU001 | C48: =VLOOKUP(B48,LINGUA!$B:$H,2,0) -> humiSteam Basic 1,5 kg/h, 208V 1~, ON/OFF or proportional, disposable cylinder | D48: € 903.00 | F48: =IF(SELECTION!$C$46="Eur",CODICI!D48,CODICI!D48*SELECTION!$C$48) -> € 903.00
A49: 44 | B49: UE001YUC01 | C49: =VLOOKUP(B49,LINGUA!$B:$H,2,0) -> humiSteam Basic 1,5 kg/h, 208V 1~, ON/OFF or proportional, cleanable cylinder | D49: € 946.00 | F49: =IF(SELECTION!$C$46="Eur",CODICI!D49,CODICI!D49*SELECTION!$C$48) -> € 946.00
A50: 45 | B50: UE003YD001 | C50: =VLOOKUP(B50,LINGUA!$B:$H,2,0) -> humiSteam Basic 3 kg/h, 230V 1~, ON/OFF or proportional, disposable cylinder | D50: € 1,029.00 | F50: =IF(SELECTION!$C$46="Eur",CODICI!D50,CODICI!D50*SELECTION!$C$48) -> € 1,029.00
A51: 46 | B51: UE003YDC01 | C51: =VLOOKUP(B51,LINGUA!$B:$H,2,0) -> humiSteam Basic 3 kg/h, 230V 1~, ON/OFF or proportional, cleanable cylinder | D51: € 1,067.00 | F51: =IF(SELECTION!$C$46="Eur",CODICI!D51,CODICI!D51*SELECTION!$C$48) -> € 1,067.00
A52: 47 | B52: UE003YK001 | C52: =VLOOKUP(B52,LINGUA!$B:$H,2,0) -> humiSteam Basic 3 kg/h, 230V 3~, ON/OFF or proportional, disposable cylinder | D52: € 1,030.00 | F52: =IF(SELECTION!$C$46="Eur",CODICI!D52,CODICI!D52*SELECTION!$C$48) -> € 1,030.00
A53: 48 | B53: UE003YKC01 | C53: =VLOOKUP(B53,LINGUA!$B:$H,2,0) -> humiSteam Basic 3 kg/h, 230V 3~, ON/OFF or proportional, cleanable cylinder | D53: € 1,060.00 | F53: =IF(SELECTION!$C$46="Eur",CODICI!D53,CODICI!D53*SELECTION!$C$48) -> € 1,060.00
A54: 49 | B54: UE003YL001 | C54: =VLOOKUP(B54,LINGUA!$B:$H,2,0) -> humiSteam Basic 3 kg/h, 400V 3~, ON/OFF or proportional, disposable cylinder | D54: € 1,029.00 | F54: =IF(SELECTION!$C$46="Eur",CODICI!D54,CODICI!D54*SELECTION!$C$48) -> € 1,029.00
A55: 50 | B55: UE003YLC01 | C55: =VLOOKUP(B55,LINGUA!$B:$H,2,0) -> humiSteam Basic 3 kg/h, 400V 3~, ON/OFF or proportional, cleanable cylinder | D55: € 1,060.00 | F55: =IF(SELECTION!$C$46="Eur",CODICI!D55,CODICI!D55*SELECTION!$C$48) -> € 1,060.00
A56: 51 | B56: UE003YM001 | C56: =VLOOKUP(B56,LINGUA!$B:$H,2,0) -> humiSteam Basic 3 kg/h, 460V 3~, ON/OFF or proportional, disposable cylinder | D56: € 1,030.00 | F56: =IF(SELECTION!$C$46="Eur",CODICI!D56,CODICI!D56*SELECTION!$C$48) -> € 1,030.00
A57: 52 | B57: UE003YMC01 | C57: =VLOOKUP(B57,LINGUA!$B:$H,2,0) -> humiSteam Basic 3 kg/h, 460V 3~, ON/OFF or proportional, cleanable cylinder | D57: € 1,060.00 | F57: =IF(SELECTION!$C$46="Eur",CODICI!D57,CODICI!D57*SELECTION!$C$48) -> € 1,060.00
A58: 53 | B58: UE003YU001 | C58: =VLOOKUP(B58,LINGUA!$B:$H,2,0) -> humiSteam Basic 3 kg/h, 208V 1~, ON/OFF or proportional, disposable cylinder | D58: € 1,030.00 | F58: =IF(SELECTION!$C$46="Eur",CODICI!D58,CODICI!D58*SELECTION!$C$48) -> € 1,030.00
A59: 54 | B59: UE003YUC01 | C59: =VLOOKUP(B59,LINGUA!$B:$H,2,0) -> humiSteam Basic 3 kg/h, 208V 1~, ON/OFF or proportional, cleanable cylinder | D59: € 1,067.00 | F59: =IF(SELECTION!$C$46="Eur",CODICI!D59,CODICI!D59*SELECTION!$C$48) -> € 1,067.00
A60: 55 | B60: UE003YW001 | C60: =VLOOKUP(B60,LINGUA!$B:$H,2,0) -> humiSteam Basic 3 kg/h, 208V 3~, ON/OFF or proportional, disposable cylinder | D60: € 1,030.00 | F60: =IF(SELECTION!$C$46="Eur",CODICI!D60,CODICI!D60*SELECTION!$C$48) -> € 1,030.00
A61: 56 | B61: UE003YWC01 | C61: =VLOOKUP(B61,LINGUA!$B:$H,2,0) -> humiSteam Basic 3 kg/h, 208V 3~, ON/OFF or proportional, cleanable cylinder | D61: € 1,060.00 | F61: =IF(SELECTION!$C$46="Eur",CODICI!D61,CODICI!D61*SELECTION!$C$48) -> € 1,060.00
A62: 57 | B62: UE005YD001 | C62: =VLOOKUP(B62,LINGUA!$B:$H,2,0) -> humiSteam Basic 5 kg/h, 230V 1~, ON/OFF or proportional, disposable cylinder | D62: € 1,137.00 | F62: =IF(SELECTION!$C$46="Eur",CODICI!D62,CODICI!D62*SELECTION!$C$48) -> € 1,137.00
A63: 58 | B63: UE005YDC01 | C63: =VLOOKUP(B63,LINGUA!$B:$H,2,0) -> humiSteam Basic 5 kg/h, 230V 1~, ON/OFF or proportional, cleanable cylinder | D63: € 1,202.00 | F63: =IF(SELECTION!$C$46="Eur",CODICI!D63,CODICI!D63*SELECTION!$C$48) -> € 1,202.00
A64: 59 | B64: UE005YK001 | C64: =VLOOKUP(B64,LINGUA!$B:$H,2,0) -> humiSteam Basic 5 kg/h, 230V 3~, ON/OFF or proportional, disposable cylinder | D64: € 1,138.00 | F64: =IF(SELECTION!$C$46="Eur",CODICI!D64,CODICI!D64*SELECTION!$C$48) -> € 1,138.00
A65: 60 | B65: UE005YKC01 | C65: =VLOOKUP(B65,LINGUA!$B:$H,2,0) -> humiSteam Basic 5 kg/h, 230V 3~, ON/OFF or proportional, cleanable cylinder | D65: € 1,169.00 | F65: =IF(SELECTION!$C$46="Eur",CODICI!D65,CODICI!D65*SELECTION!$C$48) -> € 1,169.00
A66: 61 | B66: UE005YL001 | C66: =VLOOKUP(B66,LINGUA!$B:$H,2,0) -> humiSteam Basic 5 kg/h, 400V 3~, ON/OFF or proportional, disposable cylinder | D66: € 1,137.00 | F66: =IF(SELECTION!$C$46="Eur",CODICI!D66,CODICI!D66*SELECTION!$C$48) -> € 1,137.00
A67: 62 | B67: UE005YLC01 | C67: =VLOOKUP(B67,LINGUA!$B:$H,2,0) -> humiSteam Basic 5 kg/h, 400V 3~, ON/OFF or proportional, cleanable cylinder | D67: € 1,168.00 | F67: =IF(SELECTION!$C$46="Eur",CODICI!D67,CODICI!D67*SELECTION!$C$48) -> € 1,168.00
A68: 63 | B68: UE005YM001 | C68: =VLOOKUP(B68,LINGUA!$B:$H,2,0) -> humiSteam Basic 5 kg/h, 460V 3~, ON/OFF or proportional, disposable cylinder | D68: € 1,138.00 | F68: =IF(SELECTION!$C$46="Eur",CODICI!D68,CODICI!D68*SELECTION!$C$48) -> € 1,138.00
A69: 64 | B69: UE005YMC01 | C69: =VLOOKUP(B69,LINGUA!$B:$H,2,0) -> humiSteam Basic 5 kg/h, 460V 3~, ON/OFF or proportional, cleanable cylinder | D69: € 1,168.00 | F69: =IF(SELECTION!$C$46="Eur",CODICI!D69,CODICI!D69*SELECTION!$C$48) -> € 1,168.00
A70: 65 | B70: UE005YN001 | C70: =VLOOKUP(B70,LINGUA!$B:$H,2,0) -> humiSteam Basic 5 kg/h, 575V 3~, ON/OFF or proportional, disposable cylinder | D70: € 1,138.00 | F70: =IF(SELECTION!$C$46="Eur",CODICI!D70,CODICI!D70*SELECTION!$C$48) -> € 1,138.00
A71: 66 | B71: UE005YNC01 | C71: =VLOOKUP(B71,LINGUA!$B:$H,2,0) -> humiSteam Basic 5 kg/h, 575V 3~, ON/OFF or proportional, cleanable cylinder | D71: € 1,168.00 | F71: =IF(SELECTION!$C$46="Eur",CODICI!D71,CODICI!D71*SELECTION!$C$48) -> € 1,168.00
A72: =+A71+1 -> 67 | B72: UE005YU001 | C72: =VLOOKUP(B72,LINGUA!$B:$H,2,0) -> humiSteam Basic 5 kg/h, 208V 1~, ON/OFF or proportional, disposable cylinder | D72: € 1,138.00 | F72: =IF(SELECTION!$C$46="Eur",CODICI!D72,CODICI!D72*SELECTION!$C$48) -> € 1,138.00
A73: 68 | B73: UE005YUC01 | C73: =VLOOKUP(B73,LINGUA!$B:$H,2,0) -> humiSteam Basic 5 kg/h, 208V 1~, ON/OFF or proportional, cleanable cylinder | D73: € 1,202.00 | F73: =IF(SELECTION!$C$46="Eur",CODICI!D73,CODICI!D73*SELECTION!$C$48) -> € 1,202.00
A74: 69 | B74: UE005YW001 | C74: =VLOOKUP(B74,LINGUA!$B:$H,2,0) -> humiSteam Basic 5 kg/h, 208V 3~, ON/OFF or proportional, disposable cylinder | D74: € 1,138.00 | F74: =IF(SELECTION!$C$46="Eur",CODICI!D74,CODICI!D74*SELECTION!$C$48) -> € 1,138.00
A75: 70 | B75: UE005YWC01 | C75: =VLOOKUP(B75,LINGUA!$B:$H,2,0) -> humiSteam Basic 5 kg/h, 208V 3~, ON/OFF or proportional, cleanable cylinder | D75: € 1,168.00 | F75: =IF(SELECTION!$C$46="Eur",CODICI!D75,CODICI!D75*SELECTION!$C$48) -> € 1,168.00
A76: 71 | B76: UE008YK001 | C76: =VLOOKUP(B76,LINGUA!$B:$H,2,0) -> humiSteam Basic 8 kg/h, 230V 3~, ON/OFF or proportional, disposable cylinder | D76: € 1,217.00 | F76: =IF(SELECTION!$C$46="Eur",CODICI!D76,CODICI!D76*SELECTION!$C$48) -> € 1,217.00
A77: 72 | B77: UE008YKC01 | C77: =VLOOKUP(B77,LINGUA!$B:$H,2,0) -> humiSteam Basic 8 kg/h, 230V 3~, ON/OFF or proportional, cleanable cylinder | D77: € 1,270.00 | F77: =IF(SELECTION!$C$46="Eur",CODICI!D77,CODICI!D77*SELECTION!$C$48) -> € 1,270.00
A78: 73 | B78: UE008YL001 | C78: =VLOOKUP(B78,LINGUA!$B:$H,2,0) -> humiSteam Basic 8 kg/h, 400V 3~, ON/OFF or proportional, disposable cylinder | D78: € 1,216.00 | F78: =IF(SELECTION!$C$46="Eur",CODICI!D78,CODICI!D78*SELECTION!$C$48) -> € 1,216.00
A79: 74 | B79: UE008YLC01 | C79: =VLOOKUP(B79,LINGUA!$B:$H,2,0) -> humiSteam Basic 8 kg/h, 400V 3~, ON/OFF or proportional, cleanable cylinder | D79: € 1,270.00 | F79: =IF(SELECTION!$C$46="Eur",CODICI!D79,CODICI!D79*SELECTION!$C$48) -> € 1,270.00
A80: 75 | B80: UE008YM001 | C80: =VLOOKUP(B80,LINGUA!$B:$H,2,0) -> humiSteam Basic 8 kg/h, 460V 3~, ON/OFF or proportional, disposable cylinder | D80: € 1,217.00 | F80: =IF(SELECTION!$C$46="Eur",CODICI!D80,CODICI!D80*SELECTION!$C$48) -> € 1,217.00
A81: 76 | B81: UE008YMC01 | C81: =VLOOKUP(B81,LINGUA!$B:$H,2,0) -> humiSteam Basic 8 kg/h, 460V 3~, ON/OFF or proportional, cleanable cylinder | D81: € 1,270.00 | F81: =IF(SELECTION!$C$46="Eur",CODICI!D81,CODICI!D81*SELECTION!$C$48) -> € 1,270.00
A82: 77 | B82: UE008YN001 | C82: =VLOOKUP(B82,LINGUA!$B:$H,2,0) -> humiSteam Basic 8 kg/h, 575V 3~, ON/OFF or proportional, disposable cylinder | D82: € 1,217.00 | F82: =IF(SELECTION!$C$46="Eur",CODICI!D82,CODICI!D82*SELECTION!$C$48) -> € 1,217.00
A83: 78 | B83: UE008YNC01 | C83: =VLOOKUP(B83,LINGUA!$B:$H,2,0) -> humiSteam Basic 8 kg/h, 575V 3~, ON/OFF or proportional, cleanable cylinder | D83: € 1,270.00 | F83: =IF(SELECTION!$C$46="Eur",CODICI!D83,CODICI!D83*SELECTION!$C$48) -> € 1,270.00
A84: 79 | B84: UE008YW001 | C84: =VLOOKUP(B84,LINGUA!$B:$H,2,0) -> humiSteam Basic 8 kg/h, 208V 3~, ON/OFF or proportional, disposable cylinder | D84: € 1,217.00 | F84: =IF(SELECTION!$C$46="Eur",CODICI!D84,CODICI!D84*SELECTION!$C$48) -> € 1,217.00
A85: 80 | B85: UE008YWC01 | C85: =VLOOKUP(B85,LINGUA!$B:$H,2,0) -> humiSteam Basic 8 kg/h, 208V 3~, ON/OFF or proportional, cleanable cylinder | D85: € 1,270.00 | F85: =IF(SELECTION!$C$46="Eur",CODICI!D85,CODICI!D85*SELECTION!$C$48) -> € 1,270.00
A86: 81 | B86: UE009YD001 | C86: =VLOOKUP(B86,LINGUA!$B:$H,2,0) -> humiSteam Basic 9 kg/h, 230V 1~, ON/OFF or proportional, disposable cylinder | D86: € 1,276.00 | F86: =IF(SELECTION!$C$46="Eur",CODICI!D86,CODICI!D86*SELECTION!$C$48) -> € 1,276.00
A87: 82 | B87: UE009YDC01 | C87: =VLOOKUP(B87,LINGUA!$B:$H,2,0) -> humiSteam Basic 9 kg/h, 230V 1~, ON/OFF or proportional, cleanable cylinder | D87: € 1,341.00 | F87: =IF(SELECTION!$C$46="Eur",CODICI!D87,CODICI!D87*SELECTION!$C$48) -> € 1,341.00
A88: 83 | B88: UE009YU001 | C88: =VLOOKUP(B88,LINGUA!$B:$H,2,0) -> humiSteam Basic 9 kg/h, 208V 1~, ON/OFF or proportional, disposable cylinder | D88: € 1,276.00 | F88: =IF(SELECTION!$C$46="Eur",CODICI!D88,CODICI!D88*SELECTION!$C$48) -> € 1,276.00
A89: 84 | B89: UE009YUC01 | C89: =VLOOKUP(B89,LINGUA!$B:$H,2,0) -> humiSteam Basic 9 kg/h, 208V 1~, ON/OFF or proportional, cleanable cylinder | D89: € 1,341.00 | F89: =IF(SELECTION!$C$46="Eur",CODICI!D89,CODICI!D89*SELECTION!$C$48) -> € 1,341.00
A90: 85 | B90: UE010YK001 | C90: =VLOOKUP(B90,LINGUA!$B:$H,2,0) -> humiSteam Basic 10 kg/h, 230V 3~, ON/OFF or proportional, disposable cylinder | D90: € 1,251.00 | F90: =IF(SELECTION!$C$46="Eur",CODICI!D90,CODICI!D90*SELECTION!$C$48) -> € 1,251.00
A91: 86 | B91: UE010YKC01 | C91: =VLOOKUP(B91,LINGUA!$B:$H,2,0) -> humiSteam Basic 10 kg/h, 230V 3~, ON/OFF or proportional, cleanable cylinder | D91: € 1,336.00 | F91: =IF(SELECTION!$C$46="Eur",CODICI!D91,CODICI!D91*SELECTION!$C$48) -> € 1,336.00
A92: 87 | B92: UE010YL001 | C92: =VLOOKUP(B92,LINGUA!$B:$H,2,0) -> humiSteam Basic 10 kg/h, 400V 3~, ON/OFF or proportional, disposable cylinder | D92: € 1,250.00 | F92: =IF(SELECTION!$C$46="Eur",CODICI!D92,CODICI!D92*SELECTION!$C$48) -> € 1,250.00
A93: 88 | B93: UE010YLC01 | C93: =VLOOKUP(B93,LINGUA!$B:$H,2,0) -> humiSteam Basic 10 kg/h, 400V 3~, ON/OFF or proportional, cleanable cylinder | D93: € 1,336.00 | F93: =IF(SELECTION!$C$46="Eur",CODICI!D93,CODICI!D93*SELECTION!$C$48) -> € 1,336.00
A94: 89 | B94: UE010YM001 | C94: =VLOOKUP(B94,LINGUA!$B:$H,2,0) -> humiSteam Basic 10 kg/h, 460V 3~, ON/OFF or proportional, disposable cylinder | D94: € 1,251.00 | F94: =IF(SELECTION!$C$46="Eur",CODICI!D94,CODICI!D94*SELECTION!$C$48) -> € 1,251.00
A95: 90 | B95: UE010YMC01 | C95: =VLOOKUP(B95,LINGUA!$B:$H,2,0) -> humiSteam Basic 10 kg/h, 460V 3~, ON/OFF or proportional, cleanable cylinder | D95: € 1,336.00 | F95: =IF(SELECTION!$C$46="Eur",CODICI!D95,CODICI!D95*SELECTION!$C$48) -> € 1,336.00
A96: 91 | B96: UE010YN001 | C96: =VLOOKUP(B96,LINGUA!$B:$H,2,0) -> humiSteam Basic 10 kg/h, 575V 3~, ON/OFF or proportional, disposable cylinder | D96: € 1,251.00 | F96: =IF(SELECTION!$C$46="Eur",CODICI!D96,CODICI!D96*SELECTION!$C$48) -> € 1,251.00
A97: 92 | B97: UE010YNC01 | C97: =VLOOKUP(B97,LINGUA!$B:$H,2,0) -> humiSteam Basic 10 kg/h, 575V 3~, ON/OFF or proportional, cleanable cylinder | D97: € 1,336.00 | F97: =IF(SELECTION!$C$46="Eur",CODICI!D97,CODICI!D97*SELECTION!$C$48) -> € 1,336.00
A98: 93 | B98: UE010YW001 | C98: =VLOOKUP(B98,LINGUA!$B:$H,2,0) -> humiSteam Basic 10 kg/h, 208V 3~, ON/OFF or proportional, disposable cylinder | D98: € 1,251.00 | F98: =IF(SELECTION!$C$46="Eur",CODICI!D98,CODICI!D98*SELECTION!$C$48) -> € 1,251.00
A99: 94 | B99: UE010YWC01 | C99: =VLOOKUP(B99,LINGUA!$B:$H,2,0) -> humiSteam Basic 10 kg/h, 208V 3~, ON/OFF or proportional, cleanable cylinder | D99: € 1,336.00 | F99: =IF(SELECTION!$C$46="Eur",CODICI!D99,CODICI!D99*SELECTION!$C$48) -> € 1,336.00
A100: 95 | B100: UE015YK001 | C100: =VLOOKUP(B100,LINGUA!$B:$H,2,0) -> humiSteam Basic 15 kg/h, 230V 3~, ON/OFF or proportional, disposable cylinder | D100: € 1,293.00 | F100: =IF(SELECTION!$C$46="Eur",CODICI!D100,CODICI!D100*SELECTION!$C$48) -> € 1,293.00
A101: 96 | B101: UE015YKC01 | C101: =VLOOKUP(B101,LINGUA!$B:$H,2,0) -> humiSteam Basic 15 kg/h, 230V 3~, ON/OFF or proportional, cleanable cylinder | D101: € 1,377.00 | F101: =IF(SELECTION!$C$46="Eur",CODICI!D101,CODICI!D101*SELECTION!$C$48) -> € 1,377.00
A102: 97 | B102: UE015YL001 | C102: =VLOOKUP(B102,LINGUA!$B:$H,2,0) -> humiSteam Basic 15 kg/h, 400V 3~, ON/OFF or proportional, disposable cylinder | D102: € 1,293.00 | F102: =IF(SELECTION!$C$46="Eur",CODICI!D102,CODICI!D102*SELECTION!$C$48) -> € 1,293.00
A103: 98 | B103: UE015YLC01 | C103: =VLOOKUP(B103,LINGUA!$B:$H,2,0) -> humiSteam Basic 15 kg/h, 400V 3~, ON/OFF or proportional, cleanable cylinder | D103: € 1,377.00 | F103: =IF(SELECTION!$C$46="Eur",CODICI!D103,CODICI!D103*SELECTION!$C$48) -> € 1,377.00
A104: 99 | B104: UE015YM001 | C104: =VLOOKUP(B104,LINGUA!$B:$H,2,0) -> humiSteam Basic 15 kg/h, 460V 3~, ON/OFF or proportional, disposable cylinder | D104: € 1,293.00 | F104: =IF(SELECTION!$C$46="Eur",CODICI!D104,CODICI!D104*SELECTION!$C$48) -> € 1,293.00
A105: 100 | B105: UE015YMC01 | C105: =VLOOKUP(B105,LINGUA!$B:$H,2,0) -> humiSteam Basic 15 kg/h, 460V 3~, ON/OFF or proportional, cleanable cylinder | D105: € 1,377.00 | F105: =IF(SELECTION!$C$46="Eur",CODICI!D105,CODICI!D105*SELECTION!$C$48) -> € 1,377.00
A106: 101 | B106: UE015YN001 | C106: =VLOOKUP(B106,LINGUA!$B:$H,2,0) -> humiSteam Basic 15 kg/h, 575V 3~, ON/OFF or proportional, disposable cylinder | D106: € 1,293.00 | F106: =IF(SELECTION!$C$46="Eur",CODICI!D106,CODICI!D106*SELECTION!$C$48) -> € 1,293.00
A107: 102 | B107: UE015YNC01 | C107: =VLOOKUP(B107,LINGUA!$B:$H,2,0) -> humiSteam Basic 15 kg/h, 575V 3~, ON/OFF or proportional, cleanable cylinder | D107: € 1,377.00 | F107: =IF(SELECTION!$C$46="Eur",CODICI!D107,CODICI!D107*SELECTION!$C$48) -> € 1,377.00
A108: 103 | B108: UE015YW001 | C108: =VLOOKUP(B108,LINGUA!$B:$H,2,0) -> humiSteam Basic 15 kg/h, 208V 3~, ON/OFF or proportional, disposable cylinder | D108: € 1,293.00 | F108: =IF(SELECTION!$C$46="Eur",CODICI!D108,CODICI!D108*SELECTION!$C$48) -> € 1,293.00
A109: 104 | B109: UE015YWC01 | C109: =VLOOKUP(B109,LINGUA!$B:$H,2,0) -> humiSteam Basic 15 kg/h, 208V 3~, ON/OFF or proportional, cleanable cylinder | D109: € 1,377.00 | F109: =IF(SELECTION!$C$46="Eur",CODICI!D109,CODICI!D109*SELECTION!$C$48) -> € 1,377.00
A110: 105 | B110: UE018YL001 | C110: =VLOOKUP(B110,LINGUA!$B:$H,2,0) -> humiSteam Basic 18 kg/h, 400V 3~, ON/OFF or proportional, disposable cylinder | D110: € 1,330.00 | F110: =IF(SELECTION!$C$46="Eur",CODICI!D110,CODICI!D110*SELECTION!$C$48) -> € 1,330.00
A111: 106 | B111: UE018YLC01 | C111: =VLOOKUP(B111,LINGUA!$B:$H,2,0) -> humiSteam Basic 18 kg/h, 400V 3~, ON/OFF or proportional, cleanable cylinder | D111: € 1,395.00 | F111: =IF(SELECTION!$C$46="Eur",CODICI!D111,CODICI!D111*SELECTION!$C$48) -> € 1,395.00
A112: 107 | B112: UE018YM001 | C112: =VLOOKUP(B112,LINGUA!$B:$H,2,0) -> humiSteam Basic 18 kg/h, 460V 3~, ON/OFF or proportional, disposable cylinder | D112: € 1,330.00 | F112: =IF(SELECTION!$C$46="Eur",CODICI!D112,CODICI!D112*SELECTION!$C$48) -> € 1,330.00
A113: 108 | B113: UE018YMC01 | C113: =VLOOKUP(B113,LINGUA!$B:$H,2,0) -> humiSteam Basic 18 kg/h, 460V 3~, ON/OFF or proportional, cleanable cylinder | D113: € 1,395.00 | F113: =IF(SELECTION!$C$46="Eur",CODICI!D113,CODICI!D113*SELECTION!$C$48) -> € 1,395.00
A114: 109 | B114: UE018YN001 | C114: =VLOOKUP(B114,LINGUA!$B:$H,2,0) -> humiSteam Basic 18 kg/h, 575V 3~, ON/OFF or proportional, disposable cylinder | D114: € 1,330.00 | F114: =IF(SELECTION!$C$46="Eur",CODICI!D114,CODICI!D114*SELECTION!$C$48) -> € 1,330.00
A115: 110 | B115: UE018YNC01 | C115: =VLOOKUP(B115,LINGUA!$B:$H,2,0) -> humiSteam Basic 18 kg/h, 575V 3~, ON/OFF or proportional, cleanable cylinder | D115: € 1,395.00 | F115: =IF(SELECTION!$C$46="Eur",CODICI!D115,CODICI!D115*SELECTION!$C$48) -> € 1,395.00
A116: 111 | B116: UE025YK001 | C116: =VLOOKUP(B116,LINGUA!$B:$H,2,0) -> humiSteam Basic 25 kg/h, 230V 3~, ON/OFF or proportional, disposable cylinder | D116: € 1,727.00 | F116: =IF(SELECTION!$C$46="Eur",CODICI!D116,CODICI!D116*SELECTION!$C$48) -> € 1,727.00
A117: 112 | B117: UE025YKC01 | C117: =VLOOKUP(B117,LINGUA!$B:$H,2,0) -> humiSteam Basic 25 kg/h, 230V 3~, ON/OFF or proportional, cleanable cylinder | D117: € 1,804.00 | F117: =IF(SELECTION!$C$46="Eur",CODICI!D117,CODICI!D117*SELECTION!$C$48) -> € 1,804.00
A118: 113 | B118: UE025YL001 | C118: =VLOOKUP(B118,LINGUA!$B:$H,2,0) -> humiSteam Basic 25 kg/h, 400V 3~, ON/OFF or proportional, disposable cylinder | D118: € 1,727.00 | F118: =IF(SELECTION!$C$46="Eur",CODICI!D118,CODICI!D118*SELECTION!$C$48) -> € 1,727.00
A119: 114 | B119: UE025YLC01 | C119: =VLOOKUP(B119,LINGUA!$B:$H,2,0) -> humiSteam Basic 25 kg/h, 400V 3~, ON/OFF or proportional, cleanable cylinder | D119: € 1,804.00 | F119: =IF(SELECTION!$C$46="Eur",CODICI!D119,CODICI!D119*SELECTION!$C$48) -> € 1,804.00
A120: 115 | B120: UE025YM001 | C120: =VLOOKUP(B120,LINGUA!$B:$H,2,0) -> humiSteam Basic 25 kg/h, 460V 3~, ON/OFF or proportional, disposable cylinder | D120: € 1,727.00 | F120: =IF(SELECTION!$C$46="Eur",CODICI!D120,CODICI!D120*SELECTION!$C$48) -> € 1,727.00
A121: 116 | B121: UE025YMC01 | C121: =VLOOKUP(B121,LINGUA!$B:$H,2,0) -> humiSteam Basic 25 kg/h, 460V 3~, ON/OFF or proportional, cleanable cylinder | D121: € 1,804.00 | F121: =IF(SELECTION!$C$46="Eur",CODICI!D121,CODICI!D121*SELECTION!$C$48) -> € 1,804.00
A122: 117 | B122: UE025YN001 | C122: =VLOOKUP(B122,LINGUA!$B:$H,2,0) -> humiSteam Basic 25 kg/h, 575V 3~, ON/OFF or proportional, disposable cylinder | D122: € 1,727.00 | F122: =IF(SELECTION!$C$46="Eur",CODICI!D122,CODICI!D122*SELECTION!$C$48) -> € 1,727.00
A123: 118 | B123: UE025YNC01 | C123: =VLOOKUP(B123,LINGUA!$B:$H,2,0) -> humiSteam Basic 25 kg/h, 575V 3~, ON/OFF or proportional, cleanable cylinder | D123: € 1,804.00 | F123: =IF(SELECTION!$C$46="Eur",CODICI!D123,CODICI!D123*SELECTION!$C$48) -> € 1,804.00
A124: 119 | B124: UE025YW001 | C124: =VLOOKUP(B124,LINGUA!$B:$H,2,0) -> humiSteam Basic 25 kg/h, 208V 3~, ON/OFF or proportional, disposable cylinder | D124: € 1,727.00 | F124: =IF(SELECTION!$C$46="Eur",CODICI!D124,CODICI!D124*SELECTION!$C$48) -> € 1,727.00
A125: 120 | B125: UE025YWC01 | C125: =VLOOKUP(B125,LINGUA!$B:$H,2,0) -> humiSteam Basic 25 kg/h, 208V 3~, ON/OFF or proportional, cleanable cylinder | D125: € 1,804.00 | F125: =IF(SELECTION!$C$46="Eur",CODICI!D125,CODICI!D125*SELECTION!$C$48) -> € 1,804.00
A126: 121 | B126: UE035YK001 | C126: =VLOOKUP(B126,LINGUA!$B:$H,2,0) -> humiSteam Basic 35 kg/h, 230V 3~, ON/OFF or proportional, disposable cylinder | D126: € 1,979.00 | F126: =IF(SELECTION!$C$46="Eur",CODICI!D126,CODICI!D126*SELECTION!$C$48) -> € 1,979.00
A127: 122 | B127: UE035YKC01 | C127: =VLOOKUP(B127,LINGUA!$B:$H,2,0) -> humiSteam Basic 35 kg/h, 230V 3~, ON/OFF or proportional, cleanable cylinder | D127: € 2,047.00 | F127: =IF(SELECTION!$C$46="Eur",CODICI!D127,CODICI!D127*SELECTION!$C$48) -> € 2,047.00
A128: 123 | B128: UE035YL001 | C128: =VLOOKUP(B128,LINGUA!$B:$H,2,0) -> humiSteam Basic 35 kg/h, 400V 3~, ON/OFF or proportional, disposable cylinder | D128: € 1,979.00 | F128: =IF(SELECTION!$C$46="Eur",CODICI!D128,CODICI!D128*SELECTION!$C$48) -> € 1,979.00
A129: 124 | B129: UE035YLC01 | C129: =VLOOKUP(B129,LINGUA!$B:$H,2,0) -> humiSteam Basic 35 kg/h, 400V 3~, ON/OFF or proportional, cleanable cylinder | D129: € 2,047.00 | F129: =IF(SELECTION!$C$46="Eur",CODICI!D129,CODICI!D129*SELECTION!$C$48) -> € 2,047.00
A130: 125 | B130: UE035YM001 | C130: =VLOOKUP(B130,LINGUA!$B:$H,2,0) -> humiSteam Basic 35 kg/h, 460V 3~, ON/OFF or proportional, disposable cylinder | D130: € 1,979.00 | F130: =IF(SELECTION!$C$46="Eur",CODICI!D130,CODICI!D130*SELECTION!$C$48) -> € 1,979.00
A131: 126 | B131: UE035YMC01 | C131: =VLOOKUP(B131,LINGUA!$B:$H,2,0) -> humiSteam Basic 35 kg/h, 460V 3~, ON/OFF or proportional, cleanable cylinder | D131: € 2,047.00 | F131: =IF(SELECTION!$C$46="Eur",CODICI!D131,CODICI!D131*SELECTION!$C$48) -> € 2,047.00
A132: 127 | B132: UE035YN001 | C132: =VLOOKUP(B132,LINGUA!$B:$H,2,0) -> humiSteam Basic 35 kg/h, 575V 3~, ON/OFF or proportional, disposable cylinder | D132: € 1,979.00 | F132: =IF(SELECTION!$C$46="Eur",CODICI!D132,CODICI!D132*SELECTION!$C$48) -> € 1,979.00
A133: 128 | B133: UE035YNC01 | C133: =VLOOKUP(B133,LINGUA!$B:$H,2,0) -> humiSteam Basic 35 kg/h, 575V 3~, ON/OFF or proportional, cleanable cylinder | D133: € 2,047.00 | F133: =IF(SELECTION!$C$46="Eur",CODICI!D133,CODICI!D133*SELECTION!$C$48) -> € 2,047.00
A134: 129 | B134: UE035YW001 | C134: =VLOOKUP(B134,LINGUA!$B:$H,2,0) -> humiSteam Basic 35 kg/h, 208V 3~, ON/OFF or proportional, disposable cylinder | D134: € 1,979.00 | F134: =IF(SELECTION!$C$46="Eur",CODICI!D134,CODICI!D134*SELECTION!$C$48) -> € 1,979.00
A135: 130 | B135: UE035YWC01 | C135: =VLOOKUP(B135,LINGUA!$B:$H,2,0) -> humiSteam Basic 35 kg/h, 208V 3~, ON/OFF or proportional, cleanable cylinder | D135: € 2,047.00 | F135: =IF(SELECTION!$C$46="Eur",CODICI!D135,CODICI!D135*SELECTION!$C$48) -> € 2,047.00
A136: =+A135+1 -> 131 | B136: UE045YK001 | C136: =VLOOKUP(B136,LINGUA!$B:$H,2,0) -> humiSteam Basic 45 kg/h, 230V 3~, ON/OFF or proportional, disposable cylinder | D136: € 2,163.00 | F136: =IF(SELECTION!$C$46="Eur",CODICI!D136,CODICI!D136*SELECTION!$C$48) -> € 2,163.00
A137: 132 | B137: UE045YKC01 | C137: =VLOOKUP(B137,LINGUA!$B:$H,2,0) -> humiSteam Basic 45 kg/h, 230V 3~, ON/OFF or proportional, cleanable cylinder | D137: € 2,232.00 | F137: =IF(SELECTION!$C$46="Eur",CODICI!D137,CODICI!D137*SELECTION!$C$48) -> € 2,232.00
A138: 133 | B138: UE045YL001 | C138: =VLOOKUP(B138,LINGUA!$B:$H,2,0) -> humiSteam Basic 45 kg/h, 400V 3~, ON/OFF or proportional, disposable cylinder | D138: € 2,162.00 | F138: =IF(SELECTION!$C$46="Eur",CODICI!D138,CODICI!D138*SELECTION!$C$48) -> € 2,162.00
A139: 134 | B139: UE045YLC01 | C139: =VLOOKUP(B139,LINGUA!$B:$H,2,0) -> humiSteam Basic 45 kg/h, 400V 3~, ON/OFF or proportional, cleanable cylinder | D139: € 2,231.00 | F139: =IF(SELECTION!$C$46="Eur",CODICI!D139,CODICI!D139*SELECTION!$C$48) -> € 2,231.00
A140: 135 | B140: UE045YM001 | C140: =VLOOKUP(B140,LINGUA!$B:$H,2,0) -> humiSteam Basic 45 kg/h, 460V 3~, ON/OFF or proportional, disposable cylinder | D140: € 2,163.00 | F140: =IF(SELECTION!$C$46="Eur",CODICI!D140,CODICI!D140*SELECTION!$C$48) -> € 2,163.00
A141: 136 | B141: UE045YMC01 | C141: =VLOOKUP(B141,LINGUA!$B:$H,2,0) -> humiSteam Basic 45 kg/h, 460V 3~, ON/OFF or proportional, cleanable cylinder | D141: € 2,232.00 | F141: =IF(SELECTION!$C$46="Eur",CODICI!D141,CODICI!D141*SELECTION!$C$48) -> € 2,232.00
A142: 137 | B142: UE045YN001 | C142: =VLOOKUP(B142,LINGUA!$B:$H,2,0) -> humiSteam Basic 45 kg/h, 575V 3~, ON/OFF or proportional, disposable cylinder | D142: € 2,163.00 | F142: =IF(SELECTION!$C$46="Eur",CODICI!D142,CODICI!D142*SELECTION!$C$48) -> € 2,163.00
A143: 138 | B143: UE045YNC01 | C143: =VLOOKUP(B143,LINGUA!$B:$H,2,0) -> humiSteam Basic 45 kg/h, 575V 3~, ON/OFF or proportional, cleanable cylinder | D143: € 2,232.00 | F143: =IF(SELECTION!$C$46="Eur",CODICI!D143,CODICI!D143*SELECTION!$C$48) -> € 2,232.00
A144: 139 | B144: UE045YW001 | C144: =VLOOKUP(B144,LINGUA!$B:$H,2,0) -> humiSteam Basic 45 kg/h, 208V 3~, ON/OFF or proportional, disposable cylinder | D144: € 2,163.00 | F144: =IF(SELECTION!$C$46="Eur",CODICI!D144,CODICI!D144*SELECTION!$C$48) -> € 2,163.00
A145: 140 | B145: UE045YWC01 | C145: =VLOOKUP(B145,LINGUA!$B:$H,2,0) -> humiSteam Basic 45 kg/h, 208V 3~, ON/OFF or proportional, cleanable cylinder | D145: € 2,232.00 | F145: =IF(SELECTION!$C$46="Eur",CODICI!D145,CODICI!D145*SELECTION!$C$48) -> € 2,232.00
A146: 141 | B146: UE065YL001 | C146: =VLOOKUP(B146,LINGUA!$B:$H,2,0) -> humiSteam Basic 65 kg/h, 400V 3~, ON/OFF or proportional, disposable cylinder | D146: € 2,609.00 | F146: =IF(SELECTION!$C$46="Eur",CODICI!D146,CODICI!D146*SELECTION!$C$48) -> € 2,609.00
A147: 142 | B147: UE065YLC01 | C147: =VLOOKUP(B147,LINGUA!$B:$H,2,0) -> humiSteam Basic 65 kg/h, 400V 3~, ON/OFF or proportional, cleanable cylinder | D147: € 2,754.00 | F147: =IF(SELECTION!$C$46="Eur",CODICI!D147,CODICI!D147*SELECTION!$C$48) -> € 2,754.00
A148: 143 | B148: UE065YM001 | C148: =VLOOKUP(B148,LINGUA!$B:$H,2,0) -> humiSteam Basic 65 kg/h, 460V 3~, ON/OFF or proportional, disposable cylinder | D148: € 2,609.00 | F148: =IF(SELECTION!$C$46="Eur",CODICI!D148,CODICI!D148*SELECTION!$C$48) -> € 2,609.00
A149: 144 | B149: UE065YMC01 | C149: =VLOOKUP(B149,LINGUA!$B:$H,2,0) -> humiSteam Basic 65 kg/h, 460V 3~, ON/OFF or proportional, cleanable cylinder | D149: € 2,754.00 | F149: =IF(SELECTION!$C$46="Eur",CODICI!D149,CODICI!D149*SELECTION!$C$48) -> € 2,754.00
A150: 145 | B150: UE065YN001 | C150: =VLOOKUP(B150,LINGUA!$B:$H,2,0) -> humiSteam Basic 65 kg/h, 575V 3~, ON/OFF or proportional, disposable cylinder | D150: € 2,609.00 | F150: =IF(SELECTION!$C$46="Eur",CODICI!D150,CODICI!D150*SELECTION!$C$48) -> € 2,609.00
A151: 146 | B151: UE065YNC01 | C151: =VLOOKUP(B151,LINGUA!$B:$H,2,0) -> humiSteam Basic 65 kg/h, 575V 3~, ON/OFF or proportional, cleanable cylinder | D151: € 2,754.00 | F151: =IF(SELECTION!$C$46="Eur",CODICI!D151,CODICI!D151*SELECTION!$C$48) -> € 2,754.00
A152: 147 | B152: UE001XD001 | C152: =VLOOKUP(B152,LINGUA!$B:$H,2,0) -> humiSteam X-plus 1,5 kg/h, 230Vac 1~, with regulation, disposable cylinder | D152: € 1,063.00 | F152: =IF(SELECTION!$C$46="Eur",CODICI!D152,CODICI!D152*SELECTION!$C$48) -> € 1,063.00
A153: 148 | B153: UE001XDC01 | C153: =VLOOKUP(B153,LINGUA!$B:$H,2,0) -> humiSteam X-plus 1,5 kg/h, 230Vac 1~, with regulation, cleanable cylinder | D153: € 1,101.00 | F153: =IF(SELECTION!$C$46="Eur",CODICI!D153,CODICI!D153*SELECTION!$C$48) -> € 1,101.00
A154: 149 | B154: UE001XU001 | C154: =VLOOKUP(B154,LINGUA!$B:$H,2,0) -> humiSteam X-plus 1,5 kg/h, 208Vac 1~, with regulation, disposable cylinder | D154: € 1,063.00 | F154: =IF(SELECTION!$C$46="Eur",CODICI!D154,CODICI!D154*SELECTION!$C$48) -> € 1,063.00
A155: 150 | B155: UE001XUC01 | C155: =VLOOKUP(B155,LINGUA!$B:$H,2,0) -> humiSteam X-plus 1,5 kg/h, 208Vac 1~, with regulation, cleanable cylinder | D155: € 1,101.00 | F155: =IF(SELECTION!$C$46="Eur",CODICI!D155,CODICI!D155*SELECTION!$C$48) -> € 1,101.00
A156: 151 | B156: UE003XD001 | C156: =VLOOKUP(B156,LINGUA!$B:$H,2,0) -> humiSteam X-plus 3 kg/h, 230Vac 1~, with regulation, disposable cylinder | D156: € 1,210.00 | F156: =IF(SELECTION!$C$46="Eur",CODICI!D156,CODICI!D156*SELECTION!$C$48) -> € 1,210.00
A157: 152 | B157: UE003XDC01 | C157: =VLOOKUP(B157,LINGUA!$B:$H,2,0) -> humiSteam X-plus 3 kg/h, 230Vac 1~, with regulation, cleanable cylinder | D157: € 1,248.00 | F157: =IF(SELECTION!$C$46="Eur",CODICI!D157,CODICI!D157*SELECTION!$C$48) -> € 1,248.00
A158: 153 | B158: UE003XK001 | C158: =VLOOKUP(B158,LINGUA!$B:$H,2,0) -> humiSteam X-plus 3 kg/h, 230Vac 3~, with regulation, disposable cylinder | D158: € 1,211.00 | F158: =IF(SELECTION!$C$46="Eur",CODICI!D158,CODICI!D158*SELECTION!$C$48) -> € 1,211.00
A159: 154 | B159: UE003XKC01 | C159: =VLOOKUP(B159,LINGUA!$B:$H,2,0) -> humiSteam X-plus 3 kg/h, 230Vac 3~, with regulation, cleanable cylinder | D159: € 1,242.00 | F159: =IF(SELECTION!$C$46="Eur",CODICI!D159,CODICI!D159*SELECTION!$C$48) -> € 1,242.00
A160: 155 | B160: UE003XL001 | C160: =VLOOKUP(B160,LINGUA!$B:$H,2,0) -> humiSteam X-plus 3 kg/h, 400Vac 3~, with regulation, disposable cylinder | D160: € 1,210.00 | F160: =IF(SELECTION!$C$46="Eur",CODICI!D160,CODICI!D160*SELECTION!$C$48) -> € 1,210.00
A161: 156 | B161: UE003XLC01 | C161: =VLOOKUP(B161,LINGUA!$B:$H,2,0) -> humiSteam X-plus 3 kg/h, 400Vac 3~, with regulation, cleanable cylinder | D161: € 1,241.00 | F161: =IF(SELECTION!$C$46="Eur",CODICI!D161,CODICI!D161*SELECTION!$C$48) -> € 1,241.00
A162: 157 | B162: UE003XM001 | C162: =VLOOKUP(B162,LINGUA!$B:$H,2,0) -> humiSteam X-plus 3 kg/h, 460Vac 3~, with regulation, disposable cylinder | D162: € 1,211.00 | F162: =IF(SELECTION!$C$46="Eur",CODICI!D162,CODICI!D162*SELECTION!$C$48) -> € 1,211.00
A163: 158 | B163: UE003XMC01 | C163: =VLOOKUP(B163,LINGUA!$B:$H,2,0) -> humiSteam X-plus 3 kg/h, 460Vac 3~, with regulation, cleanable cylinder | D163: € 1,241.00 | F163: =IF(SELECTION!$C$46="Eur",CODICI!D163,CODICI!D163*SELECTION!$C$48) -> € 1,241.00
A164: 159 | B164: UE003XU001 | C164: =VLOOKUP(B164,LINGUA!$B:$H,2,0) -> humiSteam X-plus 3 kg/h, 208Vac 1~, with regulation, disposable cylinder | D164: € 1,210.00 | F164: =IF(SELECTION!$C$46="Eur",CODICI!D164,CODICI!D164*SELECTION!$C$48) -> € 1,210.00
A165: 160 | B165: UE003XUC01 | C165: =VLOOKUP(B165,LINGUA!$B:$H,2,0) -> humiSteam X-plus 3 kg/h, 208Vac 1~, with regulation, cleanable cylinder | D165: € 1,241.00 | F165: =IF(SELECTION!$C$46="Eur",CODICI!D165,CODICI!D165*SELECTION!$C$48) -> € 1,241.00
A166: 161 | B166: UE003XW001 | C166: =VLOOKUP(B166,LINGUA!$B:$H,2,0) -> humiSteam X-plus 3 kg/h, 208Vac 3~, with regulation, disposable cylinder | D166: € 1,210.00 | F166: =IF(SELECTION!$C$46="Eur",CODICI!D166,CODICI!D166*SELECTION!$C$48) -> € 1,210.00
A167: 162 | B167: UE003XWC01 | C167: =VLOOKUP(B167,LINGUA!$B:$H,2,0) -> humiSteam X-plus 3 kg/h, 208Vac 3~, with regulation, cleanable cylinder | D167: € 1,241.00 | F167: =IF(SELECTION!$C$46="Eur",CODICI!D167,CODICI!D167*SELECTION!$C$48) -> € 1,241.00
A168: 163 | B168: UE005XD001 | C168: =VLOOKUP(B168,LINGUA!$B:$H,2,0) -> humiSteam X-plus 5 kg/h, 230Vac 1~, with regulation, disposable cylinder | D168: € 1,338.00 | F168: =IF(SELECTION!$C$46="Eur",CODICI!D168,CODICI!D168*SELECTION!$C$48) -> € 1,338.00
A169: 164 | B169: UE005XDC01 | C169: =VLOOKUP(B169,LINGUA!$B:$H,2,0) -> humiSteam X-plus 5 kg/h, 230Vac 1~, with regulation, cleanable cylinder | D169: € 1,404.00 | F169: =IF(SELECTION!$C$46="Eur",CODICI!D169,CODICI!D169*SELECTION!$C$48) -> € 1,404.00
A170: 165 | B170: UE005XK001 | C170: =VLOOKUP(B170,LINGUA!$B:$H,2,0) -> humiSteam X-plus 5 kg/h, 230Vac 3~, with regulation, disposable cylinder | D170: € 1,338.00 | F170: =IF(SELECTION!$C$46="Eur",CODICI!D170,CODICI!D170*SELECTION!$C$48) -> € 1,338.00
A171: 166 | B171: UE005XKC01 | C171: =VLOOKUP(B171,LINGUA!$B:$H,2,0) -> humiSteam X-plus 5 kg/h, 230Vac 3~, with regulation, cleanable cylinder | D171: € 1,369.00 | F171: =IF(SELECTION!$C$46="Eur",CODICI!D171,CODICI!D171*SELECTION!$C$48) -> € 1,369.00
A172: 167 | B172: UE005XL001 | C172: =VLOOKUP(B172,LINGUA!$B:$H,2,0) -> humiSteam X-plus 5 kg/h, 400Vac 3~, with regulation, disposable cylinder | D172: € 1,338.00 | F172: =IF(SELECTION!$C$46="Eur",CODICI!D172,CODICI!D172*SELECTION!$C$48) -> € 1,338.00
A173: 168 | B173: UE005XLC01 | C173: =VLOOKUP(B173,LINGUA!$B:$H,2,0) -> humiSteam X-plus 5 kg/h, 400Vac 3~, with regulation, cleanable cylinder | D173: € 1,369.00 | F173: =IF(SELECTION!$C$46="Eur",CODICI!D173,CODICI!D173*SELECTION!$C$48) -> € 1,369.00
A174: 169 | B174: UE005XM001 | C174: =VLOOKUP(B174,LINGUA!$B:$H,2,0) -> humiSteam X-plus 5 kg/h, 460Vac 3~, with regulation, disposable cylinder | D174: € 1,338.00 | F174: =IF(SELECTION!$C$46="Eur",CODICI!D174,CODICI!D174*SELECTION!$C$48) -> € 1,338.00
A175: 170 | B175: UE005XMC01 | C175: =VLOOKUP(B175,LINGUA!$B:$H,2,0) -> humiSteam X-plus 5 kg/h, 460Vac 3~, with regulation, cleanable cylinder | D175: € 1,369.00 | F175: =IF(SELECTION!$C$46="Eur",CODICI!D175,CODICI!D175*SELECTION!$C$48) -> € 1,369.00
A176: 171 | B176: UE005XN001 | C176: =VLOOKUP(B176,LINGUA!$B:$H,2,0) -> humiSteam X-plus 5 kg/h, 575Vac 3~, with regulation, disposable cylinder | D176: € 1,338.00 | F176: =IF(SELECTION!$C$46="Eur",CODICI!D176,CODICI!D176*SELECTION!$C$48) -> € 1,338.00
A177: 172 | B177: UE005XNC01 | C177: =VLOOKUP(B177,LINGUA!$B:$H,2,0) -> humiSteam X-plus 5 kg/h, 575Vac 3~, with regulation, cleanable cylinder | D177: € 1,369.00 | F177: =IF(SELECTION!$C$46="Eur",CODICI!D177,CODICI!D177*SELECTION!$C$48) -> € 1,369.00
A178: 173 | B178: UE005XU001 | C178: =VLOOKUP(B178,LINGUA!$B:$H,2,0) -> humiSteam X-plus 5 kg/h, 208Vac 1~, with regulation, disposable cylinder | D178: € 1,338.00 | F178: =IF(SELECTION!$C$46="Eur",CODICI!D178,CODICI!D178*SELECTION!$C$48) -> € 1,338.00
A179: 174 | B179: UE005XUC01 | C179: =VLOOKUP(B179,LINGUA!$B:$H,2,0) -> humiSteam X-plus 5 kg/h, 208Vac 1~, with regulation, cleanable cylinder | D179: € 1,404.00 | F179: =IF(SELECTION!$C$46="Eur",CODICI!D179,CODICI!D179*SELECTION!$C$48) -> € 1,404.00
A180: 175 | B180: UE005XW001 | C180: =VLOOKUP(B180,LINGUA!$B:$H,2,0) -> humiSteam X-plus 5 kg/h, 208Vac 3~, with regulation, disposable cylinder | D180: € 1,338.00 | F180: =IF(SELECTION!$C$46="Eur",CODICI!D180,CODICI!D180*SELECTION!$C$48) -> € 1,338.00
A181: 176 | B181: UE005XWC01 | C181: =VLOOKUP(B181,LINGUA!$B:$H,2,0) -> humiSteam X-plus 5 kg/h, 208Vac 3~, with regulation, cleanable cylinder | D181: € 1,369.00 | F181: =IF(SELECTION!$C$46="Eur",CODICI!D181,CODICI!D181*SELECTION!$C$48) -> € 1,369.00
A182: 177 | B182: UE008XK001 | C182: =VLOOKUP(B182,LINGUA!$B:$H,2,0) -> humiSteam X-plus 8 kg/h, 230Vac 3~, with regulation, disposable cylinder | D182: € 1,433.00 | F182: =IF(SELECTION!$C$46="Eur",CODICI!D182,CODICI!D182*SELECTION!$C$48) -> € 1,433.00
A183: 178 | B183: UE008XKC01 | C183: =VLOOKUP(B183,LINGUA!$B:$H,2,0) -> humiSteam X-plus 8 kg/h, 230Vac 3~, with regulation, cleanable cylinder | D183: € 1,485.00 | F183: =IF(SELECTION!$C$46="Eur",CODICI!D183,CODICI!D183*SELECTION!$C$48) -> € 1,485.00
A184: 179 | B184: UE008XL001 | C184: =VLOOKUP(B184,LINGUA!$B:$H,2,0) -> humiSteam X-plus 8 kg/h, 400Vac 3~, with regulation, disposable cylinder | D184: € 1,433.00 | F184: =IF(SELECTION!$C$46="Eur",CODICI!D184,CODICI!D184*SELECTION!$C$48) -> € 1,433.00
A185: 180 | B185: UE008XLC01 | C185: =VLOOKUP(B185,LINGUA!$B:$H,2,0) -> humiSteam X-plus 8 kg/h, 400Vac 3~, with regulation, cleanable cylinder | D185: € 1,485.00 | F185: =IF(SELECTION!$C$46="Eur",CODICI!D185,CODICI!D185*SELECTION!$C$48) -> € 1,485.00
A186: 181 | B186: UE008XM001 | C186: =VLOOKUP(B186,LINGUA!$B:$H,2,0) -> humiSteam X-plus 8 kg/h, 460Vac 3~, with regulation, disposable cylinder | D186: € 1,433.00 | F186: =IF(SELECTION!$C$46="Eur",CODICI!D186,CODICI!D186*SELECTION!$C$48) -> € 1,433.00
A187: 182 | B187: UE008XMC01 | C187: =VLOOKUP(B187,LINGUA!$B:$H,2,0) -> humiSteam X-plus 8 kg/h, 460Vac 3~, with regulation, cleanable cylinder | D187: € 1,485.00 | F187: =IF(SELECTION!$C$46="Eur",CODICI!D187,CODICI!D187*SELECTION!$C$48) -> € 1,485.00
A188: 183 | B188: UE008XN001 | C188: =VLOOKUP(B188,LINGUA!$B:$H,2,0) -> humiSteam X-plus 8 kg/h, 575Vac 3~, with regulation, disposable cylinder | D188: € 1,433.00 | F188: =IF(SELECTION!$C$46="Eur",CODICI!D188,CODICI!D188*SELECTION!$C$48) -> € 1,433.00
A189: 184 | B189: UE008XNC01 | C189: =VLOOKUP(B189,LINGUA!$B:$H,2,0) -> humiSteam X-plus 8 kg/h, 575Vac 3~, with regulation, cleanable cylinder | D189: € 1,485.00 | F189: =IF(SELECTION!$C$46="Eur",CODICI!D189,CODICI!D189*SELECTION!$C$48) -> € 1,485.00
A190: 185 | B190: UE008XW001 | C190: =VLOOKUP(B190,LINGUA!$B:$H,2,0) -> humiSteam X-plus 8 kg/h, 208Vac 3~, with regulation, disposable cylinder | D190: € 1,433.00 | F190: =IF(SELECTION!$C$46="Eur",CODICI!D190,CODICI!D190*SELECTION!$C$48) -> € 1,433.00
A191: 186 | B191: UE008XWC01 | C191: =VLOOKUP(B191,LINGUA!$B:$H,2,0) -> humiSteam X-plus 8 kg/h, 208Vac 3~, with regulation, cleanable cylinder | D191: € 1,485.00 | F191: =IF(SELECTION!$C$46="Eur",CODICI!D191,CODICI!D191*SELECTION!$C$48) -> € 1,485.00
A192: 187 | B192: UE009XD001 | C192: =VLOOKUP(B192,LINGUA!$B:$H,2,0) -> humiSteam X-plus 9 kg/h, 230Vac 1~, with regulation, disposable cylinder | D192: € 1,501.00 | F192: =IF(SELECTION!$C$46="Eur",CODICI!D192,CODICI!D192*SELECTION!$C$48) -> € 1,501.00
A193: 188 | B193: UE009XDC01 | C193: =VLOOKUP(B193,LINGUA!$B:$H,2,0) -> humiSteam X-plus 9 kg/h, 230Vac 1~, with regulation, cleanable cylinder | D193: € 1,566.00 | F193: =IF(SELECTION!$C$46="Eur",CODICI!D193,CODICI!D193*SELECTION!$C$48) -> € 1,566.00
A194: 189 | B194: UE009XU001 | C194: =VLOOKUP(B194,LINGUA!$B:$H,2,0) -> humiSteam X-plus 9 kg/h, 208Vac 1~, with regulation, disposable cylinder | D194: € 1,501.00 | F194: =IF(SELECTION!$C$46="Eur",CODICI!D194,CODICI!D194*SELECTION!$C$48) -> € 1,501.00
A195: 190 | B195: UE009XUC01 | C195: =VLOOKUP(B195,LINGUA!$B:$H,2,0) -> humiSteam X-plus 9 kg/h, 208Vac 1~, with regulation, cleanable cylinder | D195: € 1,566.00 | F195: =IF(SELECTION!$C$46="Eur",CODICI!D195,CODICI!D195*SELECTION!$C$48) -> € 1,566.00
A196: 191 | B196: UE010XK001 | C196: =VLOOKUP(B196,LINGUA!$B:$H,2,0) -> humiSteam X-plus 10 kg/h, 230Vac 3~, with regulation, disposable cylinder | D196: € 1,472.00 | F196: =IF(SELECTION!$C$46="Eur",CODICI!D196,CODICI!D196*SELECTION!$C$48) -> € 1,472.00
A197: 192 | B197: UE010XKC01 | C197: =VLOOKUP(B197,LINGUA!$B:$H,2,0) -> humiSteam X-plus 10 kg/h, 230Vac 3~, with regulation, cleanable cylinder | D197: € 1,557.00 | F197: =IF(SELECTION!$C$46="Eur",CODICI!D197,CODICI!D197*SELECTION!$C$48) -> € 1,557.00
A198: 193 | B198: UE010XL001 | C198: =VLOOKUP(B198,LINGUA!$B:$H,2,0) -> humiSteam X-plus 10 kg/h, 400Vac 3~, with regulation, disposable cylinder | D198: € 1,472.00 | F198: =IF(SELECTION!$C$46="Eur",CODICI!D198,CODICI!D198*SELECTION!$C$48) -> € 1,472.00
A199: 194 | B199: UE010XLC01 | C199: =VLOOKUP(B199,LINGUA!$B:$H,2,0) -> humiSteam X-plus 10 kg/h, 400Vac 3~, with regulation, cleanable cylinder | D199: € 1,556.00 | F199: =IF(SELECTION!$C$46="Eur",CODICI!D199,CODICI!D199*SELECTION!$C$48) -> € 1,556.00
A200: =+A199+1 -> 195 | B200: UE010XM001 | C200: =VLOOKUP(B200,LINGUA!$B:$H,2,0) -> humiSteam X-plus 10 kg/h, 460Vac 3~, with regulation, disposable cylinder | D200: € 1,472.00 | F200: =IF(SELECTION!$C$46="Eur",CODICI!D200,CODICI!D200*SELECTION!$C$48) -> € 1,472.00
A201: 196 | B201: UE010XMC01 | C201: =VLOOKUP(B201,LINGUA!$B:$H,2,0) -> humiSteam X-plus 10 kg/h, 460Vac 3~, with regulation, cleanable cylinder | D201: € 1,557.00 | F201: =IF(SELECTION!$C$46="Eur",CODICI!D201,CODICI!D201*SELECTION!$C$48) -> € 1,557.00
... 256 more rows

Sheet LINGUA (hidden)
B1: If needed change the language in the grey cells DO NOT MODIFY IN ANY WAY THE FIRST THREE COLUMNS A, B AND C | C1: ENGLISH | D1: ITALIANO | E1: ENGLISH | F1: FRANCAIS | G1: DEUTSCH | H1: ESPAÑOL
B2: AZIONE AUTOMATICA | C2: SENTENCE TO INSERT | D2: FRASI DA INSERIRE | E2: SENTENCE TO INSERT | H2: FRASES A INSERTAR | J2: Unità di misura e limiti
B3: =CONCATENATE(IF(A3=1," ",""),C3) -> INSTRUCTIONS: insert input data in grey cells. Results appear in green cells. | C3: INSTRUCTIONS: insert input data in grey cells. Results appear in green cells. | D3: ISTRUZIONI: inserire i dati nelle caselle grigie. I dati elaborati compaiono nelle caselle color verde | E3: INSTRUCTIONS: insert input data in grey cells. Results appear in green cells. | F3: INSTRUCTION: insérer les données dans les cellules grisées. Les résultats apparaissent dans les cellules vert. | G3: Anleitung: Die Eingabe der Daten erfolgt in die grauen Zellen. Die berechneten Ergebnisse werden in den grün Zellen ausgegeben. | H3: INSTRUCCIONES: Insertar los datos en las casillas grises. Los datos elaborados aparecen en las casillas de color verde. | J3: mm | K3: mm
B4: =CONCATENATE(IF(A4=1," ",""),C4) -> Altitude a.s.l. | C4: Altitude a.s.l. | D4: Altitudine s.l.m. | E4: Altitude a.s.l. | F4: Altitude a.s.l | G4: Höhe ü.d.M. | H4: Altitud s.n.m. | J4: g/kg | K4: g/kg
B5: Altitude error | C5: Altitude error | D5: Errore altitudine | E5: Altitude error | F5: Erreur altitude | G5: Fehler Höheneingabe | H5: Error altitud | J5: m/sec | K5: m/sec
B6: =CONCATENATE(IF(A6=1," ",""),C6) -> External Air | C6: External Air | D6: Aria esterna | E6: External Air | H6: Aire en la entrada | J6: °C | K6: °C
B7: Air after the humidifier | C7: Air after the humidifier | D7: Aria in uscita | E7: Air after the humidifier | F7: Air après humidification | G7: Luft nach dem Befeuchter | H7: Aire en la salida | J7: m^3/h | K7: m^3/h
B8: m | C8: m | D8: m | E8: m | F8: m | G8: m | H8: m | J8: kg/h | K8: kg/h
B9: Relative humidity | C9: Relative humidity | D9: Umidità relativa | E9: Relative humidity | F9: Hygrométrie relative | G9: relative Feuchte | H9: Humedad relativa | J9: bar | K9: bar
B10: Temperature | C10: Temperature | D10: Temperatura | E10: Temperature | F10: Température | G10: Temperatur | H10: Temperatura | J10: Hz | K10: Hz
B11: Specific humidity | C11: Specific humidity | D11: Umidità specifica | E11: Specific humidity | F11: Hygrométrie spécifique | G11: absolute Feuchte | H11: Humedad específica | J11: RPM | K11: PRM
B12: Difference x2-x1 | C12: Difference x2-x1 | D12: Delta x2-x1 | E12: Difference x2-x1 | F12: Différence x2-x1 | G12: Differenz x2-x1 | H12: Delta x2-x1 | J12: rH | K12: rH
B13: The following diagram shows the isothermal transformation in red. Blue lines represent curves at a fixed relative humidity, while cyan ones are constant-enthalpy curves. | C13: The following diagram shows the isothermal transformation in red. Blue lines represent curves at a fixed relative humidity, while cyan ones are constant-enthalpy curves. | D13: Nel diagramma successivo è rappresentata in rosso la trasformazione isotermica scelta. In azzurro sono rappresentate le curve isoentalpiche mentre in blu sono riportate quelle ad umidità relativa costante. | E13: The following diagram shows the isothermal transformation in red. Blue lines represent curves at a fixed relative humidity, while cyan ones are constant-enthalpy curves. | F13: Le schéma suivant présente les transformations adiabatiques en rouge. Les lignes bleues représentent les courbes à humidité relative constante, les lignes cyans, les courbes à enthalpie constante. | G13: Das folgende Diagramm wird die Enthalpie-Veränderung durch die adiabate Befeuchtung in roter Farbe dargstellt. Die blauen Linien zeigen die relative Luftfeuchte an und Cyan gibt die konstante Enthalpien an. | H13: En el siguiente diagrama se representa en rojo la transformación isotérmica seleccionada. En azul se representan las curvas isentálpicas mientras que en celeste se muestran las de humedad relativa constante.
B14: Duct | C14: Duct | D14: Condotta | E14: Duct | F14: Gaine | G14: Kanal | H14: Conducto
B15: Internal width C1 | C15: Internal width C1 | D15: Larghezza interna C1 | E15: Internal width C1 | F15: Largeur interne C1 | G15: Innere Kanalbreite C1 | H15: Anchura interna C1
B16: Internal height C2 | C16: Internal height C2 | D16: Altezza interna C2 | E16: Internal height C2 | F16: Hauteur interne C2 | G16: Innere Kanalhöhe C2 | H16: Altura interna C2
B17: Percentage of recirculation air | C17: Percentage of recirculation air | D17: Percentuale di aria ricircolata | E17: Percentage of recirculation air | F17: Percentage of recirculation air | G17: Percentage of recirculation air | H17: Percentual de aire recirculada
B18: =CONCATENATE(IF(A18=1," ",""),C18) -> Air flow V | C18: Air flow V | D18: Portata oraria V | E18: Air flow V | F18: Débit d'air V | G18: Luftvolumenstrom V | H18: Producción horaria V
B19: Air flow GA | C19: Air flow GA | D19: Portata oraria GA | E19: Air flow GA | F19: Débit d'air GA | G19: Muftmassenstrom m | H19: Producción horaria GA
B20: Air speed | C20: Air speed | D20: Velocità dell'aria | E20: Air speed | F20: Vitesse d'air | G20: Luftgeschwindigkeit | H20: Velocidad del aire
B21: Total water flow Gw | C21: Total water flow Gw | D21: Acqua totale Gw | E21: Total water flow Gw | F21: Débit total d'eau Gw | G21: Gesamt-Wassermenge | H21: Agua total Gw
B22: Internal width too small | C22: Internal width too small | D22: Larghezza della condotta insufficiente! | E22: Internal width too small | F22: Largeur interne trop courte | G22: Innere Kanalbreite C1 zu klein | H22: ¡Anchura del conducto insuficiente!
B23: Internal height too small | C23: Internal height too small | D23: Altezza della condotta insufficiente! | E23: Internal height too small | F23: Hauteur interne trop courte | G23: Innere Kanalhöhe C2 zu klein | H23: ¡Altura del conducto insuficiente!
B24: Error | C24: Error | D24: Errore | E24: Error | F24: Erreur | G24: Fehler | H24: Error
B25: Active probe for ducts | C25: Active probe for ducts | D25: Sonde attive per condotta | E25: Active probe for ducts | F25: Sonde active pour gaine | G25: aktiver Kanalfühler | H25: Sondas activas para conducto
B26: Quantity | C26: Quantity | D26: Quantità | E26: Quantity | F26: Quantité | G26: Anzahl | H26: Cantidad
B27: Code | C27: Code | D27: Codice | E27: Code | F27: Code | G27: Code | H27: Código
B28: Description | C28: Description | D28: Descrizione | E28: Description | F28: Description | G28: Beschreibung | H28: Descripción
B29: List price | C29: List price | D29: Prezzo di listino | E29: List price | F29: Prix de liste | G29: Listenpreis | H29: Precio de lista
B30: TOTAL | C30: TOTAL | D30: TOTALE | E30: TOTAL | F30: TOTAL | G30: GESAMT | H30: TOTAL
B31: Do you want it? (Yes or No)? | C31: Do you want it? (Yes or No)? | D31: Lo si vuole (Si o No)? | E31: Do you want it? (Yes or No)? | F31: Voulez-vous? (Oui ou Non)? | G31: Gewünscht? (Ja oder Nein) | H31: ¿Lo desea (Si o No)?
A32: 1 | B32: Yes/No? | C32: Yes/No? | D32: Si/No? | E32: Yes/No? | F32: Oui/Non? | G32: (Ja/Nein) | H32: ¿Si/No?
B33: Total list price | C33: Total list price | D33: Totale prezzo di listino | E33: Total list price | F33: Total prix liste | G33: Gesamt Listenpreis | H33: Total precio de lista
B34: Yes | C34: Yes | D34: Si | E34: Yes | F34: Oui? | G34: Ja | H34: Si
B35: No | C35: No | D35: No | E35: No | F35: Non | G35: Nein | H35: No
B36: Discount | C36: Discount | D36: Sconto | E36: Discount | F36: Remise | G36: Rabatt | H36: Descuento
B37: Temperature probe (0-50 °C) and humidity (10-90% rH) | C37: Temperature probe (0-50 °C) and humidity (10-90% rH) | D37: Sonda di temperatura (0..50 °C) e di umidità (10..90% rH) | E37: Temperature probe (0-50 °C) and humidity (10-90% rH) | F37: Sonde de température (0-50°C) et humidité (10-90% rH) | G37: Temperatur- (0-50°C) und Feuchtefühler (10-90% r.F.) | H37: Sonda de temperatura (0..50 °C) y de humedad (10..90% HR)
B38: Temperature probe (-10-70 °C) and humidity (0-100% rH) | C38: Temperature probe (-10-70 °C) and humidity (0-100% rH) | D38: Sonda di temperatura (-10..70 °C) e di umidità (0..100% rH) | E38: Temperature probe (-10-70 °C) and humidity (0-100% rH) | F38: Sonde de température (-10-70°C) et humidité (0-100% rH) | G38: Temperatur- (-10-50°C) und Feuchtefühler (0-100% r.F.) | H38: Sonda de temperatura (-10..70 °C) y de humedad (0..100% HR)
B39: Humidity probe 10-90% rH | C39: Humidity probe 10-90% rH | D39: Sonda d'umidità 10..90% rH | E39: Humidity probe 10-90% rH | F39: Sonde d'hygrométrie 10-90% rH | G39: Feuchtefühler (10-90% r.F.) | H39: Sonda de humedad 10..90% HR
B40: Humidity probe 0-100% rH | C40: Humidity probe 0-100% rH | D40: Sonda d'umidità 0..100% rH | E40: Humidity probe 0-100% rH | F40: Sonde d'hygrométrie 0-100% rH | G40: Feuchtefühler (0-100% r.F.) | H40: Sonda de humedad 0..100% HR
B41: Position | C41: Position | D41: Posizione | E41: Position | F41: Position | G41: Position | H41: Posición
B42: Code | C42: Code | D42: Articolo | E42: Code | F42: Code | G42: Code | H42: Artículo
B43: Price | C43: Price | D43: Prezzo | E43: Price | F43: Prix | G43: Preis | H43: Precio
B44: Humidifier | C44: Humidifier | D44: Umidificatore | E44: Humidifier | F44: Humidificateur | G44: Befeuchter | H44: Humidificador
B45: Steam distributor | C45: Steam distributor | D45: Distributore di vapore | E45: Steam distributor | F45: Rampe de distributeur de vapeur | G45: Dampfverteiler | H45: Distribuidor de vapor
B46: Steam hose | C46: Steam hose | D46: Tubo trasporto vapore | E46: Steam hose | F46: Flexible vapeur | G46: Dampfschlauch | H46: Tubo de transporte de vapor
B47: Drain hose | C47: Drain hose | D47: Tubo scarico condensa | E47: Drain hose | F47: Flexible condensas | G47: Ablaufschlauch | H47: Tubo de vaciado de condensados
B48: Possible solutions | C48: Possible solutions | D48: Soluzioni possibili | E48: Possible solutions | F48: Solution possible | G48: Vorschlag | H48: Soluciones posibles
B49: Humidifier code | C49: Humidifier code | D49: Codice umidificatore | E49: Humidifier code | F49: Code humidificateur | G49: Bezeichnung Befeuchter | H49: Código del humidificador
B50: Choice of the humidifier | C50: Choice of the humidifier | D50: Scelta dell'umidificatore | E50: Choice of the humidifier | F50: Choix d'humidificateur | G50: Befeuchterauswahl | H50: Selección del humidificador
B51: Y connection for steam hose | C51: Y connection for steam hose | D51: Raccordo a Y per tubi vapore | E51: Y connection for steam hose | F51: Raccord Y pour flexible vapeur | G51: Y-Verteiler für Dampfschlauch | H51: Racor en Y para tubos de vapor
B52: Number of humidifiers | C52: Number of humidifiers | D52: N° di umidificatori | E52: Number of humidifiers | F52: Nombre de humidificateurs | G52: Anzahl der Luftbefeuchter | H52: Nº de humidificadores
B53: STEP 1 | C53: STEP 1 | D53: STEP 1 | E53: STEP 1 | F53: STEP 1 | G53: Schritt 1 | H53: PASO 1
B54: =CONCATENATE(IF(A54=1," ",""),C54) -> STEP 2 | C54: STEP 2 | D54: STEP 2 | E54: STEP 2 | F54: STEP 2 | G54: Schritt 2 | H54: PASO 2
B55: =CONCATENATE(IF(A55=1," ",""),C55) -> STEP 3 | C55: STEP 3 | D55: STEP 3 | E55: STEP 3 | F55: STEP 3 | G55: Schritt 3 | H55: PASO 3
B56: =CONCATENATE(IF(A56=1," ",""),C56) -> Go to the "Selection" sheet | C56: Go to the "Selection" sheet | D56: Vai al foglio "Selection" | E56: Go to the "Selection" sheet | F56: Aller à la feuille de "Sélection" | G56: Gehe zum "Selection"-Blatt | H56: Ir a la hoja "Selección"
B57: =CONCATENATE(IF(A57=1," ",""),C57) -> No. of distributors in the duct | C57: No. of distributors in the duct | D57: N. di distributori in condotta | E57: No. of distributors in the duct | F57: Nbr de rampe dans la gaine | G57: Nummer des Verteilers im Kanal | H57: Nº de distribuidores en conducto
B58: Humidifier capacity (kg/h) | C58: Humidifier capacity (kg/h) | D58: Capacità dell'umidificatore (kg/h) | E58: Humidifier capacity (kg/h) | F58: Capacité de l'humidificateur (kg/h) | G58: Befeuchtungsleistung (kg/h) | H58: Capacidad del humidificador (kg/h)
B59: Max kg/h per distributor | C59: Max kg/h per distributor | D59: Portata max del distributore (kg/h) | E59: Max kg/h per distributor | F59: Débit max par rampe (kg/h) | G59: Maximale Leistung pro Verteiler | H59: Producción máx del distribuidor (kg/h)
B60: Distributor length (mm) | C60: Distributor length (mm) | D60: Lunghezza del distributore (mm) | E60: Distributor length (mm) | F60: Longueur de la rampe (mm) | G60: Länge des Verteilers (mm) | H60: Longitud del distribuidor (mm)
B61: Humidification distance (m) | C61: Humidification distance (m) | D61: Distanza di umidificazione (m) | E61: Humidification distance (m) | F61: Distance d'absorption (mm) | G61: Befeuchtungsstrecke (m) | H61: Distancia de humectación (m)
B62: The humidification distance is calculated using the work of Gundacker | C62: The humidification distance is calculated using the work of Gundacker | D62: La distanza di umidificazione è calcolata usando il lavoro di Gundacker | E62: The humidification distance is calculated using the work of Gundacker | F62: La distance d'absorption est calculée en utilisant le travail de Gundaker | G62: Die Befeuchtungsstrecke wurde nach Gundacker berechnet. | H62: La distancia de humectación se calcula utilizando el trabajo de Gundacker
B63: distributor lenght is bigger than duct width | C63: distributor lenght is bigger than duct width | D63: distributor lenght is bigger than duct width | E63: distributor lenght is bigger than duct width | F63: La longueur de la rampe est plus grande que la largeur de la gaine | G63: Die Dampflanze ist länger als die Kanalbreite! | H63: La longitud del distribuidor es mayor que la anchura del conducto
B64: humidification load is bigger than maximum steam distributor capacity | C64: humidification load is bigger than maximum steam distributor capacity | D64: humidification load is bigger than maximum steam distributor capacity | E64: humidification load is bigger than maximum steam distributor capacity | F64: Le débit de vapeur de l'humidificateur est plus grand que la capacité maximum des rampes | G64: Die Befeuchtungsleistung ist zu groß um sie mit der längsten Dampflanze in die Luft einzubringen. | H64: La carga de humectación es mayor que la capacidad máxima del distribuidor de vapor
B65: Voltage not available for the model chosen | C65: Voltage not available for the model chosen | D65: Tensione non disponibile per il modello di umidificatore scelto | E65: Voltage not available for the model chosen | F65: Tension non disponible pour le modèle choisi | G65: Spannung nicht verfügbar für das gewählte Modell | H65: Tensión no disponible para el modelo de humidificador seleccionado
B66: Option not correct for the model chosen | C66: Option not correct for the model chosen | D66: Optional non corretto per il modello di umidificatore scelto | E66: Option not correct for the model chosen | F66: Option pas correct pour le modèle choisi | G66: Option nicht richtig für das Modell gewählt | H66: Opción incorrecta para el modelo de humidificador seleccionado
B67: Disposable cylinder (humiSteam only) | C67: Disposable cylinder (humiSteam only) | D67: Cilindro standard (solo per humiSteam) | E67: Disposable cylinder (humiSteam only) | F67: Cylindre non ouvrant (UE seulement) | G67: Einweg-Dampfzylinder (nur UE) | H67: Cilindro standard (sólo para humiSteam)
B68: Cleanable cylinder (humiSteam only) | C68: Cleanable cylinder (humiSteam only) | D68: Cilindro apribile (solo per humiSteam) | E68: Cleanable cylinder (humiSteam only) | F68: Cylindre ouvrant (UE seulement) | G68: Reinigungsfähig-Dampfzylinder (nur UE) | H68: Cilindro practicable (sólo para humiSteam)
B69: heaterSteam process | C69: heaterSteam process | D69: heaterSteam process | E69: heaterSteam process | F69: heaterSteam process | G69: heaterSteam process | H69: heaterSteam process
B70: heaterSteam Titanium | C70: heaterSteam Titanium | D70: heaterSteam Titanium | E70: heaterSteam Titanium | F70: heaterSteam Titanium | G70: heaterSteam Titanium | H70: heaterSteam Titanium
B71: Pump 50 hz (gaSteam only) | C71: Pump 50 hz (gaSteam only) | D71: Pompa 50 Hz (solo per gaSteam) | E71: Pump 50 hz (gaSteam only) | F71: Pump 50 hz (gaSteam only) | G71: Pump 50 hz (gaSteam only) | H71: Pump 50 hz (gaSteam only)
B72: Pump 60 Hz (USA Market) (gaSteam only) | C72: Pump 60 Hz (USA Market) (gaSteam only) | D72: Pompa 60 Hz (Mercato usa) (Solo per gaSteam) | E72: Pump 60 Hz (USA Market) (gaSteam only) | F72: Pump 60 Hz (USA Market) (gaSteam only) | G72: Pump 60 Hz (USA Market) (gaSteam only) | H72: Pump 60 Hz (USA Market) (gaSteam only)
B73: Voltage specification | C73: Voltage specification | D73: Scelta della tensione | E73: Voltage specification | F73: Tension spécification | G73: Spannung Spezifikation | H73: Selección de la tensión
B74: Options specification | C74: Options specification | D74: Scelta delle caratteristiche opzionali | E74: Options specification | F74: Options spécification | G74: Optionen Spezifikation | H74: Selección de las características opcionales
B75: capacity of humidifier is less than the requested load | C75: capacity of humidifier is less than the requested load | D75: capacity of humidifier is less than the requested load | E75: capacity of humidifier is less than the requested load | F75: capacity of humidifier is less than the requested load | G75: capacity of humidifier is less than the requested load | H75: capacity of humidifier is less than the requested load
B76: Codice | C76: English description | D76: Descrizione italiana | E76: English description | F76: Description en français | G76: Deutsche Version | H76: Descripción italiana
B77: DP035D22R0 | C77: Stainless steel steam distributor, inlet Ø=22 mm, l = 350 mm | D77: Distributore di vapore inox, ingresso Ø=22 mm, L = 350 mm | E77: Stainless steel steam distributor, inlet Ø=22 mm, l = 350 mm | F77: Rampe distribution de vapeur Inox, int. Ø=22 mm, l = 350 mm | G77: Edelstahl-Dampflanze, Anschluss Dampfschlauch Ø=22 mm, l = 350 mm | H77: Distribuidor de vapor inox, entrada Ø=22 mm, L = 350 mm
B78: DP045D22R0 | C78: Stainless steel steam distributor, inlet Ø=22 mm, l = 450 mm | D78: Distributore di vapore inox, ingresso Ø=22 mm, L = 450 mm | E78: Stainless steel steam distributor, inlet Ø=22 mm, l = 450 mm | F78: Rampe distribution de vapeur Inox, int. Ø=22 mm, l = 450 mm | G78: Edelstahl-Dampflanze, Anschluss Dampfschlauch Ø=22 mm, l = 450 mm | H78: Distribuidor de vapor inox, entrada Ø=22 mm, L = 450 mm
B79: DP060D22R0 | C79: Stainless steel steam distributor, inlet Ø=22 mm, l = 600 mm | D79: Distributore di vapore inox, ingresso Ø=22 mm, L = 600 mm | E79: Stainless steel steam distributor, inlet Ø=22 mm, l = 600 mm | F79: Rampe distribution de vapeur Inox, int. Ø=22 mm, l = 600 mm | G79: Edelstahl-Dampflanze, Anschluss Dampfschlauch Ø=22 mm, l = 600 mm | H79: Distribuidor de vapor inox, entrada Ø=22 mm, L = 600 mm
B80: DP085D22R0 | C80: Stainless steel steam distributor, inlet Ø=22 mm, l = 850 mm | D80: Distributore di vapore inox, ingresso Ø=22 mm, L = 850 mm | E80: Stainless steel steam distributor, inlet Ø=22 mm, l = 850 mm | F80: Rampe distribution de vapeur Inox, int. Ø=22 mm, l = 850 mm | G80: Edelstahl-Dampflanze, Anschluss Dampfschlauch Ø=22 mm, l = 850 mm | H80: Distribuidor de vapor inox, entrada Ø=22 mm, L = 850 mm
B81: DP035D30R0 | C81: Stainless steel steam distributor, inlet Ø=30 mm, l = 350 mm | D81: Distributore di vapore inox, ingresso Ø=30 mm, L = 350 mm | E81: Stainless steel steam distributor, inlet Ø=30 mm, l = 350 mm | F81: Rampe distribution de vapeur Inox, int. Ø=30 mm, l = 350 mm | G81: Edelstahl-Dampflanze, Anschluss Dampfschlauch Ø=30 mm, l = 350 mm | H81: Distribuidor de vapor inox, entrada Ø=30 mm, L = 350 mm
B82: DP045D30R0 | C82: Stainless steel steam distributor, inlet Ø=30 mm, l = 450 mm | D82: Distributore di vapore inox, ingresso Ø=30 mm, L = 450 mm | E82: Stainless steel steam distributor, inlet Ø=30 mm, l = 450 mm | F82: Rampe distribution de vapeur Inox, int. Ø=30 mm, l = 450 mm | G82: Edelstahl-Dampflanze, Anschluss Dampfschlauch Ø=30 mm, l = 450 mm | H82: Distribuidor de vapor inox, entrada Ø=30 mm, L = 450 mm
B83: DP060D30R0 | C83: Stainless steel steam distributor, inlet Ø=30 mm, l = 600 mm | D83: Distributore di vapore inox, ingresso Ø=30 mm, L = 600 mm | E83: Stainless steel steam distributor, inlet Ø=30 mm, l = 600 mm | F83: Rampe distribution de vapeur Inox, int. Ø=30 mm, l = 600 mm | G83: Edelstahl-Dampflanze, Anschluss Dampfschlauch Ø=30 mm, l = 600 mm | H83: Distribuidor de vapor inox, entrada Ø=30 mm, L = 600 mm
B84: DP085D30R0 | C84: Stainless steel steam distributor, inlet Ø=30 mm, l = 850 mm | D84: Distributore di vapore inox, ingresso Ø=30 mm, L = 850 mm | E84: Stainless steel steam distributor, inlet Ø=30 mm, l = 850 mm | F84: Rampe distribution de vapeur Inox, int. Ø=30 mm, l = 850 mm | G84: Edelstahl-Dampflanze, Anschluss Dampfschlauch Ø=30 mm, l = 850 mm | H84: Distribuidor de vapor inox, entrada Ø=30 mm, L = 850 mm
B85: DP105D30R0 | C85: Stainless steel steam distributor, inlet Ø=30 mm, l = 1,050 mm | D85: Distributore di vapore inox, ingresso Ø=30 mm, L = 1.050 mm | E85: Stainless steel steam distributor, inlet Ø=30 mm, l = 1,050 mm | F85: Rampe distribution de vapeur Inox, int. Ø=30 mm, l = 1,050 mm | G85: Edelstahl-Dampflanze, Anschluss Dampfschlauch Ø=30 mm, l = 1,050 mm | H85: Distribuidor de vapor inox, entrada Ø=30 mm, L = 1.050 mm
B86: DP125D30R0 | C86: Stainless steel steam distributor, inlet Ø=30 mm, l = 1,250 mm | D86: Distributore di vapore inox, ingresso Ø=30 mm, L = 1.250 mm | E86: Stainless steel steam distributor, inlet Ø=30 mm, l = 1,250 mm | F86: Rampe distribution de vapeur Inox, int. Ø=30 mm, l = 1,250 mm | G86: Edelstahl-Dampflanze, Anschluss Dampfschlauch Ø=30 mm, l = 1,250 mm | H86: Distribuidor de vapor inox, entrada Ø=30 mm, L = 1.250 mm
B87: DP165D30R0 | C87: Stainless steel steam distributor, inlet Ø=30 mm, l = 1.650 mm | D87: Distributore di vapore inox, ingresso Ø=30 mm, L = 1.650 mm | E87: Stainless steel steam distributor, inlet Ø=30 mm, l = 1.650 mm | F87: Rampe distribution de vapeur Inox, int. Ø=30 mm, l = 1.650 mm | G87: Edelstahl-Dampflanze, Anschluss Dampfschlauch Ø=30 mm, l = 1.650 mm | H87: Distribuidor de vapor inox, entrada Ø=30 mm, L = 1.650 mm
B88: DP085D40R0 | C88: Stainless steel steam distributor, inlet Ø=40 mm, l = 850 mm | D88: Distributore di vapore inox, ingresso Ø=40 mm, L = 850 mm | E88: Stainless steel steam distributor, inlet Ø=40 mm, l = 850 mm | F88: Rampe distribution de vapeur Inox, int. Ø=40 mm, l = 850 mm | G88: Edelstahl-Dampflanze, Anschluss Dampfschlauch Ø=40 mm, l = 850 mm | H88: Distribuidor de vapor inox, entrada Ø=40 mm, L = 850 mm
B89: DP105D40R0 | C89: Stainless steel steam distributor, inlet Ø=40 mm, l = 1,050 mm | D89: Distributore di vapore inox, ingresso Ø=40 mm, L = 1.050 mm | E89: Stainless steel steam distributor, inlet Ø=40 mm, l = 1,050 mm | F89: Rampe distribution de vapeur Inox, int. Ø=40 mm, l = 1,050 mm | G89: Edelstahl-Dampflanze, Anschluss Dampfschlauch Ø=40 mm, l = 1,050 mm | H89: Distribuidor de vapor inox, entrada Ø=40 mm, L = 1.050 mm
B90: DP125D40R0 | C90: Stainless steel steam distributor, inlet Ø=40 mm, l = 1,250 mm | D90: Distributore di vapore inox, ingresso Ø=40 mm, L = 1.250 mm | E90: Stainless steel steam distributor, inlet Ø=40 mm, l = 1,250 mm | F90: Rampe distribution de vapeur Inox, int. Ø=40 mm, l = 1,250 mm | G90: Edelstahl-Dampflanze, Anschluss Dampfschlauch Ø=40 mm, l = 1,250 mm | H90: Distribuidor de vapor inox, entrada Ø=40 mm, L = 1.250 mm
B91: DP165D40R0 | C91: Stainless steel steam distributor, inlet Ø=40 mm, l = 1,650 mm | D91: Distributore di vapore inox, ingresso Ø=40 mm, L = 1.650 mm | E91: Stainless steel steam distributor, inlet Ø=40 mm, l = 1,650 mm | F91: Rampe distribution de vapeur Inox, int. Ø=40 mm, l = 1,650 mm | G91: Edelstahl-Dampflanze, Anschluss Dampfschlauch Ø=40 mm, l = 1,650 mm | H91: Distribuidor de vapor inox, entrada Ø=40 mm, L = 1.650 mm
B92: DP205D40R0 | C92: Stainless steel steam distributor, inlet Ø=40 mm, l = 2,050 mm | D92: Distributore di vapore inox, ingresso Ø=40 mm, L = 2.050 mm | E92: Stainless steel steam distributor, inlet Ø=40 mm, l = 2,050 mm | F92: Rampe distribution de vapeur Inox, int. Ø=40 mm, l = 2,050 mm | G92: Edelstahl-Dampflanze, Anschluss Dampfschlauch Ø=40 mm, l = 2,050 mm | H92: Distribuidor de vapor inox, entrada Ø=40 mm, L = 2.050 mm
B93: DP030D22RU | C93: Stainless steel steam distributor, inlet Ø=22 mm, l = 300 mm | D93: Distributore di vapore inox, ingresso Ø=22 mm, L = 300 mm | E93: Stainless steel steam distributor, inlet Ø=22 mm, l = 300 mm | F93: Rampe distribution de vapeur Inox, int. Ø=22 mm, l = 300 mm | G93: Edelstahl-Dampflanze, Anschluss Dampfschlauch Ø=22 mm, l = 300 mm | H93: Distribuidor de vapor inox, entrada Ø=22 mm, L = 300 mm
B94: DP030D30RU | C94: Stainless steel steam distributor, inlet Ø=30 mm, l = 300 mm | D94: Distributore di vapore inox, ingresso Ø=30 mm, L = 300 mm | E94: Stainless steel steam distributor, inlet Ø=30 mm, l = 300 mm | F94: Rampe distribution de vapeur Inox, int. Ø=30 mm, l = 300 mm | G94: Edelstahl-Dampflanze, Anschluss Dampfschlauch Ø=30 mm, l = 300 mm | H94: Distribuidor de vapor inox, entrada Ø=30 mm, L = 300 mm
B95: DP045D30RU | C95: Stainless steel steam distributor, inlet Ø=30 mm, l = 450 mm | D95: Distributore di vapore inox, ingresso Ø=30 mm, L = 450 mm | E95: Stainless steel steam distributor, inlet Ø=30 mm, l = 450 mm | F95: Rampe distribution de vapeur Inox, int. Ø=30 mm, l = 450 mm | G95: Edelstahl-Dampflanze, Anschluss Dampfschlauch Ø=30 mm, l = 450 mm | H95: Distribuidor de vapor inox, entrada Ø=30 mm, L = 450 mm
B96: DP060D30RU | C96: Stainless steel steam distributor, inlet Ø=30 mm, l = 600 mm | D96: Distributore di vapore inox, ingresso Ø=30 mm, L = 600 mm | E96: Stainless steel steam distributor, inlet Ø=30 mm, l = 600 mm | F96: Rampe distribution de vapeur Inox, int. Ø=30 mm, l = 600 mm | G96: Edelstahl-Dampflanze, Anschluss Dampfschlauch Ø=30 mm, l = 600 mm | H96: Distribuidor de vapor inox, entrada Ø=30 mm, L = 600 mm
B97: DP060D40RU | C97: Stainless steel steam distributor, inlet Ø=40 mm, l = 600 mm | D97: Distributore di vapore inox, ingresso Ø=40 mm, L = 600 mm | E97: Stainless steel steam distributor, inlet Ø=40 mm, l = 600 mm | F97: Rampe distribution de vapeur Inox, int. Ø=40 mm, l = 600 mm | G97: Edelstahl-Dampflanze, Anschluss Dampfschlauch Ø=40 mm, l = 600 mm | H97: Distribuidor de vapor inox, entrada Ø=40 mm, L = 600 mm
B98: SDPOEM0012 | C98: SDP OEM: steam injection nozzle up to 3 kg/h | D98: SDP OEM: ugello vapore fino a 3 kg/h | E98: SDP OEM: steam injection nozzle up to 3 kg/h | F98: SDP OEM: buse injection de vapeur jusqu'à 3 kg/h | G98: SDP OEM: Dampfdüse bis 3 kg/h | H98: SDP OEM: boquilla de vapor hasta 3 kg/h
B99: SDPOEM0022 | C99: SDP OEM: steam injection nozzle from 3 to 15 kg/h | D99: SDP OEM ugello vapore da 3 fino a 18 kg/h | E99: SDP OEM: steam injection nozzle from 3 to 15 kg/h | F99: SDP OEM: buse injection de vapeur de 3 à 15 kg/h | G99: SDP OEM: Dampfdüse von 3 bis 15 kg/h | H99: SDP OEM boquilla de vapor de 3 a 18 kg/h
B100: SDPOEM0000 | C100: SDP OEM: customizable steam injection nozzle | D100: SDP OEM ugello vapore non forato | E100: SDP OEM: customizable steam injection nozzle | F100: SDP OEM: buse injection de vapeur non percée | G100: SDP OEM: anpassbare Dampfdüse | H100: SDP OEM boquilla de vapor no agujereada
B101: UEKY000000 | C101: ‘Y’ connector for steam hoses (from 1x Ø=40 mm to 2x Ø=30 mm) | D101: Raccordo a Y per tubi vapore (da 1x Ø=40 mm a 2x Ø=30 mm) | E101: ‘Y’ connector for steam hoses (from 1x Ø=40 mm to 2x Ø=30 mm) | F101: Raccord ‘Y’ pour flexible vapeur (de 1x Ø=40 mm à 2x Ø=30 mm) | G101: ‘Y’ -Verteiler für Dampfschläuche (von 1x Ø=40 mm auf 2x Ø=30 mm) | H101: Racor en Y para tubos de vapor (desde 1x Ø=40 mm hasta 2x Ø=30 mm)
B102: UEKY40X400 | C102: ‘Y’ connector for steam hoses (from 1x Ø=40 mm to 2x Ø=40 mm) | D102: Raccordo a Y per tubi vapore (da 1x Ø=40 mm a 2x Ø=40 mm) | E102: ‘Y’ connector for steam hoses (from 1x Ø=40 mm to 2x Ø=40 mm) | F102: Raccord ‘Y’ pour flexible vapeur (de 1x Ø=40 mm à 2x Ø=40 mm) | G102: ‘Y’ -Verteiler für Dampfschläuche (von 1x Ø=40 mm auf 2x Ø=40 mm) | H102: Racor en Y para tubos de vapor (desde 1x Ø=40 mm hasta 2x Ø=40 mm)
B103: 1312360AXX | C103: Steam hose with steel spring Ø=22 mm (per metre) | D103: Tubo trasporto vapore con spirale acciaio Ø=22 mm (al metro) | E103: Steam hose with steel spring Ø=22 mm (per metre) | F103: Flexible vapeur renforcé Ø=22 mm (par mètre) | G103: Dampfschlauch mit integrierter Stahlfeder Ø=22 mm (pro Meter) | H103: Tubo de transporte de vapor con espiral de acero Ø=22 mm (el metro)
B104: 1312365AXX | C104: Steam hose with steel spring Ø=30 mm (per meter) | D104: Tubo trasporto vapore con spirale acciaio Ø=30 mm (al metro) | E104: Steam hose with steel spring Ø=30 mm (per meter) | F104: Flexible vapeur renforcé Ø=30 mm (par mètre) | G104: Dampfschlauch mit integrierter Stahlfeder Ø=30 mm (pro Meter) | H104: Tubo de transporte de vapor con espiral de acero Ø=30 mm (el metro)
B105: 1312367AXX | C105: Steam hose with steel spring Ø=40 mm (per metre) | D105: Tubo trasporto vapore con spirale acciaio Ø=40 mm (al metro) | E105: Steam hose with steel spring Ø=40 mm (per metre) | F105: Flexible vapeur renforcé Ø=40 mm (par mètre) | G105: Dampfschlauch mit integrierter Stahlfeder Ø=40 mm (pro Meter) | H105: Tubo de transporte de vapor con espiral de acero Ø=40 mm (el metro)
B106: FWH3415003 | C106: Water fill hose l = 1.5 m with 3/4” fitting | D106: Tubo carico acqua l = 1,5 m con connessione 3/4” | E106: Water fill hose l = 1.5 m with 3/4” fitting | F106: Flexible alimentation eau l = 1.5 m avec raccord 3/4” | G106: Wasser-Anschluss-Schlauch l = 1.5 m mit 3/4” Muffe | H106: Tubo de llenado de agua l = 1,5 m con conexión 3/4”
B107: FWH3430003 | C107: Water fill hose l = 3 m with 3/4” fitting | D107: Tubo carico acqua l = 3 m con connessione 3/4” | E107: Water fill hose l = 3 m with 3/4” fitting | F107: Flexible alimentation eau l = 3 m avec raccord 3/4” | G107: Wasser-Anschluss-Schlauch l = 3 m mit 3/4” Muffe | H107: Tubo de llenado de agua l = 3 m con conexión 3/4”
B108: FWHDCV0003 | C108: Water fill hose with dual-check valve (included from UE065 to UE130) | D108: Tubo carico acqua con valvola antiritorno (incluso da UE065 a UE130) | E108: Water fill hose with dual-check valve (included from UE065 to UE130) | F108: Flexible alimentation eau avec clapet (inclus sur UE065 à UE130) | G108: Wasser-Anschluss-Schlauch mit Doppel-Rückschlagventil (beim UE065 bis UE130 im Lieferumfang enthalten) | H108: Tubo de llenado de agua con válvula antiretorno (incluso de UE065 a UE130)
B109: 1312353APG | C109: SFC 006: condensate drain hose Ø=7 mm (per metre) | D109: SFC 006: tubo per scarico condensa Ø=7 mm (al metro) per testate ventilanti e ugelli SDPOEM00** | E109: SFC 006: condensate drain hose Ø=7 mm (per metre) | F109: SFC 006: flexible condensas Ø=7 mm (par mètre) | G109: SFC 006: Kondensatablauf Schlauch Ø=7 mm (pro Meter) | H109: SFC 006: tubo para vaciado condensado Ø=7 mm (el metro) para cabezales ventiladores y boquillas SDPOEM00**
B110: 1312368AXX | C110: condensate drain hose Ø=10 mm (per metre) | D110: tubo per scarico condensa Ø=10 mm (al metro) per distributori di vapore DP***D**R* | E110: condensate drain hose Ø=10 mm (per metre) | F110: flexible condensas Ø=10 mm (par mètre) | G110: Kondensatablauf Schlauch Ø=10 mm (pro Meter) | H110: Tubo para vaciado condensado Ø=10 mm (el metro) para distribuidores de vapor DP***D**R*
B111: DPWC112000 | C111: Active wall mounting sensor: Temperature (-10T60 °C) and humidity (10 to 90% rH) | D111: Sonda attiva per ambiente: temperatura (-10T60 °C) ed umidità (10…90% rH) | E111: Active wall mounting sensor: Temperature (-10T60 °C) and humidity (10 to 90% rH) | F111: Active wall mounting sensor: Temperature (-10T60 °C) and humidity (10 to 90% rH) | G111: Raumfüheler für Temperatur (-10T60 °C) und Feuchte (10-90% r.F.) | H111: Sonda activa para ambiente: temperatura (-10T60 °C) y humedad (10…90% rH)
B112: DPPC112000 | C112: Active sensor for industrial environments: Temperature (-20T70 °C) and humidity (10 to 90% rH) | D112: Sonda attiva per ambiente industriale: Temperatura (-20T70 °C) ed umidità (10…90% rH) | E112: Active sensor for industrial environments: Temperature (-20T70 °C) and humidity (10 to 90% rH) | F112: Active sensor for industrial environments: Temperature (-20T70 °C) and humidity (10 to 90% rH) | G112: Wandfüheler für Temperatur (-20T70 °C) und Feuchte (10-90% r.F.) | H112: Sonda activa para ambiente industrial: temperatura (-20T70 °C) y humedad (10…90% rH)
B113: DPPC212000 | C113: Active sensor for industrial environments: Temperature (-20T70 °C) and humidity (0 to 100% rH) | D113: Sonda attiva per ambiente industriale: Temperatura (-20T70 °C) ed umidità (0…100% rH) | E113: Active sensor for industrial environments: Temperature (-20T70 °C) and humidity (0 to 100% rH) | F113: Active sensor for industrial environments: Temperature (-20T70 °C) and humidity (0 to 100% rH) | G113: Wandfüheler für Temperatur (-20T70 °C) und Feuchte (0-100% r.F.) | H113: Sonda activa para ambiente industrial: temperatura (-20T70 °C) y humedad (0…100% rH)
B114: DPDC112000 | C114: Active sensor for ducts: Temperature (-20T70 °C) and humidity (10 to 90% rH) | D114: Sonda attiva per condotta: Temperatura (-20T70 °C) ed umidità (10…90% rH) | E114: Active sensor for ducts: Temperature (-20T70 °C) and humidity (10 to 90% rH) | F114: Active sensor for ducts: Temperature (-20T70 °C) and humidity (10 to 90% rH) | G114: Kanalfüheler für Temperatur (-20T70 °C) und Feuchte (10-90% r.F.) | H114: Sonda activa para conducto: temperatura (-20T70 °C) y humedad (10…90% rH)
B115: DPDC212000 | C115: Active sensor for ducts: Temperature (-20T70 °C) and humidity (0 to 100% rH) | D115: Sonda attiva per condotta: Temperatura (-20T70 °C) ed umidità (0…100% rH) | E115: Active sensor for ducts: Temperature (-20T70 °C) and humidity (0 to 100% rH) | F115: Active sensor for ducts: Temperature (-20T70 °C) and humidity (0 to 100% rH) | G115: Kanalfüheler für Temperatur (-20T70 °C) und Feuchte (0-100% r.F.) | H115: Sonda activa para conducto: temperatura (-20T70 °C) y humedad (0…100% rH)
B116: ASET030001 | C116: Temperature probe (-30T90 °C) for universal use | D116: Sonda di temperatura (-30T90 °C) per uso universale | E116: Temperature probe (-30T90 °C) for universal use | F116: Temperature probe (-30T90 °C) for universal use | G116: Temperaturfüheler (-30T90 °C) | H116: Sonda de temperatura (-30T90 °C) para uso universal
B117: UE001YD001 | C117: humiSteam Basic 1,5 kg/h, 230V 1~, ON/OFF or proportional, disposable cylinder | D117: humiSteam Basic 1,5 kg/h, 230V 1~, ON/OFF o proporzionale, cilindro non apribile | E117: humiSteam Basic 1,5 kg/h, 230V 1~, ON/OFF or proportional, disposable cylinder | F117: humiSteam Basic 1,5 kg/h, 230V 1~, ON/OFF ou proportionnel, cylindre non ouvrant | G117: humiSteam Basic 1,5 kg/h, 230V 1~, EIN/AUS-Betrieb oder proportional Regelung, Einweg-Dampfzylinder | H117: humiSteam Basic 1,5 kg/h, 230V 1~, todo/nada o proporcional, cilindro no practicable
B118: UE001YDC01 | C118: humiSteam Basic 1,5 kg/h, 230V 1~, ON/OFF or proportional, cleanable cylinder | D118: humiSteam Basic 1,5 kg/h, 230V 1~, ON/OFF o proporzionale, cilindro apribile | E118: humiSteam Basic 1,5 kg/h, 230V 1~, ON/OFF or proportional, cleanable cylinder | F118: humiSteam Basic 1,5 kg/h, 230V 1~, ON/OFF ou proportionnel, cylindre ouvrant | G118: humiSteam Basic 1,5 kg/h, 230V 1~, EIN/AUS-Betrieb oder proportional Regelung, Reinigungsfähig-Dampfzylinder | H118: humiSteam Basic 1,5 kg/h, 230V 1~, todo/nada o proporcional, cilindro practicable
B119: UE001YU001 | C119: humiSteam Basic 1,5 kg/h, 208V 1~, ON/OFF or proportional, disposable cylinder | D119: humiSteam Basic 1,5 kg/h, 208V 1~, ON/OFF o proporzionale, cilindro non apribile | E119: humiSteam Basic 1,5 kg/h, 208V 1~, ON/OFF or proportional, disposable cylinder | F119: humiSteam Basic 1,5 kg/h, 208V 1~, ON/OFF ou proportionnel, cylindre non ouvrant | G119: humiSteam Basic 1,5 kg/h, 208V 1~, EIN/AUS-Betrieb oder proportional Regelung, Einweg-Dampfzylinder | H119: humiSteam Basic 1,5 kg/h, 208V 1~, todo/nada o proporcional, cilindro no practicable
B120: UE001YUC01 | C120: humiSteam Basic 1,5 kg/h, 208V 1~, ON/OFF or proportional, cleanable cylinder | D120: humiSteam Basic 1,5 kg/h, 208V 1~, ON/OFF o proporzionale, cilindro apribile | E120: humiSteam Basic 1,5 kg/h, 208V 1~, ON/OFF or proportional, cleanable cylinder | F120: humiSteam Basic 1,5 kg/h, 208V 1~, ON/OFF ou proportionnel, cylindre ouvrant | G120: humiSteam Basic 1,5 kg/h, 208V 1~, EIN/AUS-Betrieb oder proportional Regelung, Reinigungsfähig-Dampfzylinder | H120: humiSteam Basic 1,5 kg/h, 208V 1~, todo/nada o proporcional, cilindro practicable
B121: UE003YD001 | C121: humiSteam Basic 3 kg/h, 230V 1~, ON/OFF or proportional, disposable cylinder | D121: humiSteam Basic 3 kg/h, 230V 1~, ON/OFF o proporzionale, cilindro non apribile | E121: humiSteam Basic 3 kg/h, 230V 1~, ON/OFF or proportional, disposable cylinder | F121: humiSteam Basic 3 kg/h, 230V 1~, ON/OFF ou proportionnel, cylindre non ouvrant | G121: humiSteam Basic 3 kg/h, 230V 1~, EIN/AUS-Betrieb oder proportional Regelung, Einweg-Dampfzylinder | H121: humiSteam Basic 3 kg/h, 230V 1~, todo/nada o proporcional, cilindro no practicable
B122: UE003YDC01 | C122: humiSteam Basic 3 kg/h, 230V 1~, ON/OFF or proportional, cleanable cylinder | D122: humiSteam Basic 3 kg/h, 230V 1~, ON/OFF o proporzionale, cilindro apribile | E122: humiSteam Basic 3 kg/h, 230V 1~, ON/OFF or proportional, cleanable cylinder | F122: humiSteam Basic 3 kg/h, 230V 1~, ON/OFF ou proportionnel, cylindre ouvrant | G122: humiSteam Basic 3 kg/h, 230V 1~, EIN/AUS-Betrieb oder proportional Regelung, Reinigungsfähig-Dampfzylinder | H122: humiSteam Basic 3 kg/h, 230V 1~, todo/nada o proporcional, cilindro practicable
B123: UE003YK001 | C123: humiSteam Basic 3 kg/h, 230V 3~, ON/OFF or proportional, disposable cylinder | D123: humiSteam Basic 3 kg/h, 230V 3~, ON/OFF o proporzionale, cilindro non apribile | E123: humiSteam Basic 3 kg/h, 230V 3~, ON/OFF or proportional, disposable cylinder | F123: humiSteam Basic 3 kg/h, 230V 3~, ON/OFF ou proportionnel, cylindre non ouvrant | G123: humiSteam Basic 3 kg/h, 230V 3~, EIN/AUS-Betrieb oder proportional Regelung, Einweg-Dampfzylinder | H123: humiSteam Basic 3 kg/h, 230V 3~, todo/nada o proporcional, cilindro no practicable
B124: UE003YKC01 | C124: humiSteam Basic 3 kg/h, 230V 3~, ON/OFF or proportional, cleanable cylinder | D124: humiSteam Basic 3 kg/h, 230V 3~, ON/OFF o proporzionale, cilindro apribile | E124: humiSteam Basic 3 kg/h, 230V 3~, ON/OFF or proportional, cleanable cylinder | F124: humiSteam Basic 3 kg/h, 230V 3~, ON/OFF ou proportionnel, cylindre ouvrant | G124: humiSteam Basic 3 kg/h, 230V 3~, EIN/AUS-Betrieb oder proportional Regelung, Reinigungsfähig-Dampfzylinder | H124: humiSteam Basic 3 kg/h, 230V 3~, todo/nada o proporcional, cilindro practicable
B125: UE003YL001 | C125: humiSteam Basic 3 kg/h, 400V 3~, ON/OFF or proportional, disposable cylinder | D125: humiSteam Basic 3 kg/h, 400V 3~, ON/OFF o proporzionale, cilindro non apribile | E125: humiSteam Basic 3 kg/h, 400V 3~, ON/OFF or proportional, disposable cylinder | F125: humiSteam Basic 3 kg/h, 400V 3~, ON/OFF ou proportionnel, cylindre non ouvrant | G125: humiSteam Basic 3 kg/h, 400V 3~, EIN/AUS-Betrieb oder proportional Regelung, Einweg-Dampfzylinder | H125: humiSteam Basic 3 kg/h, 400V 3~, todo/nada o proporcional, cilindro no practicable
B126: UE003YLC01 | C126: humiSteam Basic 3 kg/h, 400V 3~, ON/OFF or proportional, cleanable cylinder | D126: humiSteam Basic 3 kg/h, 400V 3~, ON/OFF o proporzionale, cilindro apribile | E126: humiSteam Basic 3 kg/h, 400V 3~, ON/OFF or proportional, cleanable cylinder | F126: humiSteam Basic 3 kg/h, 400V 3~, ON/OFF ou proportionnel, cylindre ouvrant | G126: humiSteam Basic 3 kg/h, 400V 3~, EIN/AUS-Betrieb oder proportional Regelung, Reinigungsfähig-Dampfzylinder | H126: humiSteam Basic 3 kg/h, 400V 3~, todo/nada o proporcional, cilindro practicable
B127: UE003YM001 | C127: humiSteam Basic 3 kg/h, 460V 3~, ON/OFF or proportional, disposable cylinder | D127: humiSteam Basic 3 kg/h, 460V 3~, ON/OFF o proporzionale, cilindro non apribile | E127: humiSteam Basic 3 kg/h, 460V 3~, ON/OFF or proportional, disposable cylinder | F127: humiSteam Basic 3 kg/h, 460V 3~, ON/OFF ou proportionnel, cylindre non ouvrant | G127: humiSteam Basic 3 kg/h, 460V 3~, EIN/AUS-Betrieb oder proportional Regelung, Einweg-Dampfzylinder | H127: humiSteam Basic 3 kg/h, 460V 3~, todo/nada o proporcional, cilindro no practicable
B128: UE003YMC01 | C128: humiSteam Basic 3 kg/h, 460V 3~, ON/OFF or proportional, cleanable cylinder | D128: humiSteam Basic 3 kg/h, 460V 3~, ON/OFF o proporzionale, cilindro apribile | E128: humiSteam Basic 3 kg/h, 460V 3~, ON/OFF or proportional, cleanable cylinder | F128: humiSteam Basic 3 kg/h, 460V 3~, ON/OFF ou proportionnel, cylindre ouvrant | G128: humiSteam Basic 3 kg/h, 460V 3~, EIN/AUS-Betrieb oder proportional Regelung, Reinigungsfähig-Dampfzylinder | H128: humiSteam Basic 3 kg/h, 460V 3~, todo/nada o proporcional, cilindro practicable
H129: humiSteam Basic 3 kg/h, 575V 3~, todo/nada o proporcional, cilindro no practicable
H130: humiSteam Basic 3 kg/h, 575V 3~, todo/nada o proporcional, cilindro practicable
B131: UE003YU001 | C131: humiSteam Basic 3 kg/h, 208V 1~, ON/OFF or proportional, disposable cylinder | D131: humiSteam Basic 3 kg/h, 208V 1~, ON/OFF o proporzionale, cilindro non apribile | E131: humiSteam Basic 3 kg/h, 208V 1~, ON/OFF or proportional, disposable cylinder | F131: humiSteam Basic 3 kg/h, 208V 1~, ON/OFF ou proportionnel, cylindre non ouvrant | G131: humiSteam Basic 3 kg/h, 208V 1~, EIN/AUS-Betrieb oder proportional Regelung, Einweg-Dampfzylinder | H131: humiSteam Basic 3 kg/h, 208V 1~, todo/nada o proporcional, cilindro no practicable
B132: UE003YUC01 | C132: humiSteam Basic 3 kg/h, 208V 1~, ON/OFF or proportional, cleanable cylinder | D132: humiSteam Basic 3 kg/h, 208V 1~, ON/OFF o proporzionale, cilindro apribile | E132: humiSteam Basic 3 kg/h, 208V 1~, ON/OFF or proportional, cleanable cylinder | F132: humiSteam Basic 3 kg/h, 208V 1~, ON/OFF ou proportionnel, cylindre ouvrant | G132: humiSteam Basic 3 kg/h, 208V 1~, EIN/AUS-Betrieb oder proportional Regelung, Reinigungsfähig-Dampfzylinder | H132: humiSteam Basic 3 kg/h, 208V 1~, todo/nada o proporcional, cilindro practicable
B133: UE003YW001 | C133: humiSteam Basic 3 kg/h, 208V 3~, ON/OFF or proportional, disposable cylinder | D133: humiSteam Basic 3 kg/h, 208V 3~, ON/OFF o proporzionale, cilindro non apribile | E133: humiSteam Basic 3 kg/h, 208V 3~, ON/OFF or proportional, disposable cylinder | F133: humiSteam Basic 3 kg/h, 208V 3~, ON/OFF ou proportionnel, cylindre non ouvrant | G133: humiSteam Basic 3 kg/h, 208V 3~, EIN/AUS-Betrieb oder proportional Regelung, Einweg-Dampfzylinder | H133: humiSteam Basic 3 kg/h, 208V 3~, todo/nada o proporcional, cilindro no practicable
B134: UE003YWC01 | C134: humiSteam Basic 3 kg/h, 208V 3~, ON/OFF or proportional, cleanable cylinder | D134: humiSteam Basic 3 kg/h, 208V 3~, ON/OFF o proporzionale, cilindro apribile | E134: humiSteam Basic 3 kg/h, 208V 3~, ON/OFF or proportional, cleanable cylinder | F134: humiSteam Basic 3 kg/h, 208V 3~, ON/OFF ou proportionnel, cylindre ouvrant | G134: humiSteam Basic 3 kg/h, 208V 3~, EIN/AUS-Betrieb oder proportional Regelung, Reinigungsfähig-Dampfzylinder | H134: humiSteam Basic 3 kg/h, 208V 3~, todo/nada o proporcional, cilindro practicable
B135: UE005YD001 | C135: humiSteam Basic 5 kg/h, 230V 1~, ON/OFF or proportional, disposable cylinder | D135: humiSteam Basic 5 kg/h, 230V 1~, ON/OFF o proporzionale, cilindro non apribile | E135: humiSteam Basic 5 kg/h, 230V 1~, ON/OFF or proportional, disposable cylinder | F135: humiSteam Basic 5 kg/h, 230V 1~, ON/OFF ou proportionnel, cylindre non ouvrant | G135: humiSteam Basic 5 kg/h, 230V 1~, EIN/AUS-Betrieb oder proportional Regelung, Einweg-Dampfzylinder | H135: humiSteam Basic 5 kg/h, 230V 1~, todo/nada o proporcional, cilindro no practicable
B136: UE005YDC01 | C136: humiSteam Basic 5 kg/h, 230V 1~, ON/OFF or proportional, cleanable cylinder | D136: humiSteam Basic 5 kg/h, 230V 1~, ON/OFF o proporzionale, cilindro apribile | E136: humiSteam Basic 5 kg/h, 230V 1~, ON/OFF or proportional, cleanable cylinder | F136: humiSteam Basic 5 kg/h, 230V 1~, ON/OFF ou proportionnel, cylindre ouvrant | G136: humiSteam Basic 5 kg/h, 230V 1~, EIN/AUS-Betrieb oder proportional Regelung, Reinigungsfähig-Dampfzylinder | H136: humiSteam Basic 5 kg/h, 230V 1~, todo/nada o proporcional, cilindro practicable
B137: UE005YK001 | C137: humiSteam Basic 5 kg/h, 230V 3~, ON/OFF or proportional, disposable cylinder | D137: humiSteam Basic 5 kg/h, 230V 3~, ON/OFF o proporzionale, cilindro non apribile | E137: humiSteam Basic 5 kg/h, 230V 3~, ON/OFF or proportional, disposable cylinder | F137: humiSteam Basic 5 kg/h, 230V 3~, ON/OFF ou proportionnel, cylindre non ouvrant | G137: humiSteam Basic 5 kg/h, 230V 3~, EIN/AUS-Betrieb oder proportional Regelung, Einweg-Dampfzylinder | H137: humiSteam Basic 5 kg/h, 230V 3~, todo/nada o proporcional, cilindro no practicable
B138: UE005YKC01 | C138: humiSteam Basic 5 kg/h, 230V 3~, ON/OFF or proportional, cleanable cylinder | D138: humiSteam Basic 5 kg/h, 230V 3~, ON/OFF o proporzionale, cilindro apribile | E138: humiSteam Basic 5 kg/h, 230V 3~, ON/OFF or proportional, cleanable cylinder | F138: humiSteam Basic 5 kg/h, 230V 3~, ON/OFF ou proportionnel, cylindre ouvrant | G138: humiSteam Basic 5 kg/h, 230V 3~, EIN/AUS-Betrieb oder proportional Regelung, Reinigungsfähig-Dampfzylinder | H138: humiSteam Basic 5 kg/h, 230V 3~, todo/nada o proporcional, cilindro practicable
B139: UE005YL001 | C139: humiSteam Basic 5 kg/h, 400V 3~, ON/OFF or proportional, disposable cylinder | D139: humiSteam Basic 5 kg/h, 400V 3~, ON/OFF o proporzionale, cilindro non apribile | E139: humiSteam Basic 5 kg/h, 400V 3~, ON/OFF or proportional, disposable cylinder | F139: humiSteam Basic 5 kg/h, 400V 3~, ON/OFF ou proportionnel, cylindre non ouvrant | G139: humiSteam Basic 5 kg/h, 400V 3~, EIN/AUS-Betrieb oder proportional Regelung, Einweg-Dampfzylinder | H139: humiSteam Basic 5 kg/h, 400V 3~, todo/nada o proporcional, cilindro no practicable
B140: UE005YLC01 | C140: humiSteam Basic 5 kg/h, 400V 3~, ON/OFF or proportional, cleanable cylinder | D140: humiSteam Basic 5 kg/h, 400V 3~, ON/OFF o proporzionale, cilindro apribile | E140: humiSteam Basic 5 kg/h, 400V 3~, ON/OFF or proportional, cleanable cylinder | F140: humiSteam Basic 5 kg/h, 400V 3~, ON/OFF ou proportionnel, cylindre ouvrant | G140: humiSteam Basic 5 kg/h, 400V 3~, EIN/AUS-Betrieb oder proportional Regelung, Reinigungsfähig-Dampfzylinder | H140: humiSteam Basic 5 kg/h, 400V 3~, todo/nada o proporcional, cilindro practicable
B141: UE005YM001 | C141: humiSteam Basic 5 kg/h, 460V 3~, ON/OFF or proportional, disposable cylinder | D141: humiSteam Basic 5 kg/h, 460V 3~, ON/OFF o proporzionale, cilindro non apribile | E141: humiSteam Basic 5 kg/h, 460V 3~, ON/OFF or proportional, disposable cylinder | F141: humiSteam Basic 5 kg/h, 460V 3~, ON/OFF ou proportionnel, cylindre non ouvrant | G141: humiSteam Basic 5 kg/h, 460V 3~, EIN/AUS-Betrieb oder proportional Regelung, Einweg-Dampfzylinder | H141: humiSteam Basic 5 kg/h, 460V 3~, todo/nada o proporcional, cilindro no practicable
B142: UE005YMC01 | C142: humiSteam Basic 5 kg/h, 460V 3~, ON/OFF or proportional, cleanable cylinder | D142: humiSteam Basic 5 kg/h, 460V 3~, ON/OFF o proporzionale, cilindro apribile | E142: humiSteam Basic 5 kg/h, 460V 3~, ON/OFF or proportional, cleanable cylinder | F142: humiSteam Basic 5 kg/h, 460V 3~, ON/OFF ou proportionnel, cylindre ouvrant | G142: humiSteam Basic 5 kg/h, 460V 3~, EIN/AUS-Betrieb oder proportional Regelung, Reinigungsfähig-Dampfzylinder | H142: humiSteam Basic 5 kg/h, 460V 3~, todo/nada o proporcional, cilindro practicable
B143: UE005YN001 | C143: humiSteam Basic 5 kg/h, 575V 3~, ON/OFF or proportional, disposable cylinder | D143: humiSteam Basic 5 kg/h, 575V 3~, ON/OFF o proporzionale, cilindro non apribile | E143: humiSteam Basic 5 kg/h, 575V 3~, ON/OFF or proportional, disposable cylinder | F143: humiSteam Basic 5 kg/h, 575V 3~, ON/OFF ou proportionnel, cylindre non ouvrant | G143: humiSteam Basic 5 kg/h, 575V 3~, EIN/AUS-Betrieb oder proportional Regelung, Einweg-Dampfzylinder | H143: humiSteam Basic 5 kg/h, 575V 3~, todo/nada o proporcional, cilindro no practicable
B144: UE005YNC01 | C144: humiSteam Basic 5 kg/h, 575V 3~, ON/OFF or proportional, cleanable cylinder | D144: humiSteam Basic 5 kg/h, 575V 3~, ON/OFF o proporzionale, cilindro apribile | E144: humiSteam Basic 5 kg/h, 575V 3~, ON/OFF or proportional, cleanable cylinder | F144: humiSteam Basic 5 kg/h, 575V 3~, ON/OFF ou proportionnel, cylindre ouvrant | G144: humiSteam Basic 5 kg/h, 575V 3~, EIN/AUS-Betrieb oder proportional Regelung, Reinigungsfähig-Dampfzylinder | H144: humiSteam Basic 5 kg/h, 575V 3~, todo/nada o proporcional, cilindro practicable
B145: UE005YU001 | C145: humiSteam Basic 5 kg/h, 208V 1~, ON/OFF or proportional, disposable cylinder | D145: humiSteam Basic 5 kg/h, 208V 1~, ON/OFF o proporzionale, cilindro non apribile | E145: humiSteam Basic 5 kg/h, 208V 1~, ON/OFF or proportional, disposable cylinder | F145: humiSteam Basic 5 kg/h, 208V 1~, ON/OFF ou proportionnel, cylindre non ouvrant | G145: humiSteam Basic 5 kg/h, 208V 1~, EIN/AUS-Betrieb oder proportional Regelung, Einweg-Dampfzylinder | H145: humiSteam Basic 5 kg/h, 208V 1~, todo/nada o proporcional, cilindro no practicable
B146: UE005YUC01 | C146: humiSteam Basic 5 kg/h, 208V 1~, ON/OFF or proportional, cleanable cylinder | D146: humiSteam Basic 5 kg/h, 208V 1~, ON/OFF o proporzionale, cilindro apribile | E146: humiSteam Basic 5 kg/h, 208V 1~, ON/OFF or proportional, cleanable cylinder | F146: humiSteam Basic 5 kg/h, 208V 1~, ON/OFF ou proportionnel, cylindre ouvrant | G146: humiSteam Basic 5 kg/h, 208V 1~, EIN/AUS-Betrieb oder proportional Regelung, Reinigungsfähig-Dampfzylinder | H146: humiSteam Basic 5 kg/h, 208V 1~, todo/nada o proporcional, cilindro practicable
B147: UE005YW001 | C147: humiSteam Basic 5 kg/h, 208V 3~, ON/OFF or proportional, disposable cylinder | D147: humiSteam Basic 5 kg/h, 208V 3~, ON/OFF o proporzionale, cilindro non apribile | E147: humiSteam Basic 5 kg/h, 208V 3~, ON/OFF or proportional, disposable cylinder | F147: humiSteam Basic 5 kg/h, 208V 3~, ON/OFF ou proportionnel, cylindre non ouvrant | G147: humiSteam Basic 5 kg/h, 208V 3~, EIN/AUS-Betrieb oder proportional Regelung, Einweg-Dampfzylinder | H147: humiSteam Basic 5 kg/h, 208V 3~, todo/nada o proporcional, cilindro no practicable
B148: UE005YWC01 | C148: humiSteam Basic 5 kg/h, 208V 3~, ON/OFF or proportional, cleanable cylinder | D148: humiSteam Basic 5 kg/h, 208V 3~, ON/OFF o proporzionale, cilindro apribile | E148: humiSteam Basic 5 kg/h, 208V 3~, ON/OFF or proportional, cleanable cylinder | F148: humiSteam Basic 5 kg/h, 208V 3~, ON/OFF ou proportionnel, cylindre ouvrant | G148: humiSteam Basic 5 kg/h, 208V 3~, EIN/AUS-Betrieb oder proportional Regelung, Reinigungsfähig-Dampfzylinder | H148: humiSteam Basic 5 kg/h, 208V 3~, todo/nada o proporcional, cilindro practicable
B149: UE008YK001 | C149: humiSteam Basic 8 kg/h, 230V 3~, ON/OFF or proportional, disposable cylinder | D149: humiSteam Basic 8 kg/h, 230V 3~, ON/OFF o proporzionale, cilindro non apribile | E149: humiSteam Basic 8 kg/h, 230V 3~, ON/OFF or proportional, disposable cylinder | F149: humiSteam Basic 8 kg/h, 230V 3~, ON/OFF ou proportionnel, cylindre non ouvrant | G149: humiSteam Basic 8 kg/h, 230V 3~, EIN/AUS-Betrieb oder proportional Regelung, Einweg-Dampfzylinder | H149: humiSteam Basic 8 kg/h, 230V 3~, todo/nada o proporcional, cilindro no practicable
B150: UE008YKC01 | C150: humiSteam Basic 8 kg/h, 230V 3~, ON/OFF or proportional, cleanable cylinder | D150: humiSteam Basic 8 kg/h, 230V 3~, ON/OFF o proporzionale, cilindro apribile | E150: humiSteam Basic 8 kg/h, 230V 3~, ON/OFF or proportional, cleanable cylinder | F150: humiSteam Basic 8 kg/h, 230V 3~, ON/OFF ou proportionnel, cylindre ouvrant | G150: humiSteam Basic 8 kg/h, 230V 3~, EIN/AUS-Betrieb oder proportional Regelung, Reinigungsfähig-Dampfzylinder | H150: humiSteam Basic 8 kg/h, 230V 3~, todo/nada o proporcional, cilindro practicable
B151: UE008YL001 | C151: humiSteam Basic 8 kg/h, 400V 3~, ON/OFF or proportional, disposable cylinder | D151: humiSteam Basic 8 kg/h, 400V 3~, ON/OFF o proporzionale, cilindro non apribile | E151: humiSteam Basic 8 kg/h, 400V 3~, ON/OFF or proportional, disposable cylinder | F151: humiSteam Basic 8 kg/h, 400V 3~, ON/OFF ou proportionnel, cylindre non ouvrant | G151: humiSteam Basic 8 kg/h, 400V 3~, EIN/AUS-Betrieb oder proportional Regelung, Einweg-Dampfzylinder | H151: humiSteam Basic 8 kg/h, 400V 3~, todo/nada o proporcional, cilindro no practicable
B152: UE008YLC01 | C152: humiSteam Basic 8 kg/h, 400V 3~, ON/OFF or proportional, cleanable cylinder | D152: humiSteam Basic 8 kg/h, 400V 3~, ON/OFF o proporzionale, cilindro apribile | E152: humiSteam Basic 8 kg/h, 400V 3~, ON/OFF or proportional, cleanable cylinder | F152: humiSteam Basic 8 kg/h, 400V 3~, ON/OFF ou proportionnel, cylindre ouvrant | G152: humiSteam Basic 8 kg/h, 400V 3~, EIN/AUS-Betrieb oder proportional Regelung, Reinigungsfähig-Dampfzylinder | H152: humiSteam Basic 8 kg/h, 400V 3~, todo/nada o proporcional, cilindro practicable
B153: UE008YM001 | C153: humiSteam Basic 8 kg/h, 460V 3~, ON/OFF or proportional, disposable cylinder | D153: humiSteam Basic 8 kg/h, 460V 3~, ON/OFF o proporzionale, cilindro non apribile | E153: humiSteam Basic 8 kg/h, 460V 3~, ON/OFF or proportional, disposable cylinder | F153: humiSteam Basic 8 kg/h, 460V 3~, ON/OFF ou proportionnel, cylindre non ouvrant | G153: humiSteam Basic 8 kg/h, 460V 3~, EIN/AUS-Betrieb oder proportional Regelung, Einweg-Dampfzylinder | H153: humiSteam Basic 8 kg/h, 460V 3~, todo/nada o proporcional, cilindro no practicable
B154: UE008YMC01 | C154: humiSteam Basic 8 kg/h, 460V 3~, ON/OFF or proportional, cleanable cylinder | D154: humiSteam Basic 8 kg/h, 460V 3~, ON/OFF o proporzionale, cilindro apribile | E154: humiSteam Basic 8 kg/h, 460V 3~, ON/OFF or proportional, cleanable cylinder | F154: humiSteam Basic 8 kg/h, 460V 3~, ON/OFF ou proportionnel, cylindre ouvrant | G154: humiSteam Basic 8 kg/h, 460V 3~, EIN/AUS-Betrieb oder proportional Regelung, Reinigungsfähig-Dampfzylinder | H154: humiSteam Basic 8 kg/h, 460V 3~, todo/nada o proporcional, cilindro practicable
B155: UE008YN001 | C155: humiSteam Basic 8 kg/h, 575V 3~, ON/OFF or proportional, disposable cylinder | D155: humiSteam Basic 8 kg/h, 575V 3~, ON/OFF o proporzionale, cilindro non apribile | E155: humiSteam Basic 8 kg/h, 575V 3~, ON/OFF or proportional, disposable cylinder | F155: humiSteam Basic 8 kg/h, 575V 3~, ON/OFF ou proportionnel, cylindre non ouvrant | G155: humiSteam Basic 8 kg/h, 575V 3~, EIN/AUS-Betrieb oder proportional Regelung, Einweg-Dampfzylinder | H155: humiSteam Basic 8 kg/h, 575V 3~, todo/nada o proporcional, cilindro no practicable
B156: UE008YNC01 | C156: humiSteam Basic 8 kg/h, 575V 3~, ON/OFF or proportional, cleanable cylinder | D156: humiSteam Basic 8 kg/h, 575V 3~, ON/OFF o proporzionale, cilindro apribile | E156: humiSteam Basic 8 kg/h, 575V 3~, ON/OFF or proportional, cleanable cylinder | F156: humiSteam Basic 8 kg/h, 575V 3~, ON/OFF ou proportionnel, cylindre ouvrant | G156: humiSteam Basic 8 kg/h, 575V 3~, EIN/AUS-Betrieb oder proportional Regelung, Reinigungsfähig-Dampfzylinder | H156: humiSteam Basic 8 kg/h, 575V 3~, todo/nada o proporcional, cilindro practicable
B157: UE008YW001 | C157: humiSteam Basic 8 kg/h, 208V 3~, ON/OFF or proportional, disposable cylinder | D157: humiSteam Basic 8 kg/h, 208V 3~, ON/OFF o proporzionale, cilindro non apribile | E157: humiSteam Basic 8 kg/h, 208V 3~, ON/OFF or proportional, disposable cylinder | F157: humiSteam Basic 8 kg/h, 208V 3~, ON/OFF ou proportionnel, cylindre non ouvrant | G157: humiSteam Basic 8 kg/h, 208V 3~, EIN/AUS-Betrieb oder proportional Regelung, Einweg-Dampfzylinder | H157: humiSteam Basic 8 kg/h, 208V 3~, todo/nada o proporcional, cilindro no practicable
B158: UE008YWC01 | C158: humiSteam Basic 8 kg/h, 208V 3~, ON/OFF or proportional, cleanable cylinder | D158: humiSteam Basic 8 kg/h, 208V 3~, ON/OFF o proporzionale, cilindro apribile | E158: humiSteam Basic 8 kg/h, 208V 3~, ON/OFF or proportional, cleanable cylinder | F158: humiSteam Basic 8 kg/h, 208V 3~, ON/OFF ou proportionnel, cylindre ouvrant | G158: humiSteam Basic 8 kg/h, 208V 3~, EIN/AUS-Betrieb oder proportional Regelung, Reinigungsfähig-Dampfzylinder | H158: humiSteam Basic 8 kg/h, 208V 3~, todo/nada o proporcional, cilindro practicable
B159: UE009YD001 | C159: humiSteam Basic 9 kg/h, 230V 1~, ON/OFF or proportional, disposable cylinder | D159: humiSteam Basic 9 kg/h, 230V 1~, ON/OFF o proporzionale, cilindro non apribile | E159: humiSteam Basic 9 kg/h, 230V 1~, ON/OFF or proportional, disposable cylinder | F159: humiSteam Basic 9 kg/h, 230V 1~, ON/OFF ou proportionnel, cylindre non ouvrant | G159: humiSteam Basic 9 kg/h, 230V 1~, EIN/AUS-Betrieb oder proportional Regelung, Einweg-Dampfzylinder | H159: humiSteam Basic 9 kg/h, 230V 1~, todo/nada o proporcional, cilindro no practicable
B160: UE009YDC01 | C160: humiSteam Basic 9 kg/h, 230V 1~, ON/OFF or proportional, cleanable cylinder | D160: humiSteam Basic 9 kg/h, 230V 1~, ON/OFF o proporzionale, cilindro apribile | E160: humiSteam Basic 9 kg/h, 230V 1~, ON/OFF or proportional, cleanable cylinder | F160: humiSteam Basic 9 kg/h, 230V 1~, ON/OFF ou proportionnel, cylindre ouvrant | G160: humiSteam Basic 9 kg/h, 230V 1~, EIN/AUS-Betrieb oder proportional Regelung, Reinigungsfähig-Dampfzylinder | H160: humiSteam Basic 9 kg/h, 230V 1~, todo/nada o proporcional, cilindro practicable
B161: UE009YU001 | C161: humiSteam Basic 9 kg/h, 208V 1~, ON/OFF or proportional, disposable cylinder | D161: humiSteam Basic 9 kg/h, 208V 1~, ON/OFF o proporzionale, cilindro non apribile | E161: humiSteam Basic 9 kg/h, 208V 1~, ON/OFF or proportional, disposable cylinder | F161: humiSteam Basic 9 kg/h, 208V 1~, ON/OFF ou proportionnel, cylindre non ouvrant | G161: humiSteam Basic 9 kg/h, 208V 1~, EIN/AUS-Betrieb oder proportional Regelung, Einweg-Dampfzylinder | H161: humiSteam Basic 9 kg/h, 208V 1~, todo/nada o proporcional, cilindro no practicable
B162: UE009YUC01 | C162: humiSteam Basic 9 kg/h, 208V 1~, ON/OFF or proportional, cleanable cylinder | D162: humiSteam Basic 9 kg/h, 208V 1~, ON/OFF o proporzionale, cilindro apribile | E162: humiSteam Basic 9 kg/h, 208V 1~, ON/OFF or proportional, cleanable cylinder | F162: humiSteam Basic 9 kg/h, 208V 1~, ON/OFF ou proportionnel, cylindre ouvrant | G162: humiSteam Basic 9 kg/h, 208V 1~, EIN/AUS-Betrieb oder proportional Regelung, Reinigungsfähig-Dampfzylinder | H162: humiSteam Basic 9 kg/h, 208V 1~, todo/nada o proporcional, cilindro practicable
B163: UE010YK001 | C163: humiSteam Basic 10 kg/h, 230V 3~, ON/OFF or proportional, disposable cylinder | D163: humiSteam Basic 10 kg/h, 230V 3~, ON/OFF o proporzionale, cilindro non apribile | E163: humiSteam Basic 10 kg/h, 230V 3~, ON/OFF or proportional, disposable cylinder | F163: humiSteam Basic 10 kg/h, 230V 3~, ON/OFF ou proportionnel, cylindre non ouvrant | G163: humiSteam Basic 10 kg/h, 230V 3~, EIN/AUS-Betrieb oder proportional Regelung, Einweg-Dampfzylinder | H163: humiSteam Basic 10 kg/h, 230V 3~, todo/nada o proporcional, cilindro no practicable
B164: UE010YKC01 | C164: humiSteam Basic 10 kg/h, 230V 3~, ON/OFF or proportional, cleanable cylinder | D164: humiSteam Basic 10 kg/h, 230V 3~, ON/OFF o proporzionale, cilindro apribile | E164: humiSteam Basic 10 kg/h, 230V 3~, ON/OFF or proportional, cleanable cylinder | F164: humiSteam Basic 10 kg/h, 230V 3~, ON/OFF ou proportionnel, cylindre ouvrant | G164: humiSteam Basic 10 kg/h, 230V 3~, EIN/AUS-Betrieb oder proportional Regelung, Reinigungsfähig-Dampfzylinder | H164: humiSteam Basic 10 kg/h, 230V 3~, todo/nada o proporcional, cilindro practicable
B165: UE010YL001 | C165: humiSteam Basic 10 kg/h, 400V 3~, ON/OFF or proportional, disposable cylinder | D165: humiSteam Basic 10 kg/h, 400V 3~, ON/OFF o proporzionale, cilindro non apribile | E165: humiSteam Basic 10 kg/h, 400V 3~, ON/OFF or proportional, disposable cylinder | F165: humiSteam Basic 10 kg/h, 400V 3~, ON/OFF ou proportionnel, cylindre non ouvrant | G165: humiSteam Basic 10 kg/h, 400V 3~, EIN/AUS-Betrieb oder proportional Regelung, Einweg-Dampfzylinder | H165: humiSteam Basic 10 kg/h, 400V 3~, todo/nada o proporcional, cilindro no practicable
B166: UE010YLC01 | C166: humiSteam Basic 10 kg/h, 400V 3~, ON/OFF or proportional, cleanable cylinder | D166: humiSteam Basic 10 kg/h, 400V 3~, ON/OFF o proporzionale, cilindro apribile | E166: humiSteam Basic 10 kg/h, 400V 3~, ON/OFF or proportional, cleanable cylinder | F166: humiSteam Basic 10 kg/h, 400V 3~, ON/OFF ou proportionnel, cylindre ouvrant | G166: humiSteam Basic 10 kg/h, 400V 3~, EIN/AUS-Betrieb oder proportional Regelung, Reinigungsfähig-Dampfzylinder | H166: humiSteam Basic 10 kg/h, 400V 3~, todo/nada o proporcional, cilindro practicable
B167: UE010YM001 | C167: humiSteam Basic 10 kg/h, 460V 3~, ON/OFF or proportional, disposable cylinder | D167: humiSteam Basic 10 kg/h, 460V 3~, ON/OFF o proporzionale, cilindro non apribile | E167: humiSteam Basic 10 kg/h, 460V 3~, ON/OFF or proportional, disposable cylinder | F167: humiSteam Basic 10 kg/h, 460V 3~, ON/OFF ou proportionnel, cylindre non ouvrant | G167: humiSteam Basic 10 kg/h, 460V 3~, EIN/AUS-Betrieb oder proportional Regelung, Einweg-Dampfzylinder | H167: humiSteam Basic 10 kg/h, 460V 3~, todo/nada o proporcional, cilindro no practicable
B168: UE010YMC01 | C168: humiSteam Basic 10 kg/h, 460V 3~, ON/OFF or proportional, cleanable cylinder | D168: humiSteam Basic 10 kg/h, 460V 3~, ON/OFF o proporzionale, cilindro apribile | E168: humiSteam Basic 10 kg/h, 460V 3~, ON/OFF or proportional, cleanable cylinder | F168: humiSteam Basic 10 kg/h, 460V 3~, ON/OFF ou proportionnel, cylindre ouvrant | G168: humiSteam Basic 10 kg/h, 460V 3~, EIN/AUS-Betrieb oder proportional Regelung, Reinigungsfähig-Dampfzylinder | H168: humiSteam Basic 10 kg/h, 460V 3~, todo/nada o proporcional, cilindro practicable
B169: UE010YN001 | C169: humiSteam Basic 10 kg/h, 575V 3~, ON/OFF or proportional, disposable cylinder | D169: humiSteam Basic 10 kg/h, 575V 3~, ON/OFF o proporzionale, cilindro non apribile | E169: humiSteam Basic 10 kg/h, 575V 3~, ON/OFF or proportional, disposable cylinder | F169: humiSteam Basic 10 kg/h, 575V 3~, ON/OFF ou proportionnel, cylindre non ouvrant | G169: humiSteam Basic 10 kg/h, 575V 3~, EIN/AUS-Betrieb oder proportional Regelung, Einweg-Dampfzylinder | H169: humiSteam Basic 10 kg/h, 575V 3~, todo/nada o proporcional, cilindro no practicable
B170: UE010YNC01 | C170: humiSteam Basic 10 kg/h, 575V 3~, ON/OFF or proportional, cleanable cylinder | D170: humiSteam Basic 10 kg/h, 575V 3~, ON/OFF o proporzionale, cilindro apribile | E170: humiSteam Basic 10 kg/h, 575V 3~, ON/OFF or proportional, cleanable cylinder | F170: humiSteam Basic 10 kg/h, 575V 3~, ON/OFF ou proportionnel, cylindre ouvrant | G170: humiSteam Basic 10 kg/h, 575V 3~, EIN/AUS-Betrieb oder proportional Regelung, Reinigungsfähig-Dampfzylinder | H170: humiSteam Basic 10 kg/h, 575V 3~, todo/nada o proporcional, cilindro practicable
B171: UE010YW001 | C171: humiSteam Basic 10 kg/h, 208V 3~, ON/OFF or proportional, disposable cylinder | D171: humiSteam Basic 10 kg/h, 208V 3~, ON/OFF o proporzionale, cilindro non apribile | E171: humiSteam Basic 10 kg/h, 208V 3~, ON/OFF or proportional, disposable cylinder | F171: humiSteam Basic 10 kg/h, 208V 3~, ON/OFF ou proportionnel, cylindre non ouvrant | G171: humiSteam Basic 10 kg/h, 208V 3~, EIN/AUS-Betrieb oder proportional Regelung, Einweg-Dampfzylinder | H171: humiSteam Basic 10 kg/h, 208V 3~, todo/nada o proporcional, cilindro no practicable
B172: UE010YWC01 | C172: humiSteam Basic 10 kg/h, 208V 3~, ON/OFF or proportional, cleanable cylinder | D172: humiSteam Basic 10 kg/h, 208V 3~, ON/OFF o proporzionale, cilindro apribile | E172: humiSteam Basic 10 kg/h, 208V 3~, ON/OFF or proportional, cleanable cylinder | F172: humiSteam Basic 10 kg/h, 208V 3~, ON/OFF ou proportionnel, cylindre ouvrant | G172: humiSteam Basic 10 kg/h, 208V 3~, EIN/AUS-Betrieb oder proportional Regelung, Reinigungsfähig-Dampfzylinder | H172: humiSteam Basic 10 kg/h, 208V 3~, todo/nada o proporcional, cilindro practicable
B173: UE015YK001 | C173: humiSteam Basic 15 kg/h, 230V 3~, ON/OFF or proportional, disposable cylinder | D173: humiSteam Basic 15 kg/h, 230V 3~, ON/OFF o proporzionale, cilindro non apribile | E173: humiSteam Basic 15 kg/h, 230V 3~, ON/OFF or proportional, disposable cylinder | F173: humiSteam Basic 15 kg/h, 230V 3~, ON/OFF ou proportionnel, cylindre non ouvrant | G173: humiSteam Basic 15 kg/h, 230V 3~, EIN/AUS-Betrieb oder proportional Regelung, Einweg-Dampfzylinder | H173: humiSteam Basic 15 kg/h, 230V 3~, todo/nada o proporcional, cilindro no practicable
B174: UE015YKC01 | C174: humiSteam Basic 15 kg/h, 230V 3~, ON/OFF or proportional, cleanable cylinder | D174: humiSteam Basic 15 kg/h, 230V 3~, ON/OFF o proporzionale, cilindro apribile | E174: humiSteam Basic 15 kg/h, 230V 3~, ON/OFF or proportional, cleanable cylinder | F174: humiSteam Basic 15 kg/h, 230V 3~, ON/OFF ou proportionnel, cylindre ouvrant | G174: humiSteam Basic 15 kg/h, 230V 3~, EIN/AUS-Betrieb oder proportional Regelung, Reinigungsfähig-Dampfzylinder | H174: humiSteam Basic 15 kg/h, 230V 3~, todo/nada o proporcional, cilindro practicable
B175: UE015YL001 | C175: humiSteam Basic 15 kg/h, 400V 3~, ON/OFF or proportional, disposable cylinder | D175: humiSteam Basic 15 kg/h, 400V 3~, ON/OFF o proporzionale, cilindro non apribile | E175: humiSteam Basic 15 kg/h, 400V 3~, ON/OFF or proportional, disposable cylinder | F175: humiSteam Basic 15 kg/h, 400V 3~, ON/OFF ou proportionnel, cylindre non ouvrant | G175: humiSteam Basic 15 kg/h, 400V 3~, EIN/AUS-Betrieb oder proportional Regelung, Einweg-Dampfzylinder | H175: humiSteam Basic 15 kg/h, 400V 3~, todo/nada o proporcional, cilindro no practicable
B176: UE015YLC01 | C176: humiSteam Basic 15 kg/h, 400V 3~, ON/OFF or proportional, cleanable cylinder | D176: humiSteam Basic 15 kg/h, 400V 3~, ON/OFF o proporzionale, cilindro apribile | E176: humiSteam Basic 15 kg/h, 400V 3~, ON/OFF or proportional, cleanable cylinder | F176: humiSteam Basic 15 kg/h, 400V 3~, ON/OFF ou proportionnel, cylindre ouvrant | G176: humiSteam Basic 15 kg/h, 400V 3~, EIN/AUS-Betrieb oder proportional Regelung, Reinigungsfähig-Dampfzylinder | H176: humiSteam Basic 15 kg/h, 400V 3~, todo/nada o proporcional, cilindro practicable
B177: UE015YM001 | C177: humiSteam Basic 15 kg/h, 460V 3~, ON/OFF or proportional, disposable cylinder | D177: humiSteam Basic 15 kg/h, 460V 3~, ON/OFF o proporzionale, cilindro non apribile | E177: humiSteam Basic 15 kg/h, 460V 3~, ON/OFF or proportional, disposable cylinder | F177: humiSteam Basic 15 kg/h, 460V 3~, ON/OFF ou proportionnel, cylindre non ouvrant | G177: humiSteam Basic 15 kg/h, 460V 3~, EIN/AUS-Betrieb oder proportional Regelung, Einweg-Dampfzylinder | H177: humiSteam Basic 15 kg/h, 460V 3~, todo/nada o proporcional, cilindro no practicable
B178: UE015YMC01 | C178: humiSteam Basic 15 kg/h, 460V 3~, ON/OFF or proportional, cleanable cylinder | D178: humiSteam Basic 15 kg/h, 460V 3~, ON/OFF o proporzionale, cilindro apribile | E178: humiSteam Basic 15 kg/h, 460V 3~, ON/OFF or proportional, cleanable cylinder | F178: humiSteam Basic 15 kg/h, 460V 3~, ON/OFF ou proportionnel, cylindre ouvrant | G178: humiSteam Basic 15 kg/h, 460V 3~, EIN/AUS-Betrieb oder proportional Regelung, Reinigungsfähig-Dampfzylinder | H178: humiSteam Basic 15 kg/h, 460V 3~, todo/nada o proporcional, cilindro practicable
B179: UE015YN001 | C179: humiSteam Basic 15 kg/h, 575V 3~, ON/OFF or proportional, disposable cylinder | D179: humiSteam Basic 15 kg/h, 575V 3~, ON/OFF o proporzionale, cilindro non apribile | E179: humiSteam Basic 15 kg/h, 575V 3~, ON/OFF or proportional, disposable cylinder | F179: humiSteam Basic 15 kg/h, 575V 3~, ON/OFF ou proportionnel, cylindre non ouvrant | G179: humiSteam Basic 15 kg/h, 575V 3~, EIN/AUS-Betrieb oder proportional Regelung, Einweg-Dampfzylinder | H179: humiSteam Basic 15 kg/h, 575V 3~, todo/nada o proporcional, cilindro no practicable
B180: UE015YNC01 | C180: humiSteam Basic 15 kg/h, 575V 3~, ON/OFF or proportional, cleanable cylinder | D180: humiSteam Basic 15 kg/h, 575V 3~, ON/OFF o proporzionale, cilindro apribile | E180: humiSteam Basic 15 kg/h, 575V 3~, ON/OFF or proportional, cleanable cylinder | F180: humiSteam Basic 15 kg/h, 575V 3~, ON/OFF ou proportionnel, cylindre ouvrant | G180: humiSteam Basic 15 kg/h, 575V 3~, EIN/AUS-Betrieb oder proportional Regelung, Reinigungsfähig-Dampfzylinder | H180: humiSteam Basic 15 kg/h, 575V 3~, todo/nada o proporcional, cilindro practicable
B181: UE015YW001 | C181: humiSteam Basic 15 kg/h, 208V 3~, ON/OFF or proportional, disposable cylinder | D181: humiSteam Basic 15 kg/h, 208V 3~, ON/OFF o proporzionale, cilindro non apribile | E181: humiSteam Basic 15 kg/h, 208V 3~, ON/OFF or proportional, disposable cylinder | F181: humiSteam Basic 15 kg/h, 208V 3~, ON/OFF ou proportionnel, cylindre non ouvrant | G181: humiSteam Basic 15 kg/h, 208V 3~, EIN/AUS-Betrieb oder proportional Regelung, Einweg-Dampfzylinder | H181: humiSteam Basic 15 kg/h, 208V 3~, todo/nada o proporcional, cilindro no practicable
B182: UE015YWC01 | C182: humiSteam Basic 15 kg/h, 208V 3~, ON/OFF or proportional, cleanable cylinder | D182: humiSteam Basic 15 kg/h, 208V 3~, ON/OFF o proporzionale, cilindro apribile | E182: humiSteam Basic 15 kg/h, 208V 3~, ON/OFF or proportional, cleanable cylinder | F182: humiSteam Basic 15 kg/h, 208V 3~, ON/OFF ou proportionnel, cylindre ouvrant | G182: humiSteam Basic 15 kg/h, 208V 3~, EIN/AUS-Betrieb oder proportional Regelung, Reinigungsfähig-Dampfzylinder | H182: humiSteam Basic 15 kg/h, 208V 3~, todo/nada o proporcional, cilindro practicable
B183: UE018YL001 | C183: humiSteam Basic 18 kg/h, 400V 3~, ON/OFF or proportional, disposable cylinder | D183: humiSteam Basic 18 kg/h, 400V 3~, ON/OFF o proporzionale, cilindro non apribile | E183: humiSteam Basic 18 kg/h, 400V 3~, ON/OFF or proportional, disposable cylinder | F183: humiSteam Basic 18 kg/h, 400V 3~, ON/OFF ou proportionnel, cylindre non ouvrant | G183: humiSteam Basic 18 kg/h, 400V 3~, EIN/AUS-Betrieb oder proportional Regelung, Einweg-Dampfzylinder | H183: humiSteam Basic 18 kg/h, 400V 3~, todo/nada o proporcional, cilindro no practicable
B184: UE018YLC01 | C184: humiSteam Basic 18 kg/h, 400V 3~, ON/OFF or proportional, cleanable cylinder | D184: humiSteam Basic 18 kg/h, 400V 3~, ON/OFF o proporzionale, cilindro apribile | E184: humiSteam Basic 18 kg/h, 400V 3~, ON/OFF or proportional, cleanable cylinder | F184: humiSteam Basic 18 kg/h, 400V 3~, ON/OFF ou proportionnel, cylindre ouvrant | G184: humiSteam Basic 18 kg/h, 400V 3~, EIN/AUS-Betrieb oder proportional Regelung, Reinigungsfähig-Dampfzylinder | H184: humiSteam Basic 18 kg/h, 400V 3~, todo/nada o proporcional, cilindro practicable
B185: UE018YM001 | C185: humiSteam Basic 18 kg/h, 460V 3~, ON/OFF or proportional, disposable cylinder | D185: humiSteam Basic 18 kg/h, 460V 3~, ON/OFF o proporzionale, cilindro non apribile | E185: humiSteam Basic 18 kg/h, 460V 3~, ON/OFF or proportional, disposable cylinder | F185: humiSteam Basic 18 kg/h, 460V 3~, ON/OFF ou proportionnel, cylindre non ouvrant | G185: humiSteam Basic 18 kg/h, 460V 3~, EIN/AUS-Betrieb oder proportional Regelung, Einweg-Dampfzylinder | H185: humiSteam Basic 18 kg/h, 460V 3~, todo/nada o proporcional, cilindro no practicable
B186: UE018YMC01 | C186: humiSteam Basic 18 kg/h, 460V 3~, ON/OFF or proportional, cleanable cylinder | D186: humiSteam Basic 18 kg/h, 460V 3~, ON/OFF o proporzionale, cilindro apribile | E186: humiSteam Basic 18 kg/h, 460V 3~, ON/OFF or proportional, cleanable cylinder | F186: humiSteam Basic 18 kg/h, 460V 3~, ON/OFF ou proportionnel, cylindre ouvrant | G186: humiSteam Basic 18 kg/h, 460V 3~, EIN/AUS-Betrieb oder proportional Regelung, Reinigungsfähig-Dampfzylinder | H186: humiSteam Basic 18 kg/h, 460V 3~, todo/nada o proporcional, cilindro practicable
B187: UE018YN001 | C187: humiSteam Basic 18 kg/h, 575V 3~, ON/OFF or proportional, disposable cylinder | D187: humiSteam Basic 18 kg/h, 575V 3~, ON/OFF o proporzionale, cilindro non apribile | E187: humiSteam Basic 18 kg/h, 575V 3~, ON/OFF or proportional, disposable cylinder | F187: humiSteam Basic 18 kg/h, 575V 3~, ON/OFF ou proportionnel, cylindre non ouvrant | G187: humiSteam Basic 18 kg/h, 575V 3~, EIN/AUS-Betrieb oder proportional Regelung, Einweg-Dampfzylinder | H187: humiSteam Basic 18 kg/h, 575V 3~, todo/nada o proporcional, cilindro no practicable
B188: UE018YNC01 | C188: humiSteam Basic 18 kg/h, 575V 3~, ON/OFF or proportional, cleanable cylinder | D188: humiSteam Basic 18 kg/h, 575V 3~, ON/OFF o proporzionale, cilindro apribile | E188: humiSteam Basic 18 kg/h, 575V 3~, ON/OFF or proportional, cleanable cylinder | F188: humiSteam Basic 18 kg/h, 575V 3~, ON/OFF ou proportionnel, cylindre ouvrant | G188: humiSteam Basic 18 kg/h, 575V 3~, EIN/AUS-Betrieb oder proportional Regelung, Reinigungsfähig-Dampfzylinder | H188: humiSteam Basic 18 kg/h, 575V 3~, todo/nada o proporcional, cilindro practicable
B189: UE025YK001 | C189: humiSteam Basic 25 kg/h, 230V 3~, ON/OFF or proportional, disposable cylinder | D189: humiSteam Basic 25 kg/h, 230V 3~, ON/OFF o proporzionale, cilindro non apribile | E189: humiSteam Basic 25 kg/h, 230V 3~, ON/OFF or proportional, disposable cylinder | F189: humiSteam Basic 25 kg/h, 230V 3~, ON/OFF ou proportionnel, cylindre non ouvrant | G189: humiSteam Basic 25 kg/h, 230V 3~, EIN/AUS-Betrieb oder proportional Regelung, Einweg-Dampfzylinder | H189: humiSteam Basic 25 kg/h, 230V 3~, todo/nada o proporcional, cilindro no practicable
B190: UE025YKC01 | C190: humiSteam Basic 25 kg/h, 230V 3~, ON/OFF or proportional, cleanable cylinder | D190: humiSteam Basic 25 kg/h, 230V 3~, ON/OFF o proporzionale, cilindro apribile | E190: humiSteam Basic 25 kg/h, 230V 3~, ON/OFF or proportional, cleanable cylinder | F190: humiSteam Basic 25 kg/h, 230V 3~, ON/OFF ou proportionnel, cylindre ouvrant | G190: humiSteam Basic 25 kg/h, 230V 3~, EIN/AUS-Betrieb oder proportional Regelung, Reinigungsfähig-Dampfzylinder | H190: humiSteam Basic 25 kg/h, 230V 3~, todo/nada o proporcional, cilindro practicable
B191: UE025YL001 | C191: humiSteam Basic 25 kg/h, 400V 3~, ON/OFF or proportional, disposable cylinder | D191: humiSteam Basic 25 kg/h, 400V 3~, ON/OFF o proporzionale, cilindro non apribile | E191: humiSteam Basic 25 kg/h, 400V 3~, ON/OFF or proportional, disposable cylinder | F191: humiSteam Basic 25 kg/h, 400V 3~, ON/OFF ou proportionnel, cylindre non ouvrant | G191: humiSteam Basic 25 kg/h, 400V 3~, EIN/AUS-Betrieb oder proportional Regelung, Einweg-Dampfzylinder | H191: humiSteam Basic 25 kg/h, 400V 3~, todo/nada o proporcional, cilindro no practicable
B192: UE025YLC01 | C192: humiSteam Basic 25 kg/h, 400V 3~, ON/OFF or proportional, cleanable cylinder | D192: humiSteam Basic 25 kg/h, 400V 3~, ON/OFF o proporzionale, cilindro apribile | E192: humiSteam Basic 25 kg/h, 400V 3~, ON/OFF or proportional, cleanable cylinder | F192: humiSteam Basic 25 kg/h, 400V 3~, ON/OFF ou proportionnel, cylindre ouvrant | G192: humiSteam Basic 25 kg/h, 400V 3~, EIN/AUS-Betrieb oder proportional Regelung, Reinigungsfähig-Dampfzylinder | H192: humiSteam Basic 25 kg/h, 400V 3~, todo/nada o proporcional, cilindro practicable
B193: UE025YM001 | C193: humiSteam Basic 25 kg/h, 460V 3~, ON/OFF or proportional, disposable cylinder | D193: humiSteam Basic 25 kg/h, 460V 3~, ON/OFF o proporzionale, cilindro non apribile | E193: humiSteam Basic 25 kg/h, 460V 3~, ON/OFF or proportional, disposable cylinder | F193: humiSteam Basic 25 kg/h, 460V 3~, ON/OFF ou proportionnel, cylindre non ouvrant | G193: humiSteam Basic 25 kg/h, 460V 3~, EIN/AUS-Betrieb oder proportional Regelung, Einweg-Dampfzylinder | H193: humiSteam Basic 25 kg/h, 460V 3~, todo/nada o proporcional, cilindro no practicable
B194: UE025YMC01 | C194: humiSteam Basic 25 kg/h, 460V 3~, ON/OFF or proportional, cleanable cylinder | D194: humiSteam Basic 25 kg/h, 460V 3~, ON/OFF o proporzionale, cilindro apribile | E194: humiSteam Basic 25 kg/h, 460V 3~, ON/OFF or proportional, cleanable cylinder | F194: humiSteam Basic 25 kg/h, 460V 3~, ON/OFF ou proportionnel, cylindre ouvrant | G194: humiSteam Basic 25 kg/h, 460V 3~, EIN/AUS-Betrieb oder proportional Regelung, Reinigungsfähig-Dampfzylinder | H194: humiSteam Basic 25 kg/h, 460V 3~, todo/nada o proporcional, cilindro practicable
B195: UE025YN001 | C195: humiSteam Basic 25 kg/h, 575V 3~, ON/OFF or proportional, disposable cylinder | D195: humiSteam Basic 25 kg/h, 575V 3~, ON/OFF o proporzionale, cilindro non apribile | E195: humiSteam Basic 25 kg/h, 575V 3~, ON/OFF or proportional, disposable cylinder | F195: humiSteam Basic 25 kg/h, 575V 3~, ON/OFF ou proportionnel, cylindre non ouvrant | G195: humiSteam Basic 25 kg/h, 575V 3~, EIN/AUS-Betrieb oder proportional Regelung, Einweg-Dampfzylinder | H195: humiSteam Basic 25 kg/h, 575V 3~, todo/nada o proporcional, cilindro no practicable
B196: UE025YNC01 | C196: humiSteam Basic 25 kg/h, 575V 3~, ON/OFF or proportional, cleanable cylinder | D196: humiSteam Basic 25 kg/h, 575V 3~, ON/OFF o proporzionale, cilindro apribile | E196: humiSteam Basic 25 kg/h, 575V 3~, ON/OFF or proportional, cleanable cylinder | F196: humiSteam Basic 25 kg/h, 575V 3~, ON/OFF ou proportionnel, cylindre ouvrant | G196: humiSteam Basic 25 kg/h, 575V 3~, EIN/AUS-Betrieb oder proportional Regelung, Reinigungsfähig-Dampfzylinder | H196: humiSteam Basic 25 kg/h, 575V 3~, todo/nada o proporcional, cilindro practicable
B197: UE025YW001 | C197: humiSteam Basic 25 kg/h, 208V 3~, ON/OFF or proportional, disposable cylinder | D197: humiSteam Basic 25 kg/h, 208V 3~, ON/OFF o proporzionale, cilindro non apribile | E197: humiSteam Basic 25 kg/h, 208V 3~, ON/OFF or proportional, disposable cylinder | F197: humiSteam Basic 25 kg/h, 208V 3~, ON/OFF ou proportionnel, cylindre non ouvrant | G197: humiSteam Basic 25 kg/h, 208V 3~, EIN/AUS-Betrieb oder proportional Regelung, Einweg-Dampfzylinder | H197: humiSteam Basic 25 kg/h, 208V 3~, todo/nada o proporcional, cilindro no practicable
B198: UE025YWC01 | C198: humiSteam Basic 25 kg/h, 208V 3~, ON/OFF or proportional, cleanable cylinder | D198: humiSteam Basic 25 kg/h, 208V 3~, ON/OFF o proporzionale, cilindro apribile | E198: humiSteam Basic 25 kg/h, 208V 3~, ON/OFF or proportional, cleanable cylinder | F198: humiSteam Basic 25 kg/h, 208V 3~, ON/OFF ou proportionnel, cylindre ouvrant | G198: humiSteam Basic 25 kg/h, 208V 3~, EIN/AUS-Betrieb oder proportional Regelung, Reinigungsfähig-Dampfzylinder | H198: humiSteam Basic 25 kg/h, 208V 3~, todo/nada o proporcional, cilindro practicable
B199: UE035YK001 | C199: humiSteam Basic 35 kg/h, 230V 3~, ON/OFF or proportional, disposable cylinder | D199: humiSteam Basic 35 kg/h, 230V 3~, ON/OFF o proporzionale, cilindro non apribile | E199: humiSteam Basic 35 kg/h, 230V 3~, ON/OFF or proportional, disposable cylinder | F199: humiSteam Basic 35 kg/h, 230V 3~, ON/OFF ou proportionnel, cylindre non ouvrant | G199: humiSteam Basic 35 kg/h, 230V 3~, EIN/AUS-Betrieb oder proportional Regelung, Einweg-Dampfzylinder | H199: humiSteam Basic 35 kg/h, 230V 3~, todo/nada o proporcional, cilindro no practicable
B200: UE035YKC01 | C200: humiSteam Basic 35 kg/h, 230V 3~, ON/OFF or proportional, cleanable cylinder | D200: humiSteam Basic 35 kg/h, 230V 3~, ON/OFF o proporzionale, cilindro apribile | E200: humiSteam Basic 35 kg/h, 230V 3~, ON/OFF or proportional, cleanable cylinder | F200: humiSteam Basic 35 kg/h, 230V 3~, ON/OFF ou proportionnel, cylindre ouvrant | G200: humiSteam Basic 35 kg/h, 230V 3~, EIN/AUS-Betrieb oder proportional Regelung, Reinigungsfähig-Dampfzylinder | H200: humiSteam Basic 35 kg/h, 230V 3~, todo/nada o proporcional, cilindro practicable
... 382 more rows

Sheet GRAFICI (hidden)
A1: Coeff. Psat | C1: Altri coefficienti
A2: -5674.359 | B2: -5800.2206 | C2: c.s. aria J/(°C*g)= | E2: 1.006 | I2: Errore nella prima iterazione | M2: =DESIGN!W59 -> 0.00E+00
A3: 6.3925247 | B3: 1.3914993 | C3: c.s. vapo J/(°C*g)= | E3: 1.805 | I3: Valore di k della prima iterazione | M3: 3
A4: -0.009677843 | B4: -0.048640239 | C4: c latente J/g= | E4: 2501
A5: 6.2215701e-07 | B5: 4.1764768e-05 | C5: R Joule/Kmole*°K= | E5: 8313.6
A6: 2.0747825e-09 | B6: -1.4452093e-08 | C6: P atm Pa = | E6: =101325*(1-$B$12*0.0000225577)^5.2559 -> 101325 | I6: Numero massimo di umidificatori ammissibili | M6: =DESIGN!E86 -> 1 | N6: Valore massimo 99
A7: -9.484024e-13 | B7: 0 | C7: f s | E7: 1.004 | I7: Percentuale da cui considerare la portata | M7: 50%
A8: 4.1635019 | B8: 6.5459673 | C8: 0 °C = °K | E8: 273.15
A10: t start °C | B10: -5 | I10: Visualezzare possibilità raccordi (Si o No?) | M10: Si
A11: t step °C | B11: 2 | I11: Limite altezza condotta mm | M11: 200
A12: H slm m | B12: =DESIGN!E33 -> 0
N18: h | O18: h | P18: h | Q18: h | R18: h | S18: h | T18: h | U18: h | V18: h | W18: h | X18: h | Y18: h | Z18: h | AA18: h | AB18: h | AC18: h | AD18: h | AE18: h | AF18: h | AG18: h | AH18: h | AI18: h | AJ18: h | AK18: h | AL18: h | AM18: h | AN18: h | AO18: h | AP18: h | AQ18: h | AR18: h
N19: =$E$2*N20+N21*($E$4+$E$3*N20)/1000 -> 1.2 | O19: =$E$2*O20+O21*($E$4+$E$3*O20)/1000 -> 4.3 | P19: 7.7 | Q19: 11.2 | R19: 14.8 | S19: 18.6 | T19: 22.7 | U19: 27.1 | V19: 31.7 | W19: 36.7 | X19: 42.1 | Y19: 47.9 | Z19: 54.2 | AA19: 61.0 | AB19: 68.4 | AC19: 76.5 | AD19: 85.3 | AE19: 94.9 | AF19: 105.3 | AG19: 116.8 | AH19: 129.4 | AI19: 143.2 | AJ19: 158.4 | AK19: 175.1 | AL19: 193.6 | AM19: 214.0 | AN19: 236.5 | AO19: 261.5 | AP19: 289.3 | AQ19: 320.2 | AR19: 354.6
D20: x da UR | N20: =$B$10 -> -5 | O20: =N20+$B$11 -> -3 | P20: =O20+$B$11 -> -1 | Q20: 1 | R20: 3 | S20: 5 | T20: 7 | U20: 9 | V20: 11 | W20: 13 | X20: 15 | Y20: 17 | Z20: 19 | AA20: 21 | AB20: 23 | AC20: 25 | AD20: 27 | AE20: 29 | AF20: 31 | AG20: 33 | AH20: 35 | AI20: 37 | AJ20: 39 | AK20: 41 | AL20: 43 | AM20: 45 | AN20: 47 | AO20: 49 | AP20: 51 | AQ20: 53 | AR20: 55
A21: t °C | B21: T °K | C21: Pvs Pa | D21: 10% | E21: 20% | F21: 30% | G21: 40% | H21: 50% | I21: 60% | J21: 70% | K21: 80% | L21: 90% | M21: 100% | N21: =M22 -> 2.49 | O21: =M23 -> 2.95 | P21: =M24 -> 3.49 | Q21: =M25 -> 4.08 | R21: =M26 -> 4.71 | S21: =M27 -> 5.42 | T21: =M28 -> 6.24 | U21: =M29 -> 7.16 | V21: =M30 -> 8.20 | W21: =M31 -> 9.37 | X21: =M32 -> 10.69 | Y21: =M33 -> 12.18 | Z21: =M34 -> 13.85 | AA21: =M35 -> 15.72 | AB21: =M36 -> 17.82 | AC21: =M37 -> 20.17 | AD21: =M38 -> 22.79 | AE21: =M39 -> 25.72 | AF21: =M40 -> 29.00 | AG21: =M41 -> 32.66 | AH21: =M42 -> 36.73 | AI21: =M43 -> 41.28 | AJ21: =M44 -> 46.35 | AK21: =M45 -> 52.00 | AL21: =M46 -> 58.30 | AM21: =M47 -> 65.33 | AN21: =M48 -> 73.18 | AO21: =M49 -> 81.96 | AP21: =M50 -> 91.77 | AQ21: =M51 -> 102.76 | AR21: =M52 -> 115.10
A22: =$B$10 -> -5 | B22: =A22+$E$8 -> 268.15 | C22: =IF(A22<0,EXP($A$2/B22+$A$3+$A$4*B22+$A$5*(B22^2)+$A$6*(B22^3)+$A$7*(B22^4)+$A$8*LN(B22)),EXP($B$2/B22+$B$3+$B$4*B22+$B$5*(B22^2)+$B$6*(B22^3)+$B$7*(B22^4)+$B$8*LN(B22))) -> 402.0292559 | D22: =0.62198*1000*$E$7*D$21*$C22/($E$6-$E$7*D$21*$C22) -> 0.25 | E22: 0.50 | F22: 0.74 | G22: 0.99 | H22: 1.24 | I22: 1.49 | J22: 1.74 | K22: 1.99 | L22: 2.24 | M22: 2.49 | N22: =1000*(N$19-$E$2*$A22)/($E$4+$E$3*$A22) -> 2.49 | O22: 3.76 | P22: 5.11 | Q22: 6.52 | R22: 7.96 | S22: 9.50 | T22: 11.14 | U22: 12.88 | V22: 14.75 | W22: 16.76 | X22: 18.92 | Y22: 21.25 | Z22: 23.78 | AA22: 26.51 | AB22: 29.48 | AC22: 32.71 | AD22: =1000*(AD$19-$E$2*$A22)/($E$4+$E$3*$A22) -> 36.24 | AE22: 40.08 | AF22: 44.29 | AG22: 48.90 | AH22: 53.94 | AI22: 59.49 | AJ22: 65.59 | AK22: 72.30 | AL22: 79.71 | AM22: 87.88 | AN22: 96.93 | AO22: 106.96 | AP22: 118.10 | AQ22: 130.50 | AR22: 144.33
A23: =A22+$B$11 -> -3 | B23: 270.15 | C23: 476.3692508 | D23: 0.29 | E23: 0.59 | F23: 0.88 | G23: 1.18 | H23: 1.47 | I23: 1.77 | J23: 2.06 | K23: 2.36 | L23: 2.65 | M23: 2.95 | N23: 1.68 | O23: 2.95 | P23: 4.30 | Q23: 5.70 | R23: 7.15 | S23: 8.68 | T23: 10.31 | U23: 12.06 | V23: 13.92 | W23: 15.93 | X23: 18.09 | Y23: 20.42 | Z23: 22.94 | AA23: 25.67 | AB23: 28.63 | AC23: 31.86 | AD23: 35.38 | AE23: 39.22 | AF23: 43.42 | AG23: 48.02 | AH23: 53.06 | AI23: 58.60 | AJ23: 64.69 | AK23: 71.39 | AL23: 78.78 | AM23: 86.95 | AN23: 95.99 | AO23: 106.00 | AP23: 117.12 | AQ23: 129.50 | AR23: 143.31
A24: -1 | B24: 272.15 | C24: 563.0373902 | D24: 0.35 | E24: 0.69 | F24: 1.04 | G24: 1.39 | H24: 1.74 | I24: 2.09 | J24: 2.44 | K24: 2.79 | L24: 3.14 | M24: 3.49 | N24: 0.87 | O24: 2.14 | P24: 3.49 | Q24: 4.89 | R24: 6.33 | S24: 7.86 | T24: 9.49 | U24: 11.23 | V24: 13.10 | W24: 15.10 | X24: 17.26 | Y24: 19.58 | Z24: 22.10 | AA24: 24.82 | AB24: 27.79 | AC24: 31.01 | AD24: 34.52 | AE24: 38.36 | AF24: 42.55 | AG24: 47.14 | AH24: 52.18 | AI24: 57.71 | AJ24: 63.79 | AK24: 70.48 | AL24: 77.87 | AM24: 86.02 | AN24: 95.04 | AO24: 105.04 | AP24: 116.15 | AQ24: 128.51 | AR24: 142.30
A25: 1 | B25: 274.15 | C25: 657.071718 | D25: 0.41 | E25: 0.81 | F25: 1.22 | G25: 1.62 | H25: 2.03 | I25: 2.44 | J25: 2.85 | K25: 3.26 | L25: 3.67 | M25: 4.08 | N25: 0.07 | O25: 1.33 | P25: 2.68 | Q25: 4.08 | R25: 5.52 | S25: 7.05 | T25: 8.68 | U25: 10.41 | V25: 12.28 | W25: 14.27 | X25: 16.43 | Y25: 18.75 | Z25: 21.26 | AA25: 23.98 | AB25: 26.94 | AC25: 30.16 | AD25: 33.67 | AE25: 37.50 | AF25: 41.69 | AG25: 46.27 | AH25: 51.30 | AI25: 56.82 | AJ25: 62.89 | AK25: 69.58 | AL25: 76.95 | AM25: 85.09 | AN25: 94.10 | AO25: 104.09 | AP25: 115.18 | AQ25: 127.52 | AR25: 141.29
A26: 3 | B26: 276.15 | C26: 758.0312052 | D26: 0.47 | E26: 0.94 | F26: 1.40 | G26: 1.87 | H26: 2.34 | I26: 2.82 | J26: 3.29 | K26: 3.76 | L26: 4.23 | M26: 4.71 | N26: -0.74 | O26: 0.53 | P26: 1.87 | Q26: 3.27 | R26: 4.71 | S26: 6.23 | T26: 7.86 | U26: 9.60 | V26: 11.46 | W26: 13.45 | X26: 15.60 | Y26: 17.92 | Z26: 20.43 | AA26: 23.15 | AB26: 26.10 | AC26: 29.31 | AD26: 32.82 | AE26: 36.64 | AF26: 40.82 | AG26: 45.40 | AH26: 50.42 | AI26: 55.94 | AJ26: 62.00 | AK26: 68.67 | AL26: 76.04 | AM26: 84.17 | AN26: 93.16 | AO26: 103.13 | AP26: 114.21 | AQ26: 126.53 | AR26: 140.28
A27: 5 | B27: 278.15 | C27: 872.4866543 | D27: 0.54 | E27: 1.08 | F27: 1.62 | G27: 2.16 | H27: 2.70 | I27: 3.24 | J27: 3.79 | K27: 4.33 | L27: 4.88 | M27: 5.42 | N27: -1.54 | O27: -0.27 | P27: 1.07 | Q27: 2.46 | R27: 3.90 | S27: 5.42 | T27: 7.05 | U27: 8.78 | V27: 10.64 | W27: 12.63 | X27: 14.78 | Y27: 17.09 | Z27: 19.60 | AA27: 22.31 | AB27: 25.26 | AC27: 28.47 | AD27: 31.97 | AE27: 35.79 | AF27: 39.96 | AG27: 44.54 | AH27: 49.55 | AI27: 55.05 | AJ27: 61.11 | AK27: 67.77 | AL27: 75.12 | AM27: 83.24 | AN27: 92.23 | AO27: 102.18 | AP27: 113.24 | AQ27: 125.55 | AR27: 139.28
A28: 7 | B28: 280.15 | C28: 1001.959647 | D28: 0.62 | E28: 1.24 | F28: 1.86 | G28: 2.48 | H28: 3.10 | I28: 3.73 | J28: 4.35 | K28: 4.98 | L28: 5.61 | M28: 6.24 | N28: -2.34 | O28: -1.07 | P28: 0.27 | Q28: 1.66 | R28: 3.09 | S28: 4.62 | T28: 6.24 | U28: 7.97 | V28: 9.82 | W28: 11.81 | X28: 13.95 | Y28: 16.27 | Z28: 18.77 | AA28: 21.48 | AB28: 24.43 | AC28: 27.63 | AD28: 31.12 | AE28: 34.94 | AF28: 39.11 | AG28: 43.67 | AH28: 48.68 | AI28: 54.17 | AJ28: 60.22 | AK28: 66.88 | AL28: 74.22 | AM28: 82.32 | AN28: 91.30 | AO28: 101.24 | AP28: 112.28 | AQ28: 124.57 | AR28: 138.28
A29: 9 | B29: 282.15 | C29: 1148.108955 | D29: 0.71 | E29: 1.42 | F29: 2.13 | G29: 2.84 | H29: 3.56 | I29: 4.27 | J29: 4.99 | K29: 5.71 | L29: 6.43 | M29: 7.16 | N29: -3.13 | O29: -1.87 | P29: -0.53 | Q29: 0.86 | R29: 2.29 | S29: 3.81 | T29: 5.43 | U29: 7.16 | V29: 9.01 | W29: 11.00 | X29: 13.14 | Y29: 15.44 | Z29: 17.94 | AA29: 20.65 | AB29: 23.59 | AC29: 26.79 | AD29: 30.28 | AE29: 34.09 | AF29: 38.25 | AG29: 42.81 | AH29: 47.81 | AI29: 53.30 | AJ29: 59.33 | AK29: 65.98 | AL29: 73.31 | AM29: 81.41 | AN29: 90.36 | AO29: 100.29 | AP29: 111.32 | AQ29: 123.59 | AR29: 137.28
A30: 11 | B30: 284.15 | C30: 1312.739376 | D30: 0.81 | E30: 1.62 | F30: 2.44 | G30: 3.25 | H30: 4.07 | I30: 4.89 | J30: 5.72 | K30: 6.54 | L30: 7.37 | M30: 8.20 | N30: -3.93 | O30: -2.67 | P30: -1.33 | Q30: 0.06 | R30: 1.49 | S30: 3.01 | T30: 4.62 | U30: 6.35 | V30: 8.20 | W30: 10.18 | X30: 12.32 | Y30: 14.62 | Z30: 17.12 | AA30: 19.82 | AB30: 22.76 | AC30: 25.95 | AD30: 29.44 | AE30: 33.24 | AF30: 37.40 | AG30: 41.95 | AH30: 46.94 | AI30: 52.42 | AJ30: 58.45 | AK30: 65.09 | AL30: 72.41 | AM30: 80.49 | AN30: 89.44 | AO30: 99.35 | AP30: 110.36 | AQ30: 122.62 | AR30: 136.29
A31: 13 | B31: 286.15 | C31: 1497.810843 | D31: 0.92 | E31: 1.85 | F31: 2.78 | G31: 3.71 | H31: 4.65 | I31: 5.59 | J31: 6.53 | K31: 7.47 | L31: 8.42 | M31: 9.37 | N31: -4.72 | O31: -3.46 | P31: -2.12 | Q31: -0.74 | R31: 0.69 | S31: 2.21 | T31: 3.82 | U31: 5.54 | V31: 7.39 | W31: 9.37 | X31: 11.50 | Y31: 13.81 | Z31: 16.30 | AA31: 19.00 | AB31: 21.93 | AC31: 25.12 | AD31: 28.60 | AE31: 32.40 | AF31: 36.55 | AG31: 41.09 | AH31: 46.08 | AI31: 51.55 | AJ31: 57.57 | AK31: 64.20 | AL31: 71.51 | AM31: 79.58 | AN31: 88.51 | AO31: 98.41 | AP31: 109.41 | AQ31: 121.64 | AR31: 135.29
A32: 15 | B32: 288.15 | C32: 1705.447794 | D32: 1.05 | E32: 2.11 | F32: 3.17 | G32: 4.23 | H32: 5.30 | I32: 6.37 | J32: 7.45 | K32: 8.52 | L32: 9.61 | M32: 10.69 | N32: -5.51 | O32: -4.25 | P32: -2.92 | Q32: -1.54 | R32: -0.11 | S32: 1.41 | T32: 3.02 | U32: 4.74 | V32: 6.58 | W32: 8.56 | X32: 10.69 | Y32: 12.99 | Z32: 15.48 | AA32: 18.17 | AB32: 21.10 | AC32: 24.29 | AD32: 27.76 | AE32: 31.55 | AF32: 35.70 | AG32: 40.24 | AH32: 45.22 | AI32: 50.68 | AJ32: 56.69 | AK32: 63.31 | AL32: 70.61 | AM32: 78.67 | AN32: 87.59 | AO32: 97.48 | AP32: 108.45 | AQ32: 120.67 | AR32: 134.31
A33: 17 | B33: 290.15 | C33: 1937.948791 | D33: 1.20 | E33: 2.40 | F33: 3.60 | G33: 4.81 | H33: 6.03 | I33: 7.25 | J33: 8.47 | K33: 9.70 | L33: 10.94 | M33: 12.18 | N33: -6.29 | O33: -5.04 | P33: -3.71 | Q33: -2.33 | R33: -0.90 | S33: 0.61 | T33: 2.22 | U33: 3.94 | V33: 5.78 | W33: 7.75 | X33: 9.88 | Y33: 12.18 | Z33: 14.66 | AA33: 17.35 | AB33: 20.28 | AC33: 23.46 | AD33: 26.93 | AE33: 30.71 | AF33: 34.85 | AG33: 39.39 | AH33: 44.36 | AI33: 49.81 | AJ33: 55.82 | AK33: 62.43 | AL33: 69.71 | AM33: 77.76 | AN33: 86.67 | AO33: 96.54 | AP33: 107.51 | AQ33: 119.71 | AR33: 133.32
A34: 19 | B34: 292.15 | C34: 2197.79637 | D34: 1.36 | E34: 2.72 | F34: 4.09 | G34: 5.47 | H34: 6.85 | I34: 8.23 | J34: 9.63 | K34: 11.03 | L34: 12.43 | M34: 13.85 | N34: -7.08 | O34: -5.83 | P34: -4.50 | Q34: -3.12 | R34: -1.70 | S34: -0.19 | T34: 1.42 | U34: 3.14 | V34: 4.98 | W34: 6.95 | X34: 9.07 | Y34: 11.37 | Z34: 13.85 | AA34: 16.53 | AB34: 19.45 | AC34: 22.63 | AD34: 26.10 | AE34: 29.88 | AF34: 34.01 | AG34: 38.54 | AH34: 43.50 | AI34: 48.95 | AJ34: 54.94 | AK34: 61.54 | AL34: 68.82 | AM34: 76.86 | AN34: 85.75 | AO34: 95.61 | AP34: 106.56 | AQ34: 118.74 | AR34: 132.34
A35: 21 | B35: 294.15 | C35: 2487.667113 | D35: 1.54 | E35: 3.08 | F35: 4.63 | G35: 6.19 | H35: 7.76 | I35: 9.34 | J35: 10.92 | K35: 12.51 | L35: 14.11 | M35: 15.72 | N35: -7.86 | O35: -6.61 | P35: -5.28 | Q35: -3.91 | R35: -2.49 | S35: -0.98 | T35: 0.63 | U35: 2.34 | V35: 4.18 | W35: 6.15 | X35: 8.27 | Y35: 10.56 | Z35: 13.03 | AA35: 15.72 | AB35: 18.63 | AC35: 21.81 | AD35: 25.27 | AE35: 29.04 | AF35: 33.17 | AG35: 37.69 | AH35: 42.65 | AI35: 48.09 | AJ35: 54.07 | AK35: 60.66 | AL35: 67.93 | AM35: 75.96 | AN35: 84.84 | AO35: 94.68 | AP35: 105.61 | AQ35: 117.78 | AR35: 131.36
A36: 23 | B36: 296.15 | C36: 2810.44192 | D36: 1.74 | E36: 3.48 | F36: 5.24 | G36: 7.01 | H36: 8.78 | I36: 10.57 | J36: 12.37 | K36: 14.17 | L36: 15.99 | M36: 17.82 | N36: -8.64 | O36: -7.39 | P36: -6.07 | Q36: -4.69 | R36: -3.27 | S36: -1.77 | T36: -0.16 | U36: 1.55 | V36: 3.38 | W36: 5.35 | X36: 7.47 | Y36: 9.75 | Z36: 12.22 | AA36: 14.91 | AB36: 17.82 | AC36: 20.99 | AD36: 24.44 | AE36: 28.21 | AF36: 32.33 | AG36: 36.84 | AH36: 41.79 | AI36: 47.23 | AJ36: 53.20 | AK36: 59.79 | AL36: 67.04 | AM36: 75.06 | AN36: 83.93 | AO36: 93.76 | AP36: 104.67 | AQ36: 116.82 | AR36: 130.38
A37: 25 | B37: 298.15 | C37: 3169.21647 | D37: 1.96 | E37: 3.93 | F37: 5.92 | G37: 7.91 | H37: 9.92 | I37: 11.94 | J37: 13.98 | K37: 16.03 | L37: 18.09 | M37: 20.17 | N37: -9.42 | O37: -8.17 | P37: -6.85 | Q37: -5.48 | R37: -4.06 | S37: -2.56 | T37: -0.95 | U37: 0.75 | V37: 2.58 | W37: 4.55 | X37: 6.66 | Y37: 8.95 | Z37: 11.42 | AA37: 14.09 | AB37: 17.00 | AC37: =1000*(AC$19-$E$2*$A37)/($E$4+$E$3*$A37) -> 20.17 | AD37: 23.61 | AE37: 27.38 | AF37: 31.49 | AG37: 36.00 | AH37: 40.94 | AI37: 46.37 | AJ37: 52.34 | AK37: 58.91 | AL37: 66.16 | AM37: 74.16 | AN37: 83.02 | AO37: 92.83 | AP37: 103.73 | AQ37: 115.87 | AR37: 129.40
A38: 27 | B38: 300.15 | C38: 3567.311847 | D38: 2.21 | E38: 4.43 | F38: 6.67 | G38: 8.92 | H38: 11.19 | I38: 13.48 | J38: 15.78 | K38: 18.10 | L38: 20.44 | M38: 22.79 | N38: =1000*(N$19-$E$2*$A38)/($E$4+$E$3*$A38) -> -10.19 | O38: -8.95 | P38: -7.63 | Q38: -6.26 | R38: -4.84 | S38: -3.34 | T38: -1.74 | U38: -0.04 | V38: 1.79 | W38: 3.75 | X38: 5.87 | Y38: 8.15 | Z38: 10.61 | AA38: 13.28 | AB38: 16.19 | AC38: 19.35 | AD38: =1000*(AD$19-$E$2*$A38)/($E$4+$E$3*$A38) -> 22.79 | AE38: 26.55 | AF38: 30.66 | AG38: 35.16 | AH38: 40.10 | AI38: 45.52 | AJ38: 51.48 | AK38: 58.04 | AL38: 65.27 | AM38: 73.27 | AN38: 82.11 | AO38: 91.91 | AP38: 102.80 | AQ38: 114.91 | AR38: 128.43
A39: 29 | B39: 302.15 | C39: 4008.285316 | D39: =0.62198*1000*$E$7*D$21*$C39/($E$6-$E$7*D$21*$C39) -> 2.48 | E39: 4.98 | F39: 7.50 | G39: 10.04 | H39: 12.60 | I39: 15.18 | J39: 17.79 | K39: 20.41 | L39: 23.06 | M39: 25.72 | N39: -10.97 | O39: -9.72 | P39: -8.40 | Q39: -7.04 | R39: -5.62 | S39: -4.12 | T39: -2.53 | U39: -0.82 | V39: 1.00 | W39: 2.96 | X39: 5.07 | Y39: 7.35 | Z39: 9.81 | AA39: 12.48 | AB39: 15.38 | AC39: 18.53 | AD39: 21.97 | AE39: 25.72 | AF39: 29.83 | AG39: 34.32 | AH39: 39.25 | AI39: 44.66 | AJ39: 50.62 | AK39: 57.17 | AL39: 64.39 | AM39: 72.38 | AN39: 81.21 | AO39: 91.00 | AP39: 101.87 | AQ39: 113.96 | AR39: 127.46
A40: 31 | B40: 304.15 | C40: 4495.941231 | D40: 2.78 | E40: 5.59 | F40: 8.43 | G40: 11.28 | H40: 14.17 | I40: 17.08 | J40: 20.02 | K40: 22.99 | L40: 25.98 | M40: 29.00 | N40: -11.74 | O40: -10.50 | P40: -9.18 | Q40: -7.81 | R40: -6.40 | S40: -4.90 | T40: -3.31 | U40: -1.61 | V40: 0.21 | W40: 2.17 | X40: 4.28 | Y40: 6.55 | Z40: 9.01 | AA40: 11.67 | AB40: 14.57 | AC40: 17.72 | AD40: 21.15 | AE40: 24.90 | AF40: 29.00 | AG40: 33.49 | AH40: 38.41 | AI40: 43.81 | AJ40: 49.76 | AK40: 56.30 | AL40: 63.52 | AM40: 71.49 | AN40: 80.31 | AO40: 90.08 | AP40: 100.93 | AQ40: 113.02 | AR40: 126.49
A41: 33 | B41: 306.15 | C41: 5034.342051 | D41: 3.12 | E41: 6.27 | F41: 9.45 | G41: 12.66 | H41: 15.91 | I41: 19.19 | J41: 22.50 | K41: 25.85 | L41: 29.24 | M41: 32.66 | N41: -12.51 | O41: -11.27 | P41: -9.95 | Q41: -8.59 | R41: -7.18 | S41: -5.68 | T41: -4.09 | U41: -2.39 | V41: -0.57 | W41: 1.38 | X41: 3.48 | Y41: 5.75 | Z41: 8.21 | AA41: 10.87 | AB41: 13.76 | AC41: 16.91 | AD41: 20.34 | AE41: 24.08 | AF41: 28.17 | AG41: 32.66 | AH41: 37.57 | AI41: 42.97 | AJ41: 48.90 | AK41: 55.44 | AL41: 62.64 | AM41: 70.60 | AN41: 79.41 | AO41: 89.17 | AP41: 100.01 | AQ41: 112.07 | AR41: 125.53
A42: 35 | B42: 308.15 | C42: 5627.819447 | D42: 3.49 | E42: 7.02 | F42: 10.58 | G42: 14.19 | H42: 17.84 | I42: 21.53 | J42: 25.27 | K42: 29.04 | L42: 32.87 | M42: 36.73 | N42: -13.28 | O42: -12.04 | P42: -10.72 | Q42: -9.36 | R42: -7.95 | S42: -6.46 | T42: -4.87 | U42: -3.17 | V42: -1.36 | W42: 0.59 | X42: 2.69 | Y42: 4.96 | Z42: 7.41 | AA42: 10.07 | AB42: 12.96 | AC42: 16.10 | AD42: 19.52 | AE42: 23.26 | AF42: 27.35 | AG42: 31.83 | AH42: 36.73 | AI42: 42.12 | AJ42: 48.05 | AK42: 54.57 | AL42: 61.77 | AM42: 69.72 | AN42: 78.51 | AO42: 88.26 | AP42: 99.08 | AQ42: 111.13 | AR42: 124.57
A43: 37 | B43: 310.15 | C43: 6280.985478 | D43: 3.90 | E43: 7.84 | F43: 11.83 | G43: 15.88 | H43: 19.98 | I43: 24.13 | J43: 28.33 | K43: 32.59 | L43: 36.91 | M43: 41.28 | N43: -14.04 | O43: -12.80 | P43: -11.49 | Q43: -10.13 | R43: -8.73 | S43: -7.23 | T43: -5.65 | U43: -3.95 | V43: -2.14 | W43: -0.19 | X43: 1.91 | Y43: 4.17 | Z43: 6.62 | AA43: 9.27 | AB43: 12.16 | AC43: 15.29 | AD43: 18.71 | AE43: 22.45 | AF43: 26.53 | AG43: 31.00 | AH43: 35.90 | AI43: 41.28 | AJ43: 47.20 | AK43: 53.71 | AL43: 60.90 | AM43: 68.84 | AN43: 77.62 | AO43: 87.35 | AP43: 98.16 | AQ43: 110.19 | AR43: 123.61
A44: 39 | B44: 312.15 | C44: 6998.743818 | D44: 4.34 | E44: 8.75 | F44: 13.21 | G44: 17.75 | H44: 22.34 | I44: 27.00 | J44: 31.73 | K44: 36.53 | L44: 41.40 | M44: 46.35 | N44: -14.80 | O44: -13.57 | P44: -12.26 | Q44: -10.90 | R44: -9.50 | S44: -8.01 | T44: -6.42 | U44: -4.73 | V44: -2.92 | W44: -0.97 | X44: 1.12 | Y44: 3.38 | Z44: 5.83 | AA44: 8.48 | AB44: 11.36 | AC44: 14.49 | AD44: 17.90 | AE44: 21.63 | AF44: 25.71 | AG44: 30.17 | AH44: 35.06 | AI44: 40.44 | AJ44: 46.35 | AK44: 52.85 | AL44: 60.03 | AM44: 67.96 | AN44: 76.73 | AO44: 86.44 | AP44: 97.24 | AQ44: 109.25 | AR44: 122.65
A45: 41 | B45: 314.15 | C45: 7786.301006 | D45: 4.84 | E45: 9.75 | F45: 14.74 | G45: 19.81 | H45: 24.96 | I45: 30.19 | J45: 35.51 | K45: 40.92 | L45: 46.41 | M45: 52.00 | N45: -15.56 | O45: -14.33 | P45: -13.02 | Q45: -11.67 | R45: -10.26 | S45: -8.78 | T45: -7.19 | U45: -5.51 | V45: -3.70 | W45: -1.75 | X45: 0.34 | Y45: 2.60 | Z45: 5.04 | AA45: 7.69 | AB45: 10.56 | AC45: 13.69 | AD45: 17.10 | AE45: 20.82 | AF45: 24.89 | AG45: 29.35 | AH45: 34.23 | AI45: 39.60 | AJ45: 45.50 | AK45: 52.00 | AL45: 59.16 | AM45: 67.08 | AN45: 75.84 | AO45: 85.54 | AP45: 96.32 | AQ45: 108.32 | AR45: 121.70
A46: 43 | B46: 316.15 | C46: 8649.177703 | D46: 5.38 | E46: 10.85 | F46: 16.41 | G46: 22.08 | H46: 27.85 | I46: 33.72 | J46: 39.69 | K46: 45.78 | L46: 51.98 | M46: 58.30 | N46: -16.32 | O46: -15.09 | P46: -13.78 | Q46: -12.43 | R46: -11.03 | S46: -9.55 | T46: -7.96 | U46: -6.28 | V46: -4.47 | W46: -2.53 | X46: -0.44 | Y46: 1.81 | Z46: 4.25 | AA46: 6.89 | AB46: 9.76 | AC46: 12.89 | AD46: 16.29 | AE46: 20.01 | AF46: 24.08 | AG46: 28.53 | AH46: 33.41 | AI46: 38.76 | AJ46: 44.66 | AK46: 51.15 | AL46: 58.30 | AM46: 66.21 | AN46: 74.95 | AO46: 84.64 | AP46: 95.41 | AQ46: 107.38 | AR46: 120.75
A47: 45 | B47: 318.15 | C47: 9593.219934 | D47: 5.97 | E47: 12.05 | F47: 18.26 | G47: 24.58 | H47: 31.04 | I47: 37.62 | J47: 44.34 | K47: 51.19 | L47: 58.19 | M47: 65.33 | N47: -17.08 | O47: -15.85 | P47: -14.54 | Q47: -13.19 | R47: -11.79 | S47: -10.31 | T47: -8.73 | U47: -7.05 | V47: -5.24 | W47: -3.31 | X47: -1.22 | Y47: 1.03 | Z47: 3.47 | AA47: 6.11 | AB47: 8.97 | AC47: 12.09 | AD47: 15.49 | AE47: 19.20 | AF47: 23.26 | AG47: 27.71 | AH47: 32.58 | AI47: 37.93 | AJ47: 43.82 | AK47: 50.30 | AL47: 57.44 | AM47: 65.33 | AN47: 74.07 | AO47: 83.74 | AP47: 94.49 | AQ47: 106.46 | AR47: 119.80
A48: 47 | B48: 320.15 | C48: 10624.6103 | D48: 6.62 | E48: 13.38 | F48: 20.28 | G48: 27.34 | H48: 34.56 | I48: 41.94 | J48: 49.48 | K48: 57.20 | L48: 65.10 | M48: 73.18 | N48: -17.83 | O48: -16.61 | P48: -15.30 | Q48: -13.95 | R48: -12.56 | S48: -11.07 | T48: -9.50 | U48: -7.82 | V48: -6.01 | W48: -4.08 | X48: -2.00 | Y48: 0.25 | Z48: 2.68 | AA48: 5.32 | AB48: 8.18 | AC48: 11.30 | AD48: 14.69 | AE48: 18.40 | AF48: 22.45 | AG48: 26.89 | AH48: 31.76 | AI48: 37.10 | AJ48: 42.98 | AK48: 49.45 | AL48: 56.58 | AM48: 64.46 | AN48: 73.18 | AO48: 82.85 | AP48: 93.58 | AQ48: 105.53 | AR48: 118.86
A49: 49 | B49: 322.15 | C49: 11749.87911 | D49: 7.33 | E49: 14.83 | F49: 22.51 | G49: 30.38 | H49: 38.45 | I49: 46.71 | J49: 55.19 | K49: 63.88 | L49: 72.80 | M49: 81.96 | N49: -18.59 | O49: -17.36 | P49: -16.06 | Q49: -14.71 | R49: -13.31 | S49: -11.84 | T49: -10.26 | U49: -8.58 | V49: -6.78 | W49: -4.85 | X49: -2.77 | Y49: -0.53 | Z49: 1.90 | AA49: 4.53 | AB49: 7.39 | AC49: 10.50 | AD49: 13.89 | AE49: 17.60 | AF49: 21.64 | AG49: 26.08 | AH49: 30.94 | AI49: 36.27 | AJ49: 42.14 | AK49: 48.60 | AL49: 55.73 | AM49: 63.60 | AN49: 72.31 | AO49: 81.96 | AP49: 92.68 | AQ49: 104.60 | AR49: 117.91
A50: 51 | B50: 324.15 | C50: 12975.91548 | D50: 8.10 | E50: 16.42 | F50: 24.95 | G50: 33.72 | H50: 42.73 | I50: 51.99 | J50: 61.52 | K50: 71.31 | L50: 81.39 | M50: 91.77 | N50: -19.34 | O50: -18.11 | P50: -16.81 | Q50: -15.46 | R50: -14.07 | S50: -12.60 | T50: -11.02 | U50: -9.35 | V50: -7.55 | W50: -5.62 | X50: -3.54 | Y50: -1.30 | Z50: 1.12 | AA50: 3.75 | AB50: 6.61 | AC50: 9.71 | AD50: 13.10 | AE50: 16.80 | AF50: 20.84 | AG50: 25.26 | AH50: 30.12 | AI50: 35.45 | AJ50: 41.30 | AK50: 47.76 | AL50: 54.87 | AM50: 62.73 | AN50: 71.43 | AO50: 81.07 | AP50: 91.77 | AQ50: 103.68 | AR50: 116.97
A51: 53 | B51: 326.15 | C51: 14309.97826 | D51: 8.95 | E51: 18.15 | F51: 27.63 | G51: 37.40 | H51: 47.46 | I51: 57.84 | J51: 68.54 | K51: 79.58 | L51: 90.98 | M51: 102.76 | N51: -20.08 | O51: -18.86 | P51: -17.56 | Q51: -16.22 | R51: -14.83 | S51: -13.35 | T51: -11.78 | U51: -10.11 | V51: -8.31 | W51: -6.39 | X51: -4.31 | Y51: -2.07 | Z51: 0.35 | AA51: 2.97 | AB51: 5.82 | AC51: 8.92 | AD51: 12.31 | AE51: 16.00 | AF51: 20.03 | AG51: 24.45 | AH51: 29.30 | AI51: 34.62 | AJ51: 40.47 | AK51: 46.92 | AL51: 54.02 | AM51: 61.87 | AN51: 70.55 | AO51: 80.18 | AP51: 90.87 | AQ51: 102.76 | AR51: 116.04
A52: 55 | B52: 328.15 | C52: 15759.70694 | D52: 9.87 | E52: 20.05 | F52: 30.57 | G52: 41.44 | H52: 52.68 | I52: 64.30 | J52: 76.33 | K52: 88.79 | L52: 101.71 | M52: 115.10 | N52: -20.83 | O52: -19.61 | P52: -18.31 | Q52: -16.97 | R52: -15.58 | S52: -14.11 | T52: -12.54 | U52: -10.87 | V52: -9.08 | W52: -7.15 | X52: -5.08 | Y52: -2.85 | Z52: -0.43 | AA52: 2.19 | AB52: 5.04 | AC52: 8.14 | AD52: 11.52 | AE52: 15.20 | AF52: 19.23 | AG52: 23.65 | AH52: 28.49 | AI52: 33.80 | AJ52: 39.64 | AK52: 46.08 | AL52: 53.17 | AM52: 61.01 | AN52: 69.68 | AO52: 79.29 | AP52: 89.97 | AQ52: 101.85 | AR52: 115.10
A54: umidificazione | B54: Temperatura di partenza | E54: =DESIGN!V51 -> 19.00111632 | G54: Temperatura di partenza | J54: =DESIGN!AC43-DESIGN!V27 -> -5 | K54: riscaldamento | M54: =DESIGN!$C$35 -> External Air
B55: Umidità specifica partenza | E55: =DESIGN!AC45 -> 2.237934166 | G55: Umidità specifica partenza | J55: =DESIGN!AC45 -> 2.237934166 | M55: =DESIGN!$E$37 -> -5
M56: =DESIGN!$W$45 -> 2.237934166
B57: Temperatura arrivo | E57: =DESIGN!W60 -> 19.9058154 | G57: Temperatura arrivo | J57: =E54 -> 19.00111632
B58: Umidità specifica arrivo | E58: =DESIGN!W61 -> 7.248608729 | G58: Umidità specifica arrivo | J58: =E55 -> 2.237934166
C60: Isoterma | H60: Riscaldamento
C61: t | D61: x | H61: t | I61: x
B62: 1 | C62: =E54 -> 19.00111632 | D62: =E55 -> 2.237934166 | G62: 1 | H62: =J54 -> -5 | I62: =J55 -> 2.237934166
B63: =B62+1 -> 2 | C63: =C62+((C$102-C$62)/40) -> 19.0237338 | D63: =D62+((D$102-D$62)/40) -> 2.36320103 | G63: =G62+1 -> 2 | H63: =H62+((H$102-H$62)/40) -> -4.399972092 | I63: =I62+((I$102-I$62)/40) -> 2.237934166
B64: =B63+1 -> 3 | C64: 19.04635127 | D64: 2.488467894 | G64: =G63+1 -> 3 | H64: -3.799944184 | I64: 2.237934166
B65: 4 | C65: 19.06896875 | D65: 2.613734758 | G65: 4 | H65: -3.199916276 | I65: 2.237934166
B66: 5 | C66: 19.09158623 | D66: 2.739001622 | G66: 5 | H66: -2.599888368 | I66: 2.237934166
B67: 6 | C67: 19.11420371 | D67: 2.864268487 | G67: 6 | H67: -1.99986046 | I67: 2.237934166
B68: 7 | C68: 19.13682118 | D68: 2.989535351 | G68: 7 | H68: -1.399832552 | I68: 2.237934166
B69: 8 | C69: 19.15943866 | D69: 3.114802215 | G69: 8 | H69: -0.7998046438 | I69: 2.237934166
B70: 9 | C70: 19.18205614 | D70: 3.240069079 | G70: 9 | H70: -0.1997767358 | I70: 2.237934166
B71: 10 | C71: 19.20467361 | D71: 3.365335943 | G71: 10 | H71: 0.4002511722 | I71: 2.237934166
B72: 11 | C72: 19.22729109 | D72: 3.490602807 | G72: 11 | H72: 1.00027908 | I72: 2.237934166
B73: 12 | C73: 19.24990857 | D73: 3.615869671 | G73: 12 | H73: 1.600306988 | I73: 2.237934166
B74: 13 | C74: 19.27252604 | D74: 3.741136535 | G74: 13 | H74: 2.200334896 | I74: 2.237934166
B75: 14 | C75: 19.29514352 | D75: 3.866403399 | G75: 14 | H75: 2.800362804 | I75: 2.237934166
B76: 15 | C76: 19.317761 | D76: 3.991670263 | G76: 15 | H76: 3.400390712 | I76: 2.237934166
B77: 16 | C77: 19.34037848 | D77: 4.116937127 | G77: 16 | H77: 4.00041862 | I77: 2.237934166
B78: 17 | C78: 19.36299595 | D78: 4.242203991 | G78: 17 | H78: 4.600446528 | I78: 2.237934166
B79: 18 | C79: 19.38561343 | D79: 4.367470856 | G79: 18 | H79: 5.200474436 | I79: 2.237934166
B80: 19 | C80: 19.40823091 | D80: 4.49273772 | G80: 19 | H80: 5.800502344 | I80: 2.237934166
B81: 20 | C81: 19.43084838 | D81: 4.618004584 | G81: 20 | H81: 6.400530252 | I81: 2.237934166
B82: 21 | C82: 19.45346586 | D82: 4.743271448 | G82: 21 | H82: 7.00055816 | I82: 2.237934166
B83: 22 | C83: 19.47608334 | D83: 4.868538312 | G83: 22 | H83: 7.600586068 | I83: 2.237934166
B84: 23 | C84: 19.49870081 | D84: 4.993805176 | G84: 23 | H84: 8.200613976 | I84: 2.237934166
B85: 24 | C85: 19.52131829 | D85: 5.11907204 | G85: 24 | H85: 8.800641884 | I85: 2.237934166
B86: 25 | C86: 19.54393577 | D86: 5.244338904 | G86: 25 | H86: 9.400669793 | I86: 2.237934166
B87: 26 | C87: 19.56655325 | D87: 5.369605768 | G87: 26 | H87: 10.0006977 | I87: 2.237934166
B88: 27 | C88: 19.58917072 | D88: 5.494872632 | G88: 27 | H88: 10.60072561 | I88: 2.237934166
B89: 28 | C89: 19.6117882 | D89: 5.620139496 | G89: 28 | H89: 11.20075352 | I89: 2.237934166
B90: 29 | C90: 19.63440568 | D90: 5.74540636 | G90: 29 | H90: 11.80078142 | I90: 2.237934166
B91: 30 | C91: 19.65702315 | D91: 5.870673225 | G91: 30 | H91: 12.40080933 | I91: 2.237934166
B92: 31 | C92: 19.67964063 | D92: 5.995940089 | G92: 31 | H92: 13.00083724 | I92: 2.237934166
B93: 32 | C93: 19.70225811 | D93: 6.121206953 | G93: 32 | H93: 13.60086515 | I93: 2.237934166
B94: 33 | C94: 19.72487558 | D94: 6.246473817 | G94: 33 | H94: 14.20089306 | I94: 2.237934166
B95: 34 | C95: 19.74749306 | D95: 6.371740681 | G95: 34 | H95: 14.80092096 | I95: 2.237934166
B96: 35 | C96: 19.77011054 | D96: 6.497007545 | G96: 35 | H96: 15.40094887 | I96: 2.237934166
B97: 36 | C97: 19.79272801 | D97: 6.622274409 | G97: 36 | H97: 16.00097678 | I97: 2.237934166
B98: 37 | C98: 19.81534549 | D98: 6.747541273 | G98: 37 | H98: 16.60100469 | I98: 2.237934166
B99: 38 | C99: 19.83796297 | D99: 6.872808137 | G99: 38 | H99: 17.2010326 | I99: 2.237934166
B100: 39 | C100: 19.86058045 | D100: 6.998075001 | G100: 39 | H100: 17.8010605 | I100: 2.237934166
B101: 40 | C101: 19.88319792 | D101: 7.123341865 | G101: 40 | H101: 18.40108841 | I101: 2.237934166
B102: 41 | C102: =E57 -> 19.9058154 | D102: =E58 -> 7.248608729 | G102: 41 | H102: =J57 -> 19.00111632 | I102: =J58 -> 2.237934166

Sheet DESIGN
B26: Choose your language: | E26: ENGLISH
U27: fattore | V27: =GRAFICI!E8 -> 273.15
B28: =LINGUA!B3 -> INSTRUCTIONS: insert input data in grey cells. Results appear in green cells. | U28: c.s. aria J/(°C*g)= | V28: =GRAFICI!E2 -> 1.006 | AA28: =E26 -> ENGLISH
U29: c.s. vapo J/(°C*g)= | V29: =GRAFICI!E3 -> 1.805
B30: =LINGUA!B53 -> STEP 1 | U30: c latente J/g= | V30: =GRAFICI!E4 -> 2501
U31: R Joule/Kmole*°K= | V31: =GRAFICI!E5 -> 8313.6
U32: f s | V32: =GRAFICI!E7 -> 1.004
C33: =LINGUA!B4 -> Altitude a.s.l. | E33: 0 | F33: =LINGUA!B8 -> m | G33: =IF(OR(E33<-300,E33>3000),LINGUA!B5,"") ->  | U33: =GRAFICI!A2 -> -5674.359 | V33: =GRAFICI!B2 -> -5800.2206
U34: =GRAFICI!A3 -> 6.3925247 | V34: =GRAFICI!B3 -> 1.3914993
C35: =LINGUA!B6 -> External Air | U35: =GRAFICI!A4 -> -0.009677843 | V35: =GRAFICI!B4 -> -0.048640239
C36: =LINGUA!B9 -> Relative humidity | E36: 90.0% | F36: =LINGUA!K12 -> rH | H36: =LINGUA!B11 -> Specific humidity | J36: =IF(G33="",W45,0) -> 2.2 | K36: =LINGUA!K4 -> g/kg | U36: =GRAFICI!A5 -> 6.2215701e-07 | V36: =GRAFICI!B5 -> 4.1764768e-05
C37: =LINGUA!B10 -> Temperature | E37: -5.0 | F37: =LINGUA!K6 -> °C | U37: =GRAFICI!A6 -> 2.0747825e-09 | V37: =GRAFICI!B6 -> -1.4452093e-08
U38: =GRAFICI!A7 -> -9.484024e-13 | V38: =GRAFICI!B7 -> 0
U39: =GRAFICI!A8 -> 4.1635019 | V39: =GRAFICI!B8 -> 6.5459673
C40: =LINGUA!B7 -> Air after the humidifier | E40: =IF(OR(J41<J36),LINGUA!B24,"") -> 
C41: =LINGUA!B9 -> Relative humidity | E41: 50.0% | F41: =LINGUA!K12 -> rH | H41: =LINGUA!B11 -> Specific humidity | J41: =Z45 -> 7.3 | K41: =LINGUA!K4 -> g/kg | U41: Condizioni dell'aria in ingresso | X41: Condizioni finali dell'aria | AA41: Aria miscelata | AD41: Condizioni dell'aria prima dell'umidificatore
C42: =LINGUA!B10 -> Temperature | E42: 20.0 | F42: =LINGUA!K6 -> °C | U42: pressione atm Pascal | W42: =101325*(1-0.0000225577*E33)^5.2559 -> 101325 | X42: pressione atm Pascal | Z42: =W42 -> 101325 | AA42: pressione atm Pascal | AC42: =Z42 -> 101325 | AD42: pressione atm Pascal | AF42: =AC42 -> 101325 | AI42: delt t
C43: =LINGUA!B17 -> Percentage of recirculation air | E43: 0.0% | H43: =IF(OR(AC45>AC46),LINGUA!C24,"") ->  | U43: T t OA °K | W43: =$V$27+E37 -> 268.2 | X43: T t OA °K | Z43: =$V$27+E42 -> 293.2 | AA43: T t OA °K | AC43: =((W43*E77*(1-E43))+(Z43*E77*E43))/E77 -> 268.150 | AD43: T t OA °K | AF43: =+Z43-AI43 -> 292.2 | AG43: =+AF43-V27 -> 19.0 | AI43: =(100-(AC43-V27))*(1.9*(Z45-AC45)/1000)/(1.005+1.9*AC45/1000) -> 0.9988836791
U44: Pvs t OA Pascal | W44: =IF(W43<$V$27,EXP($U$33/W43+$U$34+$U$35*W43+$U$36*(W43)^2+$U$37*(W43^3)+$U$38*(W43^4)+$U$39*LN(W43)),EXP($V$33/W43+$V$34+$V$35*W43+$V$36*(W43)^2+$V$37*(W43^3)+$V$38*(W43^4)+$V$39*LN(W43))) -> 402.0292559 | X44: Pvs t OA Pascal | Z44: =IF(Z43<$V$27,EXP($U$33/Z43+$U$34+$U$35*Z43+$U$36*(Z43)^2+$U$37*(Z43^3)+$U$38*(Z43^4)+$U$39*LN(Z43)),EXP($V$33/Z43+$V$34+$V$35*Z43+$V$36*(Z43)^2+$V$37*(Z43^3)+$V$38*(Z43^4)+$V$39*LN(Z43))) -> 2338.8037 | AA44: Pvs t OA Pascal | AC44: =IF(AC43<$V$27,EXP($U$33/AC43+$U$34+$U$35*AC43+$U$36*(AC43)^2+$U$37*(AC43^3)+$U$38*(AC43^4)+$U$39*LN(AC43)),EXP($V$33/AC43+$V$34+$V$35*AC43+$V$36*(AC43)^2+$V$37*(AC43^3)+$V$38*(AC43^4)+$V$39*LN(AC43))) -> 402.0292559 | AD44: Pvs t OA Pascal | AF44: =IF(AF43<$V$27,EXP($U$33/AF43+$U$34+$U$35*AF43+$U$36*(AF43)^2+$U$37*(AF43^3)+$U$38*(AF43^4)+$U$39*LN(AF43)),EXP($V$33/AF43+$V$34+$V$35*AF43+$V$36*(AF43)^2+$V$37*(AF43^3)+$V$38*(AF43^4)+$V$39*LN(AF43))) -> 2197.949532
U45: x OA g/kg | W45: =$V$32*1000*0.62198*E36*W44/(W42-E36*W44) -> 2.237934166 | X45: x OA g/kg | Z45: =$V$32*1000*0.62198*E41*Z44/(Z42-E41*Z44) -> 7.291194446 | AA45: x OA g/kg | AC45: =((W45*E77*(1-E43))+(Z45*E77*E43))/E77 -> 2.237934166 | AD45: x OA g/kg | AF45: =AC45 -> 2.2379 | AI45: delta x per il calcolo del carico finale
B46: =LINGUA!B13 -> The following diagram shows the isothermal transformation in red. Blue lines represent curves at a fixed relative humidity, while cyan ones are constant-enthalpy curves. | AA46: Limite di condensazione | AC46: =621.98*V32*AC44/(101180.925-V32*AC44) -> 2.491180097 | AI46: =+Z45-AC45 -> 5.05326028
U47: Iterazione per il calcolo della temperatura di setpoint partendo dall'aria prima dell'umidificatore
U48: f2 | V48: =E41 -> 50.0%
U49: t1 | V49: =AG43 -> 19.0011
U50: x1 | V50: =AF45 -> 2.2
U51: t | V51: =V49 -> 19.0011 | W51: =V51+(V56/V57) -> 19.27874337 | X51: 19.47104964 | Y51: 19.60432036 | Z51: 19.69670986 | AA51: 19.76077366 | AB51: 19.80520341 | AC51: 19.83602 | AD51: 19.85739616 | AE51: 19.87222471 | AF51: 19.8825116 | AG51: 19.88964804 | AH51: 19.89459896 | AI51: 19.89803373 | AJ51: 19.90041666 | AK51: 19.90206987 | AL51: 19.90321683 | AM51: 19.90401256 | AN51: 19.90456463 | AO51: 19.90494764 | AP51: 19.90521336 | AQ51: 19.90539772 | AR51: 19.90552562 | AS51: 19.90561435 | AT51: 19.90567592 | AU51: 19.90571863 | AV51: 19.90574826 | AW51: 19.90576882 | AX51: 19.90578308 | AY51: 19.90579298 | AZ51: 19.90579985 | BA51: 19.90580461 | BB51: 19.90580791 | BC51: 19.90581021 | BD51: 19.9058118 | BE51: 19.9058129 | BF51: 19.90581367 | BH51: =BF51+(BF56/BF57) -> 19.9058142 | BI51: 19.90581456 | BJ51: 19.90581482 | BK51: 19.905815 | BL51: 19.90581512 | BM51: 19.90581521 | BN51: 19.90581527 | BO51: 19.90581531 | BP51: 19.90581534 | BQ51: 19.90581535 | BR51: 19.90581537 | BS51: 19.90581538 | BT51: 19.90581538 | BU51: 19.90581539 | BV51: 19.90581539 | BW51: 19.90581539 | BX51: 19.9058154 | BY51: 19.9058154 | BZ51: 19.9058154 | CA51: 19.9058154 | CB51: 19.9058154 | CC51: 19.9058154 | CD51: 19.9058154 | CE51: 19.9058154 | CF51: 19.9058154 | CG51: 19.9058154 | CH51: 19.9058154 | CI51: 19.9058154 | CJ51: =CI51+(CI56/CI57) -> 19.9058154 | CK51: 19.9058154 | CL51: 19.9058154 | CM51: 19.9058154 | CN51: 19.9058154 | CO51: 19.9058154 | CP51: 19.9058154 | CQ51: 19.9058154 | CR51: 19.9058154 | CS51: 19.9058154 | CT51: 19.9058154 | CU51: 19.9058154 | CV51: 19.9058154 | CW51: 19.9058154 | CX51: 19.9058154 | CY51: 19.9058154 | CZ51: 19.9058154 | DA51: 19.9058154 | DB51: 19.9058154 | DC51: 19.9058154 | DD51: 19.9058154 | DE51: 19.9058154 | DF51: 19.9058154 | DG51: 19.9058154 | DH51: 19.9058154 | DI51: 19.9058154 | DJ51: 19.9058154 | DK51: 19.9058154 | DL51: 19.9058154 | DM51: 19.9058154 | DN51: 19.9058154 | DO51: 19.9058154 | DP51: 19.9058154 | DQ51: 19.9058154 | DR51: 19.9058154 | DS51: 19.9058154 | DT51: 19.9058154 | DU51: 19.9058154 | DV51: 19.9058154 | DW51: 19.9058154 | DX51: 19.9058154 | DY51: 19.9058154 | DZ51: 19.9058154 | EA51: 19.9058154 | EB51: 19.9058154 | EC51: 19.9058154 | ED51: 19.9058154 | EE51: 19.9058154 | EF51: 19.9058154 | EG51: 19.9058154 | EH51: 19.9058154 | EI51: 19.9058154 | EJ51: 19.9058154 | EK51: 19.9058154 | EL51: 19.9058154
U52: T | V52: =V51+$V$27 -> 292.1511 | W52: =W51+$V$27 -> 292.4287 | X52: 292.6210 | Y52: 292.7543 | Z52: 292.8467 | AA52: 292.9108 | AB52: 292.9552 | AC52: 292.9860 | AD52: 293.0074 | AE52: 293.0222 | AF52: 293.0325 | AG52: 293.0396 | AH52: 293.0446 | AI52: 293.0480 | AJ52: 293.0504 | AK52: 293.0521 | AL52: 293.0532 | AM52: 293.0540 | AN52: 293.0546 | AO52: 293.0549 | AP52: 293.0552 | AQ52: 293.0554 | AR52: 293.0555 | AS52: 293.0556 | AT52: 293.0557 | AU52: 293.0557 | AV52: 293.0557 | AW52: 293.0558 | AX52: 293.0558 | AY52: 293.0558 | AZ52: 293.0558 | BA52: 293.0558 | BB52: 293.0558 | BC52: 293.0558 | BD52: 293.0558 | BE52: 293.0558 | BF52: 293.0558 | BH52: 293.0558 | BI52: 293.0558 | BJ52: 293.0558 | BK52: 293.0558 | BL52: 293.0558 | BM52: 293.0558 | BN52: 293.0558 | BO52: 293.0558 | BP52: 293.0558 | BQ52: 293.0558 | BR52: 293.0558 | BS52: 293.0558 | BT52: 293.0558 | BU52: 293.0558 | BV52: 293.0558 | BW52: 293.0558 | BX52: 293.0558 | BY52: 293.0558 | BZ52: 293.0558 | CA52: 293.0558 | CB52: 293.0558 | CC52: 293.0558 | CD52: 293.0558 | CE52: 293.0558 | CF52: 293.0558 | CG52: 293.0558 | CH52: 293.0558 | CI52: =CI51+$V$27 -> 293.0558 | CJ52: 293.0558 | CK52: 293.0558 | CL52: 293.0558 | CM52: 293.0558 | CN52: 293.0558 | CO52: 293.0558 | CP52: 293.0558 | CQ52: 293.0558 | CR52: 293.0558 | CS52: 293.0558 | CT52: 293.0558 | CU52: 293.0558 | CV52: 293.0558 | CW52: 293.0558 | CX52: 293.0558 | CY52: 293.0558 | CZ52: 293.0558 | DA52: 293.0558 | DB52: 293.0558 | DC52: 293.0558 | DD52: 293.0558 | DE52: 293.0558 | DF52: 293.0558 | DG52: 293.0558 | DH52: 293.0558 | DI52: 293.0558 | DJ52: 293.0558 | DK52: 293.0558 | DL52: 293.0558 | DM52: 293.0558 | DN52: 293.0558 | DO52: 293.0558 | DP52: 293.0558 | DQ52: 293.0558 | DR52: 293.0558 | DS52: 293.0558 | DT52: 293.0558 | DU52: 293.0558 | DV52: 293.0558 | DW52: 293.0558 | DX52: 293.0558 | DY52: 293.0558 | DZ52: 293.0558 | EA52: 293.0558 | EB52: 293.0558 | EC52: 293.0558 | ED52: 293.0558 | EE52: 293.0558 | EF52: 293.0558 | EG52: 293.0558 | EH52: 293.0558 | EI52: 293.0558 | EJ52: 293.0558 | EK52: 293.0558 | EL52: 293.0558
U53: Pvs | V53: =IF(V52<$V$27,EXP($U$33/V52+$U$34+$U$35*V52+$U$36*(V52)^2+$U$37*(V52^3)+$U$38*(V52^4)+$U$39*LN(V52)),EXP($V$33/V52+$V$34+$V$35*V52+$V$36*(V52)^2+$V$37*(V52^3)+$V$38*(V52^4)+$V$39*LN(V52))) -> 2197.9495 | W53: =IF(W52<$V$27,EXP($U$33/W52+$U$34+$U$35*W52+$U$36*(W52)^2+$U$37*(W52^3)+$U$38*(W52^4)+$U$39*LN(W52)),EXP($V$33/W52+$V$34+$V$35*W52+$V$36*(W52)^2+$V$37*(W52^3)+$V$38*(W52^4)+$V$39*LN(W52))) -> 2236.3321 | X53: 2263.2618 | Y53: 2282.0907 | Z53: 2295.2240 | AA53: 2304.3696 | AB53: 2310.7311 | AC53: 2315.1524 | AD53: 2318.2236 | AE53: 2320.3562 | AF53: 2321.8366 | AG53: 2322.8642 | AH53: 2323.5772 | AI53: 2324.0721 | AJ53: 2324.4154 | AK53: 2324.6536 | AL53: 2324.8189 | AM53: 2324.9336 | AN53: 2325.0132 | AO53: 2325.0684 | AP53: 2325.1067 | AQ53: 2325.1333 | AR53: 2325.1517 | AS53: 2325.1645 | AT53: 2325.1734 | AU53: 2325.1795 | AV53: 2325.1838 | AW53: 2325.1867 | AX53: 2325.1888 | AY53: 2325.1902 | AZ53: 2325.1912 | BA53: 2325.1919 | BB53: 2325.1924 | BC53: 2325.1927 | BD53: 2325.1929 | BE53: 2325.1931 | BF53: 2325.1932 | BH53: 2325.1933 | BI53: 2325.1933 | BJ53: 2325.1934 | BK53: 2325.1934 | BL53: 2325.1934 | BM53: 2325.1934 | BN53: 2325.1934 | BO53: 2325.1934 | BP53: 2325.1935 | BQ53: 2325.1935 | BR53: 2325.1935 | BS53: 2325.1935 | BT53: 2325.1935 | BU53: 2325.1935 | BV53: 2325.1935 | BW53: 2325.1935 | BX53: 2325.1935 | BY53: 2325.1935 | BZ53: 2325.1935 | CA53: 2325.1935 | CB53: 2325.1935 | CC53: 2325.1935 | CD53: 2325.1935 | CE53: 2325.1935 | CF53: 2325.1935 | CG53: 2325.1935 | CH53: 2325.1935 | CI53: 2325.1935 | CJ53: =IF(CJ52<$V$27,EXP($U$33/CJ52+$U$34+$U$35*CJ52+$U$36*(CJ52)^2+$U$37*(CJ52^3)+$U$38*(CJ52^4)+$U$39*LN(CJ52)),EXP($V$33/CJ52+$V$34+$V$35*CJ52+$V$36*(CJ52)^2+$V$37*(CJ52^3)+$V$38*(CJ52^4)+$V$39*LN(CJ52))) -> 2325.1935 | CK53: 2325.1935 | CL53: 2325.1935 | CM53: 2325.1935 | CN53: 2325.1935 | CO53: 2325.1935 | CP53: 2325.1935 | CQ53: 2325.1935 | CR53: 2325.1935 | CS53: 2325.1935 | CT53: 2325.1935 | CU53: 2325.1935 | CV53: 2325.1935 | CW53: 2325.1935 | CX53: 2325.1935 | CY53: 2325.1935 | CZ53: 2325.1935 | DA53: 2325.1935 | DB53: 2325.1935 | DC53: 2325.1935 | DD53: 2325.1935 | DE53: 2325.1935 | DF53: 2325.1935 | DG53: 2325.1935 | DH53: 2325.1935 | DI53: 2325.1935 | DJ53: 2325.1935 | DK53: 2325.1935 | DL53: 2325.1935 | DM53: 2325.1935 | DN53: 2325.1935 | DO53: 2325.1935 | DP53: 2325.1935 | DQ53: 2325.1935 | DR53: 2325.1935 | DS53: 2325.1935 | DT53: 2325.1935 | DU53: 2325.1935 | DV53: 2325.1935 | DW53: 2325.1935 | DX53: 2325.1935 | DY53: 2325.1935 | DZ53: 2325.1935 | EA53: 2325.1935 | EB53: 2325.1935 | EC53: 2325.1935 | ED53: 2325.1935 | EE53: 2325.1935 | EF53: 2325.1935 | EG53: 2325.1935 | EH53: 2325.1935 | EI53: 2325.1935 | EJ53: 2325.1935 | EK53: 2325.1935 | EL53: 2325.1935
U54: x | V54: =621.98*$V$32*$V$48*V53/($W$42-$V$32*$V$48*V53) -> 6.8476 | W54: =621.98*$V$32*$V$48*W53/($W$42-$V$32*$V$48*W53) -> 6.9685 | X54: 7.0534 | Y54: 7.1127 | Z54: 7.1541 | AA54: 7.1829 | AB54: 7.2030 | AC54: 7.2169 | AD54: 7.2266 | AE54: 7.2334 | AF54: 7.2380 | AG54: 7.2413 | AH54: 7.2435 | AI54: 7.2451 | AJ54: 7.2462 | AK54: 7.2469 | AL54: 7.2474 | AM54: 7.2478 | AN54: 7.2480 | AO54: 7.2482 | AP54: 7.2483 | AQ54: 7.2484 | AR54: 7.2485 | AS54: 7.2485 | AT54: 7.2485 | AU54: 7.2486 | AV54: 7.2486 | AW54: 7.2486 | AX54: 7.2486 | AY54: 7.2486 | AZ54: 7.2486 | BA54: 7.2486 | BB54: 7.2486 | BC54: 7.2486 | BD54: 7.2486 | BE54: 7.2486 | BF54: 7.2486 | BH54: 7.2486 | BI54: 7.2486 | BJ54: 7.2486 | BK54: 7.2486 | BL54: 7.2486 | BM54: 7.2486 | BN54: 7.2486 | BO54: 7.2486 | BP54: 7.2486 | BQ54: 7.2486 | BR54: 7.2486 | BS54: 7.2486 | BT54: 7.2486 | BU54: 7.2486 | BV54: 7.2486 | BW54: 7.2486 | BX54: 7.2486 | BY54: 7.2486 | BZ54: 7.2486 | CA54: 7.2486 | CB54: 7.2486 | CC54: 7.2486 | CD54: 7.2486 | CE54: 7.2486 | CF54: 7.2486 | CG54: 7.2486 | CH54: 7.2486 | CI54: 7.2486 | CJ54: =621.98*$V$32*$V$48*CJ53/($W$42-$V$32*$V$48*CJ53) -> 7.2486 | CK54: 7.2486 | CL54: 7.2486 | CM54: 7.2486 | CN54: 7.2486 | CO54: 7.2486 | CP54: 7.2486 | CQ54: 7.2486 | CR54: 7.2486 | CS54: 7.2486 | CT54: 7.2486 | CU54: 7.2486 | CV54: 7.2486 | CW54: 7.2486 | CX54: 7.2486 | CY54: 7.2486 | CZ54: 7.2486 | DA54: 7.2486 | DB54: 7.2486 | DC54: 7.2486 | DD54: 7.2486 | DE54: 7.2486 | DF54: 7.2486 | DG54: 7.2486 | DH54: 7.2486 | DI54: 7.2486 | DJ54: 7.2486 | DK54: 7.2486 | DL54: 7.2486 | DM54: 7.2486 | DN54: 7.2486 | DO54: 7.2486 | DP54: 7.2486 | DQ54: 7.2486 | DR54: 7.2486 | DS54: 7.2486 | DT54: 7.2486 | DU54: 7.2486 | DV54: 7.2486 | DW54: 7.2486 | DX54: 7.2486 | DY54: 7.2486 | DZ54: 7.2486 | EA54: 7.2486 | EB54: 7.2486 | EC54: 7.2486 | ED54: 7.2486 | EE54: 7.2486 | EF54: 7.2486 | EG54: 7.2486 | EH54: 7.2486 | EI54: 7.2486 | EJ54: 7.2486 | EK54: 7.2486 | EL54: 7.2486
U55: z | V55: =($V$49*($V$28+$V$29*(V54/1000))+((V54-$V$50)/1000)*(2685-$V$30))/($V$28+$V$29*(V54/1000)) -> 19.8340 | W55: =($V$49*($V$28+$V$29*(W54/1000))+((W54-$V$50)/1000)*(2685-$V$30))/($V$28+$V$29*(W54/1000)) -> 19.8557 | X55: 19.8709 | Y55: 19.8815 | Z55: 19.8889 | AA55: 19.8941 | AB55: 19.8977 | AC55: 19.9001 | AD55: 19.9019 | AE55: 19.9031 | AF55: 19.9039 | AG55: 19.9045 | AH55: 19.9049 | AI55: 19.9052 | AJ55: 19.9054 | AK55: 19.9055 | AL55: 19.9056 | AM55: 19.9057 | AN55: 19.9057 | AO55: 19.9057 | AP55: 19.9058 | AQ55: 19.9058 | AR55: 19.9058 | AS55: 19.9058 | AT55: 19.9058 | AU55: 19.9058 | AV55: 19.9058 | AW55: 19.9058 | AX55: 19.9058 | AY55: 19.9058 | AZ55: 19.9058 | BA55: 19.9058 | BB55: 19.9058 | BC55: 19.9058 | BD55: 19.9058 | BE55: 19.9058 | BF55: 19.9058 | BH55: 19.9058 | BI55: 19.9058 | BJ55: 19.9058 | BK55: 19.9058 | BL55: 19.9058 | BM55: 19.9058 | BN55: 19.9058 | BO55: 19.9058 | BP55: 19.9058 | BQ55: 19.9058 | BR55: 19.9058 | BS55: 19.9058 | BT55: 19.9058 | BU55: 19.9058 | BV55: 19.9058 | BW55: 19.9058 | BX55: 19.9058 | BY55: 19.9058 | BZ55: 19.9058 | CA55: 19.9058 | CB55: 19.9058 | CC55: 19.9058 | CD55: 19.9058 | CE55: 19.9058 | CF55: 19.9058 | CG55: 19.9058 | CH55: 19.9058 | CI55: =($V$49*($V$28+$V$29*(CI54/1000))+((CI54-$V$50)/1000)*(2685-$V$30))/($V$28+$V$29*(CI54/1000)) -> 19.9058 | CJ55: 19.9058 | CK55: 19.9058 | CL55: 19.9058 | CM55: 19.9058 | CN55: 19.9058 | CO55: 19.9058 | CP55: 19.9058 | CQ55: 19.9058 | CR55: 19.9058 | CS55: 19.9058 | CT55: 19.9058 | CU55: 19.9058 | CV55: 19.9058 | CW55: 19.9058 | CX55: 19.9058 | CY55: 19.9058 | CZ55: 19.9058 | DA55: 19.9058 | DB55: 19.9058 | DC55: 19.9058 | DD55: 19.9058 | DE55: 19.9058 | DF55: 19.9058 | DG55: 19.9058 | DH55: 19.9058 | DI55: 19.9058 | DJ55: 19.9058 | DK55: 19.9058 | DL55: 19.9058 | DM55: 19.9058 | DN55: 19.9058 | DO55: 19.9058 | DP55: 19.9058 | DQ55: 19.9058 | DR55: 19.9058 | DS55: 19.9058 | DT55: 19.9058 | DU55: 19.9058 | DV55: 19.9058 | DW55: 19.9058 | DX55: 19.9058 | DY55: 19.9058 | DZ55: 19.9058 | EA55: 19.9058 | EB55: 19.9058 | EC55: 19.9058 | ED55: 19.9058 | EE55: 19.9058 | EF55: 19.9058 | EG55: 19.9058 | EH55: 19.9058 | EI55: 19.9058 | EJ55: 19.9058 | EK55: 19.9058 | EL55: 19.9058
U56: Dz | V56: =V55-V51 -> 0.8329 | W56: =W55-W51 -> 0.5769 | X56: 0.3998 | Y56: 0.2772 | Z56: 0.1922 | AA56: 0.1333 | AB56: 0.0924 | AC56: 0.0641 | AD56: 0.0445 | AE56: 0.0309 | AF56: 0.0214 | AG56: 0.0149 | AH56: 0.0103 | AI56: 0.0071 | AJ56: 0.0050 | AK56: 0.0034 | AL56: 0.0024 | AM56: 0.0017 | AN56: 0.0011 | AO56: 0.0008 | AP56: 0.0006 | AQ56: 0.0004 | AR56: 0.0003 | AS56: 0.0002 | AT56: 0.0001 | AU56: 0.0001 | AV56: 0.0001 | AW56: 0.0000 | AX56: 0.0000 | AY56: 0.0000 | AZ56: 0.0000 | BA56: 0.0000 | BB56: 0.0000 | BC56: 0.0000 | BD56: 3.3105E-06 | BE56: 2.2968E-06 | BF56: 1.5935E-06 | BH56: 1.1055E-06 | BI56: 7.6699E-07 | BJ56: 5.3213E-07 | BK56: 3.6918E-07 | BL56: 2.5613E-07 | BM56: 1.7770E-07 | BN56: 1.2328E-07 | BO56: 8.5533E-08 | BP56: 5.9341E-08 | BQ56: 4.1170E-08 | BR56: 2.8563E-08 | BS56: 1.9816E-08 | BT56: 1.3748E-08 | BU56: 9.5383E-09 | BV56: 6.6175E-09 | BW56: 4.5911E-09 | BX56: 3.1852E-09 | BY56: 2.2099E-09 | BZ56: 1.5332E-09 | CA56: 1.0637E-09 | CB56: 7.3796E-10 | CC56: 5.1199E-10 | CD56: 3.5520E-10 | CE56: 2.4644E-10 | CF56: 1.7097E-10 | CG56: 1.1862E-10 | CH56: 8.2302E-11 | CI56: =CI55-CI51 -> 5.7099E-11 | CJ56: 3.9609E-11 | CK56: 2.7484E-11 | CL56: 1.9064E-11 | CM56: 1.3230E-11 | CN56: 9.1696E-12 | CO56: 6.3665E-12 | CP56: 4.4196E-12 | CQ56: 3.0660E-12 | CR56: 2.1245E-12 | CS56: 1.4850E-12 | CT56: 1.0125E-12 | CU56: 7.2120E-13 | CV56: 4.9383E-13 | CW56: 3.3751E-13 | CX56: 2.2737E-13 | CY56: 1.6698E-13 | CZ56: 1.1013E-13 | DA56: 7.4607E-14 | DB56: 7.4607E-14 | DC56: 4.9738E-14 | DD56: 3.1974E-14 | DE56: 0.0000E+00 | DF56: 0.0000E+00 | DG56: 0.0000E+00 | DH56: 0.0000E+00 | DI56: 0.0000E+00 | DJ56: 0.0000E+00 | DK56: 0.0000E+00 | DL56: 0.0000E+00 | DM56: 0.0000E+00 | DN56: 0.0000E+00 | DO56: 0.0000E+00 | DP56: 0.0000E+00 | DQ56: 0.0000E+00 | DR56: 0.0000E+00 | DS56: 0.0000E+00 | DT56: 0.0000E+00 | DU56: 0.0000E+00 | DV56: 0.0000E+00 | DW56: 0.0000E+00 | DX56: 0.0000E+00 | DY56: 0.0000E+00 | DZ56: 0.0000E+00 | EA56: 0.0000E+00 | EB56: 0.0000E+00 | EC56: 0.0000E+00 | ED56: 0.0000E+00 | EE56: 0.0000E+00 | EF56: 0.0000E+00 | EG56: 0.0000E+00 | EH56: 0.0000E+00 | EI56: 0.0000E+00 | EJ56: 0.0000E+00 | EK56: 0.0000E+00 | EL56: 0.0000E+00
U57: k | V57: =GRAFICI!M3 -> 3 | W57: =V57 -> 3 | X57: 3 | Y57: 3 | Z57: 3 | AA57: 3 | AB57: 3 | AC57: 3 | AD57: 3 | AE57: 3 | AF57: 3 | AG57: 3 | AH57: 3 | AI57: 3 | AJ57: 3 | AK57: 3 | AL57: 3 | AM57: 3 | AN57: 3 | AO57: 3 | AP57: 3 | AQ57: 3 | AR57: 3 | AS57: 3 | AT57: 3 | AU57: 3 | AV57: 3 | AW57: 3 | AX57: 3 | AY57: 3 | AZ57: 3 | BA57: 3 | BB57: 3 | BC57: 3 | BD57: 3 | BE57: 3 | BF57: 3 | BH57: =BF57 -> 3 | BI57: 3 | BJ57: 3 | BK57: 3 | BL57: 3 | BM57: 3 | BN57: 3 | BO57: 3 | BP57: 3 | BQ57: 3 | BR57: 3 | BS57: 3 | BT57: 3 | BU57: 3 | BV57: 3 | BW57: 3 | BX57: 3 | BY57: 3 | BZ57: 3 | CA57: 3 | CB57: 3 | CC57: 3 | CD57: 3 | CE57: 3 | CF57: 3 | CG57: 3 | CH57: 3 | CI57: 3 | CJ57: =CI57 -> 3 | CK57: 3 | CL57: 3 | CM57: 3 | CN57: 3 | CO57: 3 | CP57: 3 | CQ57: 3 | CR57: 3 | CS57: 3 | CT57: 3 | CU57: 3 | CV57: 3 | CW57: 3 | CX57: 3 | CY57: 3 | CZ57: 3 | DA57: 3 | DB57: 3 | DC57: 3 | DD57: 3 | DE57: 3 | DF57: 3 | DG57: 3 | DH57: 3 | DI57: 3 | DJ57: 3 | DK57: 3 | DL57: 3 | DM57: 3 | DN57: 3 | DO57: 3 | DP57: 3 | DQ57: 3 | DR57: 3 | DS57: 3 | DT57: 3 | DU57: 3 | DV57: 3 | DW57: 3 | DX57: 3 | DY57: 3 | DZ57: 3 | EA57: 3 | EB57: 3 | EC57: 3 | ED57: 3 | EE57: 3 | EF57: 3 | EG57: 3 | EH57: 3 | EI57: 3 | EJ57: 3 | EK57: 3 | EL57: 3
U59: Errore | W59: =EL56 -> 0.0000E+00
U60: Temperatura °C | W60: =AVERAGE(EL51,EL55) -> 19.9058
U61: Umidità specifica g/kg | W61: =DZ54 -> 7.2
U64: Tabella UE*X | AI64: Tabella UR*H | AU64: Tabella UE*Y
U66: Portata minima | W66: =GRAFICI!M7 -> 50% | AI66: Portata minima | AK66: =W66 -> 50% | AU66: Portata minima | AW66: =+W66 -> 50%
U67: Massimo numero umi | W67: =GRAFICI!M6 -> 1 | AI67: Massimo numero umi | AK67: =W67 -> 1 | AU67: Massimo numero umi | AW67: =+W67 -> 1
C69: =LINGUA!C517 -> WARNING: the pre-heating must be supplied by an external device | U69: # | V69: Code | W69: Max | X69: Uscite | Y69: d_uscite | Z69: 230 1~ | AA69: 400 3~ | AB69: #_umi | AC69: Max_flow | AD69: Min_flow | AE69: Si/No | AF69: Quale | AI69: # | AJ69: Code | AK69: Max | AL69: Uscite | AM69: d_uscite | AN69: #_umi | AO69: Max_flow | AP69: Min_flow | AQ69: Si/No | AR69: Quale | AU69: # | AV69: Code | AW69: Max | AX69: Uscite | AY69: d_uscite | AZ69: 230 1~ | BA69: 400 3~ | BB69: #_umi | BC69: Max_flow | BD69: Min_flow | BE69: Si/No | BF69: Quale
U70: 1 | V70: UE001 | W70: 1.5 | X70: 1 | Y70: 22 | Z70: 1 | AB70: =CEILING($E$84/W70,1) -> 41 | AC70: =MIN(AB70,$W$67)*W70 -> 1.5 | AD70: =AC70*$W$66 -> 0.75 | AE70: =IF(OR(AC70=$E$84,AC70>$E$84),IF(OR(AD70=$E$84,AD70<$E$84),1,0),0) -> 0 | AF70: =AE70*U70 -> 0 | AI70: 27 | AJ70: UR002HD002 | AK70: 2 | AL70: 1 | AM70: 30 | AN70: =CEILING($E$84/AK70,1) -> 31 | AO70: =MIN(AN70,$AK$67)*AK70 -> 2 | AP70: =AO70*$AK$66 -> 1 | AQ70: =IF(OR(AO70=$E$84,AO70>$E$84),IF(OR(AP70=$E$84,AP70<$E$84),1,0),0) -> 0 | AR70: =AQ70*AI70 -> 0 | AU70: 15 | AV70: UE001 | AW70: 1.5 | AX70: 1 | AY70: 22 | AZ70: 1 | BB70: =CEILING($E$84/AW70,1) -> 41 | BC70: =MIN(BB70,$W$67)*AW70 -> 1.5 | BD70: =BC70*$W$66 -> 0.75 | BE70: =IF(OR(BC70=$E$84,BC70>$E$84),IF(OR(BD70=$E$84,BD70<$E$84),1,0),0) -> 0 | BF70: =BE70*AU70 -> 0
B71: =LINGUA!B54 -> STEP 2 | U71: =U70+1 -> 2 | V71: UE003 | W71: 3 | X71: 1 | Y71: 22 | Z71: 1 | AA71: 1 | AB71: 21 | AC71: 3 | AD71: 1.5 | AE71: 0 | AF71: =IF(SUM(AF$70:AF70)=0,AE71,0)*U71 -> 0 | AI71: =AI70+1 -> 28 | AJ71: UR004HD002 | AK71: 4 | AL71: 1 | AM71: 30 | AN71: =CEILING($E$84/AK71,1) -> 16 | AO71: =MIN(AN71,$AK$67)*AK71 -> 4 | AP71: =AO71*$AK$66 -> 2 | AQ71: =IF(OR(AO71=$E$84,AO71>$E$84),IF(OR(AP71=$E$84,AP71<$E$84),1,0),0) -> 0 | AR71: =IF(SUM(AR$70:AR70)=0,AQ71,0)*AI71 -> 0 | AU71: =AU70+1 -> 16 | AV71: UE003 | AW71: 3 | AX71: 1 | AY71: 22 | AZ71: 1 | BA71: 1 | BB71: 21 | BC71: 3 | BD71: 1.5 | BE71: 0 | BF71: =IF(SUM(BF$70:BF70)=0,BE71,0)*AU71 -> 0
U72: =U71+1 -> 3 | V72: UE005 | W72: 5 | X72: 1 | Y72: 30 | Z72: 1 | AA72: 1 | AB72: 13 | AC72: 5 | AD72: 2.5 | AE72: 0 | AF72: =IF(SUM(AF$70:AF71)=0,AE72,0)*U72 -> 0 | AI72: =AI71+1 -> 29 | AJ72: UR006HD002 | AK72: 6 | AL72: 1 | AM72: 30 | AN72: =CEILING($E$84/AK72,1) -> 11 | AO72: =MIN(AN72,$AK$67)*AK72 -> 6 | AP72: =AO72*$AK$66 -> 3 | AQ72: =IF(OR(AO72=$E$84,AO72>$E$84),IF(OR(AP72=$E$84,AP72<$E$84),1,0),0) -> 0 | AR72: =IF(SUM(AR$70:AR71)=0,AQ72,0)*AI72 -> 0 | AU72: 17 | AV72: UE005 | AW72: 5 | AX72: 1 | AY72: 30 | AZ72: 1 | BA72: 1 | BB72: 13 | BC72: 5 | BD72: 2.5 | BE72: 0 | BF72: =IF(SUM(BF$70:BF71)=0,BE72,0)*AU72 -> 0
U73: 4 | V73: UE008 | W73: 8 | X73: 1 | Y73: 30 | AA73: 1 | AB73: 8 | AC73: 8 | AD73: 4 | AE73: 0 | AF73: =IF(SUM(AF$70:AF72)=0,AE73,0)*U73 -> 0 | AI73: 30 | AJ73: UR010HL002 | AK73: 10 | AL73: 1 | AM73: 30 | AN73: =CEILING($E$84/AK73,1) -> 7 | AO73: =MIN(AN73,$AK$67)*AK73 -> 10 | AP73: =AO73*$AK$66 -> 5 | AQ73: =IF(OR(AO73=$E$84,AO73>$E$84),IF(OR(AP73=$E$84,AP73<$E$84),1,0),0) -> 0 | AR73: =IF(SUM(AR$70:AR72)=0,AQ73,0)*AI73 -> 0 | AU73: 18 | AV73: UE008 | AW73: 8 | AX73: 1 | AY73: 30 | BA73: 1 | BB73: 8 | BC73: 8 | BD73: 4 | BE73: 0 | BF73: =IF(SUM(BF$70:BF72)=0,BE73,0)*AU73 -> 0
C74: =LINGUA!B14 -> Duct | U74: 5 | V74: UE009 | W74: 9 | X74: 1 | Y74: 30 | Z74: 1 | AB74: 7 | AC74: 9 | AD74: 4.5 | AE74: 0 | AF74: =IF(SUM(AF$70:AF73)=0,AE74,0)*U74 -> 0 | AI74: 31 | AJ74: UR013HL002 | AK74: 13 | AL74: 1 | AM74: 30 | AN74: =CEILING($E$84/AK74,1) -> 5 | AO74: =MIN(AN74,$AK$67)*AK74 -> 13 | AP74: =AO74*$AK$66 -> 6.5 | AQ74: =IF(OR(AO74=$E$84,AO74>$E$84),IF(OR(AP74=$E$84,AP74<$E$84),1,0),0) -> 0 | AR74: =IF(SUM(AR$70:AR73)=0,AQ74,0)*AI74 -> 0 | AU74: 19 | AV74: UE009 | AW74: 9 | AX74: 1 | AY74: 30 | AZ74: 1 | BB74: 7 | BC74: 9 | BD74: 4.5 | BE74: 0 | BF74: =IF(SUM(BF$70:BF73)=0,BE74,0)*AU74 -> 0
C75: =LINGUA!B15 -> Internal width C1 | E75: 1200 | F75: =LINGUA!K3 -> mm | U75: 6 | V75: UE010 | W75: 10 | X75: 1 | Y75: 30 | AA75: 1 | AB75: 7 | AC75: 10 | AD75: 5 | AE75: 0 | AF75: =IF(SUM(AF$70:AF74)=0,AE75,0)*U75 -> 0 | AI75: 32 | AJ75: UR020HL002 | AK75: 20 | AL75: 1 | AM75: 40 | AN75: =CEILING($E$84/AK75,1) -> 4 | AO75: =MIN(AN75,$AK$67)*AK75 -> 20 | AP75: =AO75*$AK$66 -> 10 | AQ75: =IF(OR(AO75=$E$84,AO75>$E$84),IF(OR(AP75=$E$84,AP75<$E$84),1,0),0) -> 0 | AR75: =IF(SUM(AR$70:AR74)=0,AQ75,0)*AI75 -> 0 | AU75: 20 | AV75: UE010 | AW75: 10 | AX75: 1 | AY75: 30 | BA75: 1 | BB75: 7 | BC75: 10 | BD75: 5 | BE75: 0 | BF75: =IF(SUM(BF$70:BF74)=0,BE75,0)*AU75 -> 0
C76: =LINGUA!B16 -> Internal height C2 | E76: 1100 | F76: =LINGUA!K3 -> mm | U76: 7 | V76: UE015 | W76: 15 | X76: 1 | Y76: 30 | AA76: 1 | AB76: 5 | AC76: 15 | AD76: 7.5 | AE76: =IF(OR(AC76=$E$84,AC76>$E$84),IF(OR(AD76=$E$84,AD76<$E$84),1,0),0) -> 0 | AF76: =IF(SUM(AF$70:AF75)=0,AE76,0)*U76 -> 0 | AI76: 33 | AJ76: UR027HL002 | AK76: 27 | AL76: 1 | AM76: 40 | AN76: 3 | AO76: 27 | AP76: 13.5 | AQ76: 0 | AR76: =IF(SUM(AR$70:AR75)=0,AQ76,0)*AI76 -> 0 | AU76: 21 | AV76: UE015 | AW76: 15 | AX76: 1 | AY76: 30 | BA76: 1 | BB76: 5 | BC76: 15 | BD76: 7.5 | BE76: 0 | BF76: =IF(SUM(BF$70:BF75)=0,BE76,0)*AU76 -> 0
C77: =LINGUA!B18 -> Air flow V | E77: 10000 | F77: =LINGUA!K7 -> m^3/h | U77: =U76+1 -> 8 | V77: UE018 | W77: 18 | X77: 1 | Y77: 30 | AA77: 1 | AB77: 4 | AC77: =MIN(AB77,$W$67)*W77 -> 18 | AD77: =AC77*$W$66 -> 9 | AE77: 0 | AF77: =IF(SUM(AF$70:AF76)=0,AE77,0)*U77 -> 0 | AI77: 34 | AJ77: UR040HL002 | AK77: 40 | AL77: 1 | AM77: 40 | AN77: 2 | AO77: 40 | AP77: 20 | AQ77: 0 | AR77: =IF(SUM(AR$70:AR76)=0,AQ77,0)*AI77 -> 0 | AU77: 22 | AV77: UE018 | AW77: 18 | AX77: 1 | AY77: 30 | BA77: 1 | BB77: 4 | BC77: =MIN(BB77,$W$67)*AW77 -> 18 | BD77: =BC77*$W$66 -> 9 | BE77: 0 | BF77: =IF(SUM(BF$70:BF76)=0,BE77,0)*AU77 -> 0
C78: =LINGUA!B19 -> Air flow GA | E78: =(E77*29*(AF42/(V31*(V27+AG43))))/(1+1.6078*J36/1000) -> 12,055 | F78: =LINGUA!K8 -> kg/h | U78: 9 | V78: UE025 | W78: 25 | X78: 1 | Y78: 40 | AA78: 1 | AB78: 3 | AC78: 25 | AD78: 12.5 | AE78: 0 | AF78: =IF(SUM(AF$70:AF77)=0,AE78,0)*U78 -> 0 | AI78: 35 | AJ78: UR053HL002 | AK78: 53 | AL78: 2 | AM78: 40 | AN78: 2 | AO78: 53 | AP78: 26.5 | AQ78: 0 | AR78: =IF(SUM(AR$70:AR77)=0,AQ78,0)*AI78 -> 0 | AU78: 23 | AV78: UE025 | AW78: 25 | AX78: 1 | AY78: 40 | BA78: 1 | BB78: 3 | BC78: =MIN(BB78,$W$67)*AW78 -> 25 | BD78: 12.5 | BE78: 0 | BF78: =IF(SUM(BF$70:BF77)=0,BE78,0)*AU78 -> 0
C79: =LINGUA!B20 -> Air speed | E79: =(1000*1000)*E77/(3600*E75*E76) -> 2.10 | F79: =LINGUA!K5 -> m/sec | U79: 10 | V79: UE035 | W79: 35 | X79: 1 | Y79: 40 | AA79: 1 | AB79: 2 | AC79: 35 | AD79: 17.5 | AE79: 0 | AF79: =IF(SUM(AF$70:AF78)=0,AE79,0)*U79 -> 0 | AI79: 36 | AJ79: UR060HL002 | AK79: 60 | AL79: 2 | AM79: 40 | AN79: 2 | AO79: 60 | AP79: 30 | AQ79: 0 | AR79: =IF(SUM(AR$70:AR78)=0,AQ79,0)*AI79 -> 0 | AU79: 24 | AV79: UE035 | AW79: 35 | AX79: 1 | AY79: 40 | BA79: 1 | BB79: 2 | BC79: =MIN(BB79,$W$67)*AW79 -> 35 | BD79: 17.5 | BE79: 0 | BF79: =IF(SUM(BF$70:BF78)=0,BE79,0)*AU79 -> 0
U80: 11 | V80: UE045 | W80: 45 | X80: 1 | Y80: 40 | AA80: 1 | AB80: 2 | AC80: 45 | AD80: 22.5 | AE80: 0 | AF80: =IF(SUM(AF$70:AF79)=0,AE80,0)*U80 -> 0 | AI80: 37 | AJ80: UR080HL002 | AK80: 80 | AL80: 2 | AM80: 40 | AN80: 1 | AO80: 80 | AP80: 40 | AQ80: 1 | AR80: =IF(SUM(AR$70:AR79)=0,AQ80,0)*AI80 -> 37 | AU80: 25 | AV80: UE045 | AW80: 45 | AX80: 1 | AY80: 40 | BA80: 1 | BB80: 2 | BC80: =MIN(BB80,$W$67)*AW80 -> 45 | BD80: 22.5 | BE80: 0 | BF80: =IF(SUM(BF$70:BF79)=0,BE80,0)*AU80 -> 0
U81: 12 | V81: UE065 | W81: 65 | X81: 2 | Y81: 40 | AA81: 1 | AB81: 1 | AC81: 65 | AD81: 32.5 | AE81: 1 | AF81: =IF(SUM(AF$70:AF80)=0,AE81,0)*U81 -> 12 | AU81: 26 | AV81: UE065 | AW81: 65 | AX81: 2 | AY81: 40 | BA81: 1 | BB81: 1 | BC81: =MIN(BB81,$W$67)*AW81 -> 65 | BD81: 32.5 | BE81: 1 | BF81: =IF(SUM(BF$70:BF80)=0,BE81,0)*AU81 -> 26
U82: 13 | V82: UE090 | W82: 90 | X82: 2 | Y82: 40 | AA82: 1 | AB82: 1 | AC82: 90 | AD82: 45 | AE82: 1 | AF82: =IF(SUM(AF$70:AF81)=0,AE82,0)*U82 -> 0
G83: =IF(D93="","",IF(GRAFICI!M10="No",IF(V218>0,"",LINGUA!B22),IF(V255>0,"",LINGUA!B22))) ->  | U83: 14 | V83: UE130 | W83: 130 | X83: 4 | Y83: 40 | AA83: 1 | AB83: 1 | AC83: =MIN(AB83,$W$67)*W83 -> 130 | AD83: 65 | AE83: 0 | AF83: =IF(SUM(AF$70:AF82)=0,AE83,0)*U83 -> 0
B84: =LINGUA!B21 -> Total water flow Gw | E84: =IF(E40="",E78*AI46/1000,0) -> 60.916 | F84: =LINGUA!K8 -> kg/h | J84: =IF(E76>GRAFICI!M11,"",LINGUA!B23) ->  | AI84: # umidificatore | AK84: =SUM(AR70:AR80) -> 37
U85: # umidificatore | W85: =SUM(AF70:AF83) -> 12 | AI85: Code umidificatore | AK85: =IF(AK84=0,"",LOOKUP(AK84,AI70:AI80,AJ70:AJ80)) -> UR080HL002 | AL85: =IF(AK84=0,"",IF(AK85="","",CONCATENATE(AK85,AL88,AL86,AL87))) -> UR080HL002010240 | AU85: # umidificatore | AW85: =SUM(BF70:BF81) -> 26
B86: =LINGUA!B52 -> Number of humidifiers | E86: 1 | F86: (1-99) | U86: Code umidificatore | W86: =IF(W85=0,"",LOOKUP(W85,U70:U83,V70:V83)) -> UE065 | AI86: Uscite | AK86: =IF(AK84=0,"",LOOKUP(AK84,AI70:AI80,AL70:AL80)) -> 2 | AL86: =IF(LEN(AK86)=1,CONCATENATE("0",AK86),CONCATENATE(AK86)) -> 02 | AU86: Code umidificatore | AW86: =IF(AW85=0,"",LOOKUP(AW85,AU70:AU81,AV70:AV81)) -> UE065
U87: Uscite | W87: =IF(W85=0,"",LOOKUP(W85,U70:U83,X70:X83)) -> 2 | X87: =IF(LEN(W87)=1,CONCATENATE("0",W87),CONCATENATE(W87)) -> 02 | AI87: D uscita | AK87: =IF(AK84=0,"",LOOKUP(AK84,AI70:AI80,AM70:AM80)) -> 40 | AL87: =IF(LEN(AK87)=1,CONCATENATE("0",AK87),CONCATENATE(AK87)) -> 40 | AU87: Uscite | AW87: =IF(AW85=0,"",LOOKUP(AW85,AU70:AU81,AX70:AX81)) -> 2 | AX87: =IF(LEN(AW87)=1,CONCATENATE("0",AW87),CONCATENATE(AW87)) -> 02
U88: D uscita | W88: =IF(W85=0,"",LOOKUP(W85,U70:U83,Y70:Y83)) -> 40 | X88: =IF(LEN(W88)=1,CONCATENATE("0",W88),CONCATENATE(W88)) -> 40 | AI88: #_umidificatori | AK88: =IF(AK84=0,"",LOOKUP(AK84,AI70:AI80,AN70:AN80)) -> 1 | AL88: =IF(LEN(AK88)=1,CONCATENATE("0",AK88),CONCATENATE(AK88)) -> 01 | AU88: D uscita | AW88: =IF(AW85=0,"",LOOKUP(AW85,AU70:AU81,AY70:AY81)) -> 40 | AX88: =IF(LEN(AW88)=1,CONCATENATE("0",AW88),CONCATENATE(AW88)) -> 40
B89: =LINGUA!B55 -> STEP 3 | U89: C'è 230 V 1p | W89: =IF(W85=0,"",LOOKUP(W85,U70:U83,Z70:Z83)) -> 0 | AU89: C'è 230 V 1p | AW89: =IF(AW85=0,"",LOOKUP(AW85,AU70:AU81,AZ70:AZ81)) -> 0
U90: C'è 400V 3p | W90: =IF(W85=0,"",LOOKUP(W85,U70:U82,AA70:AA82)) -> 1 | AU90: C'è 400V 3p | AW90: =IF(AW85=0,"",LOOKUP(AW85,AU70:AU82,BA70:BA82)) -> 1
D91: =LINGUA!C50 -> Choice of the humidifier | U91: #_umidificatori | W91: =IF(W85=0,"",LOOKUP(W85,U70:U83,AB70:AB83)) -> 1 | X91: =IF(LEN(W91)=1,CONCATENATE("0",W91),CONCATENATE(W91)) -> 01 | AU91: #_umidificatori | AW91: =IF(AW85=0,"",LOOKUP(AW85,AU70:AU81,BB70:BB81)) -> 1 | AX91: =IF(LEN(AW91)=1,CONCATENATE("0",AW91),CONCATENATE(AW91)) -> 01
D93: UR080H | F93: =MID(D93,1,2) -> UR | G93: =VLOOKUP(D93,AI134:AK181,3,0) -> heaterSteam humidifier 80 kg/h | K93: UR | U93: Umidificatori UE*X possibili | AU93: Umidificatori UE*Y possibili
K94: UE | U94: 230 V1p | W94: =IF(W89=0,"",CONCATENATE(W86,"XD000")) ->  | X94: =IF(W85=0,"",IF(W94="","",CONCATENATE(W94,X91,X87,X88))) ->  | AU94: 230 V1p | AW94: =IF(AW89=0,"",CONCATENATE(AW86,"YD000")) ->  | AX94: =IF(AW85=0,"",IF(AW94="","",CONCATENATE(AW94,AX91,AX87,AX88))) -> 
G95: =VALUE(MID($D$93,3,3)) -> 80 | K95: UG | U95: 400 V1p | W95: =IF(W94="",IF(W90=0,"",CONCATENATE(W86,"XL000")),"") -> UE065XL000 | X95: =IF(W85=0,"",IF(W95="","",CONCATENATE(W95,X91,X87,X88))) -> UE065XL000010240 | AU95: 400 V1p | AW95: =IF(AW94="",IF(AW90=0,"",CONCATENATE(AW86,"YL000")),"") -> UE065YL000 | AX95: =IF(AW85=0,"",IF(AW95="","",CONCATENATE(AW95,AX91,AX87,AX88))) -> UE065YL000010240
D96: =LINGUA!C73 -> Voltage specification | G96: =IF($E$84>$G$95,LINGUA!$B$75,"") -> 
AI97: Tabella UR*C
D98: 400V, 3phase | G98: =IF(DESIGN!AX133=1,"",LINGUA!C65) ->  | U98: Tabella gaSteam
AI99: Portata minima | AK99: =W66 -> 50%
U100: Portata minima | W100: =W66 -> 50% | AI100: Massimo numero umi | AK100: =W67 -> 1
D101: =LINGUA!C74 -> Options specification | U101: Massimo numero umi | W101: =W67 -> 1
AI102: # | AJ102: Code | AK102: Max | AL102: Uscite | AM102: d_uscite | AN102: #_umi | AO102: Max_flow | AP102: Min_flow | AQ102: Si/No | AR102: Quale
D103: heaterSteam Titanium | G103: =IF(DESIGN!BI133=1,"",LINGUA!C66) ->  | U103: # | V103: Code | W103: Max | X103: Uscite | Y103: d_uscite | Z103: #_umi | AA103: Max_flow | AB103: Min_flow | AC103: Si/No | AD103: Quale | AI103: 38 | AJ103: UR002CD101 | AK103: 2 | AL103: 1 | AM103: 30 | AN103: =CEILING($E$84/AK103,1) -> 31 | AO103: =MIN(AN103,$AK$100)*AK103 -> 2 | AP103: =AO103*$AK$99 -> 1 | AQ103: =IF(OR(AO103=$E$84,AO103>$E$84),IF(OR(AP103=$E$84,AP103<$E$84),1,0),0) -> 0 | AR103: =AQ103*AI103 -> 0
U104: 46 | V104: UG045HD003 | W104: 45 | X104: 2 | Y104: 40 | Z104: =CEILING($E$84/W104,1) -> 2 | AA104: =MIN(Z104,$W$101)*W104 -> 45 | AB104: =AA104*$W$100 -> 22.5 | AC104: =IF(OR(AA104=$E$84,AA104>$E$84),IF(OR(AB104=$E$84,AB104<$E$84),1,0),0) -> 0 | AD104: =AC104*U104 -> 0 | AI104: =AI103+1 -> 39 | AJ104: UR004CD101 | AK104: 4 | AL104: 1 | AM104: 30 | AN104: 16 | AO104: =MIN(AN104,$AK$100)*AK104 -> 4 | AP104: =AO104*$AK$99 -> 2 | AQ104: 0 | AR104: =IF(SUM(AR$103:AR103)=0,AQ104,0)*AI104 -> 0
U105: =U104+1 -> 47 | V105: UG090HD003 | W105: 90 | X105: 2 | Y105: 40 | Z105: =CEILING($E$84/W105,1) -> 1 | AA105: =MIN(Z105,$W$101)*W105 -> 90 | AB105: =AA105*$W$100 -> 45 | AC105: =IF(OR(AA105=$E$84,AA105>$E$84),IF(OR(AB105=$E$84,AB105<$E$84),1,0),0) -> 1 | AD105: =IF(SUM(AD$104:AD104)=0,AC105,0)*U105 -> 47 | AI105: =AI104+1 -> 40 | AJ105: UR006CD101 | AK105: 6 | AL105: 1 | AM105: 30 | AN105: 11 | AO105: 6 | AP105: 3 | AQ105: 0 | AR105: =IF(SUM(AR$103:AR104)=0,AQ105,0)*AI105 -> 0
U106: =U105+1 -> 48 | V106: UG180HD003 | W106: 180 | X106: 4 | Y106: 40 | Z106: =CEILING($E$84/W106,1) -> 1 | AA106: =MIN(Z106,$W$101)*W106 -> 180 | AB106: =AA106*$W$100 -> 90 | AC106: =IF(OR(AA106=$E$84,AA106>$E$84),IF(OR(AB106=$E$84,AB106<$E$84),1,0),0) -> 0 | AD106: =IF(SUM(AD$104:AD105)=0,AC106,0)*U106 -> 0 | AI106: 41 | AJ106: UR010CL101 | AK106: 10 | AL106: 1 | AM106: 30 | AN106: 7 | AO106: 10 | AP106: 5 | AQ106: 0 | AR106: =IF(SUM(AR$103:AR105)=0,AQ106,0)*AI106 -> 0
AI107: 42 | AJ107: UR020CL10S | AK107: 20 | AL107: 1 | AM107: 40 | AN107: 4 | AO107: 20 | AP107: 10 | AQ107: 0 | AR107: =IF(SUM(AR$103:AR106)=0,AQ107,0)*AI107 -> 0
U108: # umidificatore | W108: =SUM(AD104:AD106) -> 47 | AI108: 43 | AJ108: UR027CL101 | AK108: 27 | AL108: 1 | AM108: 40 | AN108: 3 | AO108: 27 | AP108: 13.5 | AQ108: 0 | AR108: =IF(SUM(AR$103:AR107)=0,AQ108,0)*AI108 -> 0
U109: Code umidificatore | W109: =IF(W108=0,"",LOOKUP(W108,U104:U106,V104:V106)) -> UG090HD003 | X109: =IF(W108=0,"",IF(W109="","",CONCATENATE(W109,X112,X110,X111))) -> UG090HD003010240 | AI109: 44 | AJ109: UR040CL101 | AK109: 40 | AL109: 1 | AM109: 40 | AN109: 2 | AO109: 40 | AP109: 20 | AQ109: 0 | AR109: =IF(SUM(AR$103:AR108)=0,AQ109,0)*AI109 -> 0
F110: =IF(G98<>""," ", IF(G103<>""," ",BN134)) -> UR080HL103 | U110: Uscite | W110: =IF(W108=0,"",LOOKUP(W108,U104:U106,X104:X106)) -> 2 | X110: =IF(LEN(W110)=1,CONCATENATE("0",W110),CONCATENATE(W110)) -> 02 | AI110: 45 | AJ110: UR060CL101 | AK110: 60 | AL110: 2 | AM110: 40 | AN110: 2 | AO110: 60 | AP110: 30 | AQ110: 0 | AR110: =IF(SUM(AR$103:AR109)=0,AQ110,0)*AI110 -> 0
U111: D uscita | W111: =IF(W108=0,"",LOOKUP(W108,U104:U106,Y104:Y106)) -> 40 | X111: =IF(LEN(W111)=1,CONCATENATE("0",W111),CONCATENATE(W111)) -> 40
U112: #_umidificatore | W112: =IF(W108=0,"",LOOKUP(W108,U104:U106,Z104:Z106)) -> 1 | X112: =IF(LEN(W112)=1,CONCATENATE("0",W112),CONCATENATE(W112)) -> 01
B113: =LINGUA!C558 -> STEP 4
D115: =LINGUA!C549 -> Choise of the Steam Distributor (if required)
D117: =LINGUA!C550 -> Steam distributor suggested automatically by the tool
C119: FALSE | D119: =LINGUA!C554 -> Steam distributor code | G119: =LINGUA!B57 -> No. of distributors in the duct | AI119: # umidificatore | AK119: =SUM(AR103:AR110) -> 0
D120: =VLOOKUP(1,DP!A2:D64,4,0) -> DP060D40RU | G120: =VLOOKUP(1,DP!A2:N64,14,0)*E86 -> 2 | AI120: Code umidificatore | AK120: =IF(AK119=0,"",LOOKUP(AK119,AI103:AI110,AJ103:AJ110)) ->  | AL120: =IF(AK119=0,"",IF(AK120="","",CONCATENATE(AK120,AL123,AL121,AL122))) -> 
AI121: Uscite | AK121: =IF(AK119=0,"",LOOKUP(AK119,AI103:AI110,AL103:AL110)) ->  | AL121: =IF(LEN(AK121)=1,CONCATENATE("0",AK121),CONCATENATE(AK121)) -> 
D122: =LINGUA!B61 -> Humidification distance (m) | G122: =LINGUA!B20 -> Air speed | AI122: D uscita | AK122: =IF(AK119=0,"",LOOKUP(AK119,AI103:AI110,AM103:AM110)) ->  | AL122: =IF(LEN(AK122)=1,CONCATENATE("0",AK122),CONCATENATE(AK122)) ->  | AR122: UG230
D123: ='Steam absoprtion distance-AUTO'!$M$18 -> 1.5 | G123: ='Steam absoprtion distance-AUTO'!M15 -> 2.1 | AI123: #_umidificatori | AK123: =IF(AK119=0,"",LOOKUP(AK119,AI103:AI110,AN103:AN110)) ->  | AL123: =IF(LEN(AK123)=1,CONCATENATE("0",AK123),CONCATENATE(AK123)) ->  | AP123: =MID(D93,3,3) -> 080 | AR123: UE001 | AS123: 001;002;004;009
AR124: UE003 | AS124: 003;
D125: =LINGUA!B59 -> Max kg/h per distributor | G125: =LINGUA!B60 -> Distributor length (mm) | AR125: UE005 | AS125: 005;
D126: ='Steam absoprtion distance-AUTO'!M9 -> 45 | G126: ='Steam absoprtion distance-AUTO'!M12 -> 600 | AR126: UE006 | AS126: 006; | AX126: =IF(F93=K95,AQ133,IF(AP123=(OR(AX134,AX160,AX161,AX138)),_UE01,IF(AP123=AX135,_UE03,IF(AP123=AX162,_UE06,IF(AP123=AX136,_UE05,IF(AP123=(OR(AX137,AX139,AX140,AX142,AX144,AX143,AX165,AX166)),_UE08,_UE18)))))) -> 
U127: Stringa degli umidificatori che rispondono ai criteri | AB127: =CONCATENATE(X94,X95,AX94,AX95,AL85,X109) -> UE065XL000010240UE065YL000010240UR080HL002010240UG090HD003010240 | AR127: UE008 | AS127: 008;010;015;025;035;045;020;027
AR128: UE018 | AS128: 018;065;090;130;040;060 | BL128: Codice finale
D130: =LINGUA!B51 -> Y connection for steam hose | G130: =LINGUA!B26 -> Quantity | O130: =LINGUA!C559 -> Chosen by the tool | U130: ref | V130: Codice | W130: # | X130: uscite | Y130: d | Z130: # | AA130: uscite | AB130: d | AC130: ref | AJ130: Modelli | AO130: Tensioni possibili | BA130: Opzional possibili | BP130: UR020H
D131: =IF(VLOOKUP(1,DP!A2:S64,19,0)<>0,VLOOKUP(1,DP!A2:S64,19,0)," ") ->  | G131: =IF(D131=" "," ",ROUNDUP(G120/2,0)) ->  | O131: =LINGUA!C560 -> Chosen by the user | U131: 1 | V131: =MID($AB$127,U131,6) -> UE065X | W131: =VALUE(MID($AB$127,U131+10,2)) -> 1 | X131: =VALUE(MID($AB$127,U131+12,2)) -> 2 | Y131: =VALUE(MID($AB$127,U131+14,2)) -> 40 | Z131: =IF($V131=$D$93,W131,"") ->  | AA131: =IF($V131=$D$93,X131,"") ->  | AC131: =U131 -> 1 | AX131: =(VLOOKUP($D$93,$AI$134:$AJ$181,2,0)+1) -> 38 | BI131: =(VLOOKUP($D$93,$AI$134:$AJ$181,2,0)+1) -> 38 | BL131: =D93 -> UR080H | BP131: UR020C
U133: =U131+16 -> 17 | V133: UE065Y | W133: 1 | X133: 2 | Y133: 40 | AC133: =U133 -> 17 | AP133: 208V, 1phase | AQ133: 230V, 1phase | AR133: 208V, 3phase | AS133: 230V, 3phase | AT133: 400V, 3phase | AU133: 460V, 3phase | AV133: 575V, 3phase | AW133: kg/h | AX133: =HLOOKUP($D$98,$AP$133:$AV$181,AX131,0) -> 1 | BB133: =BJ142 -> Disposable cylinder (humiSteam only) | BC133: =BJ143 -> Cleanable cylinder (humiSteam only) | BD133: =BJ144 -> heaterSteam process | BE133: =BJ145 -> heaterSteam Titanium | BF133: =BJ146 -> Pump 50 hz (gaSteam only) | BG133: =BJ147 -> Pump 60 Hz (USA Market) (gaSteam only) | BI133: =HLOOKUP($D$103,$BA$133:$BG$181,BI131,0) -> 1 | BN133: concatena | BP133: eccezione per UR20
C134: TRUE | D134: =LINGUA!C551 -> Choice of steam distributor by the user (not automatically by the tool) | I134: =IF(G115=O131,LINGUA!C560,LINGUA!C559) -> Chosen by the tool | U134: =U133+16 -> 33 | V134: UR080H | W134: 1 | X134: 2 | Y134: 40 | Z134: 1 | AA134: 2 | AB134: 40 | AC134: 33 | AI134: UE001X | AJ134: 1 | AK134: humiSteam X-plus 1,5 kg/h | AN134: UEX | AO134: 1 | AP134: 1 | AQ134: 1 | AW134: 1.5 | AX134: 001 | AZ134: UEX | BA134: 1 | BB134: 1 | BC134: 1 | BL134: =HLOOKUP(D98,AP133:AV182,50,0) -> L | BN134: =CONCATENATE(BL131&BL134&BL136) -> UR080HL103 | BP134: =CONCATENATE(BL131&BL134&BP136&BP135) -> UR080HL10S
U135: =U134+16 -> 49 | V135: UG090H | W135: 1 | X135: 2 | Y135: 40 | AC135: 49 | AI135: UE003X | AJ135: 2 | AK135: humiSteam X-plus 3 kg/h | AO135: 2 | AP135: 1 | AQ135: 1 | AR135: 1 | AS135: 1 | AT135: 1 | AU135: 1 | AW135: 3 | AX135: 003 | BA135: 2 | BB135: 1 | BC135: 1 | BP135: S
D136: =IF(G115=O131,LINGUA!C552,"") ->  | G136: =IF(G115=O131,LINGUA!B57,"") ->  | U136: =U135+16 -> 65 | AC136: 65 | AI136: UE005X | AJ136: 3 | AK136: humiSteam X-plus 5 kg/h | AO136: 3 | AP136: 1 | AQ136: 1 | AR136: 1 | AS136: 1 | AT136: 1 | AU136: 1 | AV136: 1 | AW136: 5 | AX136: 005 | BA136: 3 | BB136: 1 | BC136: 1 | BL136: =HLOOKUP(D103,BA133:BG182,50,0) -> 103 | BP136: =MID(BL136,1,2) -> 10
D137: DP060D40RU | G137: 4 | U137: =U136+16 -> 81 | AC137: 81 | AI137: UE008X | AJ137: 4 | AK137: humiSteam X-plus 8 kg/h | AO137: 4 | AR137: 1 | AS137: 1 | AT137: 1 | AU137: 1 | AV137: 1 | AW137: 8 | AX137: 008 | BA137: 4 | BB137: 1 | BC137: 1
U138: =U137+16 -> 97 | W138: =VALUE(MID($AB$127,U138+10,2)) ->  | X138: =VALUE(MID($AB$127,U138+12,2)) ->  | Y138: =VALUE(MID($AB$127,U138+14,2)) ->  | AC138: 97 | AI138: UE009X | AJ138: 5 | AK138: humiSteam X-plus 9 kg/h | AO138: 5 | AP138: 1 | AQ138: 1 | AW138: 9 | AX138: 009 | BA138: 5 | BB138: 1 | BC138: 1
D139: =IF(G115=O131,LINGUA!C61,"") ->  | G139: =IF(G115=O131,LINGUA!B50,"") ->  | Z139: =SUM(Z131:Z138) -> 1 | AA139: =SUM(AA131:AA138) -> 2 | AB139: =SUM(AB131:AB138) -> 40 | AI139: UE010X | AJ139: 6 | AK139: humiSteam X-plus 10 kg/h | AO139: 6 | AR139: 1 | AS139: 1 | AT139: 1 | AU139: 1 | AV139: 1 | AW139: 10 | AX139: 010 | BA139: 6 | BB139: 1 | BC139: 1
D140: ='Steam absoprtion distance '!M18 -> 0.6 | G140: ='Steam absoprtion distance '!M15 -> 2.1 | AI140: UE015X | AJ140: 7 | AK140: humiSteam X-plus 15 kg/h | AO140: 7 | AR140: 1 | AS140: 1 | AT140: 1 | AU140: 1 | AV140: 1 | AW140: 15 | AX140: 015 | BA140: 7 | BB140: 1 | BC140: 1
AI141: UE018X | AJ141: 8 | AK141: humiSteam X-plus 18 kg/h | AO141: 8 | AT141: 1 | AU141: 1 | AV141: 1 | AW141: 18 | AX141: 018 | BA141: 8 | BB141: 1 | BC141: 1
D142: =IF(G115=O131,LINGUA!C59,"") ->  | G142: =IF(G115=O131,LINGUA!B60,"") ->  | U142: Tabella tubi trasporto vapore | AA142: Possible solutions | AI142: UE025X | AJ142: 9 | AK142: humiSteam X-plus 25 kg/h | AO142: 9 | AR142: 1 | AS142: 1 | AT142: 1 | AU142: 1 | AV142: 1 | AW142: 25 | AX142: 025 | BA142: 9 | BB142: 1 | BC142: 1 | BJ142: =LINGUA!C67 -> Disposable cylinder (humiSteam only)
D143: ='Steam absoprtion distance '!M9 -> 25 | G143: ='Steam absoprtion distance '!M12 -> 834 | U143: ref | V143: Code | W143: D | X143: Si/no | AI143: UE035X | AJ143: 10 | AK143: humiSteam X-plus 35 kg/h | AO143: 10 | AR143: 1 | AS143: 1 | AT143: 1 | AU143: 1 | AV143: 1 | AW143: 35 | AX143: 035 | BA143: 10 | BB143: 1 | BC143: 1 | BJ143: =LINGUA!C68 -> Cleanable cylinder (humiSteam only)
U144: 1 | V144: 1312360AXX | W144: 22 | X144: =IF(W144=$AB$139,U144,"") ->  | AA144: =LINGUA!B49 -> Humidifier code | AC144: =LINGUA!B26 -> Quantity | AI144: UE045X | AJ144: 11 | AK144: humiSteam X-plus 45 kg/h | AO144: 11 | AR144: 1 | AS144: 1 | AT144: 1 | AU144: 1 | AV144: 1 | AW144: 45 | AX144: 045 | BA144: 11 | BB144: 1 | BC144: 1 | BJ144: =LINGUA!C69 -> heaterSteam process
D145: =IF(G115=O131,LINGUA!B51,"") ->  | G145: =IF(G115=O131,LINGUA!B26,"") ->  | U145: =U144+1 -> 2 | V145: 1312365AXX | W145: 30 | X145: =IF(W145=$AB$139,U145,"") ->  | AA145: =IF(V131="","",V131) -> UE065X | AC145: =IF(AA145="","",W131) -> 1 | AI145: UE065X | AJ145: 12 | AK145: humiSteam X-plus 65 kg/h | AO145: 12 | AT145: 1 | AU145: 1 | AV145: 1 | AW145: 65 | AX145: 065 | BA145: 12 | BB145: 1 | BC145: 1 | BJ145: =LINGUA!C70 -> heaterSteam Titanium
D146: UEKY000000 | G146: 1 | U146: =U145+1 -> 3 | V146: 1312367AXX | W146: 40 | X146: =IF(W146=$AB$139,U146,"") -> 3 | AA146: =IF(V133="","",V133) -> UE065Y | AC146: =IF(AA146="","",W133) -> 1 | AI146: UE090X | AJ146: 13 | AK146: humiSteam X-plus 90 kg/h | AO146: 13 | AT146: 1 | AU146: 1 | AV146: 1 | AW146: 90 | AX146: 090 | BA146: 13 | BB146: 1 | BC146: 1 | BJ146: =LINGUA!C71 -> Pump 50 hz (gaSteam only)
D147: =CONCATENATE(CODICI!B30, ": ",CODICI!C30) -> UEKY000000: ‘Y’ connector for steam hoses (from 1x Ø=40 mm to 2x Ø=30 mm) | AA147: UR080H | AC147: 1 | AI147: UE130X | AJ147: 14 | AK147: humiSteam X-plus 130 kg/h | AO147: 14 | AT147: 1 | AU147: 1 | AV147: 1 | AW147: 130 | AX147: 013 | BA147: 14 | BB147: 1 | BC147: 1 | BJ147: =LINGUA!C72 -> Pump 60 Hz (USA Market) (gaSteam only)
D148: =CONCATENATE(CODICI!B31, ": ",CODICI!C31) -> UEKY40X400: ‘Y’ connector for steam hoses (from 1x Ø=40 mm to 2x Ø=40 mm) | U148: Codice | V148: =IF(AB127="","",LOOKUP(SUM(X144:X146),U144:U146,V144:V146)) -> 1312367AXX | AA148: UG090H | AC148: 1 | AI148: UE001Y | AJ148: 15 | AK148: humiSteam Basic 1,5 kg/h | AN148: UEY | AO148: 15 | AP148: 1 | AQ148: 1 | AW148: 1.5 | AZ148: UEY | BA148: 15 | BB148: 1 | BC148: 1
D149: =LINGUA!C555 -> (1)"Special application" DP code included | AI149: UE003Y | AJ149: 16 | AK149: humiSteam Basic 3 kg/h | AO149: 16 | AP149: 1 | AQ149: 1 | AR149: 1 | AS149: 1 | AT149: 1 | AU149: 1 | AW149: 3 | BA149: 16 | BB149: 1 | BC149: 1
D150: =IF(G115=O131,'Steam absoprtion distance '!D28,"") ->  | E150: =IF(G115=O131,'Steam absoprtion distance '!G28,"") ->  | U150: Tubo scarico condensa | AI150: UE005Y | AJ150: 17 | AK150: humiSteam Basic 5 kg/h | AO150: 17 | AP150: 1 | AQ150: 1 | AR150: 1 | AS150: 1 | AT150: 1 | AU150: 1 | AV150: 1 | AW150: 5 | BA150: 17 | BB150: 1 | BC150: 1
E151: =IF(G115=O131,'Steam absoprtion distance '!G29,"") ->  | AI151: UE008Y | AJ151: 18 | AK151: humiSteam Basic 8 kg/h | AO151: 18 | AR151: 1 | AS151: 1 | AT151: 1 | AU151: 1 | AV151: 1 | AW151: 8 | BA151: 18 | BB151: 1 | BC151: 1
E152: =IF(G115=O131,'Steam absoprtion distance '!G30,"") ->  | U152: Modello TUBO | W152: 1312368AXX | AI152: UE009Y | AJ152: 19 | AK152: humiSteam Basic 9 kg/h | AO152: 19 | AP152: 1 | AQ152: 1 | AW152: 9 | BA152: 19 | BB152: 1 | BC152: 1
AI153: UE010Y | AJ153: 20 | AK153: humiSteam Basic 10 kg/h | AO153: 20 | AR153: 1 | AS153: 1 | AT153: 1 | AU153: 1 | AV153: 1 | AW153: 10 | BA153: 20 | BB153: 1 | BC153: 1
AI154: UE015Y | AJ154: 21 | AK154: humiSteam Basic 15 kg/h | AO154: 21 | AR154: 1 | AS154: 1 | AT154: 1 | AU154: 1 | AV154: 1 | AW154: 15 | BA154: 21 | BB154: 1 | BC154: 1
D155: =LINGUA!B56 -> Go to the "Selection" sheet | U155: Sonde possibili | AI155: UE018Y | AJ155: 22 | AK155: humiSteam Basic 18 kg/h | AO155: 22 | AT155: 1 | AU155: 1 | AV155: 1 | AW155: 18 | BA155: 22 | BB155: 1 | BC155: 1
AI156: UE025Y | AJ156: 23 | AK156: humiSteam Basic 25 kg/h | AO156: 23 | AR156: 1 | AS156: 1 | AT156: 1 | AU156: 1 | AV156: 1 | AW156: 25 | BA156: 23 | BB156: 1 | BC156: 1
U157: DPWC112000 | AI157: UE035Y | AJ157: 24 | AK157: humiSteam Basic 35 kg/h | AO157: 24 | AR157: 1 | AS157: 1 | AT157: 1 | AU157: 1 | AV157: 1 | AW157: 35 | BA157: 24 | BB157: 1 | BC157: 1
K158: DP085D22R0 | U158: DPPC112000 | AI158: UE045Y | AJ158: 25 | AK158: humiSteam Basic 45 kg/h | AO158: 25 | AR158: 1 | AS158: 1 | AT158: 1 | AU158: 1 | AV158: 1 | AW158: 45 | BA158: 25 | BB158: 1 | BC158: 1
K159: DP060D22R0 | U159: DPPC212000 | AI159: UE065Y | AJ159: 26 | AK159: humiSteam Basic 65 kg/h | AO159: 26 | AT159: 1 | AU159: 1 | AV159: 1 | AW159: 65 | BA159: 26 | BB159: 1 | BC159: 1
K160: DP045D22R0 | U160: DPDC112000 | AI160: UR002H | AJ160: 27 | AK160: heaterSteam humidifier 2 kg/h | AN160: URH | AO160: 27 | AQ160: 1 | AW160: 2 | AX160: 002 | AZ160: UR | BA160: 27 | BD160: 1 | BE160: 1
K161: DP035D22R0 | U161: DPDC212000 | AI161: UR004H | AJ161: 28 | AK161: heaterSteam humidifier 4 kg/h | AO161: 28 | AQ161: 1 | AW161: 4 | AX161: 004 | BA161: 28 | BD161: 1 | BE161: 1
K162: DP165D30R0 | U162: ASET030001 | AI162: UR006H | AJ162: 29 | AK162: heaterSteam humidifier 6 kg/h | AO162: 29 | AQ162: 1 | AS162: 1 | AT162: 1 | AW162: 6 | AX162: 006 | BA162: 29 | BD162: 1 | BE162: 1
K163: DP125D30R0 | AI163: UR010H | AJ163: 30 | AK163: heaterSteam humidifier 10 kg/h | AO163: 30 | AS163: 1 | AT163: 1 | AU163: 1 | AW163: 10 | AX163: 010 | BA163: 30 | BD163: 1 | BE163: 1
K164: DP105D30R0 | AI164: UR013H | AJ164: 31 | AK164: heaterSteam humidifier 13 kg/h | AO164: 31 | AS164: 1 | AT164: 1 | AU164: 1 | AW164: 13 | AX164: 013 | BA164: 31 | BD164: 1 | BE164: 1
K165: DP085D30R0 | AI165: UR020H | AJ165: 32 | AK165: heaterSteam humidifier 20 kg/h | AO165: 32 | AS165: 1 | AT165: 1 | AU165: 1 | AW165: 20 | AX165: 020 | BA165: 32 | BD165: 1 | BE165: 1
K166: DP060D30R0 | AI166: UR027H | AJ166: 33 | AK166: heaterSteam humidifier 27 kg/h | AO166: 33 | AS166: 1 | AT166: 1 | AU166: 1 | AW166: 27 | AX166: 027 | BA166: 33 | BD166: 1 | BE166: 1
K167: DP045D30R0 | AI167: UR040H | AJ167: 34 | AK167: heaterSteam humidifier 40 kg/h | AO167: 34 | AT167: 1 | AU167: 1 | AW167: 40 | AX167: 040 | BA167: 34 | BD167: 1 | BE167: 1
K168: DP035D30R0 | AI168: UR053H | AJ168: 35 | AK168: heaterSteam humidifier 53 kg/h | AO168: 35 | AT168: 1 | AU168: 1 | AW168: 53 | AX168: 053 | BA168: 35 | BD168: 1 | BE168: 1
K169: DP205D40R0 | AI169: UR060H | AJ169: 36 | AK169: heaterSteam humidifier 60 kg/h | AO169: 36 | AT169: 1 | AU169: 1 | AW169: 60 | AX169: 060 | BA169: 36 | BD169: 1 | BE169: 1
K170: DP165D40R0 | AI170: UR080H | AJ170: 37 | AK170: heaterSteam humidifier 80 kg/h | AO170: 37 | AT170: 1 | AU170: 1 | AW170: 80 | AX170: 080 | BA170: 37 | BD170: 1 | BE170: 1
K171: DP125D40R0 | AI171: UR002C | AJ171: 38 | AK171: heaterSteam C-control 2 kg/h | AN171: URC | AO171: 38 | AP171: 1 | AQ171: 1 | AW171: 2 | AZ171: UR | BA171: 38 | BD171: 1 | BE171: 1
K172: DP105D40R0 | AI172: UR004C | AJ172: 39 | AK172: heaterSteam C-control 4 kg/h | AO172: 39 | AP172: 1 | AQ172: 1 | AW172: 4 | BA172: 39 | BD172: 1 | BE172: 1
K173: DP085D40R0 | AI173: UR006C | AJ173: 40 | AK173: heaterSteam C-control 6 kg/h | AO173: 40 | AP173: 1 | AQ173: 1 | AR173: 1 | AS173: 1 | AT173: 1 | AU173: 1 | AV173: 1 | AW173: 6 | BA173: 40 | BD173: 1 | BE173: 1
K174: DP060D40RU | AI174: UR010C | AJ174: 41 | AK174: heaterSteam C-control 10 kg/h | AO174: 41 | AR174: 1 | AS174: 1 | AT174: 1 | AU174: 1 | AV174: 1 | AW174: 10 | BA174: 41 | BD174: 1 | BE174: 1
K175: DP060D30RU | AI175: UR020C | AJ175: 42 | AK175: heaterSteam C-control 20 kg/h | AO175: 42 | AR175: 1 | AS175: 1 | AT175: 1 | AU175: 1 | AV175: 1 | AW175: 20 | BA175: 42 | BD175: 1 | BE175: 1
K176: DP045D30RU | AI176: UR027C | AJ176: 43 | AK176: heaterSteam C-control 27 kg/h | AO176: 43 | AR176: 1 | AS176: 1 | AT176: 1 | AU176: 1 | AV176: 1 | AW176: 27 | BA176: 43 | BD176: 1 | BE176: 1
K177: DP030D30RU | AI177: UR040C | AJ177: 44 | AK177: heaterSteam C-control 40 kg/h | AO177: 44 | AT177: 1 | AU177: 1 | AV177: 1 | AW177: 40 | BA177: 44 | BD177: 1 | BE177: 1
K178: DP030D22RU | AI178: UR060C | AJ178: 45 | AK178: heaterSteam C-control 60 kg/h | AO178: 45 | AT178: 1 | AU178: 1 | AV178: 1 | AW178: 60 | BA178: 45 | BD178: 1 | BE178: 1
AI179: UG045H | AJ179: 46 | AK179: gaSteam 45 kg/h | AN179: UG | AO179: 46 | AQ179: 1 | AW179: 45 | AZ179: UG | BA179: 46 | BF179: 1 | BG179: 1
AI180: UG090H | AJ180: 47 | AK180: gaSteam 90 kg/h | AO180: 47 | AQ180: 1 | AW180: 90 | BA180: 47 | BF180: 1 | BG180: 1
AI181: UG180H | AJ181: 48 | AK181: gaSteam 180 kg/h | AO181: 48 | AQ181: 1 | AW181: 180 | BA181: 48 | BF181: 1 | BG181: 1
AP182: U | AQ182: D | AR182: W | AS182: K | AT182: L | AU182: M | AV182: N | BB182: 001 | BC182: C01 | BD182: 003 | BE182: 103 | BF182: 003 | BG182: 103
U183: Tabella distributori DP | V183: =MID(D93,1,5) -> UR080
U184: BASE
U185: Codice/ descrizione | V185: DP030D22RU | W185: DP035D22R0 | X185: DP045D22R0 | Y185: DP060D22R0 | Z185: DP085D22R0 | AA185: DP030D30RU | AB185: DP035D30R0 | AC185: DP045D30R0 | AD185: DP045D30RU | AE185: DP060D30R0 | AF185: DP060D30RU | AG185: DP085D30R0 | AH185: DP105D30R0 | AI185: DP125D30R0 | AJ185: DP165D30R0 | AK185: DP060D40RU | AL185: DP085D40R0 | AM185: DP105D40R0 | AN185: DP125D40R0 | AO185: DP165D40R0 | AP185: DP205D40R0 | AQ185: Quale umidificatore | AR185: =V185 -> DP030D22RU | AS185: DP035D22R0 | AT185: DP045D22R0 | AU185: DP060D22R0 | AV185: DP085D22R0 | AW185: DP030D30RU | AX185: DP035D30R0 | AY185: DP045D30R0 | AZ185: DP045D30RU | BA185: DP060D30R0 | BB185: DP060D30RU | BC185: =AG185 -> DP085D30R0 | BD185: =AH185 -> DP105D30R0 | BE185: =AI185 -> DP125D30R0 | BF185: =AJ185 -> DP165D30R0 | BH185: =AK185 -> DP060D40RU | BI185: DP085D40R0 | BJ185: DP105D40R0 | BK185: DP125D40R0 | BL185: DP165D40R0 | BM185: DP205D40R0
U186: d ingresso (C) mm | V186: 22 | AA186: 30 | AK186: 40 | AR186: 1 | AS186: =AR186+1 -> 2 | AT186: =AS186+1 -> 3 | AU186: 4 | AV186: 5 | AW186: 6 | AX186: 7 | AY186: 8 | AZ186: 9 | BA186: 10 | BB186: 11 | BC186: 12 | BD186: 13 | BE186: 14 | BF186: 15 | BH186: =BF186+1 -> 16 | BI186: 17 | BJ186: 18 | BK186: 19 | BL186: 20 | BM186: 21
U187: sezione (B) mm | V187: 35 | AA187: 45 | AK187: 60
U188: lunghezza (A) mm | V188: 300 | W188: 350 | X188: 450 | Y188: 600 | Z188: 850 | AA188: 300 | AB188: 350 | AC188: 450 | AD188: 450 | AE188: 600 | AF188: 600 | AG188: 850 | AH188: 1050 | AI188: 1250 | AJ188: 1650 | AK188: 600 | AL188: 850 | AM188: 1050 | AN188: 1250 | AO188: 1650 | AP188: 2050 | AR188: =IF(V188>$E75,0,1) -> 1 | AS188: 1 | AT188: 1 | AU188: 1 | AV188: 1 | AW188: 1 | AX188: 1 | AY188: 1 | AZ188: 1 | BA188: 1 | BB188: 1 | BC188: 1 | BD188: 1 | BE188: 0 | BF188: 0 | BH188: =IF(AK188>$E75,0,1) -> 1 | BI188: 1 | BJ188: 1 | BK188: 0 | BL188: 0 | BM188: 0
U189: UE001 | V189: 1 | W189: 1 | X189: 1 | Y189: 1 | Z189: 1 | AQ189: =IF(U189=$V$183,1,0) -> 0 | AR189: =IF($AQ189=0,"",IF(AND(AR$188=1,V189>0),V189,"")) ->  | AS189: =IF($AQ189=0,"",IF(AND(AS$188=1,W189>0),W189,"")) ->  | AT189: =IF($AQ189=0,"",IF(AND(AT$188=1,X189>0),X189,"")) ->  | AU189: =IF($AQ189=0,"",IF(AND(AU$188=1,Y189>0),Y189,"")) ->  | AV189: =IF($AQ189=0,"",IF(AND(AV$188=1,Z189>0),Z189,"")) ->  | AW189: =IF($AQ189=0,"",IF(AND(AW$188=1,AA189>0),AA189,"")) ->  | AX189: =IF($AQ189=0,"",IF(AND(AX$188=1,AB189>0),AB189,"")) ->  | AY189: =IF($AQ189=0,"",IF(AND(AY$188=1,AC189>0),AC189,"")) ->  | AZ189: =IF($AQ189=0,"",IF(AND(AZ$188=1,AD189>0),AD189,"")) ->  | BA189: =IF($AQ189=0,"",IF(AND(BA$188=1,AE189>0),AE189,"")) ->  | BB189: =IF($AQ189=0,"",IF(AND(BB$188=1,AF189>0),AF189,"")) ->  | BC189: =IF($AQ189=0,"",IF(AND(BC$188=1,AG189>0),AG189,"")) ->  | BD189: =IF($AQ189=0,"",IF(AND(BD$188=1,AH189>0),AH189,"")) ->  | BE189: =IF($AQ189=0,"",IF(AND(BE$188=1,AI189>0),AI189,"")) ->  | BF189: =IF($AQ189=0,"",IF(AND(BF$188=1,AJ189>0),AJ189,"")) ->  | BH189: =IF($AQ189=0,"",IF(AND(BH$188=1,AK189>0),AK189,"")) ->  | BI189: =IF($AQ189=0,"",IF(AND(BI$188=1,AL189>0),AL189,"")) ->  | BJ189: =IF($AQ189=0,"",IF(AND(BJ$188=1,AM189>0),AM189,"")) ->  | BK189: =IF($AQ189=0,"",IF(AND(BK$188=1,AN189>0),AN189,"")) ->  | BL189: =IF($AQ189=0,"",IF(AND(BL$188=1,AO189>0),AO189,"")) ->  | BM189: =IF($AQ189=0,"",IF(AND(BM$188=1,AP189>0),AP189,"")) -> 
U190: UE003 | V190: 1 | W190: 1 | X190: 1 | Y190: 1 | Z190: 1 | AQ190: =IF(U190=$V$183,1,0) -> 0
U191: UE005 | AA191: 1 | AB191: 1 | AC191: 1 | AD191: 1 | AE191: 1 | AF191: 1 | AQ191: 0
U192: UE008 | AA192: 1 | AC192: 1 | AD192: 1 | AE192: 1 | AF192: 1 | AG192: 1 | AQ192: 0
U193: UE009 | AA193: 1 | AD193: 1 | AE193: 1 | AF193: 1 | AG193: 1 | AQ193: 0
U194: UE010 | AA194: 1 | AD194: 1 | AE194: 1 | AF194: 1 | AG194: 1 | AH194: 1 | AQ194: 0
U195: UE015 | AF195: 1 | AG195: 1 | AH195: 1 | AI195: 1 | AJ195: 1 | AQ195: 0
U196: UE018 | AG196: 1 | AH196: 1 | AI196: 1 | AJ196: 1 | AQ196: =IF(U196=$V$183,1,0) -> 0 | AR196: =IF($AQ196=0,"",IF(AND(AR$188=1,V196>0),V196,"")) ->  | BC196: =IF($AQ196=0,"",IF(AND(BC$188=1,AG196>0),AG196,"")) ->  | BH196: =IF($AQ196=0,"",IF(AND(BH$188=1,AK196>0),AK196,"")) -> 
U197: UE025 | AK197: 1 | AL197: 1 | AM197: 1 | AQ197: 0
U198: UE035 | AK198: 1 | AM198: 1 | AN198: 1 | AQ198: 0
U199: UE045 | AK199: 1 | AN199: 1 | AO199: 1 | AP199: 1 | AQ199: 0
U200: UE065 | AK200: 2 | AM200: 2 | AN200: 2 | AO200: 2 | AQ200: 0
U201: UE090 | AK201: 2 | AN201: 2 | AO201: 2 | AP201: 2 | AQ201: 0
U202: UE130 | AK202: 4 | AN202: 4 | AO202: 4 | AP202: 4 | AQ202: 0
U203: UR002 | AA203: 1 | AB203: 1 | AC203: 1 | AD203: 1 | AQ203: 0
U204: UR004 | AA204: 1 | AB204: 1 | AC204: 1 | AD204: 1 | AE204: 1 | AF204: 1 | AQ204: 0
U205: UR006 | AC205: 1 | AD205: 1 | AE205: 1 | AF205: 1 | AG205: 1 | AQ205: 0
U206: UR010 | AD206: 1 | AE206: 1 | AF206: 1 | AG206: 1 | AH206: 1 | AQ206: 0
U207: UR013 | AD207: 1 | AE207: 1 | AF207: 1 | AG207: 1 | AH207: 1 | AI207: 1 | AQ207: 0 | AR207: =IF($AQ207=0,"",IF(AND(AR$188=1,V207>0),V207,"")) ->  | AS207: =IF($AQ207=0,"",IF(AND(AS$188=1,W207>0),W207,"")) ->  | AT207: =IF($AQ207=0,"",IF(AND(AT$188=1,X207>0),X207,"")) ->  | AU207: =IF($AQ207=0,"",IF(AND(AU$188=1,Y207>0),Y207,"")) ->  | AV207: =IF($AQ207=0,"",IF(AND(AV$188=1,Z207>0),Z207,"")) ->  | AW207: =IF($AQ207=0,"",IF(AND(AW$188=1,AA207>0),AA207,"")) ->  | AX207: =IF($AQ207=0,"",IF(AND(AX$188=1,AB207>0),AB207,"")) ->  | AY207: =IF($AQ207=0,"",IF(AND(AY$188=1,AC207>0),AC207,"")) ->  | AZ207: =IF($AQ207=0,"",IF(AND(AZ$188=1,AD207>0),AD207,"")) ->  | BA207: =IF($AQ207=0,"",IF(AND(BA$188=1,AE207>0),AE207,"")) ->  | BB207: =IF($AQ207=0,"",IF(AND(BB$188=1,AF207>0),AF207,"")) ->  | BC207: =IF($AQ207=0,"",IF(AND(BC$188=1,AG207>0),AG207,"")) ->  | BD207: =IF($AQ207=0,"",IF(AND(BD$188=1,AH207>0),AH207,"")) ->  | BE207: =IF($AQ207=0,"",IF(AND(BE$188=1,AI207>0),AI207,"")) ->  | BF207: =IF($AQ207=0,"",IF(AND(BF$188=1,AJ207>0),AJ207,"")) ->  | BH207: =IF($AQ207=0,"",IF(AND(BH$188=1,AK207>0),AK207,"")) ->  | BI207: =IF($AQ207=0,"",IF(AND(BI$188=1,AL207>0),AL207,"")) ->  | BJ207: =IF($AQ207=0,"",IF(AND(BJ$188=1,AM207>0),AM207,"")) ->  | BK207: =IF($AQ207=0,"",IF(AND(BK$188=1,AN207>0),AN207,"")) ->  | BL207: =IF($AQ207=0,"",IF(AND(BL$188=1,AO207>0),AO207,"")) ->  | BM207: =IF($AQ207=0,"",IF(AND(BM$188=1,AP207>0),AP207,"")) -> 
U208: UR020 | AK208: 1 | AL208: 1 | AM208: 1 | AN208: 1 | AQ208: 0
U209: UR027 | AK209: 1 | AL209: 1 | AM209: 1 | AN209: 1 | AQ209: 0
U210: UR040 | AK210: 1 | AM210: 1 | AN210: 1 | AO210: 1 | AQ210: 0
U211: UR053 | AK211: 2 | AL211: 2 | AM211: 2 | AN211: 2 | AO211: 2 | AP211: 2 | AQ211: 0 | AR211: =IF($AQ211=0,"",IF(AND(AR$188=1,V211>0),V211,"")) ->  | BH211: =IF($AQ211=0,"",IF(AND(BH$188=1,AK211>0),AK211,"")) -> 
U212: UR060 | AK212: 2 | AM212: 2 | AN212: 2 | AO212: 2 | AQ212: 0
U213: UR080 | AK213: 2 | AN213: 2 | AO213: 2 | AP213: 2 | AQ213: 1 | AR213: =IF($AQ213=0,"",IF(AND(AR$188=1,V213>0),V213,"")) ->  | BH213: =IF($AQ213=0,"",IF(AND(BH$188=1,AK213>0),AK213,"")) -> 2
U214: UG045 | AK214: 2 | AL214: 2 | AM214: 2 | AN214: 2 | AO214: 2 | AQ214: 0
U215: UG090 | AK215: 2 | AN215: 2 | AO215: 2 | AP215: 2 | AQ215: 0
U216: UG180 | AK216: 4 | AN216: 4 | AO216: 4 | AP216: 4 | AQ216: 0
AR217: =IF(SUM(AS217:$BM$217)=0,SUM(AR189:AR216),0) -> 0 | AS217: =IF(SUM(AT217:$BM$217)=0,SUM(AS189:AS216),0) -> 0 | AT217: =IF(SUM(AU217:$BM$217)=0,SUM(AT189:AT216),0) -> 0 | AU217: =IF(SUM(AV217:$BM$217)=0,SUM(AU189:AU216),0) -> 0 | AV217: =IF(SUM(AW217:$BM$217)=0,SUM(AV189:AV216),0) -> 0 | AW217: =IF(SUM(AX217:$BM$217)=0,SUM(AW189:AW216),0) -> 0 | AX217: =IF(SUM(AY217:$BM$217)=0,SUM(AX189:AX216),0) -> 0 | AY217: =IF(SUM(AZ217:$BM$217)=0,SUM(AY189:AY216),0) -> 0 | AZ217: =IF(SUM(BA217:$BM$217)=0,SUM(AZ189:AZ216),0) -> 0 | BA217: =IF(SUM(BB217:$BM$217)=0,SUM(BA189:BA216),0) -> 0 | BB217: =IF(SUM(BC217:$BM$217)=0,SUM(BB189:BB216),0) -> 0 | BC217: =IF(SUM(BD217:$BM$217)=0,SUM(BC189:BC216),0) -> 0 | BD217: =IF(SUM(BE217:$BM$217)=0,SUM(BD189:BD216),0) -> 0 | BE217: =IF(SUM(BF217:$BM$217)=0,SUM(BE189:BE216),0) -> 0 | BF217: =IF(SUM(BH217:$BM$217)=0,SUM(BF189:BF216),0) -> 0 | BH217: =IF(SUM(BI217:$BM$217)=0,SUM(BH189:BH216),0) -> 2 | BI217: =IF(SUM(BJ217:$BM$217)=0,SUM(BI189:BI216),0) -> 0 | BJ217: =IF(SUM(BK217:$BM$217)=0,SUM(BJ189:BJ216),0) -> 0 | BK217: =IF(SUM(BL217:$BM$217)=0,SUM(BK189:BK216),0) -> 0 | BL217: =IF(SUM(BM217:$BM$217)=0,SUM(BL189:BL216),0) -> 0 | BM217: =SUM(BM189:BM216) -> 0
U218: Numero DP | V218: =SUM(AR217:BM217) -> 2 | AR218: =IF(AR217=0,0,AR186) -> 0 | AS218: 0 | AT218: 0 | AU218: 0 | AV218: 0 | AW218: 0 | AX218: 0 | AY218: 0 | AZ218: 0 | BA218: 0 | BB218: 0 | BC218: 0 | BD218: 0 | BE218: 0 | BF218: 0 | BH218: 16 | BI218: 0 | BJ218: 0 | BK218: 0 | BL218: 0 | BM218: 0
U219: Tipo DP | V219: =IF(V218=0,"",LOOKUP(SUM(AR218:BM218),AR186:BM186,AR185:BM185)) -> DP060D40RU
U221: Alternativa | BJ221: =IF(AND(BJ$188=1,AM221>0),AM221,"") ->  | BK221: =IF(AND(BK$188=1,AN221>0),AN221,"") ->  | BL221: =IF(AND(BL$188=1,AO221>0),AO221,"") ->  | BM221: =IF(AND(BM$188=1,AP221>0),AP221,"") -> 
U222: Codice/ descrizione | V222: DP030D22RU | W222: DP035D22R0 | X222: DP045D22R0 | Y222: DP060D22R0 | Z222: DP085D22R0 | AA222: DP030D30RU | AB222: DP035D30R0 | AC222: DP045D30R0 | AD222: DP045D30RU | AE222: DP060D30R0 | AF222: DP060D30RU | AG222: DP085D30R0 | AH222: DP105D30R0 | AI222: DP125D30R0 | AJ222: DP165D30R0 | AK222: DP060D40RU | AL222: DP085D40R0 | AM222: DP105D40R0 | AN222: DP125D40R0 | AO222: DP165D40R0 | AP222: DP205D40R0 | AR222: =V222 -> DP030D22RU | AS222: DP035D22R0 | AT222: DP045D22R0 | AU222: DP060D22R0 | AV222: DP085D22R0 | AW222: DP030D30RU | AX222: DP035D30R0 | AY222: DP045D30R0 | AZ222: DP045D30RU | BA222: DP060D30R0 | BB222: DP060D30RU | BC222: =AG222 -> DP085D30R0 | BD222: =AH222 -> DP105D30R0 | BE222: =AI222 -> DP125D30R0 | BF222: =AJ222 -> DP165D30R0 | BH222: =AK222 -> DP060D40RU | BI222: DP085D40R0 | BJ222: DP105D40R0 | BK222: DP125D40R0 | BL222: DP165D40R0 | BM222: DP205D40R0 | CJ222: =MID(SELECTION!B7,1,5) -> UR080 | CK222: =VLOOKUP(CJ222,BP229:CL257,23,0) -> 1
U223: d ingresso (C) mm | V223: 22 | W223: 22 | X223: 22 | Y223: 22 | Z223: 22 | AA223: 30 | AB223: 30 | AC223: 30 | AD223: 30 | AE223: 30 | AF223: 30 | AG223: 30 | AH223: 30 | AI223: 30 | AJ223: 30 | AK223: 40 | AL223: 40 | AM223: 40 | AN223: 40 | AO223: 40 | AP223: 40 | AR223: 1 | AS223: =AR223+1 -> 2 | AT223: =AS223+1 -> 3 | AU223: 4 | AV223: 5 | AW223: 6 | AX223: 7 | AY223: 8 | AZ223: 9 | BA223: 10 | BB223: 11 | BC223: 12 | BD223: 13 | BE223: 14 | BF223: 15 | BH223: =BF223+1 -> 16 | BI223: 17 | BJ223: 18 | BK223: 19 | BL223: 20 | BM223: 21 | EF223: =VLOOKUP(CJ222,DJ225:EF257,23,0) -> 4
U224: sezione (B) mm | V224: 35 | AA224: 45 | AK224: 60 | AR224: =V223 -> 22 | AS224: 22 | AT224: 22 | AU224: 22 | AV224: 22 | AW224: 30 | AX224: 30 | AY224: 30 | AZ224: 30 | BA224: 30 | BB224: 30 | BC224: =AG223 -> 30 | BD224: =AH223 -> 30 | BE224: =AI223 -> 30 | BF224: =AJ223 -> 30 | BH224: =AK223 -> 40 | BI224: 40 | BJ224: 40 | BK224: 40 | BL224: 40 | BM224: 40
U225: lunghezza (A) mm | V225: 300 | W225: 350 | X225: 450 | Y225: 600 | Z225: 850 | AA225: 300 | AB225: 350 | AC225: 450 | AD225: 450 | AE225: 600 | AF225: 600 | AG225: 850 | AH225: 1050 | AI225: 1250 | AJ225: 1650 | AK225: 600 | AL225: 850 | AM225: 1050 | AN225: 1250 | AO225: 1650 | AP225: 2050 | AR225: =AR188 -> 1 | AS225: =AS188 -> 1 | AT225: 1 | AU225: 1 | AV225: 1 | AW225: 1 | AX225: 1 | AY225: 1 | AZ225: 1 | BA225: 1 | BB225: 1 | BC225: 1 | BD225: 1 | BE225: 0 | BF225: 0 | BH225: 1 | BI225: 1 | BJ225: 1 | BK225: 0 | BL225: 0 | BM225: 0 | BP225: Codice/ descrizione | BQ225: DP030D30RU | BR225: DP035D30R0 | BS225: DP045D30R0 | BT225: DP045D30RU | BU225: DP060D30R0 | BV225: DP060D30RU | BW225: DP085D30R0 | BX225: DP105D30R0 | BY225: DP125D30R0 | BZ225: DP165D30R0 | CA225: DP060D40RU | CB225: DP085D40R0 | CC225: DP105D40R0 | CD225: DP125D40R0 | CE225: DP165D40R0 | CF225: DP205D40R0 | CG225: DP030D22RU | CH225: DP035D22R0 | CI225: DP045D22R0 | CJ225: DP060D22R0 | CK225: DP085D22R0 | CM225: Codice/ descrizione | CN225: DP030D30RU | CO225: DP035D30R0 | CP225: DP045D30R0 | CQ225: DP045D30RU | CR225: DP060D30R0 | CS225: DP060D30RU | CT225: DP085D30R0 | CU225: DP105D30R0 | CV225: DP125D30R0 | CW225: DP165D30R0 | CX225: DP060D40RU | CY225: DP085D40R0 | CZ225: DP105D40R0 | DA225: DP125D40R0 | DB225: DP165D40R0 | DC225: DP205D40R0 | DD225: DP030D22RU | DE225: DP035D22R0 | DF225: DP045D22R0 | DG225: DP060D22R0 | DH225: DP085D22R0 | DJ225: Codice/ descrizione | DK225: DP030D30RU | DL225: DP035D30R0 | DM225: DP045D30R0 | DN225: DP045D30RU | DO225: DP060D30R0 | DP225: DP060D30RU | DQ225: DP085D30R0 | DR225: DP105D30R0 | DS225: DP125D30R0 | DT225: DP165D30R0 | DU225: DP060D40RU | DV225: DP085D40R0 | DW225: DP105D40R0 | DX225: DP125D40R0 | DY225: DP165D40R0 | DZ225: DP205D40R0 | EA225: DP030D22RU | EB225: DP035D22R0 | EC225: DP045D22R0 | ED225: DP060D22R0 | EE225: DP085D22R0
U226: UE001 | AQ226: =IF(U226=$V$183,1,0) -> 0 | AR226: =IF($AQ226=0,"",IF(AND(AR$225=1,V226>0),V226,"")) ->  | AS226: =IF($AQ226=0,"",IF(AND(AS$225=1,W226>0),W226,"")) ->  | AT226: =IF($AQ226=0,"",IF(AND(AT$225=1,X226>0),X226,"")) ->  | AU226: =IF($AQ226=0,"",IF(AND(AU$225=1,Y226>0),Y226,"")) ->  | AV226: =IF($AQ226=0,"",IF(AND(AV$225=1,Z226>0),Z226,"")) ->  | AW226: =IF($AQ226=0,"",IF(AND(AW$225=1,AA226>0),AA226,"")) ->  | AX226: =IF($AQ226=0,"",IF(AND(AX$225=1,AB226>0),AB226,"")) ->  | AY226: =IF($AQ226=0,"",IF(AND(AY$225=1,AC226>0),AC226,"")) ->  | AZ226: =IF($AQ226=0,"",IF(AND(AZ$225=1,AD226>0),AD226,"")) ->  | BA226: =IF($AQ226=0,"",IF(AND(BA$225=1,AE226>0),AE226,"")) ->  | BB226: =IF($AQ226=0,"",IF(AND(BB$225=1,AF226>0),AF226,"")) ->  | BC226: =IF($AQ226=0,"",IF(AND(BC$225=1,AG226>0),AG226,"")) ->  | BH226: =IF($AQ226=0,"",IF(AND(BH$225=1,AK226>0),AK226,"")) ->  | BI226: =IF($AQ226=0,"",IF(AND(BI$225=1,AL226>0),AL226,"")) ->  | BJ226: =IF($AQ226=0,"",IF(AND(BJ$225=1,AM226>0),AM226,"")) ->  | BK226: =IF($AQ226=0,"",IF(AND(BK$225=1,AN226>0),AN226,"")) ->  | BL226: =IF($AQ226=0,"",IF(AND(BL$225=1,AO226>0),AO226,"")) ->  | BM226: =IF($AQ226=0,"",IF(AND(BM$225=1,AP226>0),AP226,"")) ->  | BP226: d ingresso (C) mm | BQ226: 30 | BR226: 30 | BS226: 30 | BT226: 30 | BU226: 30 | BV226: 30 | BW226: 30 | BX226: 30 | BY226: 30 | BZ226: 30 | CA226: 40 | CB226: 40 | CC226: 40 | CD226: 40 | CE226: 40 | CF226: 40 | CG226: 22 | CH226: 22 | CI226: 22 | CJ226: 22 | CK226: 22 | CM226: d ingresso (C) mm | CN226: 30 | CO226: 30 | CP226: 30 | CQ226: 30 | CR226: 30 | CS226: 30 | CT226: 30 | CU226: 30 | CV226: 30 | CW226: 30 | CX226: 40 | CY226: 40 | CZ226: 40 | DA226: 40 | DB226: 40 | DC226: 40 | DD226: 22 | DE226: 22 | DF226: 22 | DG226: 22 | DH226: 22 | DJ226: d ingresso (C) mm | DK226: 30 | DL226: 30 | DM226: 30 | DN226: 30 | DO226: 30 | DP226: 30 | DQ226: 30 | DR226: 30 | DS226: 30 | DT226: 30 | DU226: 40 | DV226: 40 | DW226: 40 | DX226: 40 | DY226: 40 | DZ226: 40 | EA226: 22 | EB226: 22 | EC226: 22 | ED226: 22 | EE226: 22
U227: UE003 | AQ227: 0 | BP227: sezione (B) mm | BQ227: 45 | CA227: 60 | CG227: 35 | CM227: sezione (B) mm | CN227: 45 | CX227: 60 | DD227: 35 | DJ227: sezione (B) mm | DK227: 45 | DU227: 60 | EA227: 35
U228: UE005 | AQ228: 0 | BP228: lunghezza (A) mm | BQ228: 300 | BR228: 350 | BS228: 450 | BT228: 450 | BU228: 600 | BV228: 600 | BW228: 850 | BX228: 1050 | BY228: 1250 | BZ228: 1650 | CA228: 600 | CB228: 850 | CC228: 1050 | CD228: 1250 | CE228: 1650 | CF228: 2050 | CG228: 300 | CH228: 350 | CI228: 450 | CJ228: 600 | CK228: 850 | CM228: lunghezza (A) mm | CN228: 300 | CO228: 350 | CP228: 450 | CQ228: 450 | CR228: 600 | CS228: 600 | CT228: 850 | CU228: 1050 | CV228: 1250 | CW228: 1650 | CX228: 600 | CY228: 850 | CZ228: 1050 | DA228: 1250 | DB228: 1650 | DC228: 2050 | DD228: 300 | DE228: 350 | DF228: 450 | DG228: 600 | DH228: 850 | DJ228: lunghezza (A) mm | DK228: 300 | DL228: 350 | DM228: 450 | DN228: 450 | DO228: 600 | DP228: 600 | DQ228: 850 | DR228: 1050 | DS228: 1250 | DT228: 1650 | DU228: 600 | DV228: 850 | DW228: 1050 | DX228: 1250 | DY228: 1650 | DZ228: 2050 | EA228: 300 | EB228: 350 | EC228: 450 | ED228: 600 | EE228: 850
U229: UE008 | AQ229: 0 | BP229: UE001 | CM229: UE001 | DJ229: UE001
U230: UE009 | AQ230: 0 | BP230: UE003 | CM230: UE003 | DJ230: UE003
U231: UE010 | AQ231: 0 | BP231: UE005 | CM231: UE005 | DJ231: UE005
U232: UE015 | AQ232: 0 | BP232: UE008 | CM232: UE008 | DJ232: UE008
U233: UE018 | AQ233: =IF(U233=$V$183,1,0) -> 0 | AR233: =IF($AQ233=0,"",IF(AND(AR$225=1,V233>0),V233,"")) ->  | BP233: UE009 | CM233: UE009 | DJ233: UE009
U234: UE025 | AF234: 2 | AG234: 2 | AH234: 2 | AI234: 2 | AJ234: 2 | AQ234: 0 | BP234: UE010 | CM234: UE010 | DJ234: UE010
U235: UE035 | AH235: 2 | AI235: 2 | AJ235: 2 | AL235: 2 | AQ235: 0 | BP235: UE015 | CM235: UE015 | DJ235: UE015
U236: UE045 | AL236: 2 | AM236: 2 | AQ236: 0 | BP236: UE018 | CM236: UE018 | DJ236: UE018
U237: UE065 | AL237: 4 | AQ237: 0 | BP237: UE025 | BV237: 2A | BW237: 2A | BX237: 2A | BY237: 2A | BZ237: 2A | CL237: 1 | CM237: UE025 | CS237: B | CT237: A | CU237: A | CV237: A | CW237: A | DJ237: UE025 | DP237: 2 | DQ237: 2 | DR237: 2 | DS237: 2 | DT237: 2 | EF237: 2
... 24 more rows

Sheet SELECTION
B3: =LINGUA!B3 -> INSTRUCTIONS: insert input data in grey cells. Results appear in green cells. | T3: 50 Hz
T4: 60 Hz
B5: =LINGUA!B44 -> Humidifier
B6: =LINGUA!$B$27 -> Code | C6: =LINGUA!$B$28 -> Description | J6: =LINGUA!$B$26 -> Quantity | K6: =LINGUA!$B$29 -> List price | T6: =LINGUA!C541 -> No NSF Certification
B7: =DESIGN!F110 -> UR080HL103 | C7: =CONCATENATE(VLOOKUP(B7,CODICI!$B:$D,2,0),Potenze!F2) -> heaterSteam 80 kg/h , 400Vac 3~, with regulation, Titanium version -60 kW - | J7: =DESIGN!Z139 -> 1 | K7: =J7*VLOOKUP($B$7,CODICI!$B:$F,5,0) -> 6,769.00 | T7: =LINGUA!C542 -> With NSF Certification
B9: =CONCATENATE(LINGUA!B45, " (",DESIGN!I134,")") -> Steam distributor (Chosen by the tool) | H9: =LINGUA!$B$31 -> Do you want it? (Yes or No)?
B10: =LINGUA!$B$27 -> Code | C10: =LINGUA!$B$28 -> Description | J10: =LINGUA!$B$26 -> Quantity | K10: =LINGUA!$B$29 -> List price
B11: =IF(I9=LINGUA!$B$34,DESIGN!D120,"") ->  | C11: =IF(B11="","",IF(I9=LINGUA!$B$34,VLOOKUP($B$11,CODICI!$B:$D,2,0),"")) ->  | J11: =IF(I9=LINGUA!$B$34,DESIGN!G120,"") ->  | K11: =IF(B11="","",J11*IF(I9=LINGUA!$B$34,VLOOKUP($B$11,CODICI!$B:$F,5,0),"")) -> 
B12: =LINGUA!C544 -> For short absorption distance, take into account the installation of ultimateSAM distributors
B14: =CONCATENATE(LINGUA!B51, " (",DESIGN!I134,")") -> Y connection for steam hose (Chosen by the tool)
B15: =LINGUA!$B$27 -> Code | C15: =LINGUA!$B$28 -> Description | J15: =LINGUA!$B$26 -> Quantity | K15: =LINGUA!$B$29 -> List price
B16: =IF(I9=LINGUA!$B$34,DESIGN!D131," ") ->  | C16: =IF(I9=LINGUA!$B$34,IF(B16=" ","",VLOOKUP($B$16,CODICI!$B:$C,2,0)),"") ->  | J16: =IF(I9=LINGUA!$B$34,IF(B16<>" ",(DESIGN!G131*J7),""),"") ->  | K16: =IF(I9=LINGUA!$B$34,IF(B16=" "," ",J16*VLOOKUP(B16,CODICI!$B:$F,5,0)),"") -> 
B19: =LINGUA!B46 -> Steam hose | H19: =LINGUA!$B$31 -> Do you want it? (Yes or No)?
B20: =LINGUA!$B$27 -> Code | C20: =LINGUA!$B$28 -> Description | K20: =LINGUA!$B$29 -> List price
B21: =IF(I19=LINGUA!$B$34,DESIGN!V148,"") ->  | C21: =IF(I19=LINGUA!$B$34,VLOOKUP($B$21,CODICI!$B:$D,2,0),"") ->  | K21: =IF(I19=LINGUA!$B$34,J21*VLOOKUP($B$21,CODICI!$B:$F,5,0),"") -> 
B24: =LINGUA!B47 -> Drain hose | H24: =LINGUA!$B$31 -> Do you want it? (Yes or No)?
B25: =LINGUA!$B$27 -> Code | C25: =LINGUA!$B$28 -> Description | K25: =LINGUA!$B$29 -> List price
B26: =IF(I24=LINGUA!$B$34,DESIGN!W152,"") ->  | C26: =IF(I24=LINGUA!$B$34,VLOOKUP(B26,CODICI!$B:$D,2,0),"") ->  | K26: =IF(I24=LINGUA!$B$34,J26*VLOOKUP(B26,CODICI!$B:$F,5,0),"") -> 
B29: =LINGUA!B25 -> Active probe for ducts
B30: =LINGUA!$B$27 -> Code | C30: =LINGUA!$B$28 -> Description | K30: =LINGUA!$B$29 -> List price
B31: =DESIGN!U157 -> DPWC112000 | C31: =VLOOKUP($B31,CODICI!$B:$D,2,0) -> Active wall mounting sensor: Temperature (-10T60 °C) and humidity (10 to 90% rH) | K31: =J31*VLOOKUP($B31,CODICI!$B:$F,5,0) -> 0.00
B32: =DESIGN!U158 -> DPPC112000 | C32: =VLOOKUP($B32,CODICI!$B:$D,2,0) -> Active sensor for industrial environments: Temperature (-20T70 °C) and humidity (10 to 90% rH) | K32: =J32*VLOOKUP($B32,CODICI!$B:$F,5,0) -> 0.00
B33: =DESIGN!U159 -> DPPC212000 | C33: =VLOOKUP($B33,CODICI!$B:$D,2,0) -> Active sensor for industrial environments: Temperature (-20T70 °C) and humidity (0 to 100% rH) | K33: =J33*VLOOKUP($B33,CODICI!$B:$F,5,0) -> 0.00
B34: =DESIGN!U160 -> DPDC112000 | C34: =VLOOKUP($B34,CODICI!$B:$D,2,0) -> Active sensor for ducts: Temperature (-20T70 °C) and humidity (10 to 90% rH) | K34: =J34*VLOOKUP($B34,CODICI!$B:$F,5,0) -> 0.00
B35: =DESIGN!U161 -> DPDC212000 | C35: =VLOOKUP($B35,CODICI!$B:$D,2,0) -> Active sensor for ducts: Temperature (-20T70 °C) and humidity (0 to 100% rH) | K35: =J35*VLOOKUP($B35,CODICI!$B:$F,5,0) -> 0.00
B36: =DESIGN!U162 -> ASET030001 | C36: =VLOOKUP($B36,CODICI!$B:$D,2,0) -> Temperature probe (-30T90 °C) for universal use | K36: =J36*VLOOKUP($B36,CODICI!$B:$F,5,0) -> 0.00
B39: =LINGUA!C522 -> WTS revers osmosis system | H39: =LINGUA!$B$31 -> Do you want it? (Yes or No)? | O39: UR
B40: =LINGUA!$B$27 -> Code | C40: =LINGUA!$B$28 -> Description | J40: =LINGUA!$B$26 -> Quantity | N40: =MID(B7,1,2) -> UR | O40: UG
B41: =IF(I39=LINGUA!$B$34,IF(N40="UG",VLOOKUP(B7,Commissioning!H27:J32,3,0),IF(I41=Commissioning!G2,VLOOKUP(Commissioning!F22,Commissioning!H2:J12,3,0),(VLOOKUP(Commissioning!F22,Commissioning!H13:J23,3,0)))),"") ->  | C41: =IF(I39=LINGUA!$B$34,VLOOKUP(B41,Commissioning!J2:K32,2,0)," ") ->  | H41: =IF(N40=O39,LINGUA!C530," ") -> grid frequency | I41: 50 Hz | J41: 1 | K41: =IF(N40=O41,"",IF(I39=LINGUA!$B$34,J41*VLOOKUP(B41,CODICI!$B:$F,5,0)," ")) ->  | O41: UE
B42: =IF(I39=LINGUA!$B$34,IF(N40="UG",VLOOKUP(B7,Commissioning!H27:L32,5,0),IF(I41=Commissioning!G2,VLOOKUP(Commissioning!F22,Commissioning!H2:L12,5,0),(VLOOKUP(Commissioning!F22,Commissioning!H13:L23,5,0)))),"") ->  | C42: =IF(I39=LINGUA!$B$34,VLOOKUP(B42,LINGUA!B523:C543,2,0), " ") ->  | J42: 1 | K42: =(IF(N40=O41,"",IF(I39=LINGUA!$B$34,J42*VLOOKUP(B42,CODICI!B444:F455,5,0)," "))) -> 
B43: =IF(I39=LINGUA!$B$34,IF(H43=T6,LINGUA!B539,LINGUA!B540), "") ->  | C43: =IF(I39=LINGUA!$B$34,VLOOKUP(B43,LINGUA!B523:C543,2,0), " ") ->  | H43: Con Certificazione NSF | J43: 1 | K43: =IF(N40=O41,"",IF(I39=LINGUA!$B$34,J43*VLOOKUP(B43,CODICI!B445:F460,5,0)," ")) -> 
B46: =LINGUA!C562 -> Currency | C46: Eur | J46: =LINGUA!B36 -> Discount | K46: 0%
C47: =IF(C46="Eur","€",IF(C46="GBP","£","$")) -> €
B48: =LINGUA!C563 -> Exchange rate | C48: =VLOOKUP(C46,Currencies!$A:$B,2,FALSE) -> 0.00 | D48: Eur/ | E48: =C46 -> Eur
I49: =LINGUA!C763 -> Total | K49: =SUM(K7,K11,K21,K26,K31,K32,K33,K34,K16,K35,K36,K41,K42,K43)*(1-K46) -> 6,769.00
B52: =LINGUA!C546 -> Note:

Sheet OFFER
B3: =DESIGN!C35 -> External Air | E3: =DESIGN!C77 -> Air flow V | F3: =CONCATENATE(DESIGN!E77,DESIGN!F77) -> 10000m^3/h | J3: =MID(DESIGN!J36,1,3) -> 2,2
B4: =CONCATENATE(DESIGN!E36*100,"%",DESIGN!F36,) -> 90%rH | C4: =CONCATENATE(DESIGN!E37,DESIGN!F37) -> -5°C | D4: =CONCATENATE(J3,DESIGN!K36) -> 2,2g/kg | E4: =LINGUA!C556 -> Humidification load | F4: =CONCATENATE(J6," ",DESIGN!F84,) -> 60,9 kg/h | J4: =MID(DESIGN!E84,1,4) -> 60,9
B5: =CONCATENATE(DESIGN!C40,":",) -> Air after the humidifier: | J5: =MID(DESIGN!J41,1,3) -> 7,2
B6: =CONCATENATE(DESIGN!E41*100,"%",DESIGN!F41,) -> 50%rH | C6: =CONCATENATE(DESIGN!E42,DESIGN!F42) -> 20°C | D6: =CONCATENATE(J5,DESIGN!K36) -> 7,2g/kg | J6: =MID(DESIGN!E84,1,4) -> 60,9
B10: =LINGUA!B41 -> Position | C10: =LINGUA!B26 -> Quantity | D10: =LINGUA!B42 -> Code | E10: =LINGUA!B28 -> Description | F10: =LINGUA!C543 -> Net price
B11: 1 | C11: =IF(D11="","",SELECTION!J7) -> 1 | D11: =SELECTION!B7 -> UR080HL103 | E11: =IF(D11="","",SELECTION!C7) -> heaterSteam 80 kg/h , 400Vac 3~, with regulation, Titanium version -60 kW - | F11: =IF(F28=TRUE,IF(D11="","",(SELECTION!K7*(1-SELECTION!K46)))," ") -> 6769 | P11: =IF(D11="","",(SELECTION!K7*(1-SELECTION!K46))) -> 6769
B12: =IF(D12="","",MAX($B$11:B11)+1) ->  | C12: =IF(D12="","",SELECTION!J11) ->  | D12: =IF(SELECTION!I9=LINGUA!$B$34,SELECTION!B11,"") ->  | E12: =IF(D12="","",SELECTION!C11) ->  | F12: =IF($F$28=TRUE,IF(D12="","",P12), " ") ->  | P12: =IF(D12="","",SELECTION!K11*(1-SELECTION!$K$46)) -> 
B13: =IF(D13="","",MAX($B$11:B12)+1) ->  | C13: =IF(D13="","",SELECTION!J16) ->  | D13: =IF(OR(SELECTION!B16=" ",SELECTION!J16=0),"",SELECTION!B16) ->  | E13: =IF(D13="","",SELECTION!C16) ->  | F13: =IF($F$28=TRUE,IF(D13="","",P13),"") ->  | P13: =IF(D13="","",SELECTION!K16*(1-SELECTION!$K$46)) -> 
B14: =IF(D14="","",MAX($B$11:B13)+1) ->  | C14: =IF(D14="","",SELECTION!J21) ->  | D14: =IF(SELECTION!I19=LINGUA!$B$34,SELECTION!B21,"") ->  | E14: =IF(D14="","",SELECTION!C21) ->  | F14: =IF($F$28=TRUE,IF(D14="","",P14), " ") ->  | P14: =IF(D14="","",SELECTION!K21*(1-SELECTION!$K$46)) -> 
B15: =IF(D15="","",MAX($B$11:B14)+1) ->  | C15: =IF(D15="","",SELECTION!J26) ->  | D15: =IF(SELECTION!I24=LINGUA!$B$34,SELECTION!B26,"") ->  | E15: =IF(D15="","",SELECTION!C26) ->  | P15: =IF(D15="","",SELECTION!K26*(1-SELECTION!$K$46)) -> 
B16: =IF(D16="","",MAX($B$11:B15)+1) ->  | C16: =IF(D16="","",SELECTION!J31) ->  | D16: =IF(SELECTION!J31=0,"",SELECTION!B31) ->  | E16: =IF(D16="","",SELECTION!C31) ->  | P16: =IF(D16="","",SELECTION!K31*(1-SELECTION!$K$46)) -> 
B17: =IF(D17="","",MAX($B$11:B16)+1) ->  | C17: =IF(D17="","",SELECTION!J32) ->  | D17: =IF(SELECTION!J32=0,"",SELECTION!B32) ->  | E17: =IF(D17="","",SELECTION!C32) ->  | P17: =IF(D17="","",SELECTION!K32*(1-SELECTION!$K$46)) -> 
B18: =IF(D18="","",MAX($B$11:B17)+1) ->  | C18: =IF(D18="","",SELECTION!J33) ->  | D18: =IF(SELECTION!J33=0,"",SELECTION!B33) ->  | E18: =IF(D18="","",SELECTION!C33) ->  | P18: =IF(D18="","",SELECTION!K33*(1-SELECTION!$K$46)) -> 
B19: =IF(D19="","",MAX($B$11:B18)+1) ->  | C19: =IF(D19="","",SELECTION!J34) ->  | D19: =IF(SELECTION!J34=0,"",SELECTION!B34) ->  | E19: =IF(D19="","",SELECTION!C34) ->  | P19: =IF(D19="","",SELECTION!K34*(1-SELECTION!$K$46)) -> 
B20: =IF(D20="","",MAX($B$11:B19)+1) ->  | C20: =IF(D20="","",SELECTION!J35) ->  | D20: =IF(SELECTION!J35=0,"",SELECTION!B35) ->  | E20: =IF(D20="","",SELECTION!C35) ->  | P20: =IF(D20="","",SELECTION!K35*(1-SELECTION!$K$46)) -> 
B21: =IF(D21="","",MAX($B$11:B20)+1) ->  | C21: =IF(D21="","",SELECTION!J36) ->  | D21: =IF(SELECTION!J36=0,"",SELECTION!B36) ->  | E21: =IF(D21="","",SELECTION!C36) ->  | P21: =IF(D21="","",SELECTION!K36*(1-SELECTION!$K$46)) -> 
B22: =IF(D22="","",MAX($B$11:B21)+1) ->  | C22: =IF(SELECTION!N40=SELECTION!O41,"",IF(D22="","",SELECTION!J41)) ->  | D22: =IF(SELECTION!N40=SELECTION!O41,"",IF(SELECTION!J41=0,"",SELECTION!B41)) ->  | E22: =IF(D22="","",SELECTION!C41) ->  | P22: =IF(D22="","",SELECTION!K41*(1-SELECTION!$K$46)) -> 
B23: =IF(D23="","",MAX($B$11:B22)+1) ->  | C23: =IF(D23="","",SELECTION!J42) ->  | D23: =IF(SELECTION!N40=SELECTION!O41,"",IF(SELECTION!J42=0,"",SELECTION!B42)) ->  | E23: =IF(D23="","",SELECTION!C42) ->  | P23: =IF(D23="","",SELECTION!K42*(1-SELECTION!$K$46)) -> 
B24: =IF(D24="","",MAX($B$11:B23)+1) ->  | C24: =IF(D24="","",SELECTION!J43) ->  | D24: =IF(SELECTION!N40=SELECTION!O41,"",IF(SELECTION!J43=0,"",SELECTION!B43)) ->  | E24: =IF(D24="","",SELECTION!C43) ->  | P24: =IF(D24="","",SELECTION!K43*(1-SELECTION!$K$46)) -> 
E26: =LINGUA!$B$30 -> TOTAL | F26: =SUM(P11:P24) -> 6769
E28: =LINGUA!C521 -> View Partial net prices | F28: TRUE
B31: =LINGUA!C546 -> Note:
B32: =SELECTION!$B$53 -> 0

Sheet Steam absoprtion distance-AUTO (hidden)
E2: =LINGUA!B3 -> INSTRUCTIONS: insert input data in grey cells. Results appear in green cells.
AD4: ca | AE4: 1.006 | AF4: kJ/kg*°K
B6: Input | G6: =LINGUA!B6 -> External Air | L6: Output
C8: =LINGUA!B45 -> Steam distributor | H8: =LINGUA!B10 -> Temperature | M8: =LINGUA!B59 -> Max kg/h per distributor
C9: =DESIGN!D120 -> DP060D40RU | H9: =DESIGN!E37 -> -5 | M9: =LOOKUP(AF36,AB15:AB35,AE15:AE35) -> 45
C11: =LINGUA!B57 -> No. of distributors in the duct | H11: =LINGUA!B9 -> Relative humidity | M11: =LINGUA!B60 -> Distributor length (mm)
C12: =DESIGN!G120 -> 2 | H12: =DESIGN!E36 -> 90% | M12: =LOOKUP(AF36,AB15:AB35,AD15:AD35) -> 600
C14: =LINGUA!B58 -> Humidifier capacity (kg/h) | M14: =LINGUA!B20 -> Air speed | AB14: # | AC14: code | AD14: L mm | AE14: Max kg/h
C15: =DP!AA1 -> 80.00 | G15: =LINGUA!B14 -> Duct | M15: =AG47 -> 2.10 | AB15: 1 | AC15: DP030D22RU | AD15: 300 | AE15: 4 | AF15: =IF(AC15=$C$9,1,0)*AB15 -> 0
AB16: =AB15+1 -> 2 | AC16: DP035D22R0 | AD16: 332 | AE16: 4 | AF16: 0
H17: =LINGUA!B18 -> Air flow V | M17: =LINGUA!B61 -> Humidification distance (m) | AB17: 3 | AC17: DP045D22R0 | AD17: 438 | AE17: 6 | AF17: 0
H18: =DESIGN!E77 -> 10,000 | M18: =ROUNDUP(IF(AND(G28="",G29=""),0.05+IF((3.26/(LN(0.119*AE51*((C15/(C12*(M12/1000)))^(0.26))*(AG47^(0.086))))^2)<0,0,(3.26/(LN(0.119*AE51*((C15/(C12*(M12/1000)))^(0.26))*(AG47^(0.086))))^2)),"")*1.1,2) -> 1.46 | P18: = | AB18: 4 | AC18: DP060D22R0 | AD18: 597 | AE18: 9 | AF18: 0
AB19: 5 | AC19: DP085D22R0 | AD19: 835 | AE19: 9 | AF19: 0
H20: =LINGUA!B16 -> Internal height C2 | M20: =ROUNDUP((M18*1.1),2) -> 1.61 | AB20: 6 | AC20: DP030D30RU | AD20: 300 | AE20: 15 | AF20: 0
H21: =DESIGN!E76 -> 1100 | AB21: 7 | AC21: DP035D30R0 | AD21: 343 | AE21: 5 | AF21: 0
AB22: 8 | AC22: DP045D30R0 | AD22: 427 | AE22: 8 | AF22: 0
H23: =LINGUA!B15 -> Internal width C1 | AB23: 9 | AC23: DP045D30RU | AD23: 450 | AE23: 15 | AF23: 0
H24: =DESIGN!E75 -> 1200 | AB24: 10 | AC24: DP060D30R0 | AD24: 596 | AE24: 12 | AF24: 0
L25: =LINGUA!B62 -> The humidification distance is calculated using the work of Gundacker | AB25: 11 | AC25: DP060D30RU | AD25: 600 | AE25: 15 | AF25: 0
AB26: 12 | AC26: DP085D30R0 | AD26: 850 | AE26: 18 | AF26: 0
AB27: 13 | AC27: DP105D30R0 | AD27: 1048 | AE27: 18 | AF27: 0
D28: =IF(OR(G28<>"",G29<>"",G30<>"",),"ERROR", "") ->  | G28: =IF(M12>H24,LINGUA!B63,"") ->  | AB28: 14 | AC28: DP125D30R0 | AD28: 1245 | AE28: 18 | AF28: 0
G29: =IF((M9*C12)<C15,LINGUA!B64,"") ->  | AB29: 15 | AC29: DP165D30R0 | AD29: 1640 | AE29: 18 | AF29: 0
G30: =IF(C15/H18/1.2*1000+DESIGN!J36>AE50*1000,LINGUA!B519,"") ->  | AB30: 16 | AC30: DP060D40RU | AD30: 600 | AE30: 45 | AF30: 16
AB31: 17 | AC31: DP085D40R0 | AD31: 834 | AE31: 25 | AF31: 0
AB32: 18 | AC32: DP105D40R0 | AD32: 1015 | AE32: 35 | AF32: 0
AB33: 19 | AC33: DP125D40R0 | AD33: 1222 | AE33: 45 | AF33: 0
AB34: 20 | AC34: DP165D40R0 | AD34: 1636 | AE34: 45 | AF34: 0
AB35: 21 | AC35: DP205D40R0 | AD35: 2025 | AE35: 45 | AF35: 0
AF36: =SUM(AF15:AF35) -> 16
AB39: a | AC39: -5674.359 | AD39: -5800.2206 | AE39: c.s. aria J/(°C*g)= | AF39: 1.006
AB40: b | AC40: 6.3925247 | AD40: 1.3914993 | AE40: c.s. vapo J/(°C*g)= | AF40: 1.805
AB41: c | AC41: -0.009677843 | AD41: -0.048640239 | AE41: c latente J/g= | AF41: 2501
AB42: d | AC42: 6.22E-07 | AD42: 4.18E-05 | AE42: R Joule/Kmole*°K= | AF42: 8313.6
AB43: e | AC43: 2.07E-09 | AD43: -1.45E-08 | AE43: coefficiente fs | AF43: 1.004
AB44: f | AC44: -9.48E-13 | AD44: 0 | AE44: coefficiente psi | AF44: 0.62198
AB45: g | AC45: 4.1635019 | AD45: 6.5459673
AB46: t in | AC46: =H9 -> -5 | AD46: t fin | AE46: =DESIGN!E42 -> 20 | AF46: density | AG46: =1.293*(AC50/101325)*(273.15/DESIGN!AF43)*(1/(1+1.6078*DESIGN!AF45/1000)) -> 1.204570789
AB47: % in | AC47: =H12 -> 90% | AF47: Air velocity m/sec | AG47: =DESIGN!E79 -> 2.10
AB48: T in | AC48: =AC46+273.15 -> 268.15 | AD48: T fin | AE48: =AE46+273.15 -> 293.15 | AF48: d x | AG48: =AG49-AC51*1000 -> 6.666634585
AB49: Psat in | AC49: =IF(AC46<0,EXP($AC$39/AC48+$AC$40+$AC$41*AC48+$AC$42*AC48^2+$AC$43*AC48^3+$AC$44*AC48^4+$AC$45*LN(AC48)),EXP($AD$39/AC48+$AD$40+$AD$41*AC48+$AD$42*AC48^2+$AD$43*AC48^3+$AD$44*AC48^4+$AD$45*LN(AC48))) -> 402.0292559 | AD49: Psat fin | AE49: =IF(AE46<0,EXP($AC$39/AE48+$AC$40+$AC$41*AE48+$AC$42*AE48^2+$AC$43*AE48^3+$AC$44*AE48^4+$AC$45*LN(AE48)),EXP($AD$39/AE48+$AD$40+$AD$41*AE48+$AD$42*AE48^2+$AD$43*AE48^3+$AD$44*AE48^4+$AD$45*LN(AE48))) -> 2338.8037 | AF49: x finale | AG49: =IF(C15/H18/1.2*1000+DESIGN!J36<=AE50*1000,C15/H18/1.2*1000+DESIGN!J36,AE50*1000) -> 8.904600833
AB50: P atm | AC50: =DESIGN!W42 -> 101325 | AD50: x sat | AE50: =0.62198*1.004*AE49/(AC50-1.004*AE49) -> 0.01475605673 | AF50: t finale | AG50: =DESIGN!Z43-273.15 -> 20.0
AB51: umi spec in kg/kg | AC51: =$AF$43*$AF$44*AC47*AC49/(AC50-$AF$43*AC47*AC49) -> 0.002237966247 | AD51: eff sat | AE51: =AG48/(1000*(AE50-AC51)) -> 0.5325600255

Sheet TENDER TEXT
C1: UR | E1: UE | G1: UG
C2: ITALIANO | E2: ITALIANO | G2: ITALIANO
B3: =IF(B12=C1,IF(B13=C2,D3,C3),IF(B12=E1,IF(B13=E2,E3,F3),IF(B12=G1,IF(B13=G2,G3,H3),""))) -> heaterSteam suggested standard Tender Text (UR*3 titanium) heaterSteam UR*3 titanium Immersed-resistances steam humidifier for ambient and AHU/duct using drinkable mains water, demineralised water or deionised water. Humidifier heats and boils the water in a stainless steel cylinder. The steam generated is hygienically pure (aseptic). Main technical specs: Rated steam production …………….………kg/h Rated power input …………………………..kW Power supply …………..…………………..VAC 1-phase / 3-phase No. of steam outlets …….……………………. Steam outlet diameter ……………….……..mm Steam pressure……………….………….…..Pa Supply water connection…………..…3/4” G MALE Drain connection…………….……………..……40 mm Accessories for duct installations: Steam lance made of AISI304 with fitting flange and condensate outlet; length …….mm Steam nozzle distributor Accessories for ambient installations: Steam distributor with embedded blower, powder-painted metallic enclosure and air flow deflector for an even distribution of the steam into the ambient. Humidifiers shall have the following characteristics (2, 4, 6, 10, 13, 20, 27, 40, 53, 60, 80 kg/h): • Electric resistances made in titanium with low thermal resistance for fast response, stability of production and safety against overheating; • Water level sensor for the precise control of the water level on the entire conductivity range 0…1500µS/cm, without any change or additional board; • Each element shall have 1 patented PTC to detect and protect against overheating (patented); • User-editable configuration of the controller for the high-accuracy control of the humidity (± 1%rH); • Steam capacity shall be continuously controlled in the range 0..100% of the rated production; • Humidifier shall be suitable for any type of water: tap, demineralised, deionised and softener (≤1µS/cm heaterSteam titanium is needed); • Over-temperature protection on boiler cap (klixon, UR020-UR080); • Models 2-13 kg/h: the boiler shall be made of AISI304 stainless steel, openable for maintenance; models 20-80 kg/h: the boiler shall be made of AISI304 stainless steel, with the lid and a bottom front inspection panel removable for easy servicing; • Embedded conductimeter for the automatic management of the dilution drains and subsequent fills according to the supply water quality; • SSR’s (solid-state relays) for precise modulation of the steam production by dosing the power fed to the water; • Patented antifoam algorithm (AFS) to prevent irregular operation due to the formation of foam inside the cylinder; • The steam generator shall also have twin sensing electrodes for detection of water foaming and high limit water level; • Boiler thermal coating to reduce the heat loss; • Thermal shock feature, removing lime scale from the heating elements, extends the cleaning intervals and makes maintenance quicker; • Kevlar limescale bag inside the boiler for easy and quick maintenance (up to 13kg/h); doesn’t need any additional gaskets; • Boiler’s water temperature probe (NTC); • Pre-heating to keep the water warm in order to reduce the time to production (user-editable pre-heating set point); • The humidifier shall limit the steam production based on a proportional hi-limit probe that is self-adjusting according to AHU/duct air flow; • Humidifier shall have built-in power transformer, no needs of neutral line on power supply or additional external transformer; • Metallic housing with cover removable to allow full front access for easy maintenance; • Electrical section separated by a division wall and including the power circuitry and the control components, manufactured according to state-of-the-art norms; • The built-in USB port can be used for easy software updates, log file and alarm history extraction. Copy and paste parameters between units; • ON/OFF digital input for remote enabling; • Intelligent microprocessor controller with algorithm that automatically adapts operation to the water quality; • 4 built-in relays for remote signalling of: alarm relay, unit status relay (steam production), unit on/off, fan blower relay; • The type of electric signal shall be selectable via keyboard among: on/off (humidistat), 0…10 V, 2…10 V, 0…1 V, 0…20 mA, 4…20 mA and NTC (in case of temperature regulation); • RS485 serial port ready to communicate on Modbus, Bacnet or CAREL protocol for supervisory system. Without any additional devices; • Ethernet port ready to communicate on Modbus or Bacnet protocol for supervisory system. Without any additional devices; • Strat-up wizard for simple step-by-step machine configuration during first commissioning; • Type of controller: control with 9 algorithms always available to the user: on/off, production proportional to an external demand, production proportional to an external demand with modulating limiting probe, built-in %rH regulator with ambient probe, built-in %rH regulator with ambient probe and modulating limiting probe, built-in %rH regulator with two ambient probes (average), built-in temperature (°C/°F) regulator with ambient probe, built-in temperature (°C/°F) regulator with two ambient probes (average), built-in temperature (°C/°F) regulator with ambient and modulating limiting probe; • Master-slave capability to extend the capacity with automatic rotation of units; • Integrated backup of the unit for applications that require continuous service and non-stop humidification; • Maintenance backup to automatic start the second unit during the sevices; • Management of wireless probes (up to 4 ) to avoid cables into the building. User-editable of probes weight; • Plug&play web server for monitoring and setting of unit from remote position; • Keyboard to change the displayed value, edit the system parameters, reset the alarms; • Display of the supply water conductivity; • Selection of the units of measure (SI or Imperial); • Automatic check of valve, pump, water level sensor, presence of supply water at the start-up; • Automatic management of the lack of supply water with automatic restart when the water is available again; • Automatic maintenance warning; • Drain pump for full range of capacity (2…80 kg/h) that helps to remove debris; • The boiler shall be automatically emptied in case of prolonged inactivity, with the inactivity time-out being user-editable; • Compliances: CE, ETL, TÜV PRODUCT SERVICE, EAC; • [optional] wall-mounting %rH probe for civil environment (10 %rH … 90 %rH) • [optional] %rH & temperature industrial probe min. IP54 (0 %rH … 100 %rH, -10T70 °C) • [optional] %rH probe for duct min. IP40 (10 %rH … 90 %rH) • [optional] %rH limit probe for duct min. IP40 (0 %rH … 100 %rH) | C3: heaterSteam suggested standard Tender Text (UR*3 titanium) heaterSteam UR*3 titanium Immersed-resistances steam humidifier for ambient and AHU/duct using drinkable mains water, demineralised water or deionised water. Humidifier heats and boils the water in a stainless steel cylinder. The steam generated is hygienically pure (aseptic). Main technical specs: Rated steam production …………….………kg/h Rated power input …………………………..kW Power supply …………..…………………..VAC 1-phase / 3-phase No. of steam outlets …….……………………. Steam outlet diameter ……………….……..mm Steam pressure……………….………….…..Pa Supply water connection…………..…3/4” G MALE Drain connection…………….……………..……40 mm Accessories for duct installations: Steam lance made of AISI304 with fitting flange and condensate outlet; length …….mm Steam nozzle distributor Accessories for ambient installations: Steam distributor with embedded blower, powder-painted metallic enclosure and air flow deflector for an even distribution of the steam into the ambient. Humidifiers shall have the following characteristics (2, 4, 6, 10, 13, 20, 27, 40, 53, 60, 80 kg/h): • Electric resistances made in titanium with low thermal resistance for fast response, stability of production and safety against overheating; • Water level sensor for the precise control of the water level on the entire conductivity range 0…1500µS/cm, without any change or additional board; • Each element shall have 1 patented PTC to detect and protect against overheating (patented); • User-editable configuration of the controller for the high-accuracy control of the humidity (± 1%rH); • Steam capacity shall be continuously controlled in the range 0..100% of the rated production; • Humidifier shall be suitable for any type of water: tap, demineralised, deionised and softener (≤1µS/cm heaterSteam titanium is needed); • Over-temperature protection on boiler cap (klixon, UR020-UR080); • Models 2-13 kg/h: the boiler shall be made of AISI304 stainless steel, openable for maintenance; models 20-80 kg/h: the boiler shall be made of AISI304 stainless steel, with the lid and a bottom front inspection panel removable for easy servicing; • Embedded conductimeter for the automatic management of the dilution drains and subsequent fills according to the supply water quality; • SSR’s (solid-state relays) for precise modulation of the steam production by dosing the power fed to the water; • Patented antifoam algorithm (AFS) to prevent irregular operation due to the formation of foam inside the cylinder; • The steam generator shall also have twin sensing electrodes for detection of water foaming and high limit water level; • Boiler thermal coating to reduce the heat loss; • Thermal shock feature, removing lime scale from the heating elements, extends the cleaning intervals and makes maintenance quicker; • Kevlar limescale bag inside the boiler for easy and quick maintenance (up to 13kg/h); doesn’t need any additional gaskets; • Boiler’s water temperature probe (NTC); • Pre-heating to keep the water warm in order to reduce the time to production (user-editable pre-heating set point); • The humidifier shall limit the steam production based on a proportional hi-limit probe that is self-adjusting according to AHU/duct air flow; • Humidifier shall have built-in power transformer, no needs of neutral line on power supply or additional external transformer; • Metallic housing with cover removable to allow full front access for easy maintenance; • Electrical section separated by a division wall and including the power circuitry and the control components, manufactured according to state-of-the-art norms; • The built-in USB port can be used for easy software updates, log file and alarm history extraction. Copy and paste parameters between units; • ON/OFF digital input for remote enabling; • Intelligent microprocessor controller with algorithm that automatically adapts operation to the water quality; • 4 built-in relays for remote signalling of: alarm relay, unit status relay (steam production), unit on/off, fan blower relay; • The type of electric signal shall be selectable via keyboard among: on/off (humidistat), 0…10 V, 2…10 V, 0…1 V, 0…20 mA, 4…20 mA and NTC (in case of temperature regulation); • RS485 serial port ready to communicate on Modbus, Bacnet or CAREL protocol for supervisory system. Without any additional devices; • Ethernet port ready to communicate on Modbus or Bacnet protocol for supervisory system. Without any additional devices; • Strat-up wizard for simple step-by-step machine configuration during first commissioning; • Type of controller: control with 9 algorithms always available to the user: on/off, production proportional to an external demand, production proportional to an external demand with modulating limiting probe, built-in %rH regulator with ambient probe, built-in %rH regulator with ambient probe and modulating limiting probe, built-in %rH regulator with two ambient probes (average), built-in temperature (°C/°F) regulator with ambient probe, built-in temperature (°C/°F) regulator with two ambient probes (average), built-in temperature (°C/°F) regulator with ambient and modulating limiting probe; • Master-slave capability to extend the capacity with automatic rotation of units; • Integrated backup of the unit for applications that require continuous service and non-stop humidification; • Maintenance backup to automatic start the second unit during the sevices; • Management of wireless probes (up to 4 ) to avoid cables into the building. User-editable of probes weight; • Plug&play web server for monitoring and setting of unit from remote position; • Keyboard to change the displayed value, edit the system parameters, reset the alarms; • Display of the supply water conductivity; • Selection of the units of measure (SI or Imperial); • Automatic check of valve, pump, water level sensor, presence of supply water at the start-up; • Automatic management of the lack of supply water with automatic restart when the water is available again; • Automatic maintenance warning; • Drain pump for full range of capacity (2…80 kg/h) that helps to remove debris; • The boiler shall be automatically emptied in case of prolonged inactivity, with the inactivity time-out being user-editable; • Compliances: CE, ETL, TÜV PRODUCT SERVICE, EAC; • [optional] wall-mounting %rH probe for civil environment (10 %rH … 90 %rH) • [optional] %rH & temperature industrial probe min. IP54 (0 %rH … 100 %rH, -10T70 °C) • [optional] %rH probe for duct min. IP40 (10 %rH … 90 %rH) • [optional] %rH limit probe for duct min. IP40 (0 %rH … 100 %rH) | D3: heaterSteam Testi per Capitolati (UR*3 titanium) heaterSteam UR*3 titanium Umidificatore a resistenze immerse per ambiente e UTA/condotta che utilizza acqua potabile di rete, acqua demineralizzata o acqua deionizzata. L’umidificatore riscalda e fa bollire l’acqua all’interno di un cilindro in acciaio inox. Il vapore generato è igienicamente puro (asettico). Specifiche tecniche: Produzione nominale di vapore …………….………kg/h Potenza di ingresso nominale …………………………..kW Tensione di alimentazione …………..…………………..VAC 1-phase / 3-phase Numero di uscite vapore …….……………………. Diametro uscite vapore ……………….……..mm Pressione del vapore……………….………….…..Pa Connessione acqua …………..…3/4” G MALE Scarico acqua…………….……………..……40 mm Accessori per installazione in condotta: - Distributore di vapore in acciaio inox AISI304 con flangia di connessione e drenaggio condensa; lunghezza…….mm - Ugello di distribuzione del vapore Accessori per installazione in ambiente: - Distributore di vapore ventilato, box di metallo e deflettore per regolazione del flusso di vapore nell’ambiente. L’umidificatore deve avere le seguenti caratteristiche (2, 4, 6, 10, 13, 20, 27, 40, 53, 60, 80 kg/h): • Resistenze elettriche in titanio a bassa resistenza termica a garanzia di una veloce e stabile produzione di vapore e a sicurezza contro le sovratemperature; • Sensore di livello per un controllo preciso del livello dell’acqua nel cilindro per l’intero range di conducibilità 0…1500µS/cm, senza nessuna variazione o aggiunta di dispositivi esterni; • Ogni resistenza elettrica deve avere una sonda PTC per rilevare la temperatura e proteggere gli elementi riscaldanti dalle sovratemperature (brevetto) • Precisione del controllo dell’umidità programmabile (± 1 %rH). • La regolazione della capacità deve essere impostabile nell’intervallo 0..100% della capacità nominale • L’umidificatore deve essere utilizzabile con ogni tipo d’acqua: di rete, demineralizzata, deionizzata o addolcita (≤1µS/cm è richiesto heaterSteam titanium); • Protezione da sovratemperatura sul coperchio del boiler (klixon, UR020-UR080); • modelli 2-13 kg/h: il cilindro in acciaio AISI 304 deve essere apribile per la manutenzione; modelli 20-80 kg/h: il cilindro deve essere in acciaio AISI304 e apribile: il coperchio e il pannello frontale inferiore (pannello di ispezione) devono essere rimovibili per una facile manutenzione; • Conducimetro integrato per una gestione automatica degli scarichi per diluizione e conseguenti carichi in base alla qualità dell’acqua; • Relè allo stato solido SSR (solid-state relay) per una modulazione precisa della produzione del vapore dosando la potenza; • Algoritmo anti-schiuma (AFS – Anti Foam System) per prevenire un’irregolare produzione dell’umidificatore a causa della formazione di schiuma nel cilindro (brevetto Carel); • Il generatore di vapore dovrà inoltre avere un doppio sensore a elettrodi per determinare l’eventuale schiuma nell’acqua e livello limite dell’acqua; • isolamento termico del boiler per ridurre le perdite di calore; • Funzione di shock termico per rimuovere il calcare dagli elementi riscaldanti, la funzione riduce la pulizia rendendo più facile la manutenzione; • per modelli da 2 a 13 kg/h: sacco in kevlar (riutilizzabile) interno al cilindro per una facile e veloce pulizia; non necessita di guarnizioni aggiuntive; • Sonda di temperatura NTC per l’acqua del boiler; • Funzione di pre-riscaldo per ridurre il tempo di produzione (set point di pre-riscaldo programmabile); • L’umidificatore deve poter limitare la produzione di vapore in base a una sonda limite proporzionalmente e in modo autoadattativo alla portata d’aria della UTA/condotta; • L’umidificatore deve essere dotato di trasformatore interno, non si necessita della linea del neutro per l’alimentazione o di un trasformatore esterno addizionale; • Carpenteria metallica con pannello frontale rimovibile per un facile accesso durante la manutenzione; • Sezione elettrica dedicata e separata da specifica parete che comprende circuito elettrico e componenti di controllo, realizzata a stato dell’arte; • La porta USB a bordo deve poter essere utilizzata per un aggiornamento del software, salvataggio dei log delle variabile e per l’esportazione dello storico allarme. Inoltre, possibilità di esportare e importare i valori dei parametri tra le unità; • Ingresso digitale di tipo ON/OFF per attivazione/disattivazione da remoto; • Controllo delle operazioni con algoritmo autoadattativo in base alla qualità dell’acqua; • 4 relè a bordo per la segnalazione remota di: segnale di allarme, stato unità (produzione vapore), unità on/off, relè per la testata ventilante; • Il tipo di segnale deve essere selezionabile da interfaccia utente tra: on/off (umidostato), 0…10 V, 2…10 V, 0…1 V, 0…20 mA, 4…20 mA e NTC (in caso di regolazione in temperatura); • Porta seriale RS485 per comunicazione con dispositivi CAREL, Modbus® e Bacnet. Senza l’aggiunta di dispositivi esterni; • Porta Ethernet per comunicazione con dispositive Modbus® o Bacnet. Senza l’aggiunta di dispositivi esterni; • Strat-up wizard per facile configurazione dell’unità a step durante il primo avvio; • Tipo di regolazione: controllo con 9 tipi di algoritmi sempre a disposizione dell’utente: on/off, produzione proporzionale ad una richiesta esterna, produzione proporzionale ad una richiesta esterna con sonda limite modulante, regolazione integrata %rH con sonde ambiente e sonda limite modulante, regolazione integrata %rH con due sonde ambiente (media), regolazione integrata in temperatura (°C/°F) con sonda ambiente, regolazione integrata in temperatura (°C/°F) con due sonde ambiente (media), regolazione integrata in temperatura (°C/°F) con sonda ambiente e sonda limite; • Funzione Master-slave per estendere la capacità di vapore con rotazione automatica delle unità; • Funzione di backup delle unità integrata per applicazioni che richiedono servizio continuativo ed evitare fermi macchina per la manutenzione; • Funzione di backup per manutenzione per attivazione automatica di una seconda unità durante la manutenzione; • Gestione di sonde wireless (fino a 4) per evitare il cablaggio negli edifici. Definizione del peso delle sonde da parte dell’utente; • Plug&Play web server per monitoraggio e impostazione dell’unità da posizione remota; • Tastiera per cambiare valore in visualizzazione, per settare i parametri, e resettare gli allarmi; • Visualizzazione della conducibilità dell’acqua di ingresso; • Selezione delle unità di misura (SI o Imperial); • Controllo automatico della valvola, pompa, sensore di livello acqua, presenza di acqua di ingresso durante l’avviamento dell’umidificatore; • Gestione automatica della mancanza di acqua di ingresso con riavvio automatico quando l’acqua è presente nuovamente; • Messaggi automatici di manutenzione; • Pompa di drenaggio acqua sull’intero range di capacità (2…80kg/h) per un facile scarico dei residui di calcare; • Il cilindro devono essere automaticamente svuotati dall’acqua nel caso di prolungata inattività, il time-out deve essere programmabile dall’utente; • compliances: CE, ETL, TÜV PRODUCT SERVICE, EAC; • [Opzionale] sonda di umidità %rH a muro per applicazioni civili (10 %rH … 90 %rH) • [Opzionale] sonda di umidità %rH e di temperatura per applicazioni industriali IP54 (0 %rH … 100 %rH, -10T70 °C) • [Opzionale] sonda di umidità %rH per condotta IP40 (10 %rH … 90 %rH) • [Opzionale] sonda limite di umidità %rH per condotta IP40 (0 %rH … 100 %rH) | E3: humiSteam TESTO per capitolato Umidificatore isotermico a vapore per ambiente e condotta ad elettrodi immersi in acqua potabile di rete (1.5, 3, 5, 8, 9, 10, 15, 18, 25, 35, 45, 65, 90, 130 kg/h). I modelli modulanti UE*X* devono avere le seguenti caratteristiche (1.5, 3, 5, 8, 9, 10, 15, 18, 25, 35, 45, 65, 90, 130 kg/h): - conformità CE, CETLUS, TÜV PRODUCT SERVICE, PCT - copertura in lamiera pressopiegata e pre-verniciata facilmente rimuovibile frontalmente per le operazioni d’assistenza e manutenzione - vano elettrico separato da setto metallico e comprendente la circuiteria di potenza e i componenti di regolazione e controllo, cablato a regola d’arte secondo le vigenti normative di sicurezza - cilindri di serie usa-e-getta in materiale plastico HB secondo UL94 oppure cilindri apribili e pulibili di tipo V0 secondo UL94 - acqua di carico: di rete, potabile (range minimo di conducibilità accettabile 75 – 1250 µS/cm) - elettrodi immersi in acciaio zincato ad elevata superficie di scambio - pompa di scarico - vasca di raccolta sul fondo per prevenire allagamenti in casi di eventuali perdite d’acqua - conducimetro integrato per una gestione completamente automatica di carichi e scarichi in funzione del tipo d’acqua di alimentazione - ingresso digitale ON/OFF per l’abilitazione remota - relè cumulativo di allarme per la segnalazione remota di guasti e/o malfunzionamenti - due ingressi analogici per segnale esterno di richiesta e sonde: gli ingressi sono impostabili da tastiera per segnale di tipo on/off (umidostato), 0…10 V, 2…10 V, 0…1 V, 0…20 mA, 4…20 mA, 0-135 Ohm, 135-10000 Ohm, NTC - possibilità di collegare una sonda limite per evitare di bagnare la condotta - porta seriale RS485 predisposta per la comunicazione con i sistemi CAREL o via Modbus® RTU - controllo pHC (famiglia pCO) con display grafico per messaggistica ad icone di facile ed immediata comprensione e con algoritmi di regolazione auto-adattantesi alla qualità dell’acqua - controllore con 6 algoritmi di regolazione attivabili in ogni momento: on/off, proporzionale da segnale esterno, proporzionale da segnale esterno e sonda modulante limite, regolatore integrato di umidità con sonda ambiente, regolatore integrato di umidità con sonda ambiente e sonda modulante limite, regolatore integrato di temperatura per bagni turchi - display grafico remotabile fino a 50 m senza alimentatore esterno (fino a 200 m con alimentatore esterno) per la visualizzazione della richiesta di produzione, misura della sonda ambientale, misura della sonda limite, produzione istantanea di vapore, allarmi, parametri di sistema - tastiera per cambiare la visualizzazione a display, modificare i parametri di sistema, azzerare gli allarmi - impostazione manuale e modulazione della massima portata di vapore dal 20% al 100% della portata nominale (dal 10% per le unità da 90 e 130 kg/h) - algoritmo antischiuma brevettato (AFS) per prevenire l’irregolarità di funzionamento dovuto alla formazione di schiuma all’interno del cilindro - definizione di fasce orarie per l’on/off giornaliero e settimanale - definizione di max. 4 set point in funzione dell’ora del giorno - visualizzazione della conducibilità dell’acqua di alimentazione - scelta della lingua - scelta del sistema di unità di misura (SI o Imperiale) - scelta della logica del relè d’allarme (NO o NC) - storico allarmi (200 allarmi) - disabilitazione anche da tastiera - gestione della mancanza d’acqua di alimentazione con ripartenza automatica in caso di ritornata disponibilità - auto-diagnosi iniziale automatica - avvisi di manutenzione automatici e temporizzati (questi ultimi impostabili a seconda delle esigenze) - svuotamento automatico del cilindro bollitore in caso di fermo prolungato (impostabile) per evitare la formazione di acqua stagnante - svuotamento periodico del cilindro bollitore (impostabile) per rimuovere i fanghi che si formano con acqua ricche di sostanze in sospensione (per esempio, humus) - start/stop di un de-umidificatore esterno in base a un set point di umidità impostabile - attivazione manuale delle uscite digitali per manutenzione - modelli da 90 e 130 kg/h con 2 cilindri: selezione del funzionamento in serie o in parallelo dei due cilindri - optional: comunicazione con BMS LON®, BACnet™ over Ethernet, BACnet™ over IP, BACnet™ over MS/TP, TCP/IP, SNMP, DHCP, HTTP, FTP - optional: diagnostica remota via GSM - optional: sonda di umidità a muro per ambiente civile (10 %rH … 90 %rH) - optional: sonda di umidità/temperatura a muro per ambiente industriale min. IP54 (0 %rH … 100 %rH, -10T70 °C) - optional: sonda di umidità per condotta min. IP40 (10 %rH … 90 %rH) - sonda di umidità limite per condotta min. IP40 (0 %rH … 100 %rH) - optional: sonda di temperatura universale min. IP55 (-30T90 °C) I modelli modulanti UE*W* per bagni turchi devono avere le seguenti caratteristiche (1.5, 3, 5, 8, 9, 10, 15, 18, 25, 35, 45, 65 kg/h): - conformità CE, CETLUS, TÜV PRODUCT SERVICE, PCT - copertura in lamiera pressopiegata e pre-verniciata facilmente rimuovibile frontalmente per le operazioni d’assistenza e manutenzione - vano elettrico separato da setto metallico e comprendente la circuiteria di potenza e i componenti di regolazione e controllo, cablato a regola d’arte secondo le vigenti normative di sicurezza - cilindri usa-e-getta in materiale plastico HB secondo UL94 di serie - cilindri apribili e pulibili di tipo V0 secondo UL94 ordinabili a parte - elettrodi immersi in acciaio zincato ad elevata superficie di scambio - conducimetro integrato per una gestione completamente automatica di carichi e scarichi in funzione del tipo d’acqua di alimentazione - ingresso digitale ON/OFF per l’abilitazione remota - relè cumulativo di allarme per la segnalazione remota di guasti e/o malfunzionamenti - due ingressi analogici per segnale esterno di richiesta e sonde: gli ingressi sono impostabili da tastiera per segnale di tipo on/off (umidostato), 0…10 V, 2…10 V, 0…1 V, 0…20 mA, 4…20 mA, NTC e 0-135 Ohm - porta seriale RS485 predisposta per la comunicazione con i sistemi CAREL o via Modbus® RTU - controllo pHC (famiglia pCO) con display grafico per messaggistica ad icone di facile ed immediata comprensione - controllore con algoritmo di regolazione della temperatura in base alla lettura di max 2 sonde di temperatura ed auto-adattantesi alla qualità dell’acqua - le letture delle 2 sonde di temperatura possono essere mediate con 2 pesi diversi - display grafico remotabile fino a 50 m senza alimentatore esterno (fino a 200 m con alimentatore esterno) per la visualizzazione della richiesta di produzione, misura della sonda ambientale, misura della sonda limite, produzione istantanea di vapore, allarmi, parametri di sistema - tastiera per cambiare la visualizzazione a display, modificare i parametri di sistema, azzerare gli allarmi - impostazione manuale e modulazione della massima portata di vapore dal 20% al 100% della portata nominale - start/stop di 3 pompe esterne per essenze con tempistiche definibile dall’utente - start/stop di una pompa esterna per il ciclo di sanificazione impostabile dall’utente - gestione di 2 ventilatori (immissione ed estrazione) - on/off della luce interna - algoritmo antischiuma brevettato (AFS) per prevenire l’irregolarità di funzionamento dovuto alla formazione di schiuma all’interno del cilindro - definizione di fasce orarie per l’on/off giornaliero e settimanale - definizione di max. 4 set point in funzione dell’ora del giorno - visualizzazione della conducibilità dell’acqua di alimentazione - scelta della lingua - scelta del sistema di unità di misura (SI o Imperiale) - scelta della logica del relè d’allarme (NO o NC) - storico allarmi (200 allarmi) - disabilitazione anche da tastiera - gestione della mancanza d’acqua di alimentazione con ripartenza automatica in caso di ritornata disponibilità - auto-diagnosi iniziale automatica - avvisi di manutenzione automatici e temporizzati (questi ultimi impostabili a seconda delle esigenze) - svuotamento automatico del cilindro bollitore in caso di fermo prolungato (impostabile) per evitare la formazione di acqua stagnante - svuotamento periodico del cilindro bollitore (impostabile) per rimuovere i fanghi che si formano con acqua ricche di sostanze in sospensione (per esempio, humus) - start/stop di un de-umidificatore esterno in base a un set point di umidità impostabile - attivazione manuale delle uscite digitali per manutenzione - optional: comunicazione con BMS LON®, BACnet™ over Ethernet, BACnet™ over IP, BACnet™ over MS/TP, TCP/IP, SNMP, DHCP, HTTP, FTP - optional: diagnostica remota via GSM - optional: sonda di umidità/temperatura a muro per ambiente industriale min. IP54 (0 %rH … 100 %rH, -10T70 °C) - optional: sonda di temperatura universale min. IP55 (-30T90 °C) I modelli modulanti UE*Y* devono avere le seguenti caratteristiche (1.5, 3, 5, 8, 9, 10, 15, 18, 25, 35, 45, 65kg/h): - conformità CE, CETLUS, TÜV PRODUCT SERVICE, PCT - copertura in lamiera pressopiegata e pre-verniciata facilmente rimuovibile frontalmente per le operazioni d’assistenza e manutenzione - vano elettrico separato da setto metallico e comprendente la circuiteria di potenza e i componenti di regolazione e controllo, cablato a regola d’arte secondo le vigenti normative di sicurezza - cilindri di serie usa-e-getta in materiale plastico HB secondo UL94 oppure apribili e pulibili di tipo V0 secondo UL94 - acqua di carico: di rete, potabile (range minimo di conducibilità accettabile 75 – 1250 µS/cm) - elettrodi immersi in acciaio zincato ad elevata superficie di scambio - pompa di scarico - vasca di raccolta sul fondo per prevenire allagamenti in casi di eventuali perdite d’acqua - conducimetro integrato per una gestione completamente automatica di carichi e scarichi in funzione del tipo d’acqua di alimentazione - ingresso digitale ON/OFF per l’abilitazione remota - relè cumulativo di allarme per la segnalazione remota di guasti e/o malfunzionamenti - un ingresso analogico per segnale esterno di richiesta: l’ingresso è impostabile da tastiera per segnale di tipo on/off (umidostato), 0…10 V, 2…10 V, 0…20 mA e 4…20 mA - porta seriale RS485 predisposta per la comunicazione con i sistemi CAREL o via Modbus® RTU - controllo con terminale ad icone di facile ed immediata comprensione e con algoritmi di regolazione auto-adattantesi alla qualità dell’acqua - controllore con 2 algoritmi di regolazione attivabili in ogni momento: on/off e proporzionale da segnale esterno - terminale remotabile fino a 20 m per la visualizzazione della richiesta di produzione, produzione istantanea di vapore, allarmi, parametri di sistema - tastiera per cambiare la visualizzazione a display, modificare i parametri di sistema, azzerare gli allarmi - impostazione manuale e modulazione della massima portata di vapore dal 20% al 100% della portata nominale - algoritmo antischiuma brevettato (AFS) per prevenire l’irregolarità di funzionamento dovuto alla formazione di schiuma all’interno del cilindro - visualizzazione della conducibilità dell’acqua di alimentazione - scelta del sistema di unità di misura (SI o Imperiale) - scelta della logica del relè d’allarme (NO o NC) - storico allarmi (200 allarmi) - gestione della mancanza d’acqua di alimentazione con ripartenza automatica in caso di ritornata disponibilità - auto-diagnosi iniziale automatica - avvisi di manutenzione automatici e temporizzati (questi ultimi impostabili a seconda delle esigenze) - svuotamento automatico del cilindro bollitore in caso di fermo prolungato (impostabile) per evitare la formazione di acqua stagnante - svuotamento periodico del cilindro bollitore (impostabile) per rimuovere i fanghi che si formano con acqua ricche di sostanze in sospensione (per esempio, humus) Caratteristiche tecniche principali: - Produzione nominale Max di vapore ………kg/h - Potenza elettrica assorbita…………………..kW - Tensione d’alimentazione…………………..VAC 1-fase / 3-fase - Numero di uscite vapore……………………. - Diametro uscita vapore……………….……..mm - Pressione Max d’uscita vapore………….…..Pa - Attacco acqua di alimentazione…………..…3/4” G MASCHIO - Scarico acqua…………….……………..……40 mm Accessori per installazione in condotta: - Distributore lineare forato in acciaio inox AISI304 completo di staffa di fissaggio e raccordo di drenaggio condensa; lunghezza …….mm - Ugello diffusore in materiale plastica Accessori per installazione in ambiente: - Distributore di vapore ventilato, costituito da carpenteria in lamiera verniciata contenente ventilatore e deflettore regolabile per una corretta ed uniforme distribuzione del vapore in ambiente. | F3: humiSteam standard Tender text Immersed-electrodes steam humidifier for ambient and AHU/duct using drinkable mains water (1.5, 3, 5, 8, 9, 10, 15, 18, 25, 35, 45, 65, 90, 130 kg/h). Modulating models UE*X* Modulating models UE*X* shall have the following characteristics (1.5, 3, 5, 8, 9, 10, 15, 18, 25, 35, 45, 65, 90, 130 kg/h): • compliances: CE, CETLUS, TÜV PRODUCT SERVICE, PCT • metallic housing with cover removable to allow 180° front access for easy maintenance • electric section separated by a divider wall and including the power circuitry and the control components, manufactured according to the state-of-the-art norms • standard cylinder: disposable cylinder, rated HB according to UL 94, or cleanable cylinder, rated V0 according to UL 94 • supply water: from mains, drinkable, conductivity range (min) 75 – 1250 µS/cm • drain pump • bottom pan that collects and drains small leaks • immersed electrodes made of galvanized steel with high contact surface • embedded conductimetre for the automatic management of the dilution drains and subsequent fills according to the supply water quality • ON/OFF digital input for remote enabling • cumulative alarm relay for the remote signalling of faults and/or malfunctions • 2 analogue inputs for probes and external demand. The type of electrical signal for both shall be selectable via keyboard among: on/off (humidistat), 0…10 V, 2…10 V, 0…1 V, 0…20 mA, 4…20 mA, 0-135 Ohm, 135-10000 Ohm, NTC • RS485 serial port ready to communicate with CAREL devices or via Modbus® RTU • pHC control (pCO family) with user-friendly graphic display (icons and messages readily understandable) and with algorithms that automatically adapt the operations to the water quality • controller with 6 algorithms always available to the user: on/off, production proportional to an external demand, production proportional to an external demand and modulating limiting probe, built-in %rH controller with ambient probe, built-in %rH controller with ambient probe and modulating limiting probe, built-in temperature controller with ambient probe • graphic display remotable up to 50 m without external power supply (200 m with external power supply) to show demand, ambient probe reading, limit probe reading, steam production, alarms, system parameters • keyboard to change the displayed value, edit the system parameters, reset the alarms • maximum production can be manually set from 20% to 100% of the rated production (from 10% for models 90 and 130 kg/h) • patented antifoam algorithm (AFS) to prevent irregular operation due to the formation of foam inside the cylinder • daily and weekly on/off timers • up to 4 different daily automatic set points shall be editable • display of the supply water conductivity • selection of the language • selection of the units of measure (SI or Imperial) • the relay logic shall be selectable (NO or NC) • alarm history (200 alarms) • the humidifier shall also be enabled/disabled from the keyboard • automatic management of the lack of supply water with automatic restart when the water is available again • automatic initial self-test • maintenance warnings and alarms, both automatic and timed (the latter can be set by the user) • the boiler(s) shall be automatically emptied in case of prolonged inactivity, with the inactivity time-out user-editable • periodical flush (user-editable) to remove deposits that build up with turbid water (e.g., humus) • start/stop of an external de-humidifier according to a user-editable %rH set point • it shall be possible to force each digital output for servicing • models 90 and 130 kg/h with 2 boilers: selection between sequence and parallel duty of the boilers • optional: communication via LON®, BACnet™ over Ethernet, BACnet™ over IP, BACnet™ over MS/TP, TCP/IP, SNMP, DHCP, HTTP, FTP • optional: remote diagnostic via GSM • optional: wall-mounting %rH probe for civil environment (10 %rH … 90 %rH) • optional: %rH & temperature industrial probe min. IP54 (0 %rH … 100 %rH, -10T70 °C) • optional: %rH probe for duct min. IP40 (10 %rH … 90 %rH) • optional: %rH limit probe for duct min. IP40 (0 %rH … 100 %rH) • optional: temperature probe min. IP55 (-30T90 °C) Modulating models UE*W* Modulating models UE*W* dedicated to steam baths shall have the following characteristics (1.5, 3, 5, 8, 9, 10, 15, 18, 25, 35, 45, 65 kg/h): • compliances: CE, CETLUS, TÜV PRODUCT SERVICE, PCT • metallic housing with cover removable to allow 180° front access for easy maintenance • electric section separated by a divider wall and including the power circuitry and the control components, manufactured according to the state-of-the-art norms • disposable cylinder as standard, rated HB according to UL 94 • cleanable cylinder as optional, rated V0 according to UL 94 • immersed electrodes made of galvanized steel with high contact surface • embedded conductimetre for the automatic management of the dilution drains and subsequent fills according to the supply water quality • ON/OFF digital input for remote enabling • cumulative alarm relay for the remote signalling of faults and/or malfunctions • 2 analogue inputs for probes and external demand. The type of electrical signal for both shall be selectable via keyboard among: on/off (humidistat), 0…10 V, 2…10 V, 0…1 V, 0…20 mA and 4…20 mA • RS485 serial port ready to communicate with CAREL devices or via Modbus® RTU • pHC control (pCO family) with user-friendly graphic display (icons and messages readily understandable) • the control is for temperature only by means of 1 or 2 temperature probes and automatically adapts the operations to the water quality • the readings of the 2 probes shall be averaged and the weighs of the average shall be user editable • graphic display remotable up to 50 m without external power supply (200 m with external power supply) to show demand, ambient probe reading, limit probe reading, steam production, alarms, system parameters • keyboard to change the displayed value, edit the system parameters, reset the alarms • maximum production can be manually set from 20% to 100% of the rated production • start/stop of up to 3 external pump essences with user-editable timings • start/stop of an external sanitizer pump with user-editable timings • start/stop of 2 fans • on/off of the internal light • patented antifoam algorithm (AFS) to prevent irregular operation due to the formation of foam inside the cylinder • daily and weekly on/off timers • up to 4 different daily automatic set points shall be editable • display of the supply water conductivity • selection of the language • selection of the units of measure (SI or Imperial) • the relay logic shall be selectable (NO or NC) • alarm history (200 alarms) • the humidifier shall also be enabled/disabled from the keyboard • automatic management of the lack of supply water with automatic restart when the water is available again • automatic initial self-test • maintenance warnings and alarms, both automatic and timed (the latter can be set by the user) • the boiler(s) shall be automatically emptied in case of prolonged inactivity, with the inactivity time-out user-editable • periodical flush (user-editable) to remove deposits that build up with turbid water (e.g., humus) • start/stop of an external de-humidifier according to a user-editable %rH set point • it shall be possible to force each digital output for servicing • optional: communication via LON®, BACnet™ over Ethernet, BACnet™ over IP, BACnet™ over MS/TP, TCP/IP, SNMP, DHCP, HTTP, FTP • optional: remote diagnostic via GSM • optional: %rH & temperature industrial probe min. IP54 (0 %rH … 100 %rH, -10T70 °C) • optional: temperature probe min. IP55 (-30T90 °C) Modulating models UE*Y* Modulating models UE*Y* shall have the following characteristics (1.5, 3, 5, 8, 9, 10, 15, 18, 25, 35, 45, 65 kg/h): • compliances: CE, CETLUS, TÜV PRODUCT SERVICE, PCT • metallic housing with cover removable to allow 180° front access for easy maintenance • electric section separated by a divider wall and including the power circuitry and the control components, manufactured according to the state-of-the-art norms • standard cylinder: disposable cylinder, rated HB according to UL 94, or cleanable cylinder, rated V0 according to UL 94 • supply water: from mains, drinkable, conductivity range (min) 75 – 1250 µS/cm • drain pump • bottom pan that collects and drains small leaks • immersed electrodes made of galvanized steel with high contact surface • embedded conductimetre for the automatic management of the dilution drains and subsequent fills according to the supply water quality • ON/OFF digital input for remote enabling • cumulative alarm relay for the remote signalling of faults and/or malfunctions • 1 analogue input for the external demand. The type of electrical signal shall be selectable via keyboard among: on/off (humidistat), 0…10 V, 2…10 V, 0…20 mA and 4…20 mA • RS485 serial port ready to communicate with CAREL devices or via Modbus® RTU • user-friendly terminal with display with icons and with algorithms that automatically adapt the operations to the water quality • controller with 2 algorithms always available to the user: on/off and production proportional • terminal remotable up to 20 m to show demand, steam production, alarms, system parameters • keyboard to change the displayed value, edit the system parameters, reset the alarms • maximum production can be manually set from 20% to 100% of the rated production • patented antifoam algorithm (AFS) to prevent irregular operation due to the formation of foam inside the cylinder • display of the supply water conductivity • selection of the units of measure (SI or Imperial) • the relay logic shall be selectable (NO or NC) • alarm history (200 alarms) • automatic management of the lack of supply water with automatic restart when the water is available again • automatic initial self-test • maintenance warnings and alarms, both automatic and timed (the latter can be set by the user) • the boiler(s) shall be automatically emptied in case of prolonged inactivity, with the inactivity time-out user-editable • periodical flush (user-editable) to remove deposits that build up with turbid water (e.g., humus) Main technical specs: Rated steam production …………….………kg/h Rated power input …………………………..kW Power supply …………..…………………..VAC 1-phase / 3-phase No. of steam outlets …….……………………. Steam outlet diameter ……………….……..mm Steam pressure……………….………….…..Pa Supply water connection…………..…3/4” G MALE Drain connection…………….……………..……40 mm Accessories for duct installations: Steam lance made of AISI304 with fitting flange and condensate outlet; length …….mm Steam nozzle distributor Accessories for ambient installations: Steam distributor with embedded blower, powder-painted metallic enclosure and air flow deflector for an even distribution of the steam into the ambient. | G3: gaSteam CAREL testo per capitolato Umidificatore isotermico a vapore per ambiente e AHU/condotta alimentato a gas ed acqua potabile di rete o demineralizzata (45, 90, 180 kg/h). Caratteristiche generali: • conformità CE, TÜV DVGW, CETLUS, AGA per la scheda di controllo fiamma • copertura in lamiera di acciaio pressopiegata e verniciata a polvere facilmente rimuovibile sia frontalmente sia lateralmente sia superiormente per le operazioni d’assistenza e manutenzione • vano elettrico e treno gas separato da setto metallico e comprendente la circuiteria di potenza e i componenti di regolazione e controllo, cablato a regola d’arte secondo le vigenti normative di sicurezza • boiler per la produzione di vapore in acciaio inox AISI 304 L ispezionabile: coperchio e flangia frontale inferiore rimuovibili per la pulizia del calcare e la manutenzione • il boiler deve avere un rivestimento termico esterno per limitare le dispersioni termiche • scambiatore di calore ad alto rendimento in acciaio inox AISI 316 L; composto da 4 elementi affiancati per 45 kg/h e 7 elementi affiancati per 90/180 kg/h. • adattabilità a vari tipi di gas (metano G20 e G25, propano (gpl) G31) per mezzo di una semplice modica di parametri del controllore • bruciatore pre-mix a pressione negativa con soffiante modulante ed efficienza dal 92% al 95% a seconda del modello • emissioni di NOX: classe 5 per i modelli 45, 90 e 180 kg/h • sonda NTC per la misura della temperatura fumi e blocco in caso di sovratemperatura • klixon di sicurezza a riarmo manuale in caso di sovratemperatura fumi • sensore per il controllo preciso del livello dell’acqua • conducimetro integrato per una gestione completamente automatica di carichi e scarichi in funzione del tipo d’acqua di alimentazione • due ingressi analogici per segnale esterno di richiesta e sonde: gli ingressi sono impostabili da tastiera per segnale di tipo on/off (umidostato), 0…10 V, 2…10 V, 0…1 V, 0…20 mA, 4…20 mA, NTC, 0-135 Ohm • sonda di temperatura acqua • ingresso digitale ON/OFF per l’abilitazione remota • relè cumulativo di allarme per la segnalazione remota di guasti e/o malfunzionamenti • replica della produzione di vapore per mezzo di un’uscita 0-10 V dedicata per eventuali dispositivi esterni • porta seriale RS485 predisposta per la comunicazione con i sistemi CAREL o via Modbus® • controllo pHC (famiglia pCO) con display grafico per messaggistica ad icone di facile ed immediata comprensione e con algoritmi di regolazione auto-adattantesi alla qualità dell’acqua • 6 algoritmi di regolazione attivabili in ogni momento: on/off, proporzionale da segnale esterno, regolatore integrato di umidità con sonda ambiente, regolatore integrato di umidità con sonda ambiente e sonda modulante limite, regolatore integrato di temperatura per bagni turchi, regolazione proporzionale con segnale impostato da un controllore esterno e limite in umidità • display grafico remotabile fino a 50 m senza alimentatore esterno (fino a 200 m con alimentatore esterno) per la visualizzazione della richiesta di produzione, misura della sonda ambientale, misura della sonda limite, produzione istantanea di vapore, allarmi, parametri di sistema • tastiera per cambiare la visualizzazione a display, modificare i parametri di sistema, azzerare gli allarmi • impostazione manuale e modulazione della portata massima di vapore dal 25% al 100% della portata nominale (dal 12.5% per il modello da 180 kg/h) • algoritmo antischiuma brevettato (AFS) per prevenire l’irregolarità di funzionamento dovuto alla formazione di schiuma all’interno del boiler • definizione di fasce orarie per l’on/off giornaliero e settimanale • definizione di max. 4 set point in funzione dell’ora del giorno • visualizzazione della conducibilità dell’acqua di alimentazione • scelta della lingua • scelta del sistema di unità di misura (SI o Imperiale) • scelta della logica del relè d’allarme (NO o NC) • storico allarmi (200 allarmi con data e ora) • disabilitazione anche da tastiera • test automatico delle valvole, pompa e del sensore di livello dell’acqua all’avvio dell’umidificatore, compresa la verifica della presenza dell’acqua di alimentazione • auto-diagnosi iniziale automatica • avvisi di manutenzione automatici • gestione della mancanza d’acqua di alimentazione con ripartenza automatica in caso di ritornata disponibilità • pre-riscaldamento attivabile per mantenere l’acqua calda e ridurre i tempi di produzione del vapore • funzionalità antigelo automatica per l’acqua nel boiler • svuotamento automatico del cilindro bollitore in caso di fermo prolungato (impostabile) per evitare la formazione di acqua stagnante • stima delle incrostazioni calcaree con avvisi automatici di manutenzione in base alla temperatura fumi (NTC) • start/stop di un de-umidificatore esterno in base a un set point di umidità impostabile • attivazione manuale delle uscite digitali per manutenzione • modello da 180 kg/h con 2 bruciatori: selezione del funzionamento in serie o in parallelo dei due bruciatori • modello da 180 kg/h con 2 bruciatori: abilitazione della rotazione dei bruciatori per uniformità d’usura (a differenza di tempo impostabile durante il funzionamento o alla ripartenza) • optional: comunicazione con BMS LON®, BACnet™ over Ethernet, BACnet™ over IP, BACnet™ over MS/TP, TCP/IP, SNMP, DHCP, HTTP, FTP • optional: diagnostica remota via GSM • optional: sonda di umidità a muro per ambiente civile (10 %rH … 90 %rH) • optional: sonda di umidità/temperatura a muro per ambiente industriale min. IP54 (0 %rH … 100 %rH, -10T70 °C) • optional: sonda di umidità per condotta min. IP40 (10 %rH … 90 %rH) • sonda di umidità limite per condotta min. IP40 (0 %rH … 100 %rH) • optional: sonda di temperatura universale min. IP55 (-30T90 °C) Caratteristiche tecniche principali: Produzione nominale Max di vapore ………kg/h Portata termica ………………………………..kW Gas G20/G25/G31 Classe NOX 5 (UG045, UG090) / 4 (UG180) Tensione d’alimentazione 230 VAC 1-fase, max 300 W Numero di uscite vapore……………………. Diametro uscita vapore 40 mm Pressione Max d’uscita vapore 2000 Pa Attacco acqua di alimentazione 3/4” G MASCHIO Scarico acqua…………….……………..……40 mm Accessori per installazione in condotta: Distributore lineare forato in acciaio inox AISI304 completo di staffa di fissaggio e raccordo di drenaggio condensa; lunghezza …….mm | H3: gaSteam standard tender text Gas-driven steam humidifier for ambient and AHU/duct using drinkable mains water or demineralised water (45, 90, 180 kg/h). General specifications: • compliances: CE, TÜV DVGW, CETLUS, AGA for ignition flame control board • metallic housing with top, side and front panels removable to allow access for easy maintenance • electric section with gas train separated by a divider wall and including the power circuitry and the control components, manufactured according to the state-of-the-art norms • boiler made of AISI 304 L openable: the lid and the bottom front door shall be removable for easy maintenance • the boiler shall have a thermal coating to reduce the heat loss • high efficiency heat exchanger made of stainless steel AISI 316 L; shall be formed by 4 plates for 45 kg/h and 7 plates for 90/180 kg/h. • straightforward configuration for different gases (methane G20 & G25, propane (lpg) G31) by editing a small set of controller parameters • negative pressure pre-mix burner with modulatine blower and high efficiency (92% to 95% according to the model) • low NOX emissions: class 5 for models 45, 90 & 180 kg/h • NTC probe for reading the fumes temperature and block the humidifier in case of overheating • manual-reset safety klixon to detect fumes overheating • water level sensor for the precise control of the water level • embedded conductimetre for the automatic management of the dilution drains and subsequent fills according to the supply water quality • 2 analogue inputs for probes and external demand. The type of electrical signal for both shall be selectable via keyboard among: on/off (humidistat), 0…10 V, 2…10 V, 0…1 V, 0…20 mA, 4…20 mA, NTC, 0-135 Ohm • boiler’s water temperature probe • ON/OFF digital input for remote enabling • cumulative alarm relay for the remote signalling of faults and/or malfunctions • dedicated 0-10V output to replicate the steam production for an external device • connection via RS485 (CAREL devices only) and Modbus® readily available • pHC control (pCO family) with user-friendly graphic display (icons and messages readily understandable) and with algorithms that automatically adapt the operations to the water quality • 6 algorithms always available to the user: on/off, production proportional to an external demand, built-in %rH regulator with ambient probe, built-in %rH regulator with ambient probe and modulating limiting probe, built-in temperature regulator with ambient probe, Proportional control with signal set by an external controller and limit humidity • graphic display remotable up to 50 m without external power supply (200 m with external power supply) to show demand, ambient probe reading, limit probe reading, steam production, alarms, system parameters • keyboard to change the displayed value, edit the system parameters, reset the alarms • maximum production can be manually set from 25% to 100% of the rated production (from 12.5% for model 180 kg/h) • patented antifoam algorithm (AFS) to prevent irregular operation due to the formation of foam inside the cylinder • daily and weekly on/off timers • up to 4 different daily automatic set points shall be editable • display of the supply water conductivity • selection of the language • selection of the units of measure (SI or Imperial) • the alarm relay logic shall be selectable (NO or NC) • alarm history (200 alarms) • the humidifier shall also be enabled/disabled from the keyboard • automatic check of valves, pump, water level sensor, presence of supply water at the start-up • automatic initial self-test • automatic management of the lack of supply water with automatic restart when the water is available again • pre-heating to keep the water warm in order to reduce the time to production (user-editable) • automatic anti-freezing cycle to protect the boiler’s water • the boiler(s) shall be automatically emptied in case of prolonged inactivity, with the inactivity time-out user-editable • estimation of the lime scale build-up through the fumes temperature probe (NTC) and automatic maintenance warning • start/stop of an external de-humidifier according to a user-editable %rH set point • it shall be possible to force each digital output for servicing • model 180 kg/h with 2 burners: selection between sequence and parallel duty of the burners • model 180 kg/h with 2 burners: burner rotation user selectable based on the running time difference (the rotation can be disabled, set to occur at the ignition or during the production) • optional: communication via LON®, BACnet™ over Ethernet, BACnet™ over IP, BACnet™ over MS/TP, TCP/IP, SNMP, DHCP, HTTP, FTP • optional: remote diagnostic via GSM • optional: wall-mounting %rH probe for civil environment (10 %rH … 90 %rH) • optional: %rH & temperature industrial probe min. IP54 (0 %rH … 100 %rH, - 10T70 °C) • optional: %rH probe for duct min. IP40 (10 %rH … 90 %rH) • optional: %rH limit probe for duct min. IP40 (0 %rH … 100 %rH) • optional: temperature probe min. IP55 (-30T90 °C) Main technical specs: Rated steam production …………….………kg/h Heat power input ………………………………..kW Gas G20/G25/G31 NOX class 5 (UG045, UG090) / 4 (UG180) Power supply 230 VAC 1-fase, max 300 W No. of steam outlets ……………………. Steam outlet diameter 40 mm Steam pressure 2000 Pa Supply water connection 3/4” G MALE Drain connection …………….……………..……40 mm Accessories for duct installations: Steam lance made of AISI304 with fitting flange and condensate outlet; length…….mm
B12: =MID(DESIGN!F110,1,2) -> UR
B13: =DESIGN!E26 -> ENGLISH

Sheet Steam absoprtion distance
E2: =LINGUA!B3 -> INSTRUCTIONS: insert input data in grey cells. Results appear in green cells.
AD4: ca | AE4: 1.006 | AF4: kJ/kg*°K
B6: Input | G6: =LINGUA!B6 -> External Air | L6: Output
C8: =LINGUA!B45 -> Steam distributor | H8: =LINGUA!B10 -> Temperature | M8: =LINGUA!B59 -> Max kg/h per distributor
C9: DP085D40R0 | H9: =DESIGN!E37 -> -5 | M9: =LOOKUP(AF36,AB15:AB35,AE15:AE35) -> 25
C11: =LINGUA!B57 -> No. of distributors in the duct | H11: =LINGUA!B9 -> Relative humidity | M11: =LINGUA!B60 -> Distributor length (mm)
C12: 2 | H12: =DESIGN!E36 -> 90% | M12: =LOOKUP(AF36,AB15:AB35,AD15:AD35) -> 834
C14: =LINGUA!B58 -> Humidifier capacity (kg/h) | M14: =LINGUA!B20 -> Air speed | AB14: # | AC14: code | AD14: L mm | AE14: Max kg/h
C15: 40.00 | G15: =LINGUA!B14 -> Duct | M15: =AG47 -> 2.10 | AB15: 1 | AC15: DP030D22RU | AD15: 300 | AE15: 4 | AF15: =IF(AC15=$C$9,1,0)*AB15 -> 0
AB16: =AB15+1 -> 2 | AC16: DP035D22R0 | AD16: 332 | AE16: 4 | AF16: 0
H17: =LINGUA!B18 -> Air flow V | M17: =LINGUA!B61 -> Humidification distance (m) | AB17: 3 | AC17: DP045D22R0 | AD17: 438 | AE17: 6 | AF17: 0
H18: =DESIGN!E77 -> 10,000 | M18: =ROUNDUP(IF(AND(G28="",G29=""),0.05+IF((3.26/(LN(0.119*AE51*((C15/(C12*(M12/1000)))^(0.26))*(AG47^(0.086))))^2)<0,0,(3.26/(LN(0.119*AE51*((C15/(C12*(M12/1000)))^(0.26))*(AG47^(0.086))))^2)),"")*1.1,2) -> 0.61 | P18: = | AB18: 4 | AC18: DP060D22R0 | AD18: 597 | AE18: 9 | AF18: 0
AB19: 5 | AC19: DP085D22R0 | AD19: 835 | AE19: 9 | AF19: 0
H20: =LINGUA!B16 -> Internal height C2 | AB20: 6 | AC20: DP030D30RU | AD20: 300 | AE20: 15 | AF20: 0
H21: =DESIGN!E76 -> 1100 | AB21: 7 | AC21: DP035D30R0 | AD21: 343 | AE21: 5 | AF21: 0
AB22: 8 | AC22: DP045D30R0 | AD22: 427 | AE22: 8 | AF22: 0
H23: =LINGUA!B15 -> Internal width C1 | AB23: 9 | AC23: DP045D30RU | AD23: 450 | AE23: 15 | AF23: 0
H24: =DESIGN!E75 -> 1200 | AB24: 10 | AC24: DP060D30R0 | AD24: 596 | AE24: 12 | AF24: 0
L25: =LINGUA!B62 -> The humidification distance is calculated using the work of Gundacker | AB25: 11 | AC25: DP060D30RU | AD25: 600 | AE25: 15 | AF25: 0
AB26: 12 | AC26: DP085D30R0 | AD26: 850 | AE26: 18 | AF26: 0
AB27: 13 | AC27: DP105D30R0 | AD27: 1048 | AE27: 18 | AF27: 0
D28: =IF(OR(G28<>"",G29<>"",G30<>"",),"ERROR", "") ->  | G28: =IF(M12>H24,LINGUA!B63,"") ->  | AB28: 14 | AC28: DP125D30R0 | AD28: 1245 | AE28: 18 | AF28: 0
G29: =IF((M9*C12)<C15,LINGUA!B64,"") ->  | AB29: 15 | AC29: DP165D30R0 | AD29: 1640 | AE29: 18 | AF29: 0
G30: =IF(C15/H18/1.2*1000+DESIGN!J36>AE50*1000,LINGUA!B519,"") ->  | AB30: 16 | AC30: DP060D40RU | AD30: 600 | AE30: 45 | AF30: 0
AB31: 17 | AC31: DP085D40R0 | AD31: 834 | AE31: 25 | AF31: 17
AB32: 18 | AC32: DP105D40R0 | AD32: 1015 | AE32: 35 | AF32: 0
AB33: 19 | AC33: DP125D40R0 | AD33: 1222 | AE33: 45 | AF33: 0
AB34: 20 | AC34: DP165D40R0 | AD34: 1636 | AE34: 45 | AF34: 0
AB35: 21 | AC35: DP205D40R0 | AD35: 2025 | AE35: 45 | AF35: 0
AF36: =SUM(AF15:AF35) -> 17
AB39: a | AC39: -5674.359 | AD39: -5800.2206 | AE39: c.s. aria J/(°C*g)= | AF39: 1.006
AB40: b | AC40: 6.3925247 | AD40: 1.3914993 | AE40: c.s. vapo J/(°C*g)= | AF40: 1.805
AB41: c | AC41: -0.009677843 | AD41: -0.048640239 | AE41: c latente J/g= | AF41: 2501
AB42: d | AC42: 6.22E-07 | AD42: 4.18E-05 | AE42: R Joule/Kmole*°K= | AF42: 8313.6
AB43: e | AC43: 2.07E-09 | AD43: -1.45E-08 | AE43: coefficiente fs | AF43: 1.004
AB44: f | AC44: -9.48E-13 | AD44: 0 | AE44: coefficiente psi | AF44: 0.62198
AB45: g | AC45: 4.1635019 | AD45: 6.5459673
AB46: t in | AC46: =H9 -> -5 | AD46: t fin | AE46: =DESIGN!E42 -> 20 | AF46: density | AG46: =1.293*(AC50/101325)*(273.15/DESIGN!AF43)*(1/(1+1.6078*DESIGN!AF45/1000)) -> 1.204570789
AB47: % in | AC47: =H12 -> 90% | AF47: Air velocity m/sec | AG47: =DESIGN!E79 -> 2.10
AB48: T in | AC48: =AC46+273.15 -> 268.15 | AD48: T fin | AE48: =AE46+273.15 -> 293.15 | AF48: d x | AG48: =AG49-AC51*1000 -> 3.333301252
